Workbook

Sheet はじめに

Sheet グループ ステージの予想
C2: グループ ステージの予想
X3: 3rd Teams
C4: グループ | D4: チーム | E4: 総合力の調整 | F4: 試合数 | G4: 勝ち | H4: 引き分け | I4: 負け | J4: 得点 | K4: 失点 | L4: +/- | M4: ポイント | N4: 得失点差の順位 | O4: グループ内の順位 (1 位と 2 位が進出) | P4: 3位以内にランクイン | Q4: ポイント（3位の場合） | X4: 3rd Teams | Y4: Round of 16
C5: A | D5: フランス | E5: 0% | F5: =COUNTIF(今年の試合!$E$5:$G$41, D5) -> 3 | G5: =COUNTIF(今年の試合!I:I, D5) -> 3 | H5: =COUNTIFS(今年の試合!E:E, D5, 今年の試合!I:I, "引き分け")+COUNTIFS(今年の試合!G:G, D5, 今年の試合!I:I, "引き分け") -> 0 | I5: =F5-SUM(G5:H5) -> 0 | J5: =SUM(SUMIF(今年の試合!E:E, D5,今年の試合!L:L), SUMIF(今年の試合!G:G,D5,今年の試合!M:M)) -> 6.22 | K5: =SUM(SUMIFS(今年の試合!M:M,今年の試合!E:E,'グループ ステージの予想'!D5), SUMIFS(今年の試合!F:F, 今年の試合!L:L, 'グループ ステージの予想'!D5)) -> 2.86 | L5: =J5-K5 -> 3.36 | M5: =(G5*3)+(H5*1) -> 9 | N5: =M5+(L5*0.001)+(J5*0.0001) -> 9.00 | O5: =RANK(N5,N$5:N$8) -> 1 | P5: =IF(Q5:Q28=0,"",RANK(Q5:Q28,Q5:Q28)) ->  | Q5: =IF('グループ ステージの予想'!$O$5:$O$28=3,'グループ ステージの予想'!$N$5:$N$28,0) -> 0.00 | X5: A | Y5: =SUM(Rank3A)<=4 -> TRUE
C6: A | D6: 大韓民国 | E6: 0% | F6: =COUNTIF(今年の試合!$E$5:$G$41, D6) -> 3 | G6: =COUNTIF(今年の試合!I:I, D6) -> 1 | H6: =COUNTIFS(今年の試合!E:E, D6, 今年の試合!I:I, "引き分け")+COUNTIFS(今年の試合!G:G, D6, 今年の試合!I:I, "引き分け") -> 0 | I6: 2 | J6: =SUM(SUMIF(今年の試合!E:E, D6,今年の試合!L:L), SUMIF(今年の試合!G:G,D6,今年の試合!M:M)) -> 4.6 | K6: =SUM(SUMIFS(今年の試合!M:M,今年の試合!E:E,'グループ ステージの予想'!D6), SUMIFS(今年の試合!F:F, 今年の試合!L:L, 'グループ ステージの予想'!D6)) -> 1.34 | L6: =J6-K6 -> 3.26 | M6: 3 | N6: =M6+(L6*0.001)+(J6*0.0001) -> 3.00 | O6: =RANK(N6,N$5:N$8) -> 2 | Q6: 0.00 | X6: B | Y6: =SUM(Rank3B)<=4 -> FALSE
C7: A | D7: ナイジェリア | E7: 0% | F7: =COUNTIF(今年の試合!$E$5:$G$41, D7) -> 3 | G7: =COUNTIF(今年の試合!I:I, D7) -> 1 | H7: =COUNTIFS(今年の試合!E:E, D7, 今年の試合!I:I, "引き分け")+COUNTIFS(今年の試合!G:G, D7, 今年の試合!I:I, "引き分け") -> 0 | I7: 2 | J7: =SUM(SUMIF(今年の試合!E:E, D7,今年の試合!L:L), SUMIF(今年の試合!G:G,D7,今年の試合!M:M)) -> 2.94 | K7: =SUM(SUMIFS(今年の試合!M:M,今年の試合!E:E,'グループ ステージの予想'!D7), SUMIFS(今年の試合!F:F, 今年の試合!L:L, 'グループ ステージの予想'!D7)) -> 4.38 | L7: -1.44 | M7: 3 | N7: 3.00 | O7: =RANK(N7,N$5:N$8) -> 4 | Q7: 0.00 | X7: C | Y7: =SUM(Rank3C)<=4 -> TRUE
C8: A | D8: ノルウェー | E8: 0% | F8: =COUNTIF(今年の試合!$E$5:$G$41, D8) -> 3 | G8: =COUNTIF(今年の試合!I:I, D8) -> 1 | H8: =COUNTIFS(今年の試合!E:E, D8, 今年の試合!I:I, "引き分け")+COUNTIFS(今年の試合!G:G, D8, 今年の試合!I:I, "引き分け") -> 0 | I8: 2 | J8: =SUM(SUMIF(今年の試合!E:E, D8,今年の試合!L:L), SUMIF(今年の試合!G:G,D8,今年の試合!M:M)) -> 4.26 | K8: =SUM(SUMIFS(今年の試合!M:M,今年の試合!E:E,'グループ ステージの予想'!D8), SUMIFS(今年の試合!F:F, 今年の試合!L:L, 'グループ ステージの予想'!D8)) -> 1.20 | L8: 3.06 | M8: 3 | N8: 3.00 | O8: =RANK(N8,N$5:N$8) -> 3 | P8: 2 | Q8: 3.00 | X8: D | Y8: =SUM(Rank3D)<=4 -> TRUE
C9: B | D9: 中国PR | E9: 0% | F9: =COUNTIF(今年の試合!$E$5:$G$41, D9) -> 3 | G9: =COUNTIF(今年の試合!I:I, D9) -> 1 | H9: =COUNTIFS(今年の試合!E:E, D9, 今年の試合!I:I, "引き分け")+COUNTIFS(今年の試合!G:G, D9, 今年の試合!I:I, "引き分け") -> 0 | I9: 2 | J9: =SUM(SUMIF(今年の試合!E:E, D9,今年の試合!L:L), SUMIF(今年の試合!G:G,D9,今年の試合!M:M)) -> 4.46 | K9: =SUM(SUMIFS(今年の試合!M:M,今年の試合!E:E,'グループ ステージの予想'!D9), SUMIFS(今年の試合!F:F, 今年の試合!L:L, 'グループ ステージの予想'!D9)) -> 1.38 | L9: 3.08 | M9: 3 | N9: 3.00 | O9: =RANK(N9,$N$9:$N$12) -> 2 | Q9: 0.00 | X9: E | Y9: =SUM(Rank3E)<=4 -> TRUE
C10: B | D10: ドイツ | E10: 0% | F10: =COUNTIF(今年の試合!$E$5:$G$41, D10) -> 3 | G10: =COUNTIF(今年の試合!I:I, D10) -> 1 | H10: =COUNTIFS(今年の試合!E:E, D10, 今年の試合!I:I, "引き分け")+COUNTIFS(今年の試合!G:G, D10, 今年の試合!I:I, "引き分け") -> 0 | I10: 2 | J10: =SUM(SUMIF(今年の試合!E:E, D10,今年の試合!L:L), SUMIF(今年の試合!G:G,D10,今年の試合!M:M)) -> 4.88 | K10: =SUM(SUMIFS(今年の試合!M:M,今年の試合!E:E,'グループ ステージの予想'!D10), SUMIFS(今年の試合!F:F, 今年の試合!L:L, 'グループ ステージの予想'!D10)) -> 2.90 | L10: =J10-K10 -> 1.98 | M10: 3 | N10: 3.00 | O10: =RANK(N10,$N$9:$N$12) -> 3 | P10: 5 | Q10: 3.00 | X10: F | Y10: =SUM(Rank3F)<=4 -> FALSE
C11: B | D11: 南アフリカ | E11: 0% | F11: =COUNTIF(今年の試合!$E$5:$G$41, D11) -> 3 | G11: =COUNTIF(今年の試合!I:I, D11) -> 2 | H11: =COUNTIFS(今年の試合!E:E, D11, 今年の試合!I:I, "引き分け")+COUNTIFS(今年の試合!G:G, D11, 今年の試合!I:I, "引き分け") -> 0 | I11: 1 | J11: =SUM(SUMIF(今年の試合!E:E, D11,今年の試合!L:L), SUMIF(今年の試合!G:G,D11,今年の試合!M:M)) -> 5.02 | K11: =SUM(SUMIFS(今年の試合!M:M,今年の試合!E:E,'グループ ステージの予想'!D11), SUMIFS(今年の試合!F:F, 今年の試合!L:L, 'グループ ステージの予想'!D11)) -> 3.02 | L11: =J11-K11 -> 2.00 | M11: 6 | N11: 6.00 | O11: =RANK(N11,$N$9:$N$12) -> 1 | Q11: 0.00
C12: B | D12: スペイン | E12: 0% | F12: =COUNTIF(今年の試合!$E$5:$G$41, D12) -> 3 | G12: =COUNTIF(今年の試合!I:I, D12) -> 0 | H12: =COUNTIFS(今年の試合!E:E, D12, 今年の試合!I:I, "引き分け")+COUNTIFS(今年の試合!G:G, D12, 今年の試合!I:I, "引き分け") -> 0 | I12: 3 | J12: =SUM(SUMIF(今年の試合!E:E, D12,今年の試合!L:L), SUMIF(今年の試合!G:G,D12,今年の試合!M:M)) -> 4.32 | K12: =SUM(SUMIFS(今年の試合!M:M,今年の試合!E:E,'グループ ステージの予想'!D12), SUMIFS(今年の試合!F:F, 今年の試合!L:L, 'グループ ステージの予想'!D12)) -> 1.80 | L12: =J12-K12 -> 2.52 | M12: 0 | N12: 0.00 | O12: =RANK(N12,$N$9:$N$12) -> 4 | Q12: 0.00 | X12: Case | Y12: =Y10*1+Y9*10+Y8*100+Y7*1000+Y6*10000+Y5*100000 -> 101110
C13: C | D13: オーストラリア | E13: 0% | F13: =COUNTIF(今年の試合!$E$5:$G$41, D13) -> 3 | G13: =COUNTIF(今年の試合!I:I, D13) -> 2 | H13: =COUNTIFS(今年の試合!E:E, D13, 今年の試合!I:I, "引き分け")+COUNTIFS(今年の試合!G:G, D13, 今年の試合!I:I, "引き分け") -> 0 | I13: 1 | J13: =SUM(SUMIF(今年の試合!E:E, D13,今年の試合!L:L), SUMIF(今年の試合!G:G,D13,今年の試合!M:M)) -> 4.5 | K13: =SUM(SUMIFS(今年の試合!M:M,今年の試合!E:E,'グループ ステージの予想'!D13), SUMIFS(今年の試合!F:F, 今年の試合!L:L, 'グループ ステージの予想'!D13)) -> 2.56 | L13: 1.94 | M13: =(G13*3)+(H13*1) -> 6 | N13: 6.00 | O13: =RANK(N13, N$13:N$16) -> 2 | Q13: 0.00
C14: C | D14: ブラジル | E14: 0% | F14: =COUNTIF(今年の試合!$E$5:$G$41, D14) -> 3 | G14: =COUNTIF(今年の試合!I:I, D14) -> 1 | H14: =COUNTIFS(今年の試合!E:E, D14, 今年の試合!I:I, "引き分け")+COUNTIFS(今年の試合!G:G, D14, 今年の試合!I:I, "引き分け") -> 0 | I14: 2 | J14: =SUM(SUMIF(今年の試合!E:E, D14,今年の試合!L:L), SUMIF(今年の試合!G:G,D14,今年の試合!M:M)) -> 4.14 | K14: =SUM(SUMIFS(今年の試合!M:M,今年の試合!E:E,'グループ ステージの予想'!D14), SUMIFS(今年の試合!F:F, 今年の試合!L:L, 'グループ ステージの予想'!D14)) -> 1.46 | L14: 2.68 | M14: 3 | N14: 3.00 | O14: =RANK(N14, N$13:N$16) -> 3 | P14: 3 | Q14: 3.00
C15: C | D15: イタリア | E15: 0% | F15: =COUNTIF(今年の試合!$E$5:$G$41, D15) -> 3 | G15: =COUNTIF(今年の試合!I:I, D15) -> 2 | H15: =COUNTIFS(今年の試合!E:E, D15, 今年の試合!I:I, "引き分け")+COUNTIFS(今年の試合!G:G, D15, 今年の試合!I:I, "引き分け") -> 0 | I15: 1 | J15: =SUM(SUMIF(今年の試合!E:E, D15,今年の試合!L:L), SUMIF(今年の試合!G:G,D15,今年の試合!M:M)) -> 4.26 | K15: =SUM(SUMIFS(今年の試合!M:M,今年の試合!E:E,'グループ ステージの予想'!D15), SUMIFS(今年の試合!F:F, 今年の試合!L:L, 'グループ ステージの予想'!D15)) -> 1.34 | L15: 2.92 | M15: 6 | N15: 6.00 | O15: =RANK(N15, N$13:N$16) -> 1 | Q15: 0.00
C16: C | D16: ジャマイカ | E16: 0% | F16: =COUNTIF(今年の試合!$E$5:$G$41, D16) -> 3 | G16: =COUNTIF(今年の試合!I:I, D16) -> 0 | H16: =COUNTIFS(今年の試合!E:E, D16, 今年の試合!I:I, "引き分け")+COUNTIFS(今年の試合!G:G, D16, 今年の試合!I:I, "引き分け") -> 0 | I16: 3 | J16: =SUM(SUMIF(今年の試合!E:E, D16,今年の試合!L:L), SUMIF(今年の試合!G:G,D16,今年の試合!M:M)) -> 4.46 | K16: =SUM(SUMIFS(今年の試合!M:M,今年の試合!E:E,'グループ ステージの予想'!D16), SUMIFS(今年の試合!F:F, 今年の試合!L:L, 'グループ ステージの予想'!D16)) -> 3.10 | L16: 1.36 | M16: 0 | N16: 0.00 | O16: =RANK(N16, N$13:N$16) -> 4 | Q16: 0.00
C17: D | D17: アルゼンチン | E17: 0% | F17: =COUNTIF(今年の試合!$E$5:$G$41, D17) -> 3 | G17: =COUNTIF(今年の試合!I:I, D17) -> 0 | H17: =COUNTIFS(今年の試合!E:E, D17, 今年の試合!I:I, "引き分け")+COUNTIFS(今年の試合!G:G, D17, 今年の試合!I:I, "引き分け") -> 0 | I17: 3 | J17: =SUM(SUMIF(今年の試合!E:E, D17,今年の試合!L:L), SUMIF(今年の試合!G:G,D17,今年の試合!M:M)) -> 2.06 | K17: =SUM(SUMIFS(今年の試合!M:M,今年の試合!E:E,'グループ ステージの予想'!D17), SUMIFS(今年の試合!F:F, 今年の試合!L:L, 'グループ ステージの予想'!D17)) -> 3.26 | L17: -1.20 | M17: 0 | N17: -0.00 | O17: =RANK(N17, N$17:N$20) -> 4 | Q17: 0.00
C18: D | D18: イングランド | E18: 0% | F18: =COUNTIF(今年の試合!$E$5:$G$41, D18) -> 3 | G18: =COUNTIF(今年の試合!I:I, D18) -> 3 | H18: =COUNTIFS(今年の試合!E:E, D18, 今年の試合!I:I, "引き分け")+COUNTIFS(今年の試合!G:G, D18, 今年の試合!I:I, "引き分け") -> 0 | I18: 0 | J18: =SUM(SUMIF(今年の試合!E:E, D18,今年の試合!L:L), SUMIF(今年の試合!G:G,D18,今年の試合!M:M)) -> 6.24 | K18: =SUM(SUMIFS(今年の試合!M:M,今年の試合!E:E,'グループ ステージの予想'!D18), SUMIFS(今年の試合!F:F, 今年の試合!L:L, 'グループ ステージの予想'!D18)) -> 1.72 | L18: 4.52 | M18: 9 | N18: 9.01 | O18: =RANK(N18, N$17:N$20) -> 1 | Q18: 0.00
C19: D | D19: 日本 | E19: 0% | F19: =COUNTIF(今年の試合!$E$5:$G$41, D19) -> 3 | G19: =COUNTIF(今年の試合!I:I, D19) -> 1 | H19: =COUNTIFS(今年の試合!E:E, D19, 今年の試合!I:I, "引き分け")+COUNTIFS(今年の試合!G:G, D19, 今年の試合!I:I, "引き分け") -> 0 | I19: 2 | J19: =SUM(SUMIF(今年の試合!E:E, D19,今年の試合!L:L), SUMIF(今年の試合!G:G,D19,今年の試合!M:M)) -> 5.88 | K19: =SUM(SUMIFS(今年の試合!M:M,今年の試合!E:E,'グループ ステージの予想'!D19), SUMIFS(今年の試合!F:F, 今年の試合!L:L, 'グループ ステージの予想'!D19)) -> 2.94 | L19: 2.94 | M19: 3 | N19: 3.00 | O19: =RANK(N19, N$17:N$20) -> 3 | P19: 1 | Q19: 3.00
C20: D | D20: スコットランド | E20: 0% | F20: =COUNTIF(今年の試合!$E$5:$G$41, D20) -> 3 | G20: =COUNTIF(今年の試合!I:I, D20) -> 2 | H20: =COUNTIFS(今年の試合!E:E, D20, 今年の試合!I:I, "引き分け")+COUNTIFS(今年の試合!G:G, D20, 今年の試合!I:I, "引き分け") -> 0 | I20: 1 | J20: =SUM(SUMIF(今年の試合!E:E, D20,今年の試合!L:L), SUMIF(今年の試合!G:G,D20,今年の試合!M:M)) -> 4.46 | K20: =SUM(SUMIFS(今年の試合!M:M,今年の試合!E:E,'グループ ステージの予想'!D20), SUMIFS(今年の試合!F:F, 今年の試合!L:L, 'グループ ステージの予想'!D20)) -> 1.32 | L20: 3.14 | M20: 6 | N20: 6.00 | O20: =RANK(N20, N$17:N$20) -> 2 | Q20: 0.00
C21: E | D21: カメルーン | E21: 0% | F21: =COUNTIF(今年の試合!$E$5:$G$41, D21) -> 3 | G21: =COUNTIF(今年の試合!I:I, D21) -> 1 | H21: =COUNTIFS(今年の試合!E:E, D21, 今年の試合!I:I, "引き分け")+COUNTIFS(今年の試合!G:G, D21, 今年の試合!I:I, "引き分け") -> 0 | I21: 2 | J21: =SUM(SUMIF(今年の試合!E:E, D21,今年の試合!L:L), SUMIF(今年の試合!G:G,D21,今年の試合!M:M)) -> 4.48 | K21: =SUM(SUMIFS(今年の試合!M:M,今年の試合!E:E,'グループ ステージの予想'!D21), SUMIFS(今年の試合!F:F, 今年の試合!L:L, 'グループ ステージの予想'!D21)) -> 1.86 | L21: 2.62 | M21: =(G21*3)+(H21*1) -> 3 | N21: 3.00 | O21: =RANK(N21, N$21:N$24) -> 3 | P21: 4 | Q21: 3.00
C22: E | D22: カナダ | E22: 0% | F22: =COUNTIF(今年の試合!$E$5:$G$41, D22) -> 3 | G22: =COUNTIF(今年の試合!I:I, D22) -> 1 | H22: =COUNTIFS(今年の試合!E:E, D22, 今年の試合!I:I, "引き分け")+COUNTIFS(今年の試合!G:G, D22, 今年の試合!I:I, "引き分け") -> 0 | I22: 2 | J22: =SUM(SUMIF(今年の試合!E:E, D22,今年の試合!L:L), SUMIF(今年の試合!G:G,D22,今年の試合!M:M)) -> 4.52 | K22: =SUM(SUMIFS(今年の試合!M:M,今年の試合!E:E,'グループ ステージの予想'!D22), SUMIFS(今年の試合!F:F, 今年の試合!L:L, 'グループ ステージの予想'!D22)) -> 2.96 | L22: 1.56 | M22: 3 | N22: 3.00 | O22: =RANK(N22, N$21:N$24) -> 4 | Q22: 0.00
C23: E | D23: オランダ | E23: 0% | F23: =COUNTIF(今年の試合!$E$5:$G$41, D23) -> 3 | G23: =COUNTIF(今年の試合!I:I, D23) -> 2 | H23: =COUNTIFS(今年の試合!E:E, D23, 今年の試合!I:I, "引き分け")+COUNTIFS(今年の試合!G:G, D23, 今年の試合!I:I, "引き分け") -> 0 | I23: 1 | J23: =SUM(SUMIF(今年の試合!E:E, D23,今年の試合!L:L), SUMIF(今年の試合!G:G,D23,今年の試合!M:M)) -> 4.38 | K23: =SUM(SUMIFS(今年の試合!M:M,今年の試合!E:E,'グループ ステージの予想'!D23), SUMIFS(今年の試合!F:F, 今年の試合!L:L, 'グループ ステージの予想'!D23)) -> 3.22 | L23: 1.16 | M23: 6 | N23: 6.00 | O23: =RANK(N23, N$21:N$24) -> 2 | Q23: 0.00
C24: E | D24: ニュージーランド | E24: 0% | F24: =COUNTIF(今年の試合!$E$5:$G$41, D24) -> 3 | G24: =COUNTIF(今年の試合!I:I, D24) -> 2 | H24: =COUNTIFS(今年の試合!E:E, D24, 今年の試合!I:I, "引き分け")+COUNTIFS(今年の試合!G:G, D24, 今年の試合!I:I, "引き分け") -> 0 | I24: 1 | J24: =SUM(SUMIF(今年の試合!E:E, D24,今年の試合!L:L), SUMIF(今年の試合!G:G,D24,今年の試合!M:M)) -> 4.7 | K24: =SUM(SUMIFS(今年の試合!M:M,今年の試合!E:E,'グループ ステージの予想'!D24), SUMIFS(今年の試合!F:F, 今年の試合!L:L, 'グループ ステージの予想'!D24)) -> 1.32 | L24: 3.38 | M24: 6 | N24: 6.00 | O24: =RANK(N24, N$21:N$24) -> 1 | Q24: 0.00
C25: F | D25: チリ | E25: 0% | F25: =COUNTIF(今年の試合!$E$5:$G$41, D25) -> 3 | G25: =COUNTIF(今年の試合!I:I, D25) -> 1 | H25: =COUNTIFS(今年の試合!E:E, D25, 今年の試合!I:I, "引き分け")+COUNTIFS(今年の試合!G:G, D25, 今年の試合!I:I, "引き分け") -> 0 | I25: 2 | J25: =SUM(SUMIF(今年の試合!E:E, D25,今年の試合!L:L), SUMIF(今年の試合!G:G,D25,今年の試合!M:M)) -> 2.16 | K25: =SUM(SUMIFS(今年の試合!M:M,今年の試合!E:E,'グループ ステージの予想'!D25), SUMIFS(今年の試合!F:F, 今年の試合!L:L, 'グループ ステージの予想'!D25)) -> 2.80 | L25: -0.64 | M25: 3 | N25: 3.00 | O25: =RANK(N25, N$25:N$28) -> 3 | P25: 6 | Q25: 3.00
C26: F | D26: スウェーデン | E26: 0% | F26: =COUNTIF(今年の試合!$E$5:$G$41, D26) -> 3 | G26: =COUNTIF(今年の試合!I:I, D26) -> 3 | H26: =COUNTIFS(今年の試合!E:E, D26, 今年の試合!I:I, "引き分け")+COUNTIFS(今年の試合!G:G, D26, 今年の試合!I:I, "引き分け") -> 0 | I26: 0 | J26: =SUM(SUMIF(今年の試合!E:E, D26,今年の試合!L:L), SUMIF(今年の試合!G:G,D26,今年の試合!M:M)) -> 7.16 | K26: =SUM(SUMIFS(今年の試合!M:M,今年の試合!E:E,'グループ ステージの予想'!D26), SUMIFS(今年の試合!F:F, 今年の試合!L:L, 'グループ ステージの予想'!D26)) -> 1.62 | L26: 5.54 | M26: 9 | N26: 9.01 | O26: =RANK(N26, N$25:N$28) -> 1 | Q26: 0.00
C27: F | D27: タイ | E27: 0% | F27: =COUNTIF(今年の試合!$E$5:$G$41, D27) -> 3 | G27: =COUNTIF(今年の試合!I:I, D27) -> 0 | H27: =COUNTIFS(今年の試合!E:E, D27, 今年の試合!I:I, "引き分け")+COUNTIFS(今年の試合!G:G, D27, 今年の試合!I:I, "引き分け") -> 0 | I27: 3 | J27: =SUM(SUMIF(今年の試合!E:E, D27,今年の試合!L:L), SUMIF(今年の試合!G:G,D27,今年の試合!M:M)) -> 1.96 | K27: =SUM(SUMIFS(今年の試合!M:M,今年の試合!E:E,'グループ ステージの予想'!D27), SUMIFS(今年の試合!F:F, 今年の試合!L:L, 'グループ ステージの予想'!D27)) -> 1.36 | L27: 0.60 | M27: 0 | N27: 0.00 | O27: =RANK(N27, N$25:N$28) -> 4 | Q27: 0.00
C28: F | D28: 米国 | E28: 0% | F28: =COUNTIF(今年の試合!$E$5:$G$41, D28) -> 3 | G28: =COUNTIF(今年の試合!I:I, D28) -> 2 | H28: =COUNTIFS(今年の試合!E:E, D28, 今年の試合!I:I, "引き分け")+COUNTIFS(今年の試合!G:G, D28, 今年の試合!I:I, "引き分け") -> 0 | I28: 1 | J28: =SUM(SUMIF(今年の試合!E:E, D28,今年の試合!L:L), SUMIF(今年の試合!G:G,D28,今年の試合!M:M)) -> 8 | K28: =SUM(SUMIFS(今年の試合!M:M,今年の試合!E:E,'グループ ステージの予想'!D28), SUMIFS(今年の試合!F:F, 今年の試合!L:L, 'グループ ステージの予想'!D28)) -> 0.74 | L28: 7.26 | M28: 6 | N28: 6.01 | O28: =RANK(N28, N$25:N$28) -> 2 | Q28: 0.00

Sheet 今年の試合
C2: 今年の試合
C4: 2019 年の試合 | J4: あなたの予想 | L4: Hidden Colum A | M4: Hidden Columb B | O4: Inputs from Your Previous Steps | Q4: Simulation Results -->
C5: 日付 | D5: グループ | E5: チーム A | F5: A の予想得点 | G5: チーム B | H5: B の予想得点 | I5: 勝者 | J5: チーム A の予想 | K5: チーム B の予想 | L5: Column1 | M5: Column2 | N5: Column3 | O5: Team A Average Goals Scored | P5: Team B Average Goals Scored | Q5: Team A Iteration 1 | R5: Team A Iteration 2 | S5: Team A Iteration 3 | T5: Team A Iteration 4 | U5: Team A Iteration 5 | V5: Team A Iteration 6 | W5: Team A Iteration 7 | X5: Team A Iteration 8 | Y5: Team A Iteration 9 | Z5: Team A Iteration 10 | AA5: Team A Iteration 11 | AB5: Team A Iteration 12 | AC5: Team A Iteration 13 | AD5: Team A Iteration 14 | AE5: Team A Iteration 15 | AF5: Team A Iteration 16 | AG5: Team A Iteration 17 | AH5: Team A Iteration 18 | AI5: Team A Iteration 19 | AJ5: Team A Iteration 20 | AK5: Team A Iteration 21 | AL5: Team A Iteration 22 | AM5: Team A Iteration 23 | AN5: Team A Iteration 24 | AO5: Team A Iteration 25 | AP5: Team A Iteration 26 | AQ5: Team A Iteration 27 | AR5: Team A Iteration 28 | AS5: Team A Iteration 29 | AT5: Team A Iteration 30 | AU5: Team A Iteration 31 | AV5: Team A Iteration 32 | AW5: Team A Iteration 33 | AX5: Team A Iteration 34 | AY5: Team A Iteration 35 | AZ5: Team A Iteration 36 | BA5: Team A Iteration 37 | BB5: Team A Iteration 38 | BC5: Team A Iteration 39 | BD5: Team A Iteration 40 | BE5: Team A Iteration 41 | BF5: Team A Iteration 42 | BG5: Team A Iteration 43 | BH5: Team A Iteration 44 | BI5: Team A Iteration 45 | BJ5: Team A Iteration 46 | BK5: Team A Iteration 47 | BL5: Team A Iteration 48 | BM5: Team A Iteration 49 | BN5: Team A Iteration 50 | BP5: Team B Iteration 1 | BQ5: Team B Iteration 2 | BR5: Team B Iteration 3 | BS5: Team B Iteration 4 | BT5: Team B Iteration 5 | BU5: Team B Iteration 6 | BV5: Team B Iteration 7 | BW5: Team B Iteration 8 | BX5: Team B Iteration 9 | BY5: Team B Iteration 10 | BZ5: Team B Iteration 11 | CA5: Team B Iteration 12 | CB5: Team B Iteration 13 | CC5: Team B Iteration 14 | CD5: Team B Iteration 15 | CE5: Team B Iteration 16 | CF5: Team B Iteration 17 | CG5: Team B Iteration 18 | CH5: Team B Iteration 19 | CI5: Team B Iteration 20 | CJ5: Team B Iteration 21 | CK5: Team B Iteration 22 | CL5: Team B Iteration 23 | CM5: Team B Iteration 24 | CN5: Team B Iteration 25 | CO5: Team B Iteration 26 | CP5: Team B Iteration 27 | CQ5: Team B Iteration 28 | CR5: Team B Iteration 29 | CS5: Team B Iteration 30 | CT5: Team B Iteration 31 | CU5: Team B Iteration 32 | CV5: Team B Iteration 33 | CW5: Team B Iteration 34 | CX5: Team B Iteration 35 | CY5: Team B Iteration 36 | CZ5: Team B Iteration 37 | DA5: Team B Iteration 38 | DB5: Team B Iteration 39 | DC5: Team B Iteration 40 | DD5: Team B Iteration 41 | DE5: Team B Iteration 42 | DF5: Team B Iteration 43 | DG5: Team B Iteration 44 | DH5: Team B Iteration 45 | DI5: Team B Iteration 46 | DJ5: Team B Iteration 47 | DK5: Team B Iteration 48 | DL5: Team B Iteration 49 | DM5: Team B Iteration 50
C6: 2019-06-07 | D6: A | E6: フランス | F6: =(AVERAGE(Q6:BN6))*(1+INDEX('グループ ステージの予想'!$C$4:$O$28, MATCH(今年の試合!E6,'グループ ステージの予想'!$D$4:$D$28,0),3)) -> 1.54 | G6: 大韓民国 | H6: =(AVERAGE(BP6:DM6))*(1+INDEX('グループ ステージの予想'!$C$4:$O$28, MATCH(今年の試合!G6,'グループ ステージの予想'!$D$4:$D$28,0),3)) -> 1.46 | I6: =IF(L6>M6,E6,IF(L6=M6,"組み合わせ",G6)) -> フランス | L6: =IF(ISBLANK(J6), F6,J6) -> 1.54 | M6: =IF(ISBLANK(K6), H6,K6) -> 1.46 | N6: =IF(L6>M6,E6,IF(L6=M6,"引き分け",G6)) -> フランス | O6: =(OFFSET('付録 3 - グループごとのゴール'!$C$13,(INDEX('付録 1 - チーム データ'!$C$13:$F$112,MATCH(G6,'付録 1 - チーム データ'!$C$13:$C$112,0),4)/10),(INDEX('付録 1 - チーム データ'!$C$13:$F$112,MATCH(E6,'付録 1 - チーム データ'!$C$13:$C$112,0),4)/10))) -> 1.50 | P6: =OFFSET('付録 3 - グループごとのゴール'!$C$13,(INDEX('付録 1 - チーム データ'!$C$13:$F$112, MATCH(E6,'付録 1 - チーム データ'!$C$13:$C$112,0),4)/10), (INDEX('付録 1 - チーム データ'!$C$13:$F$112, MATCH(G6, '付録 1 - チーム データ'!$C$13:$C$112,0),4)/10)) -> 1.50 | Q6: =_xlfn.IFNA(MATCH(RAND(), _xlfn.POISSON.DIST({0,1,2,3,4,5,6,7,8,9},$O6, TRUE),1), 0) -> 2 | R6: =_xlfn.IFNA(MATCH(RAND(), _xlfn.POISSON.DIST({0,1,2,3,4,5,6,7,8,9},$O6, TRUE),1), 0) -> 5 | S6: =_xlfn.IFNA(MATCH(RAND(), _xlfn.POISSON.DIST({0,1,2,3,4,5,6,7,8,9},$O6, TRUE),1), 0) -> 1 | T6: =_xlfn.IFNA(MATCH(RAND(), _xlfn.POISSON.DIST({0,1,2,3,4,5,6,7,8,9},$O6, TRUE),1), 0) -> 0 | U6: =_xlfn.IFNA(MATCH(RAND(), _xlfn.POISSON.DIST({0,1,2,3,4,5,6,7,8,9},$O6, TRUE),1), 0) -> 2 | V6: =_xlfn.IFNA(MATCH(RAND(), _xlfn.POISSON.DIST({0,1,2,3,4,5,6,7,8,9},$O6, TRUE),1), 0) -> 1 | W6: =_xlfn.IFNA(MATCH(RAND(), _xlfn.POISSON.DIST({0,1,2,3,4,5,6,7,8,9},$O6, TRUE),1), 0) -> 4 | X6: =_xlfn.IFNA(MATCH(RAND(), _xlfn.POISSON.DIST({0,1,2,3,4,5,6,7,8,9},$O6, TRUE),1), 0) -> 0 | Y6: =_xlfn.IFNA(MATCH(RAND(), _xlfn.POISSON.DIST({0,1,2,3,4,5,6,7,8,9},$O6, TRUE),1), 0) -> 2 | Z6: =_xlfn.IFNA(MATCH(RAND(), _xlfn.POISSON.DIST({0,1,2,3,4,5,6,7,8,9},$O6, TRUE),1), 0) -> 0 | AA6: =_xlfn.IFNA(MATCH(RAND(), _xlfn.POISSON.DIST({0,1,2,3,4,5,6,7,8,9},$O6, TRUE),1), 0) -> 1 | AB6: =_xlfn.IFNA(MATCH(RAND(), _xlfn.POISSON.DIST({0,1,2,3,4,5,6,7,8,9},$O6, TRUE),1), 0) -> 1 | AC6: =_xlfn.IFNA(MATCH(RAND(), _xlfn.POISSON.DIST({0,1,2,3,4,5,6,7,8,9},$O6, TRUE),1), 0) -> 2 | AD6: =_xlfn.IFNA(MATCH(RAND(), _xlfn.POISSON.DIST({0,1,2,3,4,5,6,7,8,9},$O6, TRUE),1), 0) -> 1 | AE6: =_xlfn.IFNA(MATCH(RAND(), _xlfn.POISSON.DIST({0,1,2,3,4,5,6,7,8,9},$O6, TRUE),1), 0) -> 3 | AF6: =_xlfn.IFNA(MATCH(RAND(), _xlfn.POISSON.DIST({0,1,2,3,4,5,6,7,8,9},$O6, TRUE),1), 0) -> 2 | AG6: =_xlfn.IFNA(MATCH(RAND(), _xlfn.POISSON.DIST({0,1,2,3,4,5,6,7,8,9},$O6, TRUE),1), 0) -> 3 | AH6: =_xlfn.IFNA(MATCH(RAND(), _xlfn.POISSON.DIST({0,1,2,3,4,5,6,7,8,9},$O6, TRUE),1), 0) -> 0 | AI6: =_xlfn.IFNA(MATCH(RAND(), _xlfn.POISSON.DIST({0,1,2,3,4,5,6,7,8,9},$O6, TRUE),1), 0) -> 1 | AJ6: =_xlfn.IFNA(MATCH(RAND(), _xlfn.POISSON.DIST({0,1,2,3,4,5,6,7,8,9},$O6, TRUE),1), 0) -> 2 | AK6: =_xlfn.IFNA(MATCH(RAND(), _xlfn.POISSON.DIST({0,1,2,3,4,5,6,7,8,9},$O6, TRUE),1), 0) -> 2 | AL6: =_xlfn.IFNA(MATCH(RAND(), _xlfn.POISSON.DIST({0,1,2,3,4,5,6,7,8,9},$O6, TRUE),1), 0) -> 1 | AM6: =_xlfn.IFNA(MATCH(RAND(), _xlfn.POISSON.DIST({0,1,2,3,4,5,6,7,8,9},$O6, TRUE),1), 0) -> 1 | AN6: =_xlfn.IFNA(MATCH(RAND(), _xlfn.POISSON.DIST({0,1,2,3,4,5,6,7,8,9},$O6, TRUE),1), 0) -> 2 | AO6: =_xlfn.IFNA(MATCH(RAND(), _xlfn.POISSON.DIST({0,1,2,3,4,5,6,7,8,9},$O6, TRUE),1), 0) -> 2 | AP6: =_xlfn.IFNA(MATCH(RAND(), _xlfn.POISSON.DIST({0,1,2,3,4,5,6,7,8,9},$O6, TRUE),1), 0) -> 1 | AQ6: =_xlfn.IFNA(MATCH(RAND(), _xlfn.POISSON.DIST({0,1,2,3,4,5,6,7,8,9},$O6, TRUE),1), 0) -> 1 | AR6: =_xlfn.IFNA(MATCH(RAND(), _xlfn.POISSON.DIST({0,1,2,3,4,5,6,7,8,9},$O6, TRUE),1), 0) -> 2 | AS6: =_xlfn.IFNA(MATCH(RAND(), _xlfn.POISSON.DIST({0,1,2,3,4,5,6,7,8,9},$O6, TRUE),1), 0) -> 0 | AT6: =_xlfn.IFNA(MATCH(RAND(), _xlfn.POISSON.DIST({0,1,2,3,4,5,6,7,8,9},$O6, TRUE),1), 0) -> 2 | AU6: =_xlfn.IFNA(MATCH(RAND(), _xlfn.POISSON.DIST({0,1,2,3,4,5,6,7,8,9},$O6, TRUE),1), 0) -> 1 | AV6: =_xlfn.IFNA(MATCH(RAND(), _xlfn.POISSON.DIST({0,1,2,3,4,5,6,7,8,9},$O6, TRUE),1), 0) -> 0 | AW6: =_xlfn.IFNA(MATCH(RAND(), _xlfn.POISSON.DIST({0,1,2,3,4,5,6,7,8,9},$O6, TRUE),1), 0) -> 0 | AX6: =_xlfn.IFNA(MATCH(RAND(), _xlfn.POISSON.DIST({0,1,2,3,4,5,6,7,8,9},$O6, TRUE),1), 0) -> 3 | AY6: =_xlfn.IFNA(MATCH(RAND(), _xlfn.POISSON.DIST({0,1,2,3,4,5,6,7,8,9},$O6, TRUE),1), 0) -> 1 | AZ6: =_xlfn.IFNA(MATCH(RAND(), _xlfn.POISSON.DIST({0,1,2,3,4,5,6,7,8,9},$O6, TRUE),1), 0) -> 3 | BA6: =_xlfn.IFNA(MATCH(RAND(), _xlfn.POISSON.DIST({0,1,2,3,4,5,6,7,8,9},$O6, TRUE),1), 0) -> 0 | BB6: =_xlfn.IFNA(MATCH(RAND(), _xlfn.POISSON.DIST({0,1,2,3,4,5,6,7,8,9},$O6, TRUE),1), 0) -> 2 | BC6: =_xlfn.IFNA(MATCH(RAND(), _xlfn.POISSON.DIST({0,1,2,3,4,5,6,7,8,9},$O6, TRUE),1), 0) -> 2 | BD6: =_xlfn.IFNA(MATCH(RAND(), _xlfn.POISSON.DIST({0,1,2,3,4,5,6,7,8,9},$O6, TRUE),1), 0) -> 1 | BE6: =_xlfn.IFNA(MATCH(RAND(), _xlfn.POISSON.DIST({0,1,2,3,4,5,6,7,8,9},$O6, TRUE),1), 0) -> 1 | BF6: =_xlfn.IFNA(MATCH(RAND(), _xlfn.POISSON.DIST({0,1,2,3,4,5,6,7,8,9},$O6, TRUE),1), 0) -> 1 | BG6: =_xlfn.IFNA(MATCH(RAND(), _xlfn.POISSON.DIST({0,1,2,3,4,5,6,7,8,9},$O6, TRUE),1), 0) -> 3 | BH6: =_xlfn.IFNA(MATCH(RAND(), _xlfn.POISSON.DIST({0,1,2,3,4,5,6,7,8,9},$O6, TRUE),1), 0) -> 1 | BI6: =_xlfn.IFNA(MATCH(RAND(), _xlfn.POISSON.DIST({0,1,2,3,4,5,6,7,8,9},$O6, TRUE),1), 0) -> 1 | BJ6: =_xlfn.IFNA(MATCH(RAND(), _xlfn.POISSON.DIST({0,1,2,3,4,5,6,7,8,9},$O6, TRUE),1), 0) -> 0 | BK6: =_xlfn.IFNA(MATCH(RAND(), _xlfn.POISSON.DIST({0,1,2,3,4,5,6,7,8,9},$O6, TRUE),1), 0) -> 2 | BL6: =_xlfn.IFNA(MATCH(RAND(), _xlfn.POISSON.DIST({0,1,2,3,4,5,6,7,8,9},$O6, TRUE),1), 0) -> 3 | BM6: =_xlfn.IFNA(MATCH(RAND(), _xlfn.POISSON.DIST({0,1,2,3,4,5,6,7,8,9},$O6, TRUE),1), 0) -> 2 | BN6: =_xlfn.IFNA(MATCH(RAND(), _xlfn.POISSON.DIST({0,1,2,3,4,5,6,7,8,9},$O6, TRUE),1), 0) -> 3 | BP6: =_xlfn.IFNA(MATCH(RAND(), _xlfn.POISSON.DIST({0,1,2,3,4,5,6,7,8,9},$P6, TRUE),1), 0) -> 0 | BQ6: =_xlfn.IFNA(MATCH(RAND(), _xlfn.POISSON.DIST({0,1,2,3,4,5,6,7,8,9},$P6, TRUE),1), 0) -> 0 | BR6: =_xlfn.IFNA(MATCH(RAND(), _xlfn.POISSON.DIST({0,1,2,3,4,5,6,7,8,9},$P6, TRUE),1), 0) -> 0 | BS6: =_xlfn.IFNA(MATCH(RAND(), _xlfn.POISSON.DIST({0,1,2,3,4,5,6,7,8,9},$P6, TRUE),1), 0) -> 0 | BT6: =_xlfn.IFNA(MATCH(RAND(), _xlfn.POISSON.DIST({0,1,2,3,4,5,6,7,8,9},$P6, TRUE),1), 0) -> 2 | BU6: =_xlfn.IFNA(MATCH(RAND(), _xlfn.POISSON.DIST({0,1,2,3,4,5,6,7,8,9},$P6, TRUE),1), 0) -> 0 | BV6: =_xlfn.IFNA(MATCH(RAND(), _xlfn.POISSON.DIST({0,1,2,3,4,5,6,7,8,9},$P6, TRUE),1), 0) -> 0 | BW6: =_xlfn.IFNA(MATCH(RAND(), _xlfn.POISSON.DIST({0,1,2,3,4,5,6,7,8,9},$P6, TRUE),1), 0) -> 2 | BX6: =_xlfn.IFNA(MATCH(RAND(), _xlfn.POISSON.DIST({0,1,2,3,4,5,6,7,8,9},$P6, TRUE),1), 0) -> 4 | BY6: =_xlfn.IFNA(MATCH(RAND(), _xlfn.POISSON.DIST({0,1,2,3,4,5,6,7,8,9},$P6, TRUE),1), 0) -> 1 | BZ6: =_xlfn.IFNA(MATCH(RAND(), _xlfn.POISSON.DIST({0,1,2,3,4,5,6,7,8,9},$P6, TRUE),1), 0) -> 1 | CA6: =_xlfn.IFNA(MATCH(RAND(), _xlfn.POISSON.DIST({0,1,2,3,4,5,6,7,8,9},$P6, TRUE),1), 0) -> 1 | CB6: =_xlfn.IFNA(MATCH(RAND(), _xlfn.POISSON.DIST({0,1,2,3,4,5,6,7,8,9},$P6, TRUE),1), 0) -> 3 | CC6: =_xlfn.IFNA(MATCH(RAND(), _xlfn.POISSON.DIST({0,1,2,3,4,5,6,7,8,9},$P6, TRUE),1), 0) -> 0 | CD6: =_xlfn.IFNA(MATCH(RAND(), _xlfn.POISSON.DIST({0,1,2,3,4,5,6,7,8,9},$P6, TRUE),1), 0) -> 3 | CE6: =_xlfn.IFNA(MATCH(RAND(), _xlfn.POISSON.DIST({0,1,2,3,4,5,6,7,8,9},$P6, TRUE),1), 0) -> 1 | CF6: =_xlfn.IFNA(MATCH(RAND(), _xlfn.POISSON.DIST({0,1,2,3,4,5,6,7,8,9},$P6, TRUE),1), 0) -> 4 | CG6: =_xlfn.IFNA(MATCH(RAND(), _xlfn.POISSON.DIST({0,1,2,3,4,5,6,7,8,9},$P6, TRUE),1), 0) -> 1 | CH6: =_xlfn.IFNA(MATCH(RAND(), _xlfn.POISSON.DIST({0,1,2,3,4,5,6,7,8,9},$P6, TRUE),1), 0) -> 1 | CI6: =_xlfn.IFNA(MATCH(RAND(), _xlfn.POISSON.DIST({0,1,2,3,4,5,6,7,8,9},$P6, TRUE),1), 0) -> 2 | CJ6: =_xlfn.IFNA(MATCH(RAND(), _xlfn.POISSON.DIST({0,1,2,3,4,5,6,7,8,9},$P6, TRUE),1), 0) -> 1 | CK6: =_xlfn.IFNA(MATCH(RAND(), _xlfn.POISSON.DIST({0,1,2,3,4,5,6,7,8,9},$P6, TRUE),1), 0) -> 2 | CL6: =_xlfn.IFNA(MATCH(RAND(), _xlfn.POISSON.DIST({0,1,2,3,4,5,6,7,8,9},$P6, TRUE),1), 0) -> 5 | CM6: =_xlfn.IFNA(MATCH(RAND(), _xlfn.POISSON.DIST({0,1,2,3,4,5,6,7,8,9},$P6, TRUE),1), 0) -> 4 | CN6: =_xlfn.IFNA(MATCH(RAND(), _xlfn.POISSON.DIST({0,1,2,3,4,5,6,7,8,9},$P6, TRUE),1), 0) -> 1 | CO6: =_xlfn.IFNA(MATCH(RAND(), _xlfn.POISSON.DIST({0,1,2,3,4,5,6,7,8,9},$P6, TRUE),1), 0) -> 3 | CP6: =_xlfn.IFNA(MATCH(RAND(), _xlfn.POISSON.DIST({0,1,2,3,4,5,6,7,8,9},$P6, TRUE),1), 0) -> 3 | CQ6: =_xlfn.IFNA(MATCH(RAND(), _xlfn.POISSON.DIST({0,1,2,3,4,5,6,7,8,9},$P6, TRUE),1), 0) -> 0 | CR6: =_xlfn.IFNA(MATCH(RAND(), _xlfn.POISSON.DIST({0,1,2,3,4,5,6,7,8,9},$P6, TRUE),1), 0) -> 1 | CS6: =_xlfn.IFNA(MATCH(RAND(), _xlfn.POISSON.DIST({0,1,2,3,4,5,6,7,8,9},$P6, TRUE),1), 0) -> 1 | CT6: =_xlfn.IFNA(MATCH(RAND(), _xlfn.POISSON.DIST({0,1,2,3,4,5,6,7,8,9},$P6, TRUE),1), 0) -> 2 | CU6: =_xlfn.IFNA(MATCH(RAND(), _xlfn.POISSON.DIST({0,1,2,3,4,5,6,7,8,9},$P6, TRUE),1), 0) -> 2 | CV6: =_xlfn.IFNA(MATCH(RAND(), _xlfn.POISSON.DIST({0,1,2,3,4,5,6,7,8,9},$P6, TRUE),1), 0) -> 1 | CW6: =_xlfn.IFNA(MATCH(RAND(), _xlfn.POISSON.DIST({0,1,2,3,4,5,6,7,8,9},$P6, TRUE),1), 0) -> 3 | CX6: =_xlfn.IFNA(MATCH(RAND(), _xlfn.POISSON.DIST({0,1,2,3,4,5,6,7,8,9},$P6, TRUE),1), 0) -> 0 | CY6: =_xlfn.IFNA(MATCH(RAND(), _xlfn.POISSON.DIST({0,1,2,3,4,5,6,7,8,9},$P6, TRUE),1), 0) -> 1 | CZ6: =_xlfn.IFNA(MATCH(RAND(), _xlfn.POISSON.DIST({0,1,2,3,4,5,6,7,8,9},$P6, TRUE),1), 0) -> 1 | DA6: =_xlfn.IFNA(MATCH(RAND(), _xlfn.POISSON.DIST({0,1,2,3,4,5,6,7,8,9},$P6, TRUE),1), 0) -> 2 | DB6: =_xlfn.IFNA(MATCH(RAND(), _xlfn.POISSON.DIST({0,1,2,3,4,5,6,7,8,9},$P6, TRUE),1), 0) -> 2 | DC6: =_xlfn.IFNA(MATCH(RAND(), _xlfn.POISSON.DIST({0,1,2,3,4,5,6,7,8,9},$P6, TRUE),1), 0) -> 0 | DD6: =_xlfn.IFNA(MATCH(RAND(), _xlfn.POISSON.DIST({0,1,2,3,4,5,6,7,8,9},$P6, TRUE),1), 0) -> 1 | DE6: =_xlfn.IFNA(MATCH(RAND(), _xlfn.POISSON.DIST({0,1,2,3,4,5,6,7,8,9},$P6, TRUE),1), 0) -> 1 | DF6: =_xlfn.IFNA(MATCH(RAND(), _xlfn.POISSON.DIST({0,1,2,3,4,5,6,7,8,9},$P6, TRUE),1), 0) -> 2 | DG6: =_xlfn.IFNA(MATCH(RAND(), _xlfn.POISSON.DIST({0,1,2,3,4,5,6,7,8,9},$P6, TRUE),1), 0) -> 0 | DH6: =_xlfn.IFNA(MATCH(RAND(), _xlfn.POISSON.DIST({0,1,2,3,4,5,6,7,8,9},$P6, TRUE),1), 0) -> 0 | DI6: =_xlfn.IFNA(MATCH(RAND(), _xlfn.POISSON.DIST({0,1,2,3,4,5,6,7,8,9},$P6, TRUE),1), 0) -> 3 | DJ6: =_xlfn.IFNA(MATCH(RAND(), _xlfn.POISSON.DIST({0,1,2,3,4,5,6,7,8,9},$P6, TRUE),1), 0) -> 2 | DK6: =_xlfn.IFNA(MATCH(RAND(), _xlfn.POISSON.DIST({0,1,2,3,4,5,6,7,8,9},$P6, TRUE),1), 0) -> 1 | DL6: =_xlfn.IFNA(MATCH(RAND(), _xlfn.POISSON.DIST({0,1,2,3,4,5,6,7,8,9},$P6, TRUE),1), 0) -> 0 | DM6: =_xlfn.IFNA(MATCH(RAND(), _xlfn.POISSON.DIST({0,1,2,3,4,5,6,7,8,9},$P6, TRUE),1), 0) -> 2
C7: 2019-06-08 | D7: B | E7: ドイツ | F7: =(AVERAGE(Q7:BN7))*(1+INDEX('グループ ステージの予想'!$C$4:$O$28, MATCH(今年の試合!E7,'グループ ステージの予想'!$D$4:$D$28,0),3)) -> 1.80 | G7: 中国PR | H7: =(AVERAGE(BP7:DM7))*(1+INDEX('グループ ステージの予想'!$C$4:$O$28, MATCH(今年の試合!G7,'グループ ステージの予想'!$D$4:$D$28,0),3)) -> 1.42 | I7: ドイツ | L7: 1.8 | M7: 1.42 | N7: ドイツ | O7: =(OFFSET('付録 3 - グループごとのゴール'!$C$13,(INDEX('付録 1 - チーム データ'!$C$13:$F$112,MATCH(G7,'付録 1 - チーム データ'!$C$13:$C$112,0),4)/10),(INDEX('付録 1 - チーム データ'!$C$13:$F$112,MATCH(E7,'付録 1 - チーム データ'!$C$13:$C$112,0),4)/10))) -> 1.50 | P7: =OFFSET('付録 3 - グループごとのゴール'!$C$13,(INDEX('付録 1 - チーム データ'!$C$13:$F$112, MATCH(E7,'付録 1 - チーム データ'!$C$13:$C$112,0),4)/10), (INDEX('付録 1 - チーム データ'!$C$13:$F$112, MATCH(G7, '付録 1 - チーム データ'!$C$13:$C$112,0),4)/10)) -> 1.50 | Q7: =_xlfn.IFNA(MATCH(RAND(), _xlfn.POISSON.DIST({0,1,2,3,4,5,6,7,8,9},$O7, TRUE),1), 0) -> 1 | R7: =_xlfn.IFNA(MATCH(RAND(), _xlfn.POISSON.DIST({0,1,2,3,4,5,6,7,8,9},$O7, TRUE),1), 0) -> 1 | S7: =_xlfn.IFNA(MATCH(RAND(), _xlfn.POISSON.DIST({0,1,2,3,4,5,6,7,8,9},$O7, TRUE),1), 0) -> 2 | T7: =_xlfn.IFNA(MATCH(RAND(), _xlfn.POISSON.DIST({0,1,2,3,4,5,6,7,8,9},$O7, TRUE),1), 0) -> 2 | U7: =_xlfn.IFNA(MATCH(RAND(), _xlfn.POISSON.DIST({0,1,2,3,4,5,6,7,8,9},$O7, TRUE),1), 0) -> 3 | V7: =_xlfn.IFNA(MATCH(RAND(), _xlfn.POISSON.DIST({0,1,2,3,4,5,6,7,8,9},$O7, TRUE),1), 0) -> 4 | W7: =_xlfn.IFNA(MATCH(RAND(), _xlfn.POISSON.DIST({0,1,2,3,4,5,6,7,8,9},$O7, TRUE),1), 0) -> 1 | X7: =_xlfn.IFNA(MATCH(RAND(), _xlfn.POISSON.DIST({0,1,2,3,4,5,6,7,8,9},$O7, TRUE),1), 0) -> 1 | Y7: =_xlfn.IFNA(MATCH(RAND(), _xlfn.POISSON.DIST({0,1,2,3,4,5,6,7,8,9},$O7, TRUE),1), 0) -> 0 | Z7: =_xlfn.IFNA(MATCH(RAND(), _xlfn.POISSON.DIST({0,1,2,3,4,5,6,7,8,9},$O7, TRUE),1), 0) -> 2 | AA7: =_xlfn.IFNA(MATCH(RAND(), _xlfn.POISSON.DIST({0,1,2,3,4,5,6,7,8,9},$O7, TRUE),1), 0) -> 2 | AB7: =_xlfn.IFNA(MATCH(RAND(), _xlfn.POISSON.DIST({0,1,2,3,4,5,6,7,8,9},$O7, TRUE),1), 0) -> 1 | AC7: =_xlfn.IFNA(MATCH(RAND(), _xlfn.POISSON.DIST({0,1,2,3,4,5,6,7,8,9},$O7, TRUE),1), 0) -> 3 | AD7: =_xlfn.IFNA(MATCH(RAND(), _xlfn.POISSON.DIST({0,1,2,3,4,5,6,7,8,9},$O7, TRUE),1), 0) -> 3 | AE7: =_xlfn.IFNA(MATCH(RAND(), _xlfn.POISSON.DIST({0,1,2,3,4,5,6,7,8,9},$O7, TRUE),1), 0) -> 1 | AF7: =_xlfn.IFNA(MATCH(RAND(), _xlfn.POISSON.DIST({0,1,2,3,4,5,6,7,8,9},$O7, TRUE),1), 0) -> 1 | AG7: =_xlfn.IFNA(MATCH(RAND(), _xlfn.POISSON.DIST({0,1,2,3,4,5,6,7,8,9},$O7, TRUE),1), 0) -> 0 | AH7: =_xlfn.IFNA(MATCH(RAND(), _xlfn.POISSON.DIST({0,1,2,3,4,5,6,7,8,9},$O7, TRUE),1), 0) -> 3 | AI7: =_xlfn.IFNA(MATCH(RAND(), _xlfn.POISSON.DIST({0,1,2,3,4,5,6,7,8,9},$O7, TRUE),1), 0) -> 2 | AJ7: =_xlfn.IFNA(MATCH(RAND(), _xlfn.POISSON.DIST({0,1,2,3,4,5,6,7,8,9},$O7, TRUE),1), 0) -> 0 | AK7: =_xlfn.IFNA(MATCH(RAND(), _xlfn.POISSON.DIST({0,1,2,3,4,5,6,7,8,9},$O7, TRUE),1), 0) -> 2 | AL7: =_xlfn.IFNA(MATCH(RAND(), _xlfn.POISSON.DIST({0,1,2,3,4,5,6,7,8,9},$O7, TRUE),1), 0) -> 1 | AM7: =_xlfn.IFNA(MATCH(RAND(), _xlfn.POISSON.DIST({0,1,2,3,4,5,6,7,8,9},$O7, TRUE),1), 0) -> 3 | AN7: =_xlfn.IFNA(MATCH(RAND(), _xlfn.POISSON.DIST({0,1,2,3,4,5,6,7,8,9},$O7, TRUE),1), 0) -> 6 | AO7: =_xlfn.IFNA(MATCH(RAND(), _xlfn.POISSON.DIST({0,1,2,3,4,5,6,7,8,9},$O7, TRUE),1), 0) -> 1 | AP7: =_xlfn.IFNA(MATCH(RAND(), _xlfn.POISSON.DIST({0,1,2,3,4,5,6,7,8,9},$O7, TRUE),1), 0) -> 4 | AQ7: =_xlfn.IFNA(MATCH(RAND(), _xlfn.POISSON.DIST({0,1,2,3,4,5,6,7,8,9},$O7, TRUE),1), 0) -> 1 | AR7: =_xlfn.IFNA(MATCH(RAND(), _xlfn.POISSON.DIST({0,1,2,3,4,5,6,7,8,9},$O7, TRUE),1), 0) -> 1 | AS7: =_xlfn.IFNA(MATCH(RAND(), _xlfn.POISSON.DIST({0,1,2,3,4,5,6,7,8,9},$O7, TRUE),1), 0) -> 1 | AT7: =_xlfn.IFNA(MATCH(RAND(), _xlfn.POISSON.DIST({0,1,2,3,4,5,6,7,8,9},$O7, TRUE),1), 0) -> 3 | AU7: =_xlfn.IFNA(MATCH(RAND(), _xlfn.POISSON.DIST({0,1,2,3,4,5,6,7,8,9},$O7, TRUE),1), 0) -> 2 | AV7: =_xlfn.IFNA(MATCH(RAND(), _xlfn.POISSON.DIST({0,1,2,3,4,5,6,7,8,9},$O7, TRUE),1), 0) -> 0 | AW7: =_xlfn.IFNA(MATCH(RAND(), _xlfn.POISSON.DIST({0,1,2,3,4,5,6,7,8,9},$O7, TRUE),1), 0) -> 2 | AX7: =_xlfn.IFNA(MATCH(RAND(), _xlfn.POISSON.DIST({0,1,2,3,4,5,6,7,8,9},$O7, TRUE),1), 0) -> 2 | AY7: =_xlfn.IFNA(MATCH(RAND(), _xlfn.POISSON.DIST({0,1,2,3,4,5,6,7,8,9},$O7, TRUE),1), 0) -> 2 | AZ7: =_xlfn.IFNA(MATCH(RAND(), _xlfn.POISSON.DIST({0,1,2,3,4,5,6,7,8,9},$O7, TRUE),1), 0) -> 3 | BA7: =_xlfn.IFNA(MATCH(RAND(), _xlfn.POISSON.DIST({0,1,2,3,4,5,6,7,8,9},$O7, TRUE),1), 0) -> 2 | BB7: =_xlfn.IFNA(MATCH(RAND(), _xlfn.POISSON.DIST({0,1,2,3,4,5,6,7,8,9},$O7, TRUE),1), 0) -> 4 | BC7: =_xlfn.IFNA(MATCH(RAND(), _xlfn.POISSON.DIST({0,1,2,3,4,5,6,7,8,9},$O7, TRUE),1), 0) -> 2 | BD7: =_xlfn.IFNA(MATCH(RAND(), _xlfn.POISSON.DIST({0,1,2,3,4,5,6,7,8,9},$O7, TRUE),1), 0) -> 1 | BE7: =_xlfn.IFNA(MATCH(RAND(), _xlfn.POISSON.DIST({0,1,2,3,4,5,6,7,8,9},$O7, TRUE),1), 0) -> 0 | BF7: =_xlfn.IFNA(MATCH(RAND(), _xlfn.POISSON.DIST({0,1,2,3,4,5,6,7,8,9},$O7, TRUE),1), 0) -> 0 | BG7: =_xlfn.IFNA(MATCH(RAND(), _xlfn.POISSON.DIST({0,1,2,3,4,5,6,7,8,9},$O7, TRUE),1), 0) -> 2 | BH7: =_xlfn.IFNA(MATCH(RAND(), _xlfn.POISSON.DIST({0,1,2,3,4,5,6,7,8,9},$O7, TRUE),1), 0) -> 4 | BI7: =_xlfn.IFNA(MATCH(RAND(), _xlfn.POISSON.DIST({0,1,2,3,4,5,6,7,8,9},$O7, TRUE),1), 0) -> 2 | BJ7: =_xlfn.IFNA(MATCH(RAND(), _xlfn.POISSON.DIST({0,1,2,3,4,5,6,7,8,9},$O7, TRUE),1), 0) -> 0 | BK7: =_xlfn.IFNA(MATCH(RAND(), _xlfn.POISSON.DIST({0,1,2,3,4,5,6,7,8,9},$O7, TRUE),1), 0) -> 2 | BL7: =_xlfn.IFNA(MATCH(RAND(), _xlfn.POISSON.DIST({0,1,2,3,4,5,6,7,8,9},$O7, TRUE),1), 0) -> 1 | BM7: =_xlfn.IFNA(MATCH(RAND(), _xlfn.POISSON.DIST({0,1,2,3,4,5,6,7,8,9},$O7, TRUE),1), 0) -> 1 | BN7: =_xlfn.IFNA(MATCH(RAND(), _xlfn.POISSON.DIST({0,1,2,3,4,5,6,7,8,9},$O7, TRUE),1), 0) -> 2 | BP7: =_xlfn.IFNA(MATCH(RAND(), _xlfn.POISSON.DIST({0,1,2,3,4,5,6,7,8,9},$P7, TRUE),1), 0) -> 3 | BQ7: =_xlfn.IFNA(MATCH(RAND(), _xlfn.POISSON.DIST({0,1,2,3,4,5,6,7,8,9},$P7, TRUE),1), 0) -> 1 | BR7: =_xlfn.IFNA(MATCH(RAND(), _xlfn.POISSON.DIST({0,1,2,3,4,5,6,7,8,9},$P7, TRUE),1), 0) -> 3 | BS7: =_xlfn.IFNA(MATCH(RAND(), _xlfn.POISSON.DIST({0,1,2,3,4,5,6,7,8,9},$P7, TRUE),1), 0) -> 2 | BT7: =_xlfn.IFNA(MATCH(RAND(), _xlfn.POISSON.DIST({0,1,2,3,4,5,6,7,8,9},$P7, TRUE),1), 0) -> 0 | BU7: =_xlfn.IFNA(MATCH(RAND(), _xlfn.POISSON.DIST({0,1,2,3,4,5,6,7,8,9},$P7, TRUE),1), 0) -> 2 | BV7: =_xlfn.IFNA(MATCH(RAND(), _xlfn.POISSON.DIST({0,1,2,3,4,5,6,7,8,9},$P7, TRUE),1), 0) -> 0 | BW7: =_xlfn.IFNA(MATCH(RAND(), _xlfn.POISSON.DIST({0,1,2,3,4,5,6,7,8,9},$P7, TRUE),1), 0) -> 3 | BX7: =_xlfn.IFNA(MATCH(RAND(), _xlfn.POISSON.DIST({0,1,2,3,4,5,6,7,8,9},$P7, TRUE),1), 0) -> 2 | BY7: =_xlfn.IFNA(MATCH(RAND(), _xlfn.POISSON.DIST({0,1,2,3,4,5,6,7,8,9},$P7, TRUE),1), 0) -> 2 | BZ7: =_xlfn.IFNA(MATCH(RAND(), _xlfn.POISSON.DIST({0,1,2,3,4,5,6,7,8,9},$P7, TRUE),1), 0) -> 2 | CA7: =_xlfn.IFNA(MATCH(RAND(), _xlfn.POISSON.DIST({0,1,2,3,4,5,6,7,8,9},$P7, TRUE),1), 0) -> 4 | CB7: =_xlfn.IFNA(MATCH(RAND(), _xlfn.POISSON.DIST({0,1,2,3,4,5,6,7,8,9},$P7, TRUE),1), 0) -> 2 | CC7: =_xlfn.IFNA(MATCH(RAND(), _xlfn.POISSON.DIST({0,1,2,3,4,5,6,7,8,9},$P7, TRUE),1), 0) -> 1 | CD7: =_xlfn.IFNA(MATCH(RAND(), _xlfn.POISSON.DIST({0,1,2,3,4,5,6,7,8,9},$P7, TRUE),1), 0) -> 3 | CE7: =_xlfn.IFNA(MATCH(RAND(), _xlfn.POISSON.DIST({0,1,2,3,4,5,6,7,8,9},$P7, TRUE),1), 0) -> 0 | CF7: =_xlfn.IFNA(MATCH(RAND(), _xlfn.POISSON.DIST({0,1,2,3,4,5,6,7,8,9},$P7, TRUE),1), 0) -> 2 | CG7: =_xlfn.IFNA(MATCH(RAND(), _xlfn.POISSON.DIST({0,1,2,3,4,5,6,7,8,9},$P7, TRUE),1), 0) -> 1 | CH7: =_xlfn.IFNA(MATCH(RAND(), _xlfn.POISSON.DIST({0,1,2,3,4,5,6,7,8,9},$P7, TRUE),1), 0) -> 0 | CI7: =_xlfn.IFNA(MATCH(RAND(), _xlfn.POISSON.DIST({0,1,2,3,4,5,6,7,8,9},$P7, TRUE),1), 0) -> 2 | CJ7: =_xlfn.IFNA(MATCH(RAND(), _xlfn.POISSON.DIST({0,1,2,3,4,5,6,7,8,9},$P7, TRUE),1), 0) -> 3 | CK7: =_xlfn.IFNA(MATCH(RAND(), _xlfn.POISSON.DIST({0,1,2,3,4,5,6,7,8,9},$P7, TRUE),1), 0) -> 0 | CL7: =_xlfn.IFNA(MATCH(RAND(), _xlfn.POISSON.DIST({0,1,2,3,4,5,6,7,8,9},$P7, TRUE),1), 0) -> 3 | CM7: =_xlfn.IFNA(MATCH(RAND(), _xlfn.POISSON.DIST({0,1,2,3,4,5,6,7,8,9},$P7, TRUE),1), 0) -> 4 | CN7: =_xlfn.IFNA(MATCH(RAND(), _xlfn.POISSON.DIST({0,1,2,3,4,5,6,7,8,9},$P7, TRUE),1), 0) -> 1 | CO7: =_xlfn.IFNA(MATCH(RAND(), _xlfn.POISSON.DIST({0,1,2,3,4,5,6,7,8,9},$P7, TRUE),1), 0) -> 4 | CP7: =_xlfn.IFNA(MATCH(RAND(), _xlfn.POISSON.DIST({0,1,2,3,4,5,6,7,8,9},$P7, TRUE),1), 0) -> 1 | CQ7: =_xlfn.IFNA(MATCH(RAND(), _xlfn.POISSON.DIST({0,1,2,3,4,5,6,7,8,9},$P7, TRUE),1), 0) -> 1 | CR7: =_xlfn.IFNA(MATCH(RAND(), _xlfn.POISSON.DIST({0,1,2,3,4,5,6,7,8,9},$P7, TRUE),1), 0) -> 2 | CS7: =_xlfn.IFNA(MATCH(RAND(), _xlfn.POISSON.DIST({0,1,2,3,4,5,6,7,8,9},$P7, TRUE),1), 0) -> 0 | CT7: =_xlfn.IFNA(MATCH(RAND(), _xlfn.POISSON.DIST({0,1,2,3,4,5,6,7,8,9},$P7, TRUE),1), 0) -> 2 | CU7: =_xlfn.IFNA(MATCH(RAND(), _xlfn.POISSON.DIST({0,1,2,3,4,5,6,7,8,9},$P7, TRUE),1), 0) -> 0 | CV7: =_xlfn.IFNA(MATCH(RAND(), _xlfn.POISSON.DIST({0,1,2,3,4,5,6,7,8,9},$P7, TRUE),1), 0) -> 2 | CW7: =_xlfn.IFNA(MATCH(RAND(), _xlfn.POISSON.DIST({0,1,2,3,4,5,6,7,8,9},$P7, TRUE),1), 0) -> 1 | CX7: =_xlfn.IFNA(MATCH(RAND(), _xlfn.POISSON.DIST({0,1,2,3,4,5,6,7,8,9},$P7, TRUE),1), 0) -> 0 | CY7: =_xlfn.IFNA(MATCH(RAND(), _xlfn.POISSON.DIST({0,1,2,3,4,5,6,7,8,9},$P7, TRUE),1), 0) -> 1 | CZ7: =_xlfn.IFNA(MATCH(RAND(), _xlfn.POISSON.DIST({0,1,2,3,4,5,6,7,8,9},$P7, TRUE),1), 0) -> 0 | DA7: =_xlfn.IFNA(MATCH(RAND(), _xlfn.POISSON.DIST({0,1,2,3,4,5,6,7,8,9},$P7, TRUE),1), 0) -> 0 | DB7: =_xlfn.IFNA(MATCH(RAND(), _xlfn.POISSON.DIST({0,1,2,3,4,5,6,7,8,9},$P7, TRUE),1), 0) -> 2 | DC7: =_xlfn.IFNA(MATCH(RAND(), _xlfn.POISSON.DIST({0,1,2,3,4,5,6,7,8,9},$P7, TRUE),1), 0) -> 1 | DD7: =_xlfn.IFNA(MATCH(RAND(), _xlfn.POISSON.DIST({0,1,2,3,4,5,6,7,8,9},$P7, TRUE),1), 0) -> 0 | DE7: =_xlfn.IFNA(MATCH(RAND(), _xlfn.POISSON.DIST({0,1,2,3,4,5,6,7,8,9},$P7, TRUE),1), 0) -> 1 | DF7: =_xlfn.IFNA(MATCH(RAND(), _xlfn.POISSON.DIST({0,1,2,3,4,5,6,7,8,9},$P7, TRUE),1), 0) -> 0 | DG7: =_xlfn.IFNA(MATCH(RAND(), _xlfn.POISSON.DIST({0,1,2,3,4,5,6,7,8,9},$P7, TRUE),1), 0) -> 0 | DH7: =_xlfn.IFNA(MATCH(RAND(), _xlfn.POISSON.DIST({0,1,2,3,4,5,6,7,8,9},$P7, TRUE),1), 0) -> 2 | DI7: =_xlfn.IFNA(MATCH(RAND(), _xlfn.POISSON.DIST({0,1,2,3,4,5,6,7,8,9},$P7, TRUE),1), 0) -> 0 | DJ7: =_xlfn.IFNA(MATCH(RAND(), _xlfn.POISSON.DIST({0,1,2,3,4,5,6,7,8,9},$P7, TRUE),1), 0) -> 1 | DK7: =_xlfn.IFNA(MATCH(RAND(), _xlfn.POISSON.DIST({0,1,2,3,4,5,6,7,8,9},$P7, TRUE),1), 0) -> 0 | DL7: =_xlfn.IFNA(MATCH(RAND(), _xlfn.POISSON.DIST({0,1,2,3,4,5,6,7,8,9},$P7, TRUE),1), 0) -> 1 | DM7: =_xlfn.IFNA(MATCH(RAND(), _xlfn.POISSON.DIST({0,1,2,3,4,5,6,7,8,9},$P7, TRUE),1), 0) -> 3
C8: 2019-06-08 | D8: B | E8: スペイン | F8: =(AVERAGE(Q8:BN8))*(1+INDEX('グループ ステージの予想'!$C$4:$O$28, MATCH(今年の試合!E8,'グループ ステージの予想'!$D$4:$D$28,0),3)) -> 1.46 | G8: 南アフリカ | H8: =(AVERAGE(BP8:DM8))*(1+INDEX('グループ ステージの予想'!$C$4:$O$28, MATCH(今年の試合!G8,'グループ ステージの予想'!$D$4:$D$28,0),3)) -> 1.80 | I8: 南アフリカ | L8: 1.46 | M8: 1.8 | N8: 南アフリカ | O8: =(OFFSET('付録 3 - グループごとのゴール'!$C$13,(INDEX('付録 1 - チーム データ'!$C$13:$F$112,MATCH(G8,'付録 1 - チーム データ'!$C$13:$C$112,0),4)/10),(INDEX('付録 1 - チーム データ'!$C$13:$F$112,MATCH(E8,'付録 1 - チーム データ'!$C$13:$C$112,0),4)/10))) -> 1.50 | P8: =OFFSET('付録 3 - グループごとのゴール'!$C$13,(INDEX('付録 1 - チーム データ'!$C$13:$F$112, MATCH(E8,'付録 1 - チーム データ'!$C$13:$C$112,0),4)/10), (INDEX('付録 1 - チーム データ'!$C$13:$F$112, MATCH(G8, '付録 1 - チーム データ'!$C$13:$C$112,0),4)/10)) -> 1.50 | Q8: =_xlfn.IFNA(MATCH(RAND(), _xlfn.POISSON.DIST({0,1,2,3,4,5,6,7,8,9},$O8, TRUE),1), 0) -> 2 | R8: =_xlfn.IFNA(MATCH(RAND(), _xlfn.POISSON.DIST({0,1,2,3,4,5,6,7,8,9},$O8, TRUE),1), 0) -> 0 | S8: =_xlfn.IFNA(MATCH(RAND(), _xlfn.POISSON.DIST({0,1,2,3,4,5,6,7,8,9},$O8, TRUE),1), 0) -> 1 | T8: =_xlfn.IFNA(MATCH(RAND(), _xlfn.POISSON.DIST({0,1,2,3,4,5,6,7,8,9},$O8, TRUE),1), 0) -> 0 | U8: =_xlfn.IFNA(MATCH(RAND(), _xlfn.POISSON.DIST({0,1,2,3,4,5,6,7,8,9},$O8, TRUE),1), 0) -> 1 | V8: =_xlfn.IFNA(MATCH(RAND(), _xlfn.POISSON.DIST({0,1,2,3,4,5,6,7,8,9},$O8, TRUE),1), 0) -> 0 | W8: =_xlfn.IFNA(MATCH(RAND(), _xlfn.POISSON.DIST({0,1,2,3,4,5,6,7,8,9},$O8, TRUE),1), 0) -> 1 | X8: =_xlfn.IFNA(MATCH(RAND(), _xlfn.POISSON.DIST({0,1,2,3,4,5,6,7,8,9},$O8, TRUE),1), 0) -> 0 | Y8: =_xlfn.IFNA(MATCH(RAND(), _xlfn.POISSON.DIST({0,1,2,3,4,5,6,7,8,9},$O8, TRUE),1), 0) -> 1 | Z8: =_xlfn.IFNA(MATCH(RAND(), _xlfn.POISSON.DIST({0,1,2,3,4,5,6,7,8,9},$O8, TRUE),1), 0) -> 1 | AA8: =_xlfn.IFNA(MATCH(RAND(), _xlfn.POISSON.DIST({0,1,2,3,4,5,6,7,8,9},$O8, TRUE),1), 0) -> 0 | AB8: =_xlfn.IFNA(MATCH(RAND(), _xlfn.POISSON.DIST({0,1,2,3,4,5,6,7,8,9},$O8, TRUE),1), 0) -> 1 | AC8: =_xlfn.IFNA(MATCH(RAND(), _xlfn.POISSON.DIST({0,1,2,3,4,5,6,7,8,9},$O8, TRUE),1), 0) -> 1 | AD8: =_xlfn.IFNA(MATCH(RAND(), _xlfn.POISSON.DIST({0,1,2,3,4,5,6,7,8,9},$O8, TRUE),1), 0) -> 4 | AE8: =_xlfn.IFNA(MATCH(RAND(), _xlfn.POISSON.DIST({0,1,2,3,4,5,6,7,8,9},$O8, TRUE),1), 0) -> 3 | AF8: =_xlfn.IFNA(MATCH(RAND(), _xlfn.POISSON.DIST({0,1,2,3,4,5,6,7,8,9},$O8, TRUE),1), 0) -> 2 | AG8: =_xlfn.IFNA(MATCH(RAND(), _xlfn.POISSON.DIST({0,1,2,3,4,5,6,7,8,9},$O8, TRUE),1), 0) -> 0 | AH8: =_xlfn.IFNA(MATCH(RAND(), _xlfn.POISSON.DIST({0,1,2,3,4,5,6,7,8,9},$O8, TRUE),1), 0) -> 2 | AI8: =_xlfn.IFNA(MATCH(RAND(), _xlfn.POISSON.DIST({0,1,2,3,4,5,6,7,8,9},$O8, TRUE),1), 0) -> 2 | AJ8: =_xlfn.IFNA(MATCH(RAND(), _xlfn.POISSON.DIST({0,1,2,3,4,5,6,7,8,9},$O8, TRUE),1), 0) -> 2 | AK8: =_xlfn.IFNA(MATCH(RAND(), _xlfn.POISSON.DIST({0,1,2,3,4,5,6,7,8,9},$O8, TRUE),1), 0) -> 4 | AL8: =_xlfn.IFNA(MATCH(RAND(), _xlfn.POISSON.DIST({0,1,2,3,4,5,6,7,8,9},$O8, TRUE),1), 0) -> 2 | AM8: =_xlfn.IFNA(MATCH(RAND(), _xlfn.POISSON.DIST({0,1,2,3,4,5,6,7,8,9},$O8, TRUE),1), 0) -> 1 | AN8: =_xlfn.IFNA(MATCH(RAND(), _xlfn.POISSON.DIST({0,1,2,3,4,5,6,7,8,9},$O8, TRUE),1), 0) -> 3 | AO8: =_xlfn.IFNA(MATCH(RAND(), _xlfn.POISSON.DIST({0,1,2,3,4,5,6,7,8,9},$O8, TRUE),1), 0) -> 3 | AP8: =_xlfn.IFNA(MATCH(RAND(), _xlfn.POISSON.DIST({0,1,2,3,4,5,6,7,8,9},$O8, TRUE),1), 0) -> 4 | AQ8: =_xlfn.IFNA(MATCH(RAND(), _xlfn.POISSON.DIST({0,1,2,3,4,5,6,7,8,9},$O8, TRUE),1), 0) -> 0 | AR8: =_xlfn.IFNA(MATCH(RAND(), _xlfn.POISSON.DIST({0,1,2,3,4,5,6,7,8,9},$O8, TRUE),1), 0) -> 2 | AS8: =_xlfn.IFNA(MATCH(RAND(), _xlfn.POISSON.DIST({0,1,2,3,4,5,6,7,8,9},$O8, TRUE),1), 0) -> 1 | AT8: =_xlfn.IFNA(MATCH(RAND(), _xlfn.POISSON.DIST({0,1,2,3,4,5,6,7,8,9},$O8, TRUE),1), 0) -> 0 | AU8: =_xlfn.IFNA(MATCH(RAND(), _xlfn.POISSON.DIST({0,1,2,3,4,5,6,7,8,9},$O8, TRUE),1), 0) -> 1 | AV8: =_xlfn.IFNA(MATCH(RAND(), _xlfn.POISSON.DIST({0,1,2,3,4,5,6,7,8,9},$O8, TRUE),1), 0) -> 1 | AW8: =_xlfn.IFNA(MATCH(RAND(), _xlfn.POISSON.DIST({0,1,2,3,4,5,6,7,8,9},$O8, TRUE),1), 0) -> 3 | AX8: =_xlfn.IFNA(MATCH(RAND(), _xlfn.POISSON.DIST({0,1,2,3,4,5,6,7,8,9},$O8, TRUE),1), 0) -> 1 | AY8: =_xlfn.IFNA(MATCH(RAND(), _xlfn.POISSON.DIST({0,1,2,3,4,5,6,7,8,9},$O8, TRUE),1), 0) -> 2 | AZ8: =_xlfn.IFNA(MATCH(RAND(), _xlfn.POISSON.DIST({0,1,2,3,4,5,6,7,8,9},$O8, TRUE),1), 0) -> 1 | BA8: =_xlfn.IFNA(MATCH(RAND(), _xlfn.POISSON.DIST({0,1,2,3,4,5,6,7,8,9},$O8, TRUE),1), 0) -> 2 | BB8: =_xlfn.IFNA(MATCH(RAND(), _xlfn.POISSON.DIST({0,1,2,3,4,5,6,7,8,9},$O8, TRUE),1), 0) -> 1 | BC8: =_xlfn.IFNA(MATCH(RAND(), _xlfn.POISSON.DIST({0,1,2,3,4,5,6,7,8,9},$O8, TRUE),1), 0) -> 0 | BD8: =_xlfn.IFNA(MATCH(RAND(), _xlfn.POISSON.DIST({0,1,2,3,4,5,6,7,8,9},$O8, TRUE),1), 0) -> 3 | BE8: =_xlfn.IFNA(MATCH(RAND(), _xlfn.POISSON.DIST({0,1,2,3,4,5,6,7,8,9},$O8, TRUE),1), 0) -> 0 | BF8: =_xlfn.IFNA(MATCH(RAND(), _xlfn.POISSON.DIST({0,1,2,3,4,5,6,7,8,9},$O8, TRUE),1), 0) -> 5 | BG8: =_xlfn.IFNA(MATCH(RAND(), _xlfn.POISSON.DIST({0,1,2,3,4,5,6,7,8,9},$O8, TRUE),1), 0) -> 2 | BH8: =_xlfn.IFNA(MATCH(RAND(), _xlfn.POISSON.DIST({0,1,2,3,4,5,6,7,8,9},$O8, TRUE),1), 0) -> 0 | BI8: =_xlfn.IFNA(MATCH(RAND(), _xlfn.POISSON.DIST({0,1,2,3,4,5,6,7,8,9},$O8, TRUE),1), 0) -> 1 | BJ8: =_xlfn.IFNA(MATCH(RAND(), _xlfn.POISSON.DIST({0,1,2,3,4,5,6,7,8,9},$O8, TRUE),1), 0) -> 1 | BK8: =_xlfn.IFNA(MATCH(RAND(), _xlfn.POISSON.DIST({0,1,2,3,4,5,6,7,8,9},$O8, TRUE),1), 0) -> 0 | BL8: =_xlfn.IFNA(MATCH(RAND(), _xlfn.POISSON.DIST({0,1,2,3,4,5,6,7,8,9},$O8, TRUE),1), 0) -> 0 | BM8: =_xlfn.IFNA(MATCH(RAND(), _xlfn.POISSON.DIST({0,1,2,3,4,5,6,7,8,9},$O8, TRUE),1), 0) -> 1 | BN8: =_xlfn.IFNA(MATCH(RAND(), _xlfn.POISSON.DIST({0,1,2,3,4,5,6,7,8,9},$O8, TRUE),1), 0) -> 4 | BP8: =_xlfn.IFNA(MATCH(RAND(), _xlfn.POISSON.DIST({0,1,2,3,4,5,6,7,8,9},$P8, TRUE),1), 0) -> 3 | BQ8: =_xlfn.IFNA(MATCH(RAND(), _xlfn.POISSON.DIST({0,1,2,3,4,5,6,7,8,9},$P8, TRUE),1), 0) -> 2 | BR8: =_xlfn.IFNA(MATCH(RAND(), _xlfn.POISSON.DIST({0,1,2,3,4,5,6,7,8,9},$P8, TRUE),1), 0) -> 2 | BS8: =_xlfn.IFNA(MATCH(RAND(), _xlfn.POISSON.DIST({0,1,2,3,4,5,6,7,8,9},$P8, TRUE),1), 0) -> 1 | BT8: =_xlfn.IFNA(MATCH(RAND(), _xlfn.POISSON.DIST({0,1,2,3,4,5,6,7,8,9},$P8, TRUE),1), 0) -> 1 | BU8: =_xlfn.IFNA(MATCH(RAND(), _xlfn.POISSON.DIST({0,1,2,3,4,5,6,7,8,9},$P8, TRUE),1), 0) -> 1 | BV8: =_xlfn.IFNA(MATCH(RAND(), _xlfn.POISSON.DIST({0,1,2,3,4,5,6,7,8,9},$P8, TRUE),1), 0) -> 2 | BW8: =_xlfn.IFNA(MATCH(RAND(), _xlfn.POISSON.DIST({0,1,2,3,4,5,6,7,8,9},$P8, TRUE),1), 0) -> 3 | BX8: =_xlfn.IFNA(MATCH(RAND(), _xlfn.POISSON.DIST({0,1,2,3,4,5,6,7,8,9},$P8, TRUE),1), 0) -> 4 | BY8: =_xlfn.IFNA(MATCH(RAND(), _xlfn.POISSON.DIST({0,1,2,3,4,5,6,7,8,9},$P8, TRUE),1), 0) -> 3 | BZ8: =_xlfn.IFNA(MATCH(RAND(), _xlfn.POISSON.DIST({0,1,2,3,4,5,6,7,8,9},$P8, TRUE),1), 0) -> 0 | CA8: =_xlfn.IFNA(MATCH(RAND(), _xlfn.POISSON.DIST({0,1,2,3,4,5,6,7,8,9},$P8, TRUE),1), 0) -> 3 | CB8: =_xlfn.IFNA(MATCH(RAND(), _xlfn.POISSON.DIST({0,1,2,3,4,5,6,7,8,9},$P8, TRUE),1), 0) -> 0 | CC8: =_xlfn.IFNA(MATCH(RAND(), _xlfn.POISSON.DIST({0,1,2,3,4,5,6,7,8,9},$P8, TRUE),1), 0) -> 1 | CD8: =_xlfn.IFNA(MATCH(RAND(), _xlfn.POISSON.DIST({0,1,2,3,4,5,6,7,8,9},$P8, TRUE),1), 0) -> 1 | CE8: =_xlfn.IFNA(MATCH(RAND(), _xlfn.POISSON.DIST({0,1,2,3,4,5,6,7,8,9},$P8, TRUE),1), 0) -> 0 | CF8: =_xlfn.IFNA(MATCH(RAND(), _xlfn.POISSON.DIST({0,1,2,3,4,5,6,7,8,9},$P8, TRUE),1), 0) -> 2 | CG8: =_xlfn.IFNA(MATCH(RAND(), _xlfn.POISSON.DIST({0,1,2,3,4,5,6,7,8,9},$P8, TRUE),1), 0) -> 2 | CH8: =_xlfn.IFNA(MATCH(RAND(), _xlfn.POISSON.DIST({0,1,2,3,4,5,6,7,8,9},$P8, TRUE),1), 0) -> 2 | CI8: =_xlfn.IFNA(MATCH(RAND(), _xlfn.POISSON.DIST({0,1,2,3,4,5,6,7,8,9},$P8, TRUE),1), 0) -> 3 | CJ8: =_xlfn.IFNA(MATCH(RAND(), _xlfn.POISSON.DIST({0,1,2,3,4,5,6,7,8,9},$P8, TRUE),1), 0) -> 1 | CK8: =_xlfn.IFNA(MATCH(RAND(), _xlfn.POISSON.DIST({0,1,2,3,4,5,6,7,8,9},$P8, TRUE),1), 0) -> 1 | CL8: =_xlfn.IFNA(MATCH(RAND(), _xlfn.POISSON.DIST({0,1,2,3,4,5,6,7,8,9},$P8, TRUE),1), 0) -> 0 | CM8: =_xlfn.IFNA(MATCH(RAND(), _xlfn.POISSON.DIST({0,1,2,3,4,5,6,7,8,9},$P8, TRUE),1), 0) -> 2 | CN8: =_xlfn.IFNA(MATCH(RAND(), _xlfn.POISSON.DIST({0,1,2,3,4,5,6,7,8,9},$P8, TRUE),1), 0) -> 2 | CO8: =_xlfn.IFNA(MATCH(RAND(), _xlfn.POISSON.DIST({0,1,2,3,4,5,6,7,8,9},$P8, TRUE),1), 0) -> 1 | CP8: =_xlfn.IFNA(MATCH(RAND(), _xlfn.POISSON.DIST({0,1,2,3,4,5,6,7,8,9},$P8, TRUE),1), 0) -> 2 | CQ8: =_xlfn.IFNA(MATCH(RAND(), _xlfn.POISSON.DIST({0,1,2,3,4,5,6,7,8,9},$P8, TRUE),1), 0) -> 2 | CR8: =_xlfn.IFNA(MATCH(RAND(), _xlfn.POISSON.DIST({0,1,2,3,4,5,6,7,8,9},$P8, TRUE),1), 0) -> 2 | CS8: =_xlfn.IFNA(MATCH(RAND(), _xlfn.POISSON.DIST({0,1,2,3,4,5,6,7,8,9},$P8, TRUE),1), 0) -> 0 | CT8: =_xlfn.IFNA(MATCH(RAND(), _xlfn.POISSON.DIST({0,1,2,3,4,5,6,7,8,9},$P8, TRUE),1), 0) -> 1 | CU8: =_xlfn.IFNA(MATCH(RAND(), _xlfn.POISSON.DIST({0,1,2,3,4,5,6,7,8,9},$P8, TRUE),1), 0) -> 1 | CV8: =_xlfn.IFNA(MATCH(RAND(), _xlfn.POISSON.DIST({0,1,2,3,4,5,6,7,8,9},$P8, TRUE),1), 0) -> 1 | CW8: =_xlfn.IFNA(MATCH(RAND(), _xlfn.POISSON.DIST({0,1,2,3,4,5,6,7,8,9},$P8, TRUE),1), 0) -> 3 | CX8: =_xlfn.IFNA(MATCH(RAND(), _xlfn.POISSON.DIST({0,1,2,3,4,5,6,7,8,9},$P8, TRUE),1), 0) -> 3 | CY8: =_xlfn.IFNA(MATCH(RAND(), _xlfn.POISSON.DIST({0,1,2,3,4,5,6,7,8,9},$P8, TRUE),1), 0) -> 1 | CZ8: =_xlfn.IFNA(MATCH(RAND(), _xlfn.POISSON.DIST({0,1,2,3,4,5,6,7,8,9},$P8, TRUE),1), 0) -> 2 | DA8: =_xlfn.IFNA(MATCH(RAND(), _xlfn.POISSON.DIST({0,1,2,3,4,5,6,7,8,9},$P8, TRUE),1), 0) -> 1 | DB8: =_xlfn.IFNA(MATCH(RAND(), _xlfn.POISSON.DIST({0,1,2,3,4,5,6,7,8,9},$P8, TRUE),1), 0) -> 1 | DC8: =_xlfn.IFNA(MATCH(RAND(), _xlfn.POISSON.DIST({0,1,2,3,4,5,6,7,8,9},$P8, TRUE),1), 0) -> 2 | DD8: =_xlfn.IFNA(MATCH(RAND(), _xlfn.POISSON.DIST({0,1,2,3,4,5,6,7,8,9},$P8, TRUE),1), 0) -> 2 | DE8: =_xlfn.IFNA(MATCH(RAND(), _xlfn.POISSON.DIST({0,1,2,3,4,5,6,7,8,9},$P8, TRUE),1), 0) -> 2 | DF8: =_xlfn.IFNA(MATCH(RAND(), _xlfn.POISSON.DIST({0,1,2,3,4,5,6,7,8,9},$P8, TRUE),1), 0) -> 4 | DG8: =_xlfn.IFNA(MATCH(RAND(), _xlfn.POISSON.DIST({0,1,2,3,4,5,6,7,8,9},$P8, TRUE),1), 0) -> 4 | DH8: =_xlfn.IFNA(MATCH(RAND(), _xlfn.POISSON.DIST({0,1,2,3,4,5,6,7,8,9},$P8, TRUE),1), 0) -> 2 | DI8: =_xlfn.IFNA(MATCH(RAND(), _xlfn.POISSON.DIST({0,1,2,3,4,5,6,7,8,9},$P8, TRUE),1), 0) -> 3 | DJ8: =_xlfn.IFNA(MATCH(RAND(), _xlfn.POISSON.DIST({0,1,2,3,4,5,6,7,8,9},$P8, TRUE),1), 0) -> 3 | DK8: =_xlfn.IFNA(MATCH(RAND(), _xlfn.POISSON.DIST({0,1,2,3,4,5,6,7,8,9},$P8, TRUE),1), 0) -> 2 | DL8: =_xlfn.IFNA(MATCH(RAND(), _xlfn.POISSON.DIST({0,1,2,3,4,5,6,7,8,9},$P8, TRUE),1), 0) -> 1 | DM8: =_xlfn.IFNA(MATCH(RAND(), _xlfn.POISSON.DIST({0,1,2,3,4,5,6,7,8,9},$P8, TRUE),1), 0) -> 2
C9: 2019-06-08 | D9: A | E9: ノルウェー | F9: =(AVERAGE(Q9:BN9))*(1+INDEX('グループ ステージの予想'!$C$4:$O$28, MATCH(今年の試合!E9,'グループ ステージの予想'!$D$4:$D$28,0),3)) -> 1.52 | G9: ナイジェリア | H9: =(AVERAGE(BP9:DM9))*(1+INDEX('グループ ステージの予想'!$C$4:$O$28, MATCH(今年の試合!G9,'グループ ステージの予想'!$D$4:$D$28,0),3)) -> 1.20 | I9: ノルウェー | L9: 1.52 | M9: 1.2 | N9: ノルウェー | O9: =(OFFSET('付録 3 - グループごとのゴール'!$C$13,(INDEX('付録 1 - チーム データ'!$C$13:$F$112,MATCH(G9,'付録 1 - チーム データ'!$C$13:$C$112,0),4)/10),(INDEX('付録 1 - チーム データ'!$C$13:$F$112,MATCH(E9,'付録 1 - チーム データ'!$C$13:$C$112,0),4)/10))) -> 1.50 | P9: =OFFSET('付録 3 - グループごとのゴール'!$C$13,(INDEX('付録 1 - チーム データ'!$C$13:$F$112, MATCH(E9,'付録 1 - チーム データ'!$C$13:$C$112,0),4)/10), (INDEX('付録 1 - チーム データ'!$C$13:$F$112, MATCH(G9, '付録 1 - チーム データ'!$C$13:$C$112,0),4)/10)) -> 1.50 | Q9: =_xlfn.IFNA(MATCH(RAND(), _xlfn.POISSON.DIST({0,1,2,3,4,5,6,7,8,9},$O9, TRUE),1), 0) -> 2 | R9: =_xlfn.IFNA(MATCH(RAND(), _xlfn.POISSON.DIST({0,1,2,3,4,5,6,7,8,9},$O9, TRUE),1), 0) -> 3 | S9: =_xlfn.IFNA(MATCH(RAND(), _xlfn.POISSON.DIST({0,1,2,3,4,5,6,7,8,9},$O9, TRUE),1), 0) -> 2 | T9: =_xlfn.IFNA(MATCH(RAND(), _xlfn.POISSON.DIST({0,1,2,3,4,5,6,7,8,9},$O9, TRUE),1), 0) -> 1 | U9: =_xlfn.IFNA(MATCH(RAND(), _xlfn.POISSON.DIST({0,1,2,3,4,5,6,7,8,9},$O9, TRUE),1), 0) -> 1 | V9: =_xlfn.IFNA(MATCH(RAND(), _xlfn.POISSON.DIST({0,1,2,3,4,5,6,7,8,9},$O9, TRUE),1), 0) -> 0 | W9: =_xlfn.IFNA(MATCH(RAND(), _xlfn.POISSON.DIST({0,1,2,3,4,5,6,7,8,9},$O9, TRUE),1), 0) -> 0 | X9: =_xlfn.IFNA(MATCH(RAND(), _xlfn.POISSON.DIST({0,1,2,3,4,5,6,7,8,9},$O9, TRUE),1), 0) -> 0 | Y9: =_xlfn.IFNA(MATCH(RAND(), _xlfn.POISSON.DIST({0,1,2,3,4,5,6,7,8,9},$O9, TRUE),1), 0) -> 1 | Z9: =_xlfn.IFNA(MATCH(RAND(), _xlfn.POISSON.DIST({0,1,2,3,4,5,6,7,8,9},$O9, TRUE),1), 0) -> 1 | AA9: =_xlfn.IFNA(MATCH(RAND(), _xlfn.POISSON.DIST({0,1,2,3,4,5,6,7,8,9},$O9, TRUE),1), 0) -> 2 | AB9: =_xlfn.IFNA(MATCH(RAND(), _xlfn.POISSON.DIST({0,1,2,3,4,5,6,7,8,9},$O9, TRUE),1), 0) -> 0 | AC9: =_xlfn.IFNA(MATCH(RAND(), _xlfn.POISSON.DIST({0,1,2,3,4,5,6,7,8,9},$O9, TRUE),1), 0) -> 3 | AD9: =_xlfn.IFNA(MATCH(RAND(), _xlfn.POISSON.DIST({0,1,2,3,4,5,6,7,8,9},$O9, TRUE),1), 0) -> 0 | AE9: =_xlfn.IFNA(MATCH(RAND(), _xlfn.POISSON.DIST({0,1,2,3,4,5,6,7,8,9},$O9, TRUE),1), 0) -> 1 | AF9: =_xlfn.IFNA(MATCH(RAND(), _xlfn.POISSON.DIST({0,1,2,3,4,5,6,7,8,9},$O9, TRUE),1), 0) -> 2 | AG9: =_xlfn.IFNA(MATCH(RAND(), _xlfn.POISSON.DIST({0,1,2,3,4,5,6,7,8,9},$O9, TRUE),1), 0) -> 0 | AH9: =_xlfn.IFNA(MATCH(RAND(), _xlfn.POISSON.DIST({0,1,2,3,4,5,6,7,8,9},$O9, TRUE),1), 0) -> 4 | AI9: =_xlfn.IFNA(MATCH(RAND(), _xlfn.POISSON.DIST({0,1,2,3,4,5,6,7,8,9},$O9, TRUE),1), 0) -> 4 | AJ9: =_xlfn.IFNA(MATCH(RAND(), _xlfn.POISSON.DIST({0,1,2,3,4,5,6,7,8,9},$O9, TRUE),1), 0) -> 3 | AK9: =_xlfn.IFNA(MATCH(RAND(), _xlfn.POISSON.DIST({0,1,2,3,4,5,6,7,8,9},$O9, TRUE),1), 0) -> 0 | AL9: =_xlfn.IFNA(MATCH(RAND(), _xlfn.POISSON.DIST({0,1,2,3,4,5,6,7,8,9},$O9, TRUE),1), 0) -> 2 | AM9: =_xlfn.IFNA(MATCH(RAND(), _xlfn.POISSON.DIST({0,1,2,3,4,5,6,7,8,9},$O9, TRUE),1), 0) -> 2 | AN9: =_xlfn.IFNA(MATCH(RAND(), _xlfn.POISSON.DIST({0,1,2,3,4,5,6,7,8,9},$O9, TRUE),1), 0) -> 0 | AO9: =_xlfn.IFNA(MATCH(RAND(), _xlfn.POISSON.DIST({0,1,2,3,4,5,6,7,8,9},$O9, TRUE),1), 0) -> 2 | AP9: =_xlfn.IFNA(MATCH(RAND(), _xlfn.POISSON.DIST({0,1,2,3,4,5,6,7,8,9},$O9, TRUE),1), 0) -> 3 | AQ9: =_xlfn.IFNA(MATCH(RAND(), _xlfn.POISSON.DIST({0,1,2,3,4,5,6,7,8,9},$O9, TRUE),1), 0) -> 0 | AR9: =_xlfn.IFNA(MATCH(RAND(), _xlfn.POISSON.DIST({0,1,2,3,4,5,6,7,8,9},$O9, TRUE),1), 0) -> 1 | AS9: =_xlfn.IFNA(MATCH(RAND(), _xlfn.POISSON.DIST({0,1,2,3,4,5,6,7,8,9},$O9, TRUE),1), 0) -> 0 | AT9: =_xlfn.IFNA(MATCH(RAND(), _xlfn.POISSON.DIST({0,1,2,3,4,5,6,7,8,9},$O9, TRUE),1), 0) -> 1 | AU9: =_xlfn.IFNA(MATCH(RAND(), _xlfn.POISSON.DIST({0,1,2,3,4,5,6,7,8,9},$O9, TRUE),1), 0) -> 2 | AV9: =_xlfn.IFNA(MATCH(RAND(), _xlfn.POISSON.DIST({0,1,2,3,4,5,6,7,8,9},$O9, TRUE),1), 0) -> 2 | AW9: =_xlfn.IFNA(MATCH(RAND(), _xlfn.POISSON.DIST({0,1,2,3,4,5,6,7,8,9},$O9, TRUE),1), 0) -> 2 | AX9: =_xlfn.IFNA(MATCH(RAND(), _xlfn.POISSON.DIST({0,1,2,3,4,5,6,7,8,9},$O9, TRUE),1), 0) -> 0 | AY9: =_xlfn.IFNA(MATCH(RAND(), _xlfn.POISSON.DIST({0,1,2,3,4,5,6,7,8,9},$O9, TRUE),1), 0) -> 1 | AZ9: =_xlfn.IFNA(MATCH(RAND(), _xlfn.POISSON.DIST({0,1,2,3,4,5,6,7,8,9},$O9, TRUE),1), 0) -> 4 | BA9: =_xlfn.IFNA(MATCH(RAND(), _xlfn.POISSON.DIST({0,1,2,3,4,5,6,7,8,9},$O9, TRUE),1), 0) -> 0 | BB9: =_xlfn.IFNA(MATCH(RAND(), _xlfn.POISSON.DIST({0,1,2,3,4,5,6,7,8,9},$O9, TRUE),1), 0) -> 0 | BC9: =_xlfn.IFNA(MATCH(RAND(), _xlfn.POISSON.DIST({0,1,2,3,4,5,6,7,8,9},$O9, TRUE),1), 0) -> 0 | BD9: =_xlfn.IFNA(MATCH(RAND(), _xlfn.POISSON.DIST({0,1,2,3,4,5,6,7,8,9},$O9, TRUE),1), 0) -> 4 | BE9: =_xlfn.IFNA(MATCH(RAND(), _xlfn.POISSON.DIST({0,1,2,3,4,5,6,7,8,9},$O9, TRUE),1), 0) -> 1 | BF9: =_xlfn.IFNA(MATCH(RAND(), _xlfn.POISSON.DIST({0,1,2,3,4,5,6,7,8,9},$O9, TRUE),1), 0) -> 4 | BG9: =_xlfn.IFNA(MATCH(RAND(), _xlfn.POISSON.DIST({0,1,2,3,4,5,6,7,8,9},$O9, TRUE),1), 0) -> 2 | BH9: =_xlfn.IFNA(MATCH(RAND(), _xlfn.POISSON.DIST({0,1,2,3,4,5,6,7,8,9},$O9, TRUE),1), 0) -> 4 | BI9: =_xlfn.IFNA(MATCH(RAND(), _xlfn.POISSON.DIST({0,1,2,3,4,5,6,7,8,9},$O9, TRUE),1), 0) -> 1 | BJ9: =_xlfn.IFNA(MATCH(RAND(), _xlfn.POISSON.DIST({0,1,2,3,4,5,6,7,8,9},$O9, TRUE),1), 0) -> 1 | BK9: =_xlfn.IFNA(MATCH(RAND(), _xlfn.POISSON.DIST({0,1,2,3,4,5,6,7,8,9},$O9, TRUE),1), 0) -> 2 | BL9: =_xlfn.IFNA(MATCH(RAND(), _xlfn.POISSON.DIST({0,1,2,3,4,5,6,7,8,9},$O9, TRUE),1), 0) -> 1 | BM9: =_xlfn.IFNA(MATCH(RAND(), _xlfn.POISSON.DIST({0,1,2,3,4,5,6,7,8,9},$O9, TRUE),1), 0) -> 1 | BN9: =_xlfn.IFNA(MATCH(RAND(), _xlfn.POISSON.DIST({0,1,2,3,4,5,6,7,8,9},$O9, TRUE),1), 0) -> 3 | BP9: =_xlfn.IFNA(MATCH(RAND(), _xlfn.POISSON.DIST({0,1,2,3,4,5,6,7,8,9},$P9, TRUE),1), 0) -> 0 | BQ9: =_xlfn.IFNA(MATCH(RAND(), _xlfn.POISSON.DIST({0,1,2,3,4,5,6,7,8,9},$P9, TRUE),1), 0) -> 2 | BR9: =_xlfn.IFNA(MATCH(RAND(), _xlfn.POISSON.DIST({0,1,2,3,4,5,6,7,8,9},$P9, TRUE),1), 0) -> 3 | BS9: =_xlfn.IFNA(MATCH(RAND(), _xlfn.POISSON.DIST({0,1,2,3,4,5,6,7,8,9},$P9, TRUE),1), 0) -> 0 | BT9: =_xlfn.IFNA(MATCH(RAND(), _xlfn.POISSON.DIST({0,1,2,3,4,5,6,7,8,9},$P9, TRUE),1), 0) -> 3 | BU9: =_xlfn.IFNA(MATCH(RAND(), _xlfn.POISSON.DIST({0,1,2,3,4,5,6,7,8,9},$P9, TRUE),1), 0) -> 0 | BV9: =_xlfn.IFNA(MATCH(RAND(), _xlfn.POISSON.DIST({0,1,2,3,4,5,6,7,8,9},$P9, TRUE),1), 0) -> 1 | BW9: =_xlfn.IFNA(MATCH(RAND(), _xlfn.POISSON.DIST({0,1,2,3,4,5,6,7,8,9},$P9, TRUE),1), 0) -> 1 | BX9: =_xlfn.IFNA(MATCH(RAND(), _xlfn.POISSON.DIST({0,1,2,3,4,5,6,7,8,9},$P9, TRUE),1), 0) -> 0 | BY9: =_xlfn.IFNA(MATCH(RAND(), _xlfn.POISSON.DIST({0,1,2,3,4,5,6,7,8,9},$P9, TRUE),1), 0) -> 0 | BZ9: =_xlfn.IFNA(MATCH(RAND(), _xlfn.POISSON.DIST({0,1,2,3,4,5,6,7,8,9},$P9, TRUE),1), 0) -> 1 | CA9: =_xlfn.IFNA(MATCH(RAND(), _xlfn.POISSON.DIST({0,1,2,3,4,5,6,7,8,9},$P9, TRUE),1), 0) -> 0 | CB9: =_xlfn.IFNA(MATCH(RAND(), _xlfn.POISSON.DIST({0,1,2,3,4,5,6,7,8,9},$P9, TRUE),1), 0) -> 1 | CC9: =_xlfn.IFNA(MATCH(RAND(), _xlfn.POISSON.DIST({0,1,2,3,4,5,6,7,8,9},$P9, TRUE),1), 0) -> 1 | CD9: =_xlfn.IFNA(MATCH(RAND(), _xlfn.POISSON.DIST({0,1,2,3,4,5,6,7,8,9},$P9, TRUE),1), 0) -> 0 | CE9: =_xlfn.IFNA(MATCH(RAND(), _xlfn.POISSON.DIST({0,1,2,3,4,5,6,7,8,9},$P9, TRUE),1), 0) -> 0 | CF9: =_xlfn.IFNA(MATCH(RAND(), _xlfn.POISSON.DIST({0,1,2,3,4,5,6,7,8,9},$P9, TRUE),1), 0) -> 1 | CG9: =_xlfn.IFNA(MATCH(RAND(), _xlfn.POISSON.DIST({0,1,2,3,4,5,6,7,8,9},$P9, TRUE),1), 0) -> 0 | CH9: =_xlfn.IFNA(MATCH(RAND(), _xlfn.POISSON.DIST({0,1,2,3,4,5,6,7,8,9},$P9, TRUE),1), 0) -> 1 | CI9: =_xlfn.IFNA(MATCH(RAND(), _xlfn.POISSON.DIST({0,1,2,3,4,5,6,7,8,9},$P9, TRUE),1), 0) -> 0 | CJ9: =_xlfn.IFNA(MATCH(RAND(), _xlfn.POISSON.DIST({0,1,2,3,4,5,6,7,8,9},$P9, TRUE),1), 0) -> 0 | CK9: =_xlfn.IFNA(MATCH(RAND(), _xlfn.POISSON.DIST({0,1,2,3,4,5,6,7,8,9},$P9, TRUE),1), 0) -> 1 | CL9: =_xlfn.IFNA(MATCH(RAND(), _xlfn.POISSON.DIST({0,1,2,3,4,5,6,7,8,9},$P9, TRUE),1), 0) -> 0 | CM9: =_xlfn.IFNA(MATCH(RAND(), _xlfn.POISSON.DIST({0,1,2,3,4,5,6,7,8,9},$P9, TRUE),1), 0) -> 1 | CN9: =_xlfn.IFNA(MATCH(RAND(), _xlfn.POISSON.DIST({0,1,2,3,4,5,6,7,8,9},$P9, TRUE),1), 0) -> 1 | CO9: =_xlfn.IFNA(MATCH(RAND(), _xlfn.POISSON.DIST({0,1,2,3,4,5,6,7,8,9},$P9, TRUE),1), 0) -> 3 | CP9: =_xlfn.IFNA(MATCH(RAND(), _xlfn.POISSON.DIST({0,1,2,3,4,5,6,7,8,9},$P9, TRUE),1), 0) -> 2 | CQ9: =_xlfn.IFNA(MATCH(RAND(), _xlfn.POISSON.DIST({0,1,2,3,4,5,6,7,8,9},$P9, TRUE),1), 0) -> 1 | CR9: =_xlfn.IFNA(MATCH(RAND(), _xlfn.POISSON.DIST({0,1,2,3,4,5,6,7,8,9},$P9, TRUE),1), 0) -> 2 | CS9: =_xlfn.IFNA(MATCH(RAND(), _xlfn.POISSON.DIST({0,1,2,3,4,5,6,7,8,9},$P9, TRUE),1), 0) -> 2 | CT9: =_xlfn.IFNA(MATCH(RAND(), _xlfn.POISSON.DIST({0,1,2,3,4,5,6,7,8,9},$P9, TRUE),1), 0) -> 2 | CU9: =_xlfn.IFNA(MATCH(RAND(), _xlfn.POISSON.DIST({0,1,2,3,4,5,6,7,8,9},$P9, TRUE),1), 0) -> 2 | CV9: =_xlfn.IFNA(MATCH(RAND(), _xlfn.POISSON.DIST({0,1,2,3,4,5,6,7,8,9},$P9, TRUE),1), 0) -> 0 | CW9: =_xlfn.IFNA(MATCH(RAND(), _xlfn.POISSON.DIST({0,1,2,3,4,5,6,7,8,9},$P9, TRUE),1), 0) -> 3 | CX9: =_xlfn.IFNA(MATCH(RAND(), _xlfn.POISSON.DIST({0,1,2,3,4,5,6,7,8,9},$P9, TRUE),1), 0) -> 3 | CY9: =_xlfn.IFNA(MATCH(RAND(), _xlfn.POISSON.DIST({0,1,2,3,4,5,6,7,8,9},$P9, TRUE),1), 0) -> 1 | CZ9: =_xlfn.IFNA(MATCH(RAND(), _xlfn.POISSON.DIST({0,1,2,3,4,5,6,7,8,9},$P9, TRUE),1), 0) -> 1 | DA9: =_xlfn.IFNA(MATCH(RAND(), _xlfn.POISSON.DIST({0,1,2,3,4,5,6,7,8,9},$P9, TRUE),1), 0) -> 0 | DB9: =_xlfn.IFNA(MATCH(RAND(), _xlfn.POISSON.DIST({0,1,2,3,4,5,6,7,8,9},$P9, TRUE),1), 0) -> 0 | DC9: =_xlfn.IFNA(MATCH(RAND(), _xlfn.POISSON.DIST({0,1,2,3,4,5,6,7,8,9},$P9, TRUE),1), 0) -> 1 | DD9: =_xlfn.IFNA(MATCH(RAND(), _xlfn.POISSON.DIST({0,1,2,3,4,5,6,7,8,9},$P9, TRUE),1), 0) -> 3 | DE9: =_xlfn.IFNA(MATCH(RAND(), _xlfn.POISSON.DIST({0,1,2,3,4,5,6,7,8,9},$P9, TRUE),1), 0) -> 2 | DF9: =_xlfn.IFNA(MATCH(RAND(), _xlfn.POISSON.DIST({0,1,2,3,4,5,6,7,8,9},$P9, TRUE),1), 0) -> 4 | DG9: =_xlfn.IFNA(MATCH(RAND(), _xlfn.POISSON.DIST({0,1,2,3,4,5,6,7,8,9},$P9, TRUE),1), 0) -> 2 | DH9: =_xlfn.IFNA(MATCH(RAND(), _xlfn.POISSON.DIST({0,1,2,3,4,5,6,7,8,9},$P9, TRUE),1), 0) -> 1 | DI9: =_xlfn.IFNA(MATCH(RAND(), _xlfn.POISSON.DIST({0,1,2,3,4,5,6,7,8,9},$P9, TRUE),1), 0) -> 2 | DJ9: =_xlfn.IFNA(MATCH(RAND(), _xlfn.POISSON.DIST({0,1,2,3,4,5,6,7,8,9},$P9, TRUE),1), 0) -> 1 | DK9: =_xlfn.IFNA(MATCH(RAND(), _xlfn.POISSON.DIST({0,1,2,3,4,5,6,7,8,9},$P9, TRUE),1), 0) -> 1 | DL9: =_xlfn.IFNA(MATCH(RAND(), _xlfn.POISSON.DIST({0,1,2,3,4,5,6,7,8,9},$P9, TRUE),1), 0) -> 0 | DM9: =_xlfn.IFNA(MATCH(RAND(), _xlfn.POISSON.DIST({0,1,2,3,4,5,6,7,8,9},$P9, TRUE),1), 0) -> 3
C10: 2019-06-09 | D10: C | E10: オーストラリア | F10: =(AVERAGE(Q10:BN10))*(1+INDEX('グループ ステージの予想'!$C$4:$O$28, MATCH(今年の試合!E10,'グループ ステージの予想'!$D$4:$D$28,0),3)) -> 1.70 | G10: イタリア | H10: =(AVERAGE(BP10:DM10))*(1+INDEX('グループ ステージの予想'!$C$4:$O$28, MATCH(今年の試合!G10,'グループ ステージの予想'!$D$4:$D$28,0),3)) -> 1.22 | I10: オーストラリア | L10: 1.7 | M10: 1.22 | N10: オーストラリア | O10: =(OFFSET('付録 3 - グループごとのゴール'!$C$13,(INDEX('付録 1 - チーム データ'!$C$13:$F$112,MATCH(G10,'付録 1 - チーム データ'!$C$13:$C$112,0),4)/10),(INDEX('付録 1 - チーム データ'!$C$13:$F$112,MATCH(E10,'付録 1 - チーム データ'!$C$13:$C$112,0),4)/10))) -> 1.50 | P10: =OFFSET('付録 3 - グループごとのゴール'!$C$13,(INDEX('付録 1 - チーム データ'!$C$13:$F$112, MATCH(E10,'付録 1 - チーム データ'!$C$13:$C$112,0),4)/10), (INDEX('付録 1 - チーム データ'!$C$13:$F$112, MATCH(G10, '付録 1 - チーム データ'!$C$13:$C$112,0),4)/10)) -> 1.50 | Q10: =_xlfn.IFNA(MATCH(RAND(), _xlfn.POISSON.DIST({0,1,2,3,4,5,6,7,8,9},$O10, TRUE),1), 0) -> 0 | R10: =_xlfn.IFNA(MATCH(RAND(), _xlfn.POISSON.DIST({0,1,2,3,4,5,6,7,8,9},$O10, TRUE),1), 0) -> 3 | S10: =_xlfn.IFNA(MATCH(RAND(), _xlfn.POISSON.DIST({0,1,2,3,4,5,6,7,8,9},$O10, TRUE),1), 0) -> 0 | T10: =_xlfn.IFNA(MATCH(RAND(), _xlfn.POISSON.DIST({0,1,2,3,4,5,6,7,8,9},$O10, TRUE),1), 0) -> 0 | U10: =_xlfn.IFNA(MATCH(RAND(), _xlfn.POISSON.DIST({0,1,2,3,4,5,6,7,8,9},$O10, TRUE),1), 0) -> 1 | V10: =_xlfn.IFNA(MATCH(RAND(), _xlfn.POISSON.DIST({0,1,2,3,4,5,6,7,8,9},$O10, TRUE),1), 0) -> 1 | W10: =_xlfn.IFNA(MATCH(RAND(), _xlfn.POISSON.DIST({0,1,2,3,4,5,6,7,8,9},$O10, TRUE),1), 0) -> 1 | X10: =_xlfn.IFNA(MATCH(RAND(), _xlfn.POISSON.DIST({0,1,2,3,4,5,6,7,8,9},$O10, TRUE),1), 0) -> 1 | Y10: =_xlfn.IFNA(MATCH(RAND(), _xlfn.POISSON.DIST({0,1,2,3,4,5,6,7,8,9},$O10, TRUE),1), 0) -> 3 | Z10: =_xlfn.IFNA(MATCH(RAND(), _xlfn.POISSON.DIST({0,1,2,3,4,5,6,7,8,9},$O10, TRUE),1), 0) -> 1 | AA10: =_xlfn.IFNA(MATCH(RAND(), _xlfn.POISSON.DIST({0,1,2,3,4,5,6,7,8,9},$O10, TRUE),1), 0) -> 1 | AB10: =_xlfn.IFNA(MATCH(RAND(), _xlfn.POISSON.DIST({0,1,2,3,4,5,6,7,8,9},$O10, TRUE),1), 0) -> 1 | AC10: =_xlfn.IFNA(MATCH(RAND(), _xlfn.POISSON.DIST({0,1,2,3,4,5,6,7,8,9},$O10, TRUE),1), 0) -> 3 | AD10: =_xlfn.IFNA(MATCH(RAND(), _xlfn.POISSON.DIST({0,1,2,3,4,5,6,7,8,9},$O10, TRUE),1), 0) -> 2 | AE10: =_xlfn.IFNA(MATCH(RAND(), _xlfn.POISSON.DIST({0,1,2,3,4,5,6,7,8,9},$O10, TRUE),1), 0) -> 1 | AF10: =_xlfn.IFNA(MATCH(RAND(), _xlfn.POISSON.DIST({0,1,2,3,4,5,6,7,8,9},$O10, TRUE),1), 0) -> 0 | AG10: =_xlfn.IFNA(MATCH(RAND(), _xlfn.POISSON.DIST({0,1,2,3,4,5,6,7,8,9},$O10, TRUE),1), 0) -> 5 | AH10: =_xlfn.IFNA(MATCH(RAND(), _xlfn.POISSON.DIST({0,1,2,3,4,5,6,7,8,9},$O10, TRUE),1), 0) -> 6 | AI10: =_xlfn.IFNA(MATCH(RAND(), _xlfn.POISSON.DIST({0,1,2,3,4,5,6,7,8,9},$O10, TRUE),1), 0) -> 0 | AJ10: =_xlfn.IFNA(MATCH(RAND(), _xlfn.POISSON.DIST({0,1,2,3,4,5,6,7,8,9},$O10, TRUE),1), 0) -> 2 | AK10: =_xlfn.IFNA(MATCH(RAND(), _xlfn.POISSON.DIST({0,1,2,3,4,5,6,7,8,9},$O10, TRUE),1), 0) -> 2 | AL10: =_xlfn.IFNA(MATCH(RAND(), _xlfn.POISSON.DIST({0,1,2,3,4,5,6,7,8,9},$O10, TRUE),1), 0) -> 2 | AM10: =_xlfn.IFNA(MATCH(RAND(), _xlfn.POISSON.DIST({0,1,2,3,4,5,6,7,8,9},$O10, TRUE),1), 0) -> 0 | AN10: =_xlfn.IFNA(MATCH(RAND(), _xlfn.POISSON.DIST({0,1,2,3,4,5,6,7,8,9},$O10, TRUE),1), 0) -> 2 | AO10: =_xlfn.IFNA(MATCH(RAND(), _xlfn.POISSON.DIST({0,1,2,3,4,5,6,7,8,9},$O10, TRUE),1), 0) -> 0 | AP10: =_xlfn.IFNA(MATCH(RAND(), _xlfn.POISSON.DIST({0,1,2,3,4,5,6,7,8,9},$O10, TRUE),1), 0) -> 0 | AQ10: =_xlfn.IFNA(MATCH(RAND(), _xlfn.POISSON.DIST({0,1,2,3,4,5,6,7,8,9},$O10, TRUE),1), 0) -> 1 | AR10: =_xlfn.IFNA(MATCH(RAND(), _xlfn.POISSON.DIST({0,1,2,3,4,5,6,7,8,9},$O10, TRUE),1), 0) -> 1 | AS10: =_xlfn.IFNA(MATCH(RAND(), _xlfn.POISSON.DIST({0,1,2,3,4,5,6,7,8,9},$O10, TRUE),1), 0) -> 0 | AT10: =_xlfn.IFNA(MATCH(RAND(), _xlfn.POISSON.DIST({0,1,2,3,4,5,6,7,8,9},$O10, TRUE),1), 0) -> 1 | AU10: =_xlfn.IFNA(MATCH(RAND(), _xlfn.POISSON.DIST({0,1,2,3,4,5,6,7,8,9},$O10, TRUE),1), 0) -> 0 | AV10: =_xlfn.IFNA(MATCH(RAND(), _xlfn.POISSON.DIST({0,1,2,3,4,5,6,7,8,9},$O10, TRUE),1), 0) -> 4 | AW10: =_xlfn.IFNA(MATCH(RAND(), _xlfn.POISSON.DIST({0,1,2,3,4,5,6,7,8,9},$O10, TRUE),1), 0) -> 1 | AX10: =_xlfn.IFNA(MATCH(RAND(), _xlfn.POISSON.DIST({0,1,2,3,4,5,6,7,8,9},$O10, TRUE),1), 0) -> 4 | AY10: =_xlfn.IFNA(MATCH(RAND(), _xlfn.POISSON.DIST({0,1,2,3,4,5,6,7,8,9},$O10, TRUE),1), 0) -> 4 | AZ10: =_xlfn.IFNA(MATCH(RAND(), _xlfn.POISSON.DIST({0,1,2,3,4,5,6,7,8,9},$O10, TRUE),1), 0) -> 2 | BA10: =_xlfn.IFNA(MATCH(RAND(), _xlfn.POISSON.DIST({0,1,2,3,4,5,6,7,8,9},$O10, TRUE),1), 0) -> 1 | BB10: =_xlfn.IFNA(MATCH(RAND(), _xlfn.POISSON.DIST({0,1,2,3,4,5,6,7,8,9},$O10, TRUE),1), 0) -> 1 | BC10: =_xlfn.IFNA(MATCH(RAND(), _xlfn.POISSON.DIST({0,1,2,3,4,5,6,7,8,9},$O10, TRUE),1), 0) -> 2 | BD10: =_xlfn.IFNA(MATCH(RAND(), _xlfn.POISSON.DIST({0,1,2,3,4,5,6,7,8,9},$O10, TRUE),1), 0) -> 2 | BE10: =_xlfn.IFNA(MATCH(RAND(), _xlfn.POISSON.DIST({0,1,2,3,4,5,6,7,8,9},$O10, TRUE),1), 0) -> 1 | BF10: =_xlfn.IFNA(MATCH(RAND(), _xlfn.POISSON.DIST({0,1,2,3,4,5,6,7,8,9},$O10, TRUE),1), 0) -> 3 | BG10: =_xlfn.IFNA(MATCH(RAND(), _xlfn.POISSON.DIST({0,1,2,3,4,5,6,7,8,9},$O10, TRUE),1), 0) -> 2 | BH10: =_xlfn.IFNA(MATCH(RAND(), _xlfn.POISSON.DIST({0,1,2,3,4,5,6,7,8,9},$O10, TRUE),1), 0) -> 3 | BI10: =_xlfn.IFNA(MATCH(RAND(), _xlfn.POISSON.DIST({0,1,2,3,4,5,6,7,8,9},$O10, TRUE),1), 0) -> 3 | BJ10: =_xlfn.IFNA(MATCH(RAND(), _xlfn.POISSON.DIST({0,1,2,3,4,5,6,7,8,9},$O10, TRUE),1), 0) -> 1 | BK10: =_xlfn.IFNA(MATCH(RAND(), _xlfn.POISSON.DIST({0,1,2,3,4,5,6,7,8,9},$O10, TRUE),1), 0) -> 4 | BL10: =_xlfn.IFNA(MATCH(RAND(), _xlfn.POISSON.DIST({0,1,2,3,4,5,6,7,8,9},$O10, TRUE),1), 0) -> 2 | BM10: =_xlfn.IFNA(MATCH(RAND(), _xlfn.POISSON.DIST({0,1,2,3,4,5,6,7,8,9},$O10, TRUE),1), 0) -> 3 | BN10: =_xlfn.IFNA(MATCH(RAND(), _xlfn.POISSON.DIST({0,1,2,3,4,5,6,7,8,9},$O10, TRUE),1), 0) -> 1 | BP10: =_xlfn.IFNA(MATCH(RAND(), _xlfn.POISSON.DIST({0,1,2,3,4,5,6,7,8,9},$P10, TRUE),1), 0) -> 1 | BQ10: =_xlfn.IFNA(MATCH(RAND(), _xlfn.POISSON.DIST({0,1,2,3,4,5,6,7,8,9},$P10, TRUE),1), 0) -> 1 | BR10: =_xlfn.IFNA(MATCH(RAND(), _xlfn.POISSON.DIST({0,1,2,3,4,5,6,7,8,9},$P10, TRUE),1), 0) -> 0 | BS10: =_xlfn.IFNA(MATCH(RAND(), _xlfn.POISSON.DIST({0,1,2,3,4,5,6,7,8,9},$P10, TRUE),1), 0) -> 0 | BT10: =_xlfn.IFNA(MATCH(RAND(), _xlfn.POISSON.DIST({0,1,2,3,4,5,6,7,8,9},$P10, TRUE),1), 0) -> 2 | BU10: =_xlfn.IFNA(MATCH(RAND(), _xlfn.POISSON.DIST({0,1,2,3,4,5,6,7,8,9},$P10, TRUE),1), 0) -> 1 | BV10: =_xlfn.IFNA(MATCH(RAND(), _xlfn.POISSON.DIST({0,1,2,3,4,5,6,7,8,9},$P10, TRUE),1), 0) -> 1 | BW10: =_xlfn.IFNA(MATCH(RAND(), _xlfn.POISSON.DIST({0,1,2,3,4,5,6,7,8,9},$P10, TRUE),1), 0) -> 1 | BX10: =_xlfn.IFNA(MATCH(RAND(), _xlfn.POISSON.DIST({0,1,2,3,4,5,6,7,8,9},$P10, TRUE),1), 0) -> 1 | BY10: =_xlfn.IFNA(MATCH(RAND(), _xlfn.POISSON.DIST({0,1,2,3,4,5,6,7,8,9},$P10, TRUE),1), 0) -> 2 | BZ10: =_xlfn.IFNA(MATCH(RAND(), _xlfn.POISSON.DIST({0,1,2,3,4,5,6,7,8,9},$P10, TRUE),1), 0) -> 3 | CA10: =_xlfn.IFNA(MATCH(RAND(), _xlfn.POISSON.DIST({0,1,2,3,4,5,6,7,8,9},$P10, TRUE),1), 0) -> 0 | CB10: =_xlfn.IFNA(MATCH(RAND(), _xlfn.POISSON.DIST({0,1,2,3,4,5,6,7,8,9},$P10, TRUE),1), 0) -> 2 | CC10: =_xlfn.IFNA(MATCH(RAND(), _xlfn.POISSON.DIST({0,1,2,3,4,5,6,7,8,9},$P10, TRUE),1), 0) -> 2 | CD10: =_xlfn.IFNA(MATCH(RAND(), _xlfn.POISSON.DIST({0,1,2,3,4,5,6,7,8,9},$P10, TRUE),1), 0) -> 0 | CE10: =_xlfn.IFNA(MATCH(RAND(), _xlfn.POISSON.DIST({0,1,2,3,4,5,6,7,8,9},$P10, TRUE),1), 0) -> 1 | CF10: =_xlfn.IFNA(MATCH(RAND(), _xlfn.POISSON.DIST({0,1,2,3,4,5,6,7,8,9},$P10, TRUE),1), 0) -> 3 | CG10: =_xlfn.IFNA(MATCH(RAND(), _xlfn.POISSON.DIST({0,1,2,3,4,5,6,7,8,9},$P10, TRUE),1), 0) -> 0 | CH10: =_xlfn.IFNA(MATCH(RAND(), _xlfn.POISSON.DIST({0,1,2,3,4,5,6,7,8,9},$P10, TRUE),1), 0) -> 1 | CI10: =_xlfn.IFNA(MATCH(RAND(), _xlfn.POISSON.DIST({0,1,2,3,4,5,6,7,8,9},$P10, TRUE),1), 0) -> 1 | CJ10: =_xlfn.IFNA(MATCH(RAND(), _xlfn.POISSON.DIST({0,1,2,3,4,5,6,7,8,9},$P10, TRUE),1), 0) -> 3 | CK10: =_xlfn.IFNA(MATCH(RAND(), _xlfn.POISSON.DIST({0,1,2,3,4,5,6,7,8,9},$P10, TRUE),1), 0) -> 0 | CL10: =_xlfn.IFNA(MATCH(RAND(), _xlfn.POISSON.DIST({0,1,2,3,4,5,6,7,8,9},$P10, TRUE),1), 0) -> 1 | CM10: =_xlfn.IFNA(MATCH(RAND(), _xlfn.POISSON.DIST({0,1,2,3,4,5,6,7,8,9},$P10, TRUE),1), 0) -> 0 | CN10: =_xlfn.IFNA(MATCH(RAND(), _xlfn.POISSON.DIST({0,1,2,3,4,5,6,7,8,9},$P10, TRUE),1), 0) -> 2 | CO10: =_xlfn.IFNA(MATCH(RAND(), _xlfn.POISSON.DIST({0,1,2,3,4,5,6,7,8,9},$P10, TRUE),1), 0) -> 0 | CP10: =_xlfn.IFNA(MATCH(RAND(), _xlfn.POISSON.DIST({0,1,2,3,4,5,6,7,8,9},$P10, TRUE),1), 0) -> 1 | CQ10: =_xlfn.IFNA(MATCH(RAND(), _xlfn.POISSON.DIST({0,1,2,3,4,5,6,7,8,9},$P10, TRUE),1), 0) -> 0 | CR10: =_xlfn.IFNA(MATCH(RAND(), _xlfn.POISSON.DIST({0,1,2,3,4,5,6,7,8,9},$P10, TRUE),1), 0) -> 1 | CS10: =_xlfn.IFNA(MATCH(RAND(), _xlfn.POISSON.DIST({0,1,2,3,4,5,6,7,8,9},$P10, TRUE),1), 0) -> 1 | CT10: =_xlfn.IFNA(MATCH(RAND(), _xlfn.POISSON.DIST({0,1,2,3,4,5,6,7,8,9},$P10, TRUE),1), 0) -> 2 | CU10: =_xlfn.IFNA(MATCH(RAND(), _xlfn.POISSON.DIST({0,1,2,3,4,5,6,7,8,9},$P10, TRUE),1), 0) -> 0 | CV10: =_xlfn.IFNA(MATCH(RAND(), _xlfn.POISSON.DIST({0,1,2,3,4,5,6,7,8,9},$P10, TRUE),1), 0) -> 3 | CW10: =_xlfn.IFNA(MATCH(RAND(), _xlfn.POISSON.DIST({0,1,2,3,4,5,6,7,8,9},$P10, TRUE),1), 0) -> 2 | CX10: =_xlfn.IFNA(MATCH(RAND(), _xlfn.POISSON.DIST({0,1,2,3,4,5,6,7,8,9},$P10, TRUE),1), 0) -> 2 | CY10: =_xlfn.IFNA(MATCH(RAND(), _xlfn.POISSON.DIST({0,1,2,3,4,5,6,7,8,9},$P10, TRUE),1), 0) -> 0 | CZ10: =_xlfn.IFNA(MATCH(RAND(), _xlfn.POISSON.DIST({0,1,2,3,4,5,6,7,8,9},$P10, TRUE),1), 0) -> 2 | DA10: =_xlfn.IFNA(MATCH(RAND(), _xlfn.POISSON.DIST({0,1,2,3,4,5,6,7,8,9},$P10, TRUE),1), 0) -> 4 | DB10: =_xlfn.IFNA(MATCH(RAND(), _xlfn.POISSON.DIST({0,1,2,3,4,5,6,7,8,9},$P10, TRUE),1), 0) -> 2 | DC10: =_xlfn.IFNA(MATCH(RAND(), _xlfn.POISSON.DIST({0,1,2,3,4,5,6,7,8,9},$P10, TRUE),1), 0) -> 2 | DD10: =_xlfn.IFNA(MATCH(RAND(), _xlfn.POISSON.DIST({0,1,2,3,4,5,6,7,8,9},$P10, TRUE),1), 0) -> 4 | DE10: =_xlfn.IFNA(MATCH(RAND(), _xlfn.POISSON.DIST({0,1,2,3,4,5,6,7,8,9},$P10, TRUE),1), 0) -> 1 | DF10: =_xlfn.IFNA(MATCH(RAND(), _xlfn.POISSON.DIST({0,1,2,3,4,5,6,7,8,9},$P10, TRUE),1), 0) -> 0 | DG10: =_xlfn.IFNA(MATCH(RAND(), _xlfn.POISSON.DIST({0,1,2,3,4,5,6,7,8,9},$P10, TRUE),1), 0) -> 0 | DH10: =_xlfn.IFNA(MATCH(RAND(), _xlfn.POISSON.DIST({0,1,2,3,4,5,6,7,8,9},$P10, TRUE),1), 0) -> 1 | DI10: =_xlfn.IFNA(MATCH(RAND(), _xlfn.POISSON.DIST({0,1,2,3,4,5,6,7,8,9},$P10, TRUE),1), 0) -> 1 | DJ10: =_xlfn.IFNA(MATCH(RAND(), _xlfn.POISSON.DIST({0,1,2,3,4,5,6,7,8,9},$P10, TRUE),1), 0) -> 1 | DK10: =_xlfn.IFNA(MATCH(RAND(), _xlfn.POISSON.DIST({0,1,2,3,4,5,6,7,8,9},$P10, TRUE),1), 0) -> 1 | DL10: =_xlfn.IFNA(MATCH(RAND(), _xlfn.POISSON.DIST({0,1,2,3,4,5,6,7,8,9},$P10, TRUE),1), 0) -> 0 | DM10: =_xlfn.IFNA(MATCH(RAND(), _xlfn.POISSON.DIST({0,1,2,3,4,5,6,7,8,9},$P10, TRUE),1), 0) -> 1
C11: 2019-06-09 | D11: C | E11: ブラジル | F11: =(AVERAGE(Q11:BN11))*(1+INDEX('グループ ステージの予想'!$C$4:$O$28, MATCH(今年の試合!E11,'グループ ステージの予想'!$D$4:$D$28,0),3)) -> 1.46 | G11: ジャマイカ | H11: =(AVERAGE(BP11:DM11))*(1+INDEX('グループ ステージの予想'!$C$4:$O$28, MATCH(今年の試合!G11,'グループ ステージの予想'!$D$4:$D$28,0),3)) -> 1.46 | I11: 組み合わせ | L11: 1.46 | M11: 1.46 | N11: 引き分け | O11: =(OFFSET('付録 3 - グループごとのゴール'!$C$13,(INDEX('付録 1 - チーム データ'!$C$13:$F$112,MATCH(G11,'付録 1 - チーム データ'!$C$13:$C$112,0),4)/10),(INDEX('付録 1 - チーム データ'!$C$13:$F$112,MATCH(E11,'付録 1 - チーム データ'!$C$13:$C$112,0),4)/10))) -> 1.50 | P11: =OFFSET('付録 3 - グループごとのゴール'!$C$13,(INDEX('付録 1 - チーム データ'!$C$13:$F$112, MATCH(E11,'付録 1 - チーム データ'!$C$13:$C$112,0),4)/10), (INDEX('付録 1 - チーム データ'!$C$13:$F$112, MATCH(G11, '付録 1 - チーム データ'!$C$13:$C$112,0),4)/10)) -> 1.50 | Q11: =_xlfn.IFNA(MATCH(RAND(), _xlfn.POISSON.DIST({0,1,2,3,4,5,6,7,8,9},$O11, TRUE),1), 0) -> 2 | R11: =_xlfn.IFNA(MATCH(RAND(), _xlfn.POISSON.DIST({0,1,2,3,4,5,6,7,8,9},$O11, TRUE),1), 0) -> 1 | S11: =_xlfn.IFNA(MATCH(RAND(), _xlfn.POISSON.DIST({0,1,2,3,4,5,6,7,8,9},$O11, TRUE),1), 0) -> 0 | T11: =_xlfn.IFNA(MATCH(RAND(), _xlfn.POISSON.DIST({0,1,2,3,4,5,6,7,8,9},$O11, TRUE),1), 0) -> 1 | U11: =_xlfn.IFNA(MATCH(RAND(), _xlfn.POISSON.DIST({0,1,2,3,4,5,6,7,8,9},$O11, TRUE),1), 0) -> 1 | V11: =_xlfn.IFNA(MATCH(RAND(), _xlfn.POISSON.DIST({0,1,2,3,4,5,6,7,8,9},$O11, TRUE),1), 0) -> 1 | W11: =_xlfn.IFNA(MATCH(RAND(), _xlfn.POISSON.DIST({0,1,2,3,4,5,6,7,8,9},$O11, TRUE),1), 0) -> 0 | X11: =_xlfn.IFNA(MATCH(RAND(), _xlfn.POISSON.DIST({0,1,2,3,4,5,6,7,8,9},$O11, TRUE),1), 0) -> 1 | Y11: =_xlfn.IFNA(MATCH(RAND(), _xlfn.POISSON.DIST({0,1,2,3,4,5,6,7,8,9},$O11, TRUE),1), 0) -> 7 | Z11: =_xlfn.IFNA(MATCH(RAND(), _xlfn.POISSON.DIST({0,1,2,3,4,5,6,7,8,9},$O11, TRUE),1), 0) -> 1 | AA11: =_xlfn.IFNA(MATCH(RAND(), _xlfn.POISSON.DIST({0,1,2,3,4,5,6,7,8,9},$O11, TRUE),1), 0) -> 1 | AB11: =_xlfn.IFNA(MATCH(RAND(), _xlfn.POISSON.DIST({0,1,2,3,4,5,6,7,8,9},$O11, TRUE),1), 0) -> 1 | AC11: =_xlfn.IFNA(MATCH(RAND(), _xlfn.POISSON.DIST({0,1,2,3,4,5,6,7,8,9},$O11, TRUE),1), 0) -> 1 | AD11: =_xlfn.IFNA(MATCH(RAND(), _xlfn.POISSON.DIST({0,1,2,3,4,5,6,7,8,9},$O11, TRUE),1), 0) -> 0 | AE11: =_xlfn.IFNA(MATCH(RAND(), _xlfn.POISSON.DIST({0,1,2,3,4,5,6,7,8,9},$O11, TRUE),1), 0) -> 1 | AF11: =_xlfn.IFNA(MATCH(RAND(), _xlfn.POISSON.DIST({0,1,2,3,4,5,6,7,8,9},$O11, TRUE),1), 0) -> 2 | AG11: =_xlfn.IFNA(MATCH(RAND(), _xlfn.POISSON.DIST({0,1,2,3,4,5,6,7,8,9},$O11, TRUE),1), 0) -> 1 | AH11: =_xlfn.IFNA(MATCH(RAND(), _xlfn.POISSON.DIST({0,1,2,3,4,5,6,7,8,9},$O11, TRUE),1), 0) -> 3 | AI11: =_xlfn.IFNA(MATCH(RAND(), _xlfn.POISSON.DIST({0,1,2,3,4,5,6,7,8,9},$O11, TRUE),1), 0) -> 1 | AJ11: =_xlfn.IFNA(MATCH(RAND(), _xlfn.POISSON.DIST({0,1,2,3,4,5,6,7,8,9},$O11, TRUE),1), 0) -> 2 | AK11: =_xlfn.IFNA(MATCH(RAND(), _xlfn.POISSON.DIST({0,1,2,3,4,5,6,7,8,9},$O11, TRUE),1), 0) -> 0 | AL11: =_xlfn.IFNA(MATCH(RAND(), _xlfn.POISSON.DIST({0,1,2,3,4,5,6,7,8,9},$O11, TRUE),1), 0) -> 1 | AM11: =_xlfn.IFNA(MATCH(RAND(), _xlfn.POISSON.DIST({0,1,2,3,4,5,6,7,8,9},$O11, TRUE),1), 0) -> 0 | AN11: =_xlfn.IFNA(MATCH(RAND(), _xlfn.POISSON.DIST({0,1,2,3,4,5,6,7,8,9},$O11, TRUE),1), 0) -> 4 | AO11: =_xlfn.IFNA(MATCH(RAND(), _xlfn.POISSON.DIST({0,1,2,3,4,5,6,7,8,9},$O11, TRUE),1), 0) -> 0 | AP11: =_xlfn.IFNA(MATCH(RAND(), _xlfn.POISSON.DIST({0,1,2,3,4,5,6,7,8,9},$O11, TRUE),1), 0) -> 1 | AQ11: =_xlfn.IFNA(MATCH(RAND(), _xlfn.POISSON.DIST({0,1,2,3,4,5,6,7,8,9},$O11, TRUE),1), 0) -> 2 | AR11: =_xlfn.IFNA(MATCH(RAND(), _xlfn.POISSON.DIST({0,1,2,3,4,5,6,7,8,9},$O11, TRUE),1), 0) -> 0 | AS11: =_xlfn.IFNA(MATCH(RAND(), _xlfn.POISSON.DIST({0,1,2,3,4,5,6,7,8,9},$O11, TRUE),1), 0) -> 2 | AT11: =_xlfn.IFNA(MATCH(RAND(), _xlfn.POISSON.DIST({0,1,2,3,4,5,6,7,8,9},$O11, TRUE),1), 0) -> 2 | AU11: =_xlfn.IFNA(MATCH(RAND(), _xlfn.POISSON.DIST({0,1,2,3,4,5,6,7,8,9},$O11, TRUE),1), 0) -> 3 | AV11: =_xlfn.IFNA(MATCH(RAND(), _xlfn.POISSON.DIST({0,1,2,3,4,5,6,7,8,9},$O11, TRUE),1), 0) -> 5 | AW11: =_xlfn.IFNA(MATCH(RAND(), _xlfn.POISSON.DIST({0,1,2,3,4,5,6,7,8,9},$O11, TRUE),1), 0) -> 0 | AX11: =_xlfn.IFNA(MATCH(RAND(), _xlfn.POISSON.DIST({0,1,2,3,4,5,6,7,8,9},$O11, TRUE),1), 0) -> 2 | AY11: =_xlfn.IFNA(MATCH(RAND(), _xlfn.POISSON.DIST({0,1,2,3,4,5,6,7,8,9},$O11, TRUE),1), 0) -> 2 | AZ11: =_xlfn.IFNA(MATCH(RAND(), _xlfn.POISSON.DIST({0,1,2,3,4,5,6,7,8,9},$O11, TRUE),1), 0) -> 6 | BA11: =_xlfn.IFNA(MATCH(RAND(), _xlfn.POISSON.DIST({0,1,2,3,4,5,6,7,8,9},$O11, TRUE),1), 0) -> 2 | BB11: =_xlfn.IFNA(MATCH(RAND(), _xlfn.POISSON.DIST({0,1,2,3,4,5,6,7,8,9},$O11, TRUE),1), 0) -> 1 | BC11: =_xlfn.IFNA(MATCH(RAND(), _xlfn.POISSON.DIST({0,1,2,3,4,5,6,7,8,9},$O11, TRUE),1), 0) -> 4 | BD11: =_xlfn.IFNA(MATCH(RAND(), _xlfn.POISSON.DIST({0,1,2,3,4,5,6,7,8,9},$O11, TRUE),1), 0) -> 0 | BE11: =_xlfn.IFNA(MATCH(RAND(), _xlfn.POISSON.DIST({0,1,2,3,4,5,6,7,8,9},$O11, TRUE),1), 0) -> 1 | BF11: =_xlfn.IFNA(MATCH(RAND(), _xlfn.POISSON.DIST({0,1,2,3,4,5,6,7,8,9},$O11, TRUE),1), 0) -> 0 | BG11: =_xlfn.IFNA(MATCH(RAND(), _xlfn.POISSON.DIST({0,1,2,3,4,5,6,7,8,9},$O11, TRUE),1), 0) -> 1 | BH11: =_xlfn.IFNA(MATCH(RAND(), _xlfn.POISSON.DIST({0,1,2,3,4,5,6,7,8,9},$O11, TRUE),1), 0) -> 0 | BI11: =_xlfn.IFNA(MATCH(RAND(), _xlfn.POISSON.DIST({0,1,2,3,4,5,6,7,8,9},$O11, TRUE),1), 0) -> 2 | BJ11: =_xlfn.IFNA(MATCH(RAND(), _xlfn.POISSON.DIST({0,1,2,3,4,5,6,7,8,9},$O11, TRUE),1), 0) -> 2 | BK11: =_xlfn.IFNA(MATCH(RAND(), _xlfn.POISSON.DIST({0,1,2,3,4,5,6,7,8,9},$O11, TRUE),1), 0) -> 0 | BL11: =_xlfn.IFNA(MATCH(RAND(), _xlfn.POISSON.DIST({0,1,2,3,4,5,6,7,8,9},$O11, TRUE),1), 0) -> 2 | BM11: =_xlfn.IFNA(MATCH(RAND(), _xlfn.POISSON.DIST({0,1,2,3,4,5,6,7,8,9},$O11, TRUE),1), 0) -> 0 | BN11: =_xlfn.IFNA(MATCH(RAND(), _xlfn.POISSON.DIST({0,1,2,3,4,5,6,7,8,9},$O11, TRUE),1), 0) -> 0 | BP11: =_xlfn.IFNA(MATCH(RAND(), _xlfn.POISSON.DIST({0,1,2,3,4,5,6,7,8,9},$P11, TRUE),1), 0) -> 3 | BQ11: =_xlfn.IFNA(MATCH(RAND(), _xlfn.POISSON.DIST({0,1,2,3,4,5,6,7,8,9},$P11, TRUE),1), 0) -> 1 | BR11: =_xlfn.IFNA(MATCH(RAND(), _xlfn.POISSON.DIST({0,1,2,3,4,5,6,7,8,9},$P11, TRUE),1), 0) -> 2 | BS11: =_xlfn.IFNA(MATCH(RAND(), _xlfn.POISSON.DIST({0,1,2,3,4,5,6,7,8,9},$P11, TRUE),1), 0) -> 2 | BT11: =_xlfn.IFNA(MATCH(RAND(), _xlfn.POISSON.DIST({0,1,2,3,4,5,6,7,8,9},$P11, TRUE),1), 0) -> 1 | BU11: =_xlfn.IFNA(MATCH(RAND(), _xlfn.POISSON.DIST({0,1,2,3,4,5,6,7,8,9},$P11, TRUE),1), 0) -> 0 | BV11: =_xlfn.IFNA(MATCH(RAND(), _xlfn.POISSON.DIST({0,1,2,3,4,5,6,7,8,9},$P11, TRUE),1), 0) -> 0 | BW11: =_xlfn.IFNA(MATCH(RAND(), _xlfn.POISSON.DIST({0,1,2,3,4,5,6,7,8,9},$P11, TRUE),1), 0) -> 1 | BX11: =_xlfn.IFNA(MATCH(RAND(), _xlfn.POISSON.DIST({0,1,2,3,4,5,6,7,8,9},$P11, TRUE),1), 0) -> 5 | BY11: =_xlfn.IFNA(MATCH(RAND(), _xlfn.POISSON.DIST({0,1,2,3,4,5,6,7,8,9},$P11, TRUE),1), 0) -> 1 | BZ11: =_xlfn.IFNA(MATCH(RAND(), _xlfn.POISSON.DIST({0,1,2,3,4,5,6,7,8,9},$P11, TRUE),1), 0) -> 1 | CA11: =_xlfn.IFNA(MATCH(RAND(), _xlfn.POISSON.DIST({0,1,2,3,4,5,6,7,8,9},$P11, TRUE),1), 0) -> 3 | CB11: =_xlfn.IFNA(MATCH(RAND(), _xlfn.POISSON.DIST({0,1,2,3,4,5,6,7,8,9},$P11, TRUE),1), 0) -> 0 | CC11: =_xlfn.IFNA(MATCH(RAND(), _xlfn.POISSON.DIST({0,1,2,3,4,5,6,7,8,9},$P11, TRUE),1), 0) -> 1 | CD11: =_xlfn.IFNA(MATCH(RAND(), _xlfn.POISSON.DIST({0,1,2,3,4,5,6,7,8,9},$P11, TRUE),1), 0) -> 1 | CE11: =_xlfn.IFNA(MATCH(RAND(), _xlfn.POISSON.DIST({0,1,2,3,4,5,6,7,8,9},$P11, TRUE),1), 0) -> 3 | CF11: =_xlfn.IFNA(MATCH(RAND(), _xlfn.POISSON.DIST({0,1,2,3,4,5,6,7,8,9},$P11, TRUE),1), 0) -> 1 | CG11: =_xlfn.IFNA(MATCH(RAND(), _xlfn.POISSON.DIST({0,1,2,3,4,5,6,7,8,9},$P11, TRUE),1), 0) -> 2 | CH11: =_xlfn.IFNA(MATCH(RAND(), _xlfn.POISSON.DIST({0,1,2,3,4,5,6,7,8,9},$P11, TRUE),1), 0) -> 3 | CI11: =_xlfn.IFNA(MATCH(RAND(), _xlfn.POISSON.DIST({0,1,2,3,4,5,6,7,8,9},$P11, TRUE),1), 0) -> 2 | CJ11: =_xlfn.IFNA(MATCH(RAND(), _xlfn.POISSON.DIST({0,1,2,3,4,5,6,7,8,9},$P11, TRUE),1), 0) -> 2 | CK11: =_xlfn.IFNA(MATCH(RAND(), _xlfn.POISSON.DIST({0,1,2,3,4,5,6,7,8,9},$P11, TRUE),1), 0) -> 1 | CL11: =_xlfn.IFNA(MATCH(RAND(), _xlfn.POISSON.DIST({0,1,2,3,4,5,6,7,8,9},$P11, TRUE),1), 0) -> 1 | CM11: =_xlfn.IFNA(MATCH(RAND(), _xlfn.POISSON.DIST({0,1,2,3,4,5,6,7,8,9},$P11, TRUE),1), 0) -> 2 | CN11: =_xlfn.IFNA(MATCH(RAND(), _xlfn.POISSON.DIST({0,1,2,3,4,5,6,7,8,9},$P11, TRUE),1), 0) -> 1 | CO11: =_xlfn.IFNA(MATCH(RAND(), _xlfn.POISSON.DIST({0,1,2,3,4,5,6,7,8,9},$P11, TRUE),1), 0) -> 1 | CP11: =_xlfn.IFNA(MATCH(RAND(), _xlfn.POISSON.DIST({0,1,2,3,4,5,6,7,8,9},$P11, TRUE),1), 0) -> 2 | CQ11: =_xlfn.IFNA(MATCH(RAND(), _xlfn.POISSON.DIST({0,1,2,3,4,5,6,7,8,9},$P11, TRUE),1), 0) -> 1 | CR11: =_xlfn.IFNA(MATCH(RAND(), _xlfn.POISSON.DIST({0,1,2,3,4,5,6,7,8,9},$P11, TRUE),1), 0) -> 1 | CS11: =_xlfn.IFNA(MATCH(RAND(), _xlfn.POISSON.DIST({0,1,2,3,4,5,6,7,8,9},$P11, TRUE),1), 0) -> 5 | CT11: =_xlfn.IFNA(MATCH(RAND(), _xlfn.POISSON.DIST({0,1,2,3,4,5,6,7,8,9},$P11, TRUE),1), 0) -> 3 | CU11: =_xlfn.IFNA(MATCH(RAND(), _xlfn.POISSON.DIST({0,1,2,3,4,5,6,7,8,9},$P11, TRUE),1), 0) -> 3 | CV11: =_xlfn.IFNA(MATCH(RAND(), _xlfn.POISSON.DIST({0,1,2,3,4,5,6,7,8,9},$P11, TRUE),1), 0) -> 2 | CW11: =_xlfn.IFNA(MATCH(RAND(), _xlfn.POISSON.DIST({0,1,2,3,4,5,6,7,8,9},$P11, TRUE),1), 0) -> 0 | CX11: =_xlfn.IFNA(MATCH(RAND(), _xlfn.POISSON.DIST({0,1,2,3,4,5,6,7,8,9},$P11, TRUE),1), 0) -> 0 | CY11: =_xlfn.IFNA(MATCH(RAND(), _xlfn.POISSON.DIST({0,1,2,3,4,5,6,7,8,9},$P11, TRUE),1), 0) -> 0 | CZ11: =_xlfn.IFNA(MATCH(RAND(), _xlfn.POISSON.DIST({0,1,2,3,4,5,6,7,8,9},$P11, TRUE),1), 0) -> 1 | DA11: =_xlfn.IFNA(MATCH(RAND(), _xlfn.POISSON.DIST({0,1,2,3,4,5,6,7,8,9},$P11, TRUE),1), 0) -> 0 | DB11: =_xlfn.IFNA(MATCH(RAND(), _xlfn.POISSON.DIST({0,1,2,3,4,5,6,7,8,9},$P11, TRUE),1), 0) -> 0 | DC11: =_xlfn.IFNA(MATCH(RAND(), _xlfn.POISSON.DIST({0,1,2,3,4,5,6,7,8,9},$P11, TRUE),1), 0) -> 4 | DD11: =_xlfn.IFNA(MATCH(RAND(), _xlfn.POISSON.DIST({0,1,2,3,4,5,6,7,8,9},$P11, TRUE),1), 0) -> 1 | DE11: =_xlfn.IFNA(MATCH(RAND(), _xlfn.POISSON.DIST({0,1,2,3,4,5,6,7,8,9},$P11, TRUE),1), 0) -> 0 | DF11: =_xlfn.IFNA(MATCH(RAND(), _xlfn.POISSON.DIST({0,1,2,3,4,5,6,7,8,9},$P11, TRUE),1), 0) -> 1 | DG11: =_xlfn.IFNA(MATCH(RAND(), _xlfn.POISSON.DIST({0,1,2,3,4,5,6,7,8,9},$P11, TRUE),1), 0) -> 1 | DH11: =_xlfn.IFNA(MATCH(RAND(), _xlfn.POISSON.DIST({0,1,2,3,4,5,6,7,8,9},$P11, TRUE),1), 0) -> 2 | DI11: =_xlfn.IFNA(MATCH(RAND(), _xlfn.POISSON.DIST({0,1,2,3,4,5,6,7,8,9},$P11, TRUE),1), 0) -> 1 | DJ11: =_xlfn.IFNA(MATCH(RAND(), _xlfn.POISSON.DIST({0,1,2,3,4,5,6,7,8,9},$P11, TRUE),1), 0) -> 1 | DK11: =_xlfn.IFNA(MATCH(RAND(), _xlfn.POISSON.DIST({0,1,2,3,4,5,6,7,8,9},$P11, TRUE),1), 0) -> 1 | DL11: =_xlfn.IFNA(MATCH(RAND(), _xlfn.POISSON.DIST({0,1,2,3,4,5,6,7,8,9},$P11, TRUE),1), 0) -> 0 | DM11: =_xlfn.IFNA(MATCH(RAND(), _xlfn.POISSON.DIST({0,1,2,3,4,5,6,7,8,9},$P11, TRUE),1), 0) -> 2
C12: 2019-06-09 | D12: D | E12: イングランド | F12: =(AVERAGE(Q12:BN12))*(1+INDEX('グループ ステージの予想'!$C$4:$O$28, MATCH(今年の試合!E12,'グループ ステージの予想'!$D$4:$D$28,0),3)) -> 1.78 | G12: スコットランド | H12: =(AVERAGE(BP12:DM12))*(1+INDEX('グループ ステージの予想'!$C$4:$O$28, MATCH(今年の試合!G12,'グループ ステージの予想'!$D$4:$D$28,0),3)) -> 1.44 | I12: イングランド | L12: 1.78 | M12: 1.44 | N12: イングランド | O12: =(OFFSET('付録 3 - グループごとのゴール'!$C$13,(INDEX('付録 1 - チーム データ'!$C$13:$F$112,MATCH(G12,'付録 1 - チーム データ'!$C$13:$C$112,0),4)/10),(INDEX('付録 1 - チーム データ'!$C$13:$F$112,MATCH(E12,'付録 1 - チーム データ'!$C$13:$C$112,0),4)/10))) -> 1.50 | P12: =OFFSET('付録 3 - グループごとのゴール'!$C$13,(INDEX('付録 1 - チーム データ'!$C$13:$F$112, MATCH(E12,'付録 1 - チーム データ'!$C$13:$C$112,0),4)/10), (INDEX('付録 1 - チーム データ'!$C$13:$F$112, MATCH(G12, '付録 1 - チーム データ'!$C$13:$C$112,0),4)/10)) -> 1.50 | Q12: =_xlfn.IFNA(MATCH(RAND(), _xlfn.POISSON.DIST({0,1,2,3,4,5,6,7,8,9},$O12, TRUE),1), 0) -> 0 | R12: =_xlfn.IFNA(MATCH(RAND(), _xlfn.POISSON.DIST({0,1,2,3,4,5,6,7,8,9},$O12, TRUE),1), 0) -> 2 | S12: =_xlfn.IFNA(MATCH(RAND(), _xlfn.POISSON.DIST({0,1,2,3,4,5,6,7,8,9},$O12, TRUE),1), 0) -> 3 | T12: =_xlfn.IFNA(MATCH(RAND(), _xlfn.POISSON.DIST({0,1,2,3,4,5,6,7,8,9},$O12, TRUE),1), 0) -> 4 | U12: =_xlfn.IFNA(MATCH(RAND(), _xlfn.POISSON.DIST({0,1,2,3,4,5,6,7,8,9},$O12, TRUE),1), 0) -> 1 | V12: =_xlfn.IFNA(MATCH(RAND(), _xlfn.POISSON.DIST({0,1,2,3,4,5,6,7,8,9},$O12, TRUE),1), 0) -> 1 | W12: =_xlfn.IFNA(MATCH(RAND(), _xlfn.POISSON.DIST({0,1,2,3,4,5,6,7,8,9},$O12, TRUE),1), 0) -> 0 | X12: =_xlfn.IFNA(MATCH(RAND(), _xlfn.POISSON.DIST({0,1,2,3,4,5,6,7,8,9},$O12, TRUE),1), 0) -> 2 | Y12: =_xlfn.IFNA(MATCH(RAND(), _xlfn.POISSON.DIST({0,1,2,3,4,5,6,7,8,9},$O12, TRUE),1), 0) -> 1 | Z12: =_xlfn.IFNA(MATCH(RAND(), _xlfn.POISSON.DIST({0,1,2,3,4,5,6,7,8,9},$O12, TRUE),1), 0) -> 2 | AA12: =_xlfn.IFNA(MATCH(RAND(), _xlfn.POISSON.DIST({0,1,2,3,4,5,6,7,8,9},$O12, TRUE),1), 0) -> 2 | AB12: =_xlfn.IFNA(MATCH(RAND(), _xlfn.POISSON.DIST({0,1,2,3,4,5,6,7,8,9},$O12, TRUE),1), 0) -> 1 | AC12: =_xlfn.IFNA(MATCH(RAND(), _xlfn.POISSON.DIST({0,1,2,3,4,5,6,7,8,9},$O12, TRUE),1), 0) -> 3 | AD12: =_xlfn.IFNA(MATCH(RAND(), _xlfn.POISSON.DIST({0,1,2,3,4,5,6,7,8,9},$O12, TRUE),1), 0) -> 1 | AE12: =_xlfn.IFNA(MATCH(RAND(), _xlfn.POISSON.DIST({0,1,2,3,4,5,6,7,8,9},$O12, TRUE),1), 0) -> 2 | AF12: =_xlfn.IFNA(MATCH(RAND(), _xlfn.POISSON.DIST({0,1,2,3,4,5,6,7,8,9},$O12, TRUE),1), 0) -> 3 | AG12: =_xlfn.IFNA(MATCH(RAND(), _xlfn.POISSON.DIST({0,1,2,3,4,5,6,7,8,9},$O12, TRUE),1), 0) -> 3 | AH12: =_xlfn.IFNA(MATCH(RAND(), _xlfn.POISSON.DIST({0,1,2,3,4,5,6,7,8,9},$O12, TRUE),1), 0) -> 2 | AI12: =_xlfn.IFNA(MATCH(RAND(), _xlfn.POISSON.DIST({0,1,2,3,4,5,6,7,8,9},$O12, TRUE),1), 0) -> 1 | AJ12: =_xlfn.IFNA(MATCH(RAND(), _xlfn.POISSON.DIST({0,1,2,3,4,5,6,7,8,9},$O12, TRUE),1), 0) -> 2 | AK12: =_xlfn.IFNA(MATCH(RAND(), _xlfn.POISSON.DIST({0,1,2,3,4,5,6,7,8,9},$O12, TRUE),1), 0) -> 2 | AL12: =_xlfn.IFNA(MATCH(RAND(), _xlfn.POISSON.DIST({0,1,2,3,4,5,6,7,8,9},$O12, TRUE),1), 0) -> 0 | AM12: =_xlfn.IFNA(MATCH(RAND(), _xlfn.POISSON.DIST({0,1,2,3,4,5,6,7,8,9},$O12, TRUE),1), 0) -> 2 | AN12: =_xlfn.IFNA(MATCH(RAND(), _xlfn.POISSON.DIST({0,1,2,3,4,5,6,7,8,9},$O12, TRUE),1), 0) -> 1 | AO12: =_xlfn.IFNA(MATCH(RAND(), _xlfn.POISSON.DIST({0,1,2,3,4,5,6,7,8,9},$O12, TRUE),1), 0) -> 1 | AP12: =_xlfn.IFNA(MATCH(RAND(), _xlfn.POISSON.DIST({0,1,2,3,4,5,6,7,8,9},$O12, TRUE),1), 0) -> 3 | AQ12: =_xlfn.IFNA(MATCH(RAND(), _xlfn.POISSON.DIST({0,1,2,3,4,5,6,7,8,9},$O12, TRUE),1), 0) -> 1 | AR12: =_xlfn.IFNA(MATCH(RAND(), _xlfn.POISSON.DIST({0,1,2,3,4,5,6,7,8,9},$O12, TRUE),1), 0) -> 3 | AS12: =_xlfn.IFNA(MATCH(RAND(), _xlfn.POISSON.DIST({0,1,2,3,4,5,6,7,8,9},$O12, TRUE),1), 0) -> 3 | AT12: =_xlfn.IFNA(MATCH(RAND(), _xlfn.POISSON.DIST({0,1,2,3,4,5,6,7,8,9},$O12, TRUE),1), 0) -> 1 | AU12: =_xlfn.IFNA(MATCH(RAND(), _xlfn.POISSON.DIST({0,1,2,3,4,5,6,7,8,9},$O12, TRUE),1), 0) -> 2 | AV12: =_xlfn.IFNA(MATCH(RAND(), _xlfn.POISSON.DIST({0,1,2,3,4,5,6,7,8,9},$O12, TRUE),1), 0) -> 0 | AW12: =_xlfn.IFNA(MATCH(RAND(), _xlfn.POISSON.DIST({0,1,2,3,4,5,6,7,8,9},$O12, TRUE),1), 0) -> 2 | AX12: =_xlfn.IFNA(MATCH(RAND(), _xlfn.POISSON.DIST({0,1,2,3,4,5,6,7,8,9},$O12, TRUE),1), 0) -> 5 | AY12: =_xlfn.IFNA(MATCH(RAND(), _xlfn.POISSON.DIST({0,1,2,3,4,5,6,7,8,9},$O12, TRUE),1), 0) -> 2 | AZ12: =_xlfn.IFNA(MATCH(RAND(), _xlfn.POISSON.DIST({0,1,2,3,4,5,6,7,8,9},$O12, TRUE),1), 0) -> 2 | BA12: =_xlfn.IFNA(MATCH(RAND(), _xlfn.POISSON.DIST({0,1,2,3,4,5,6,7,8,9},$O12, TRUE),1), 0) -> 0 | BB12: =_xlfn.IFNA(MATCH(RAND(), _xlfn.POISSON.DIST({0,1,2,3,4,5,6,7,8,9},$O12, TRUE),1), 0) -> 1 | BC12: =_xlfn.IFNA(MATCH(RAND(), _xlfn.POISSON.DIST({0,1,2,3,4,5,6,7,8,9},$O12, TRUE),1), 0) -> 2 | BD12: =_xlfn.IFNA(MATCH(RAND(), _xlfn.POISSON.DIST({0,1,2,3,4,5,6,7,8,9},$O12, TRUE),1), 0) -> 2 | BE12: =_xlfn.IFNA(MATCH(RAND(), _xlfn.POISSON.DIST({0,1,2,3,4,5,6,7,8,9},$O12, TRUE),1), 0) -> 2 | BF12: =_xlfn.IFNA(MATCH(RAND(), _xlfn.POISSON.DIST({0,1,2,3,4,5,6,7,8,9},$O12, TRUE),1), 0) -> 5 | BG12: =_xlfn.IFNA(MATCH(RAND(), _xlfn.POISSON.DIST({0,1,2,3,4,5,6,7,8,9},$O12, TRUE),1), 0) -> 0 | BH12: =_xlfn.IFNA(MATCH(RAND(), _xlfn.POISSON.DIST({0,1,2,3,4,5,6,7,8,9},$O12, TRUE),1), 0) -> 2 | BI12: =_xlfn.IFNA(MATCH(RAND(), _xlfn.POISSON.DIST({0,1,2,3,4,5,6,7,8,9},$O12, TRUE),1), 0) -> 0 | BJ12: =_xlfn.IFNA(MATCH(RAND(), _xlfn.POISSON.DIST({0,1,2,3,4,5,6,7,8,9},$O12, TRUE),1), 0) -> 2 | BK12: =_xlfn.IFNA(MATCH(RAND(), _xlfn.POISSON.DIST({0,1,2,3,4,5,6,7,8,9},$O12, TRUE),1), 0) -> 2 | BL12: =_xlfn.IFNA(MATCH(RAND(), _xlfn.POISSON.DIST({0,1,2,3,4,5,6,7,8,9},$O12, TRUE),1), 0) -> 2 | BM12: =_xlfn.IFNA(MATCH(RAND(), _xlfn.POISSON.DIST({0,1,2,3,4,5,6,7,8,9},$O12, TRUE),1), 0) -> 2 | BN12: =_xlfn.IFNA(MATCH(RAND(), _xlfn.POISSON.DIST({0,1,2,3,4,5,6,7,8,9},$O12, TRUE),1), 0) -> 1 | BP12: =_xlfn.IFNA(MATCH(RAND(), _xlfn.POISSON.DIST({0,1,2,3,4,5,6,7,8,9},$P12, TRUE),1), 0) -> 0 | BQ12: =_xlfn.IFNA(MATCH(RAND(), _xlfn.POISSON.DIST({0,1,2,3,4,5,6,7,8,9},$P12, TRUE),1), 0) -> 1 | BR12: =_xlfn.IFNA(MATCH(RAND(), _xlfn.POISSON.DIST({0,1,2,3,4,5,6,7,8,9},$P12, TRUE),1), 0) -> 3 | BS12: =_xlfn.IFNA(MATCH(RAND(), _xlfn.POISSON.DIST({0,1,2,3,4,5,6,7,8,9},$P12, TRUE),1), 0) -> 1 | BT12: =_xlfn.IFNA(MATCH(RAND(), _xlfn.POISSON.DIST({0,1,2,3,4,5,6,7,8,9},$P12, TRUE),1), 0) -> 2 | BU12: =_xlfn.IFNA(MATCH(RAND(), _xlfn.POISSON.DIST({0,1,2,3,4,5,6,7,8,9},$P12, TRUE),1), 0) -> 1 | BV12: =_xlfn.IFNA(MATCH(RAND(), _xlfn.POISSON.DIST({0,1,2,3,4,5,6,7,8,9},$P12, TRUE),1), 0) -> 1 | BW12: =_xlfn.IFNA(MATCH(RAND(), _xlfn.POISSON.DIST({0,1,2,3,4,5,6,7,8,9},$P12, TRUE),1), 0) -> 0 | BX12: =_xlfn.IFNA(MATCH(RAND(), _xlfn.POISSON.DIST({0,1,2,3,4,5,6,7,8,9},$P12, TRUE),1), 0) -> 3 | BY12: =_xlfn.IFNA(MATCH(RAND(), _xlfn.POISSON.DIST({0,1,2,3,4,5,6,7,8,9},$P12, TRUE),1), 0) -> 4 | BZ12: =_xlfn.IFNA(MATCH(RAND(), _xlfn.POISSON.DIST({0,1,2,3,4,5,6,7,8,9},$P12, TRUE),1), 0) -> 2 | CA12: =_xlfn.IFNA(MATCH(RAND(), _xlfn.POISSON.DIST({0,1,2,3,4,5,6,7,8,9},$P12, TRUE),1), 0) -> 2 | CB12: =_xlfn.IFNA(MATCH(RAND(), _xlfn.POISSON.DIST({0,1,2,3,4,5,6,7,8,9},$P12, TRUE),1), 0) -> 2 | CC12: =_xlfn.IFNA(MATCH(RAND(), _xlfn.POISSON.DIST({0,1,2,3,4,5,6,7,8,9},$P12, TRUE),1), 0) -> 1 | CD12: =_xlfn.IFNA(MATCH(RAND(), _xlfn.POISSON.DIST({0,1,2,3,4,5,6,7,8,9},$P12, TRUE),1), 0) -> 3 | CE12: =_xlfn.IFNA(MATCH(RAND(), _xlfn.POISSON.DIST({0,1,2,3,4,5,6,7,8,9},$P12, TRUE),1), 0) -> 5 | CF12: =_xlfn.IFNA(MATCH(RAND(), _xlfn.POISSON.DIST({0,1,2,3,4,5,6,7,8,9},$P12, TRUE),1), 0) -> 2 | CG12: =_xlfn.IFNA(MATCH(RAND(), _xlfn.POISSON.DIST({0,1,2,3,4,5,6,7,8,9},$P12, TRUE),1), 0) -> 0 | CH12: =_xlfn.IFNA(MATCH(RAND(), _xlfn.POISSON.DIST({0,1,2,3,4,5,6,7,8,9},$P12, TRUE),1), 0) -> 0 | CI12: =_xlfn.IFNA(MATCH(RAND(), _xlfn.POISSON.DIST({0,1,2,3,4,5,6,7,8,9},$P12, TRUE),1), 0) -> 1 | CJ12: =_xlfn.IFNA(MATCH(RAND(), _xlfn.POISSON.DIST({0,1,2,3,4,5,6,7,8,9},$P12, TRUE),1), 0) -> 2 | CK12: =_xlfn.IFNA(MATCH(RAND(), _xlfn.POISSON.DIST({0,1,2,3,4,5,6,7,8,9},$P12, TRUE),1), 0) -> 0 | CL12: =_xlfn.IFNA(MATCH(RAND(), _xlfn.POISSON.DIST({0,1,2,3,4,5,6,7,8,9},$P12, TRUE),1), 0) -> 2 | CM12: =_xlfn.IFNA(MATCH(RAND(), _xlfn.POISSON.DIST({0,1,2,3,4,5,6,7,8,9},$P12, TRUE),1), 0) -> 0 | CN12: =_xlfn.IFNA(MATCH(RAND(), _xlfn.POISSON.DIST({0,1,2,3,4,5,6,7,8,9},$P12, TRUE),1), 0) -> 2 | CO12: =_xlfn.IFNA(MATCH(RAND(), _xlfn.POISSON.DIST({0,1,2,3,4,5,6,7,8,9},$P12, TRUE),1), 0) -> 2 | CP12: =_xlfn.IFNA(MATCH(RAND(), _xlfn.POISSON.DIST({0,1,2,3,4,5,6,7,8,9},$P12, TRUE),1), 0) -> 0 | CQ12: =_xlfn.IFNA(MATCH(RAND(), _xlfn.POISSON.DIST({0,1,2,3,4,5,6,7,8,9},$P12, TRUE),1), 0) -> 1 | CR12: =_xlfn.IFNA(MATCH(RAND(), _xlfn.POISSON.DIST({0,1,2,3,4,5,6,7,8,9},$P12, TRUE),1), 0) -> 0 | CS12: =_xlfn.IFNA(MATCH(RAND(), _xlfn.POISSON.DIST({0,1,2,3,4,5,6,7,8,9},$P12, TRUE),1), 0) -> 0 | CT12: =_xlfn.IFNA(MATCH(RAND(), _xlfn.POISSON.DIST({0,1,2,3,4,5,6,7,8,9},$P12, TRUE),1), 0) -> 2 | CU12: =_xlfn.IFNA(MATCH(RAND(), _xlfn.POISSON.DIST({0,1,2,3,4,5,6,7,8,9},$P12, TRUE),1), 0) -> 1 | CV12: =_xlfn.IFNA(MATCH(RAND(), _xlfn.POISSON.DIST({0,1,2,3,4,5,6,7,8,9},$P12, TRUE),1), 0) -> 1 | CW12: =_xlfn.IFNA(MATCH(RAND(), _xlfn.POISSON.DIST({0,1,2,3,4,5,6,7,8,9},$P12, TRUE),1), 0) -> 3 | CX12: =_xlfn.IFNA(MATCH(RAND(), _xlfn.POISSON.DIST({0,1,2,3,4,5,6,7,8,9},$P12, TRUE),1), 0) -> 1 | CY12: =_xlfn.IFNA(MATCH(RAND(), _xlfn.POISSON.DIST({0,1,2,3,4,5,6,7,8,9},$P12, TRUE),1), 0) -> 1 | CZ12: =_xlfn.IFNA(MATCH(RAND(), _xlfn.POISSON.DIST({0,1,2,3,4,5,6,7,8,9},$P12, TRUE),1), 0) -> 2 | DA12: =_xlfn.IFNA(MATCH(RAND(), _xlfn.POISSON.DIST({0,1,2,3,4,5,6,7,8,9},$P12, TRUE),1), 0) -> 1 | DB12: =_xlfn.IFNA(MATCH(RAND(), _xlfn.POISSON.DIST({0,1,2,3,4,5,6,7,8,9},$P12, TRUE),1), 0) -> 5 | DC12: =_xlfn.IFNA(MATCH(RAND(), _xlfn.POISSON.DIST({0,1,2,3,4,5,6,7,8,9},$P12, TRUE),1), 0) -> 2 | DD12: =_xlfn.IFNA(MATCH(RAND(), _xlfn.POISSON.DIST({0,1,2,3,4,5,6,7,8,9},$P12, TRUE),1), 0) -> 1 | DE12: =_xlfn.IFNA(MATCH(RAND(), _xlfn.POISSON.DIST({0,1,2,3,4,5,6,7,8,9},$P12, TRUE),1), 0) -> 2 | DF12: =_xlfn.IFNA(MATCH(RAND(), _xlfn.POISSON.DIST({0,1,2,3,4,5,6,7,8,9},$P12, TRUE),1), 0) -> 2 | DG12: =_xlfn.IFNA(MATCH(RAND(), _xlfn.POISSON.DIST({0,1,2,3,4,5,6,7,8,9},$P12, TRUE),1), 0) -> 2 | DH12: =_xlfn.IFNA(MATCH(RAND(), _xlfn.POISSON.DIST({0,1,2,3,4,5,6,7,8,9},$P12, TRUE),1), 0) -> 0 | DI12: =_xlfn.IFNA(MATCH(RAND(), _xlfn.POISSON.DIST({0,1,2,3,4,5,6,7,8,9},$P12, TRUE),1), 0) -> 1 | DJ12: =_xlfn.IFNA(MATCH(RAND(), _xlfn.POISSON.DIST({0,1,2,3,4,5,6,7,8,9},$P12, TRUE),1), 0) -> 1 | DK12: =_xlfn.IFNA(MATCH(RAND(), _xlfn.POISSON.DIST({0,1,2,3,4,5,6,7,8,9},$P12, TRUE),1), 0) -> 0 | DL12: =_xlfn.IFNA(MATCH(RAND(), _xlfn.POISSON.DIST({0,1,2,3,4,5,6,7,8,9},$P12, TRUE),1), 0) -> 0 | DM12: =_xlfn.IFNA(MATCH(RAND(), _xlfn.POISSON.DIST({0,1,2,3,4,5,6,7,8,9},$P12, TRUE),1), 0) -> 1
C13: 2019-06-10 | D13: D | E13: アルゼンチン | F13: =(AVERAGE(Q13:BN13))*(1+INDEX('グループ ステージの予想'!$C$4:$O$28, MATCH(今年の試合!E13,'グループ ステージの予想'!$D$4:$D$28,0),3)) -> 0.46 | G13: 日本 | H13: =(AVERAGE(BP13:DM13))*(1+INDEX('グループ ステージの予想'!$C$4:$O$28, MATCH(今年の試合!G13,'グループ ステージの予想'!$D$4:$D$28,0),3)) -> 3.26 | I13: 日本 | L13: 0.46 | M13: 3.26 | N13: 日本 | O13: =(OFFSET('付録 3 - グループごとのゴール'!$C$13,(INDEX('付録 1 - チーム データ'!$C$13:$F$112,MATCH(G13,'付録 1 - チーム データ'!$C$13:$C$112,0),4)/10),(INDEX('付録 1 - チーム データ'!$C$13:$F$112,MATCH(E13,'付録 1 - チーム データ'!$C$13:$C$112,0),4)/10))) -> 0.38 | P13: =OFFSET('付録 3 - グループごとのゴール'!$C$13,(INDEX('付録 1 - チーム データ'!$C$13:$F$112, MATCH(E13,'付録 1 - チーム データ'!$C$13:$C$112,0),4)/10), (INDEX('付録 1 - チーム データ'!$C$13:$F$112, MATCH(G13, '付録 1 - チーム データ'!$C$13:$C$112,0),4)/10)) -> 2.94 | Q13: =_xlfn.IFNA(MATCH(RAND(), _xlfn.POISSON.DIST({0,1,2,3,4,5,6,7,8,9},$O13, TRUE),1), 0) -> 0 | R13: =_xlfn.IFNA(MATCH(RAND(), _xlfn.POISSON.DIST({0,1,2,3,4,5,6,7,8,9},$O13, TRUE),1), 0) -> 0 | S13: =_xlfn.IFNA(MATCH(RAND(), _xlfn.POISSON.DIST({0,1,2,3,4,5,6,7,8,9},$O13, TRUE),1), 0) -> 0 | T13: =_xlfn.IFNA(MATCH(RAND(), _xlfn.POISSON.DIST({0,1,2,3,4,5,6,7,8,9},$O13, TRUE),1), 0) -> 0 | U13: =_xlfn.IFNA(MATCH(RAND(), _xlfn.POISSON.DIST({0,1,2,3,4,5,6,7,8,9},$O13, TRUE),1), 0) -> 0 | V13: =_xlfn.IFNA(MATCH(RAND(), _xlfn.POISSON.DIST({0,1,2,3,4,5,6,7,8,9},$O13, TRUE),1), 0) -> 0 | W13: =_xlfn.IFNA(MATCH(RAND(), _xlfn.POISSON.DIST({0,1,2,3,4,5,6,7,8,9},$O13, TRUE),1), 0) -> 1 | X13: =_xlfn.IFNA(MATCH(RAND(), _xlfn.POISSON.DIST({0,1,2,3,4,5,6,7,8,9},$O13, TRUE),1), 0) -> 0 | Y13: =_xlfn.IFNA(MATCH(RAND(), _xlfn.POISSON.DIST({0,1,2,3,4,5,6,7,8,9},$O13, TRUE),1), 0) -> 0 | Z13: =_xlfn.IFNA(MATCH(RAND(), _xlfn.POISSON.DIST({0,1,2,3,4,5,6,7,8,9},$O13, TRUE),1), 0) -> 0 | AA13: =_xlfn.IFNA(MATCH(RAND(), _xlfn.POISSON.DIST({0,1,2,3,4,5,6,7,8,9},$O13, TRUE),1), 0) -> 0 | AB13: =_xlfn.IFNA(MATCH(RAND(), _xlfn.POISSON.DIST({0,1,2,3,4,5,6,7,8,9},$O13, TRUE),1), 0) -> 0 | AC13: =_xlfn.IFNA(MATCH(RAND(), _xlfn.POISSON.DIST({0,1,2,3,4,5,6,7,8,9},$O13, TRUE),1), 0) -> 0 | AD13: =_xlfn.IFNA(MATCH(RAND(), _xlfn.POISSON.DIST({0,1,2,3,4,5,6,7,8,9},$O13, TRUE),1), 0) -> 0 | AE13: =_xlfn.IFNA(MATCH(RAND(), _xlfn.POISSON.DIST({0,1,2,3,4,5,6,7,8,9},$O13, TRUE),1), 0) -> 0 | AF13: =_xlfn.IFNA(MATCH(RAND(), _xlfn.POISSON.DIST({0,1,2,3,4,5,6,7,8,9},$O13, TRUE),1), 0) -> 1 | AG13: =_xlfn.IFNA(MATCH(RAND(), _xlfn.POISSON.DIST({0,1,2,3,4,5,6,7,8,9},$O13, TRUE),1), 0) -> 1 | AH13: =_xlfn.IFNA(MATCH(RAND(), _xlfn.POISSON.DIST({0,1,2,3,4,5,6,7,8,9},$O13, TRUE),1), 0) -> 3 | AI13: =_xlfn.IFNA(MATCH(RAND(), _xlfn.POISSON.DIST({0,1,2,3,4,5,6,7,8,9},$O13, TRUE),1), 0) -> 0 | AJ13: =_xlfn.IFNA(MATCH(RAND(), _xlfn.POISSON.DIST({0,1,2,3,4,5,6,7,8,9},$O13, TRUE),1), 0) -> 1 | AK13: =_xlfn.IFNA(MATCH(RAND(), _xlfn.POISSON.DIST({0,1,2,3,4,5,6,7,8,9},$O13, TRUE),1), 0) -> 0 | AL13: =_xlfn.IFNA(MATCH(RAND(), _xlfn.POISSON.DIST({0,1,2,3,4,5,6,7,8,9},$O13, TRUE),1), 0) -> 1 | AM13: =_xlfn.IFNA(MATCH(RAND(), _xlfn.POISSON.DIST({0,1,2,3,4,5,6,7,8,9},$O13, TRUE),1), 0) -> 0 | AN13: =_xlfn.IFNA(MATCH(RAND(), _xlfn.POISSON.DIST({0,1,2,3,4,5,6,7,8,9},$O13, TRUE),1), 0) -> 0 | AO13: =_xlfn.IFNA(MATCH(RAND(), _xlfn.POISSON.DIST({0,1,2,3,4,5,6,7,8,9},$O13, TRUE),1), 0) -> 0 | AP13: =_xlfn.IFNA(MATCH(RAND(), _xlfn.POISSON.DIST({0,1,2,3,4,5,6,7,8,9},$O13, TRUE),1), 0) -> 0 | AQ13: =_xlfn.IFNA(MATCH(RAND(), _xlfn.POISSON.DIST({0,1,2,3,4,5,6,7,8,9},$O13, TRUE),1), 0) -> 1 | AR13: =_xlfn.IFNA(MATCH(RAND(), _xlfn.POISSON.DIST({0,1,2,3,4,5,6,7,8,9},$O13, TRUE),1), 0) -> 0 | AS13: =_xlfn.IFNA(MATCH(RAND(), _xlfn.POISSON.DIST({0,1,2,3,4,5,6,7,8,9},$O13, TRUE),1), 0) -> 0 | AT13: =_xlfn.IFNA(MATCH(RAND(), _xlfn.POISSON.DIST({0,1,2,3,4,5,6,7,8,9},$O13, TRUE),1), 0) -> 0 | AU13: =_xlfn.IFNA(MATCH(RAND(), _xlfn.POISSON.DIST({0,1,2,3,4,5,6,7,8,9},$O13, TRUE),1), 0) -> 0 | AV13: =_xlfn.IFNA(MATCH(RAND(), _xlfn.POISSON.DIST({0,1,2,3,4,5,6,7,8,9},$O13, TRUE),1), 0) -> 2 | AW13: =_xlfn.IFNA(MATCH(RAND(), _xlfn.POISSON.DIST({0,1,2,3,4,5,6,7,8,9},$O13, TRUE),1), 0) -> 2 | AX13: =_xlfn.IFNA(MATCH(RAND(), _xlfn.POISSON.DIST({0,1,2,3,4,5,6,7,8,9},$O13, TRUE),1), 0) -> 2 | AY13: =_xlfn.IFNA(MATCH(RAND(), _xlfn.POISSON.DIST({0,1,2,3,4,5,6,7,8,9},$O13, TRUE),1), 0) -> 0 | AZ13: =_xlfn.IFNA(MATCH(RAND(), _xlfn.POISSON.DIST({0,1,2,3,4,5,6,7,8,9},$O13, TRUE),1), 0) -> 2 | BA13: =_xlfn.IFNA(MATCH(RAND(), _xlfn.POISSON.DIST({0,1,2,3,4,5,6,7,8,9},$O13, TRUE),1), 0) -> 0 | BB13: =_xlfn.IFNA(MATCH(RAND(), _xlfn.POISSON.DIST({0,1,2,3,4,5,6,7,8,9},$O13, TRUE),1), 0) -> 0 | BC13: =_xlfn.IFNA(MATCH(RAND(), _xlfn.POISSON.DIST({0,1,2,3,4,5,6,7,8,9},$O13, TRUE),1), 0) -> 0 | BD13: =_xlfn.IFNA(MATCH(RAND(), _xlfn.POISSON.DIST({0,1,2,3,4,5,6,7,8,9},$O13, TRUE),1), 0) -> 1 | BE13: =_xlfn.IFNA(MATCH(RAND(), _xlfn.POISSON.DIST({0,1,2,3,4,5,6,7,8,9},$O13, TRUE),1), 0) -> 2 | BF13: =_xlfn.IFNA(MATCH(RAND(), _xlfn.POISSON.DIST({0,1,2,3,4,5,6,7,8,9},$O13, TRUE),1), 0) -> 0 | BG13: =_xlfn.IFNA(MATCH(RAND(), _xlfn.POISSON.DIST({0,1,2,3,4,5,6,7,8,9},$O13, TRUE),1), 0) -> 0 | BH13: =_xlfn.IFNA(MATCH(RAND(), _xlfn.POISSON.DIST({0,1,2,3,4,5,6,7,8,9},$O13, TRUE),1), 0) -> 1 | BI13: =_xlfn.IFNA(MATCH(RAND(), _xlfn.POISSON.DIST({0,1,2,3,4,5,6,7,8,9},$O13, TRUE),1), 0) -> 0 | BJ13: =_xlfn.IFNA(MATCH(RAND(), _xlfn.POISSON.DIST({0,1,2,3,4,5,6,7,8,9},$O13, TRUE),1), 0) -> 2 | BK13: =_xlfn.IFNA(MATCH(RAND(), _xlfn.POISSON.DIST({0,1,2,3,4,5,6,7,8,9},$O13, TRUE),1), 0) -> 0 | BL13: =_xlfn.IFNA(MATCH(RAND(), _xlfn.POISSON.DIST({0,1,2,3,4,5,6,7,8,9},$O13, TRUE),1), 0) -> 0 | BM13: =_xlfn.IFNA(MATCH(RAND(), _xlfn.POISSON.DIST({0,1,2,3,4,5,6,7,8,9},$O13, TRUE),1), 0) -> 0 | BN13: =_xlfn.IFNA(MATCH(RAND(), _xlfn.POISSON.DIST({0,1,2,3,4,5,6,7,8,9},$O13, TRUE),1), 0) -> 0 | BP13: =_xlfn.IFNA(MATCH(RAND(), _xlfn.POISSON.DIST({0,1,2,3,4,5,6,7,8,9},$P13, TRUE),1), 0) -> 6 | BQ13: =_xlfn.IFNA(MATCH(RAND(), _xlfn.POISSON.DIST({0,1,2,3,4,5,6,7,8,9},$P13, TRUE),1), 0) -> 4 | BR13: =_xlfn.IFNA(MATCH(RAND(), _xlfn.POISSON.DIST({0,1,2,3,4,5,6,7,8,9},$P13, TRUE),1), 0) -> 2 | BS13: =_xlfn.IFNA(MATCH(RAND(), _xlfn.POISSON.DIST({0,1,2,3,4,5,6,7,8,9},$P13, TRUE),1), 0) -> 7 | BT13: =_xlfn.IFNA(MATCH(RAND(), _xlfn.POISSON.DIST({0,1,2,3,4,5,6,7,8,9},$P13, TRUE),1), 0) -> 3 | BU13: =_xlfn.IFNA(MATCH(RAND(), _xlfn.POISSON.DIST({0,1,2,3,4,5,6,7,8,9},$P13, TRUE),1), 0) -> 1 | BV13: =_xlfn.IFNA(MATCH(RAND(), _xlfn.POISSON.DIST({0,1,2,3,4,5,6,7,8,9},$P13, TRUE),1), 0) -> 1 | BW13: =_xlfn.IFNA(MATCH(RAND(), _xlfn.POISSON.DIST({0,1,2,3,4,5,6,7,8,9},$P13, TRUE),1), 0) -> 1 | BX13: =_xlfn.IFNA(MATCH(RAND(), _xlfn.POISSON.DIST({0,1,2,3,4,5,6,7,8,9},$P13, TRUE),1), 0) -> 3 | BY13: =_xlfn.IFNA(MATCH(RAND(), _xlfn.POISSON.DIST({0,1,2,3,4,5,6,7,8,9},$P13, TRUE),1), 0) -> 1 | BZ13: =_xlfn.IFNA(MATCH(RAND(), _xlfn.POISSON.DIST({0,1,2,3,4,5,6,7,8,9},$P13, TRUE),1), 0) -> 4 | CA13: =_xlfn.IFNA(MATCH(RAND(), _xlfn.POISSON.DIST({0,1,2,3,4,5,6,7,8,9},$P13, TRUE),1), 0) -> 4 | CB13: =_xlfn.IFNA(MATCH(RAND(), _xlfn.POISSON.DIST({0,1,2,3,4,5,6,7,8,9},$P13, TRUE),1), 0) -> 7 | CC13: =_xlfn.IFNA(MATCH(RAND(), _xlfn.POISSON.DIST({0,1,2,3,4,5,6,7,8,9},$P13, TRUE),1), 0) -> 0 | CD13: =_xlfn.IFNA(MATCH(RAND(), _xlfn.POISSON.DIST({0,1,2,3,4,5,6,7,8,9},$P13, TRUE),1), 0) -> 4 | CE13: =_xlfn.IFNA(MATCH(RAND(), _xlfn.POISSON.DIST({0,1,2,3,4,5,6,7,8,9},$P13, TRUE),1), 0) -> 1 | CF13: =_xlfn.IFNA(MATCH(RAND(), _xlfn.POISSON.DIST({0,1,2,3,4,5,6,7,8,9},$P13, TRUE),1), 0) -> 6 | CG13: =_xlfn.IFNA(MATCH(RAND(), _xlfn.POISSON.DIST({0,1,2,3,4,5,6,7,8,9},$P13, TRUE),1), 0) -> 2 | CH13: =_xlfn.IFNA(MATCH(RAND(), _xlfn.POISSON.DIST({0,1,2,3,4,5,6,7,8,9},$P13, TRUE),1), 0) -> 4 | CI13: =_xlfn.IFNA(MATCH(RAND(), _xlfn.POISSON.DIST({0,1,2,3,4,5,6,7,8,9},$P13, TRUE),1), 0) -> 3 | CJ13: =_xlfn.IFNA(MATCH(RAND(), _xlfn.POISSON.DIST({0,1,2,3,4,5,6,7,8,9},$P13, TRUE),1), 0) -> 3 | CK13: =_xlfn.IFNA(MATCH(RAND(), _xlfn.POISSON.DIST({0,1,2,3,4,5,6,7,8,9},$P13, TRUE),1), 0) -> 6 | CL13: =_xlfn.IFNA(MATCH(RAND(), _xlfn.POISSON.DIST({0,1,2,3,4,5,6,7,8,9},$P13, TRUE),1), 0) -> 6 | CM13: =_xlfn.IFNA(MATCH(RAND(), _xlfn.POISSON.DIST({0,1,2,3,4,5,6,7,8,9},$P13, TRUE),1), 0) -> 4 | CN13: =_xlfn.IFNA(MATCH(RAND(), _xlfn.POISSON.DIST({0,1,2,3,4,5,6,7,8,9},$P13, TRUE),1), 0) -> 0 | CO13: =_xlfn.IFNA(MATCH(RAND(), _xlfn.POISSON.DIST({0,1,2,3,4,5,6,7,8,9},$P13, TRUE),1), 0) -> 2 | CP13: =_xlfn.IFNA(MATCH(RAND(), _xlfn.POISSON.DIST({0,1,2,3,4,5,6,7,8,9},$P13, TRUE),1), 0) -> 4 | CQ13: =_xlfn.IFNA(MATCH(RAND(), _xlfn.POISSON.DIST({0,1,2,3,4,5,6,7,8,9},$P13, TRUE),1), 0) -> 1 | CR13: =_xlfn.IFNA(MATCH(RAND(), _xlfn.POISSON.DIST({0,1,2,3,4,5,6,7,8,9},$P13, TRUE),1), 0) -> 4 | CS13: =_xlfn.IFNA(MATCH(RAND(), _xlfn.POISSON.DIST({0,1,2,3,4,5,6,7,8,9},$P13, TRUE),1), 0) -> 3 | CT13: =_xlfn.IFNA(MATCH(RAND(), _xlfn.POISSON.DIST({0,1,2,3,4,5,6,7,8,9},$P13, TRUE),1), 0) -> 6 | CU13: =_xlfn.IFNA(MATCH(RAND(), _xlfn.POISSON.DIST({0,1,2,3,4,5,6,7,8,9},$P13, TRUE),1), 0) -> 3 | CV13: =_xlfn.IFNA(MATCH(RAND(), _xlfn.POISSON.DIST({0,1,2,3,4,5,6,7,8,9},$P13, TRUE),1), 0) -> 1 | CW13: =_xlfn.IFNA(MATCH(RAND(), _xlfn.POISSON.DIST({0,1,2,3,4,5,6,7,8,9},$P13, TRUE),1), 0) -> 1 | CX13: =_xlfn.IFNA(MATCH(RAND(), _xlfn.POISSON.DIST({0,1,2,3,4,5,6,7,8,9},$P13, TRUE),1), 0) -> 2 | CY13: =_xlfn.IFNA(MATCH(RAND(), _xlfn.POISSON.DIST({0,1,2,3,4,5,6,7,8,9},$P13, TRUE),1), 0) -> 4 | CZ13: =_xlfn.IFNA(MATCH(RAND(), _xlfn.POISSON.DIST({0,1,2,3,4,5,6,7,8,9},$P13, TRUE),1), 0) -> 0 | DA13: =_xlfn.IFNA(MATCH(RAND(), _xlfn.POISSON.DIST({0,1,2,3,4,5,6,7,8,9},$P13, TRUE),1), 0) -> 6 | DB13: =_xlfn.IFNA(MATCH(RAND(), _xlfn.POISSON.DIST({0,1,2,3,4,5,6,7,8,9},$P13, TRUE),1), 0) -> 4 | DC13: =_xlfn.IFNA(MATCH(RAND(), _xlfn.POISSON.DIST({0,1,2,3,4,5,6,7,8,9},$P13, TRUE),1), 0) -> 3 | DD13: =_xlfn.IFNA(MATCH(RAND(), _xlfn.POISSON.DIST({0,1,2,3,4,5,6,7,8,9},$P13, TRUE),1), 0) -> 3 | DE13: =_xlfn.IFNA(MATCH(RAND(), _xlfn.POISSON.DIST({0,1,2,3,4,5,6,7,8,9},$P13, TRUE),1), 0) -> 5 | DF13: =_xlfn.IFNA(MATCH(RAND(), _xlfn.POISSON.DIST({0,1,2,3,4,5,6,7,8,9},$P13, TRUE),1), 0) -> 3 | DG13: =_xlfn.IFNA(MATCH(RAND(), _xlfn.POISSON.DIST({0,1,2,3,4,5,6,7,8,9},$P13, TRUE),1), 0) -> 5 | DH13: =_xlfn.IFNA(MATCH(RAND(), _xlfn.POISSON.DIST({0,1,2,3,4,5,6,7,8,9},$P13, TRUE),1), 0) -> 2 | DI13: =_xlfn.IFNA(MATCH(RAND(), _xlfn.POISSON.DIST({0,1,2,3,4,5,6,7,8,9},$P13, TRUE),1), 0) -> 1 | DJ13: =_xlfn.IFNA(MATCH(RAND(), _xlfn.POISSON.DIST({0,1,2,3,4,5,6,7,8,9},$P13, TRUE),1), 0) -> 4 | DK13: =_xlfn.IFNA(MATCH(RAND(), _xlfn.POISSON.DIST({0,1,2,3,4,5,6,7,8,9},$P13, TRUE),1), 0) -> 5 | DL13: =_xlfn.IFNA(MATCH(RAND(), _xlfn.POISSON.DIST({0,1,2,3,4,5,6,7,8,9},$P13, TRUE),1), 0) -> 2 | DM13: =_xlfn.IFNA(MATCH(RAND(), _xlfn.POISSON.DIST({0,1,2,3,4,5,6,7,8,9},$P13, TRUE),1), 0) -> 6
C14: 2019-06-10 | D14: E | E14: カナダ | F14: =(AVERAGE(Q14:BN14))*(1+INDEX('グループ ステージの予想'!$C$4:$O$28, MATCH(今年の試合!E14,'グループ ステージの予想'!$D$4:$D$28,0),3)) -> 1.64 | G14: カメルーン | H14: =(AVERAGE(BP14:DM14))*(1+INDEX('グループ ステージの予想'!$C$4:$O$28, MATCH(今年の試合!G14,'グループ ステージの予想'!$D$4:$D$28,0),3)) -> 1.40 | I14: カナダ | L14: 1.64 | M14: 1.4 | N14: カナダ | O14: =(OFFSET('付録 3 - グループごとのゴール'!$C$13,(INDEX('付録 1 - チーム データ'!$C$13:$F$112,MATCH(G14,'付録 1 - チーム データ'!$C$13:$C$112,0),4)/10),(INDEX('付録 1 - チーム データ'!$C$13:$F$112,MATCH(E14,'付録 1 - チーム データ'!$C$13:$C$112,0),4)/10))) -> 1.50 | P14: =OFFSET('付録 3 - グループごとのゴール'!$C$13,(INDEX('付録 1 - チーム データ'!$C$13:$F$112, MATCH(E14,'付録 1 - チーム データ'!$C$13:$C$112,0),4)/10), (INDEX('付録 1 - チーム データ'!$C$13:$F$112, MATCH(G14, '付録 1 - チーム データ'!$C$13:$C$112,0),4)/10)) -> 1.50 | Q14: =_xlfn.IFNA(MATCH(RAND(), _xlfn.POISSON.DIST({0,1,2,3,4,5,6,7,8,9},$O14, TRUE),1), 0) -> 1 | R14: =_xlfn.IFNA(MATCH(RAND(), _xlfn.POISSON.DIST({0,1,2,3,4,5,6,7,8,9},$O14, TRUE),1), 0) -> 2 | S14: =_xlfn.IFNA(MATCH(RAND(), _xlfn.POISSON.DIST({0,1,2,3,4,5,6,7,8,9},$O14, TRUE),1), 0) -> 0 | T14: =_xlfn.IFNA(MATCH(RAND(), _xlfn.POISSON.DIST({0,1,2,3,4,5,6,7,8,9},$O14, TRUE),1), 0) -> 3 | U14: =_xlfn.IFNA(MATCH(RAND(), _xlfn.POISSON.DIST({0,1,2,3,4,5,6,7,8,9},$O14, TRUE),1), 0) -> 2 | V14: =_xlfn.IFNA(MATCH(RAND(), _xlfn.POISSON.DIST({0,1,2,3,4,5,6,7,8,9},$O14, TRUE),1), 0) -> 2 | W14: =_xlfn.IFNA(MATCH(RAND(), _xlfn.POISSON.DIST({0,1,2,3,4,5,6,7,8,9},$O14, TRUE),1), 0) -> 0 | X14: =_xlfn.IFNA(MATCH(RAND(), _xlfn.POISSON.DIST({0,1,2,3,4,5,6,7,8,9},$O14, TRUE),1), 0) -> 1 | Y14: =_xlfn.IFNA(MATCH(RAND(), _xlfn.POISSON.DIST({0,1,2,3,4,5,6,7,8,9},$O14, TRUE),1), 0) -> 3 | Z14: =_xlfn.IFNA(MATCH(RAND(), _xlfn.POISSON.DIST({0,1,2,3,4,5,6,7,8,9},$O14, TRUE),1), 0) -> 1 | AA14: =_xlfn.IFNA(MATCH(RAND(), _xlfn.POISSON.DIST({0,1,2,3,4,5,6,7,8,9},$O14, TRUE),1), 0) -> 4 | AB14: =_xlfn.IFNA(MATCH(RAND(), _xlfn.POISSON.DIST({0,1,2,3,4,5,6,7,8,9},$O14, TRUE),1), 0) -> 3 | AC14: =_xlfn.IFNA(MATCH(RAND(), _xlfn.POISSON.DIST({0,1,2,3,4,5,6,7,8,9},$O14, TRUE),1), 0) -> 3 | AD14: =_xlfn.IFNA(MATCH(RAND(), _xlfn.POISSON.DIST({0,1,2,3,4,5,6,7,8,9},$O14, TRUE),1), 0) -> 1 | AE14: =_xlfn.IFNA(MATCH(RAND(), _xlfn.POISSON.DIST({0,1,2,3,4,5,6,7,8,9},$O14, TRUE),1), 0) -> 0 | AF14: =_xlfn.IFNA(MATCH(RAND(), _xlfn.POISSON.DIST({0,1,2,3,4,5,6,7,8,9},$O14, TRUE),1), 0) -> 0 | AG14: =_xlfn.IFNA(MATCH(RAND(), _xlfn.POISSON.DIST({0,1,2,3,4,5,6,7,8,9},$O14, TRUE),1), 0) -> 1 | AH14: =_xlfn.IFNA(MATCH(RAND(), _xlfn.POISSON.DIST({0,1,2,3,4,5,6,7,8,9},$O14, TRUE),1), 0) -> 2 | AI14: =_xlfn.IFNA(MATCH(RAND(), _xlfn.POISSON.DIST({0,1,2,3,4,5,6,7,8,9},$O14, TRUE),1), 0) -> 3 | AJ14: =_xlfn.IFNA(MATCH(RAND(), _xlfn.POISSON.DIST({0,1,2,3,4,5,6,7,8,9},$O14, TRUE),1), 0) -> 1 | AK14: =_xlfn.IFNA(MATCH(RAND(), _xlfn.POISSON.DIST({0,1,2,3,4,5,6,7,8,9},$O14, TRUE),1), 0) -> 2 | AL14: =_xlfn.IFNA(MATCH(RAND(), _xlfn.POISSON.DIST({0,1,2,3,4,5,6,7,8,9},$O14, TRUE),1), 0) -> 2 | AM14: =_xlfn.IFNA(MATCH(RAND(), _xlfn.POISSON.DIST({0,1,2,3,4,5,6,7,8,9},$O14, TRUE),1), 0) -> 2 | AN14: =_xlfn.IFNA(MATCH(RAND(), _xlfn.POISSON.DIST({0,1,2,3,4,5,6,7,8,9},$O14, TRUE),1), 0) -> 3 | AO14: =_xlfn.IFNA(MATCH(RAND(), _xlfn.POISSON.DIST({0,1,2,3,4,5,6,7,8,9},$O14, TRUE),1), 0) -> 3 | AP14: =_xlfn.IFNA(MATCH(RAND(), _xlfn.POISSON.DIST({0,1,2,3,4,5,6,7,8,9},$O14, TRUE),1), 0) -> 3 | AQ14: =_xlfn.IFNA(MATCH(RAND(), _xlfn.POISSON.DIST({0,1,2,3,4,5,6,7,8,9},$O14, TRUE),1), 0) -> 4 | AR14: =_xlfn.IFNA(MATCH(RAND(), _xlfn.POISSON.DIST({0,1,2,3,4,5,6,7,8,9},$O14, TRUE),1), 0) -> 6 | AS14: =_xlfn.IFNA(MATCH(RAND(), _xlfn.POISSON.DIST({0,1,2,3,4,5,6,7,8,9},$O14, TRUE),1), 0) -> 3 | AT14: =_xlfn.IFNA(MATCH(RAND(), _xlfn.POISSON.DIST({0,1,2,3,4,5,6,7,8,9},$O14, TRUE),1), 0) -> 0 | AU14: =_xlfn.IFNA(MATCH(RAND(), _xlfn.POISSON.DIST({0,1,2,3,4,5,6,7,8,9},$O14, TRUE),1), 0) -> 0 | AV14: =_xlfn.IFNA(MATCH(RAND(), _xlfn.POISSON.DIST({0,1,2,3,4,5,6,7,8,9},$O14, TRUE),1), 0) -> 2 | AW14: =_xlfn.IFNA(MATCH(RAND(), _xlfn.POISSON.DIST({0,1,2,3,4,5,6,7,8,9},$O14, TRUE),1), 0) -> 0 | AX14: =_xlfn.IFNA(MATCH(RAND(), _xlfn.POISSON.DIST({0,1,2,3,4,5,6,7,8,9},$O14, TRUE),1), 0) -> 1 | AY14: =_xlfn.IFNA(MATCH(RAND(), _xlfn.POISSON.DIST({0,1,2,3,4,5,6,7,8,9},$O14, TRUE),1), 0) -> 3 | AZ14: =_xlfn.IFNA(MATCH(RAND(), _xlfn.POISSON.DIST({0,1,2,3,4,5,6,7,8,9},$O14, TRUE),1), 0) -> 1 | BA14: =_xlfn.IFNA(MATCH(RAND(), _xlfn.POISSON.DIST({0,1,2,3,4,5,6,7,8,9},$O14, TRUE),1), 0) -> 3 | BB14: =_xlfn.IFNA(MATCH(RAND(), _xlfn.POISSON.DIST({0,1,2,3,4,5,6,7,8,9},$O14, TRUE),1), 0) -> 2 | BC14: =_xlfn.IFNA(MATCH(RAND(), _xlfn.POISSON.DIST({0,1,2,3,4,5,6,7,8,9},$O14, TRUE),1), 0) -> 1 | BD14: =_xlfn.IFNA(MATCH(RAND(), _xlfn.POISSON.DIST({0,1,2,3,4,5,6,7,8,9},$O14, TRUE),1), 0) -> 1 | BE14: =_xlfn.IFNA(MATCH(RAND(), _xlfn.POISSON.DIST({0,1,2,3,4,5,6,7,8,9},$O14, TRUE),1), 0) -> 1 | BF14: =_xlfn.IFNA(MATCH(RAND(), _xlfn.POISSON.DIST({0,1,2,3,4,5,6,7,8,9},$O14, TRUE),1), 0) -> 1 | BG14: =_xlfn.IFNA(MATCH(RAND(), _xlfn.POISSON.DIST({0,1,2,3,4,5,6,7,8,9},$O14, TRUE),1), 0) -> 0 | BH14: =_xlfn.IFNA(MATCH(RAND(), _xlfn.POISSON.DIST({0,1,2,3,4,5,6,7,8,9},$O14, TRUE),1), 0) -> 1 | BI14: =_xlfn.IFNA(MATCH(RAND(), _xlfn.POISSON.DIST({0,1,2,3,4,5,6,7,8,9},$O14, TRUE),1), 0) -> 1 | BJ14: =_xlfn.IFNA(MATCH(RAND(), _xlfn.POISSON.DIST({0,1,2,3,4,5,6,7,8,9},$O14, TRUE),1), 0) -> 1 | BK14: =_xlfn.IFNA(MATCH(RAND(), _xlfn.POISSON.DIST({0,1,2,3,4,5,6,7,8,9},$O14, TRUE),1), 0) -> 1 | BL14: =_xlfn.IFNA(MATCH(RAND(), _xlfn.POISSON.DIST({0,1,2,3,4,5,6,7,8,9},$O14, TRUE),1), 0) -> 1 | BM14: =_xlfn.IFNA(MATCH(RAND(), _xlfn.POISSON.DIST({0,1,2,3,4,5,6,7,8,9},$O14, TRUE),1), 0) -> 0 | BN14: =_xlfn.IFNA(MATCH(RAND(), _xlfn.POISSON.DIST({0,1,2,3,4,5,6,7,8,9},$O14, TRUE),1), 0) -> 0 | BP14: =_xlfn.IFNA(MATCH(RAND(), _xlfn.POISSON.DIST({0,1,2,3,4,5,6,7,8,9},$P14, TRUE),1), 0) -> 1 | BQ14: =_xlfn.IFNA(MATCH(RAND(), _xlfn.POISSON.DIST({0,1,2,3,4,5,6,7,8,9},$P14, TRUE),1), 0) -> 3 | BR14: =_xlfn.IFNA(MATCH(RAND(), _xlfn.POISSON.DIST({0,1,2,3,4,5,6,7,8,9},$P14, TRUE),1), 0) -> 1 | BS14: =_xlfn.IFNA(MATCH(RAND(), _xlfn.POISSON.DIST({0,1,2,3,4,5,6,7,8,9},$P14, TRUE),1), 0) -> 0 | BT14: =_xlfn.IFNA(MATCH(RAND(), _xlfn.POISSON.DIST({0,1,2,3,4,5,6,7,8,9},$P14, TRUE),1), 0) -> 2 | BU14: =_xlfn.IFNA(MATCH(RAND(), _xlfn.POISSON.DIST({0,1,2,3,4,5,6,7,8,9},$P14, TRUE),1), 0) -> 0 | BV14: =_xlfn.IFNA(MATCH(RAND(), _xlfn.POISSON.DIST({0,1,2,3,4,5,6,7,8,9},$P14, TRUE),1), 0) -> 1 | BW14: =_xlfn.IFNA(MATCH(RAND(), _xlfn.POISSON.DIST({0,1,2,3,4,5,6,7,8,9},$P14, TRUE),1), 0) -> 1 | BX14: =_xlfn.IFNA(MATCH(RAND(), _xlfn.POISSON.DIST({0,1,2,3,4,5,6,7,8,9},$P14, TRUE),1), 0) -> 0 | BY14: =_xlfn.IFNA(MATCH(RAND(), _xlfn.POISSON.DIST({0,1,2,3,4,5,6,7,8,9},$P14, TRUE),1), 0) -> 0 | BZ14: =_xlfn.IFNA(MATCH(RAND(), _xlfn.POISSON.DIST({0,1,2,3,4,5,6,7,8,9},$P14, TRUE),1), 0) -> 1 | CA14: =_xlfn.IFNA(MATCH(RAND(), _xlfn.POISSON.DIST({0,1,2,3,4,5,6,7,8,9},$P14, TRUE),1), 0) -> 1 | CB14: =_xlfn.IFNA(MATCH(RAND(), _xlfn.POISSON.DIST({0,1,2,3,4,5,6,7,8,9},$P14, TRUE),1), 0) -> 1 | CC14: =_xlfn.IFNA(MATCH(RAND(), _xlfn.POISSON.DIST({0,1,2,3,4,5,6,7,8,9},$P14, TRUE),1), 0) -> 2 | CD14: =_xlfn.IFNA(MATCH(RAND(), _xlfn.POISSON.DIST({0,1,2,3,4,5,6,7,8,9},$P14, TRUE),1), 0) -> 1 | CE14: =_xlfn.IFNA(MATCH(RAND(), _xlfn.POISSON.DIST({0,1,2,3,4,5,6,7,8,9},$P14, TRUE),1), 0) -> 2 | CF14: =_xlfn.IFNA(MATCH(RAND(), _xlfn.POISSON.DIST({0,1,2,3,4,5,6,7,8,9},$P14, TRUE),1), 0) -> 4 | CG14: =_xlfn.IFNA(MATCH(RAND(), _xlfn.POISSON.DIST({0,1,2,3,4,5,6,7,8,9},$P14, TRUE),1), 0) -> 5 | CH14: =_xlfn.IFNA(MATCH(RAND(), _xlfn.POISSON.DIST({0,1,2,3,4,5,6,7,8,9},$P14, TRUE),1), 0) -> 3 | CI14: =_xlfn.IFNA(MATCH(RAND(), _xlfn.POISSON.DIST({0,1,2,3,4,5,6,7,8,9},$P14, TRUE),1), 0) -> 1 | CJ14: =_xlfn.IFNA(MATCH(RAND(), _xlfn.POISSON.DIST({0,1,2,3,4,5,6,7,8,9},$P14, TRUE),1), 0) -> 2 | CK14: =_xlfn.IFNA(MATCH(RAND(), _xlfn.POISSON.DIST({0,1,2,3,4,5,6,7,8,9},$P14, TRUE),1), 0) -> 1 | CL14: =_xlfn.IFNA(MATCH(RAND(), _xlfn.POISSON.DIST({0,1,2,3,4,5,6,7,8,9},$P14, TRUE),1), 0) -> 1 | CM14: =_xlfn.IFNA(MATCH(RAND(), _xlfn.POISSON.DIST({0,1,2,3,4,5,6,7,8,9},$P14, TRUE),1), 0) -> 1 | CN14: =_xlfn.IFNA(MATCH(RAND(), _xlfn.POISSON.DIST({0,1,2,3,4,5,6,7,8,9},$P14, TRUE),1), 0) -> 0 | CO14: =_xlfn.IFNA(MATCH(RAND(), _xlfn.POISSON.DIST({0,1,2,3,4,5,6,7,8,9},$P14, TRUE),1), 0) -> 3 | CP14: =_xlfn.IFNA(MATCH(RAND(), _xlfn.POISSON.DIST({0,1,2,3,4,5,6,7,8,9},$P14, TRUE),1), 0) -> 2 | CQ14: =_xlfn.IFNA(MATCH(RAND(), _xlfn.POISSON.DIST({0,1,2,3,4,5,6,7,8,9},$P14, TRUE),1), 0) -> 1 | CR14: =_xlfn.IFNA(MATCH(RAND(), _xlfn.POISSON.DIST({0,1,2,3,4,5,6,7,8,9},$P14, TRUE),1), 0) -> 1 | CS14: =_xlfn.IFNA(MATCH(RAND(), _xlfn.POISSON.DIST({0,1,2,3,4,5,6,7,8,9},$P14, TRUE),1), 0) -> 3 | CT14: =_xlfn.IFNA(MATCH(RAND(), _xlfn.POISSON.DIST({0,1,2,3,4,5,6,7,8,9},$P14, TRUE),1), 0) -> 4 | CU14: =_xlfn.IFNA(MATCH(RAND(), _xlfn.POISSON.DIST({0,1,2,3,4,5,6,7,8,9},$P14, TRUE),1), 0) -> 1 | CV14: =_xlfn.IFNA(MATCH(RAND(), _xlfn.POISSON.DIST({0,1,2,3,4,5,6,7,8,9},$P14, TRUE),1), 0) -> 2 | CW14: =_xlfn.IFNA(MATCH(RAND(), _xlfn.POISSON.DIST({0,1,2,3,4,5,6,7,8,9},$P14, TRUE),1), 0) -> 1 | CX14: =_xlfn.IFNA(MATCH(RAND(), _xlfn.POISSON.DIST({0,1,2,3,4,5,6,7,8,9},$P14, TRUE),1), 0) -> 0 | CY14: =_xlfn.IFNA(MATCH(RAND(), _xlfn.POISSON.DIST({0,1,2,3,4,5,6,7,8,9},$P14, TRUE),1), 0) -> 2 | CZ14: =_xlfn.IFNA(MATCH(RAND(), _xlfn.POISSON.DIST({0,1,2,3,4,5,6,7,8,9},$P14, TRUE),1), 0) -> 1 | DA14: =_xlfn.IFNA(MATCH(RAND(), _xlfn.POISSON.DIST({0,1,2,3,4,5,6,7,8,9},$P14, TRUE),1), 0) -> 0 | DB14: =_xlfn.IFNA(MATCH(RAND(), _xlfn.POISSON.DIST({0,1,2,3,4,5,6,7,8,9},$P14, TRUE),1), 0) -> 0 | DC14: =_xlfn.IFNA(MATCH(RAND(), _xlfn.POISSON.DIST({0,1,2,3,4,5,6,7,8,9},$P14, TRUE),1), 0) -> 0 | DD14: =_xlfn.IFNA(MATCH(RAND(), _xlfn.POISSON.DIST({0,1,2,3,4,5,6,7,8,9},$P14, TRUE),1), 0) -> 5 | DE14: =_xlfn.IFNA(MATCH(RAND(), _xlfn.POISSON.DIST({0,1,2,3,4,5,6,7,8,9},$P14, TRUE),1), 0) -> 1 | DF14: =_xlfn.IFNA(MATCH(RAND(), _xlfn.POISSON.DIST({0,1,2,3,4,5,6,7,8,9},$P14, TRUE),1), 0) -> 1 | DG14: =_xlfn.IFNA(MATCH(RAND(), _xlfn.POISSON.DIST({0,1,2,3,4,5,6,7,8,9},$P14, TRUE),1), 0) -> 1 | DH14: =_xlfn.IFNA(MATCH(RAND(), _xlfn.POISSON.DIST({0,1,2,3,4,5,6,7,8,9},$P14, TRUE),1), 0) -> 0 | DI14: =_xlfn.IFNA(MATCH(RAND(), _xlfn.POISSON.DIST({0,1,2,3,4,5,6,7,8,9},$P14, TRUE),1), 0) -> 1 | DJ14: =_xlfn.IFNA(MATCH(RAND(), _xlfn.POISSON.DIST({0,1,2,3,4,5,6,7,8,9},$P14, TRUE),1), 0) -> 2 | DK14: =_xlfn.IFNA(MATCH(RAND(), _xlfn.POISSON.DIST({0,1,2,3,4,5,6,7,8,9},$P14, TRUE),1), 0) -> 0 | DL14: =_xlfn.IFNA(MATCH(RAND(), _xlfn.POISSON.DIST({0,1,2,3,4,5,6,7,8,9},$P14, TRUE),1), 0) -> 1 | DM14: =_xlfn.IFNA(MATCH(RAND(), _xlfn.POISSON.DIST({0,1,2,3,4,5,6,7,8,9},$P14, TRUE),1), 0) -> 2
C15: 2019-06-11 | D15: E | E15: ニュージーランド | F15: =(AVERAGE(Q15:BN15))*(1+INDEX('グループ ステージの予想'!$C$4:$O$28, MATCH(今年の試合!E15,'グループ ステージの予想'!$D$4:$D$28,0),3)) -> 1.28 | G15: オランダ | H15: =(AVERAGE(BP15:DM15))*(1+INDEX('グループ ステージの予想'!$C$4:$O$28, MATCH(今年の試合!G15,'グループ ステージの予想'!$D$4:$D$28,0),3)) -> 1.32 | I15: オランダ | L15: 1.28 | M15: 1.32 | N15: オランダ | O15: =(OFFSET('付録 3 - グループごとのゴール'!$C$13,(INDEX('付録 1 - チーム データ'!$C$13:$F$112,MATCH(G15,'付録 1 - チーム データ'!$C$13:$C$112,0),4)/10),(INDEX('付録 1 - チーム データ'!$C$13:$F$112,MATCH(E15,'付録 1 - チーム データ'!$C$13:$C$112,0),4)/10))) -> 1.50 | P15: =OFFSET('付録 3 - グループごとのゴール'!$C$13,(INDEX('付録 1 - チーム データ'!$C$13:$F$112, MATCH(E15,'付録 1 - チーム データ'!$C$13:$C$112,0),4)/10), (INDEX('付録 1 - チーム データ'!$C$13:$F$112, MATCH(G15, '付録 1 - チーム データ'!$C$13:$C$112,0),4)/10)) -> 1.50 | Q15: =_xlfn.IFNA(MATCH(RAND(), _xlfn.POISSON.DIST({0,1,2,3,4,5,6,7,8,9},$O15, TRUE),1), 0) -> 0 | R15: =_xlfn.IFNA(MATCH(RAND(), _xlfn.POISSON.DIST({0,1,2,3,4,5,6,7,8,9},$O15, TRUE),1), 0) -> 1 | S15: =_xlfn.IFNA(MATCH(RAND(), _xlfn.POISSON.DIST({0,1,2,3,4,5,6,7,8,9},$O15, TRUE),1), 0) -> 2 | T15: =_xlfn.IFNA(MATCH(RAND(), _xlfn.POISSON.DIST({0,1,2,3,4,5,6,7,8,9},$O15, TRUE),1), 0) -> 2 | U15: =_xlfn.IFNA(MATCH(RAND(), _xlfn.POISSON.DIST({0,1,2,3,4,5,6,7,8,9},$O15, TRUE),1), 0) -> 0 | V15: =_xlfn.IFNA(MATCH(RAND(), _xlfn.POISSON.DIST({0,1,2,3,4,5,6,7,8,9},$O15, TRUE),1), 0) -> 1 | W15: =_xlfn.IFNA(MATCH(RAND(), _xlfn.POISSON.DIST({0,1,2,3,4,5,6,7,8,9},$O15, TRUE),1), 0) -> 3 | X15: =_xlfn.IFNA(MATCH(RAND(), _xlfn.POISSON.DIST({0,1,2,3,4,5,6,7,8,9},$O15, TRUE),1), 0) -> 0 | Y15: =_xlfn.IFNA(MATCH(RAND(), _xlfn.POISSON.DIST({0,1,2,3,4,5,6,7,8,9},$O15, TRUE),1), 0) -> 0 | Z15: =_xlfn.IFNA(MATCH(RAND(), _xlfn.POISSON.DIST({0,1,2,3,4,5,6,7,8,9},$O15, TRUE),1), 0) -> 1 | AA15: =_xlfn.IFNA(MATCH(RAND(), _xlfn.POISSON.DIST({0,1,2,3,4,5,6,7,8,9},$O15, TRUE),1), 0) -> 3 | AB15: =_xlfn.IFNA(MATCH(RAND(), _xlfn.POISSON.DIST({0,1,2,3,4,5,6,7,8,9},$O15, TRUE),1), 0) -> 0 | AC15: =_xlfn.IFNA(MATCH(RAND(), _xlfn.POISSON.DIST({0,1,2,3,4,5,6,7,8,9},$O15, TRUE),1), 0) -> 2 | AD15: =_xlfn.IFNA(MATCH(RAND(), _xlfn.POISSON.DIST({0,1,2,3,4,5,6,7,8,9},$O15, TRUE),1), 0) -> 1 | AE15: =_xlfn.IFNA(MATCH(RAND(), _xlfn.POISSON.DIST({0,1,2,3,4,5,6,7,8,9},$O15, TRUE),1), 0) -> 0 | AF15: =_xlfn.IFNA(MATCH(RAND(), _xlfn.POISSON.DIST({0,1,2,3,4,5,6,7,8,9},$O15, TRUE),1), 0) -> 1 | AG15: =_xlfn.IFNA(MATCH(RAND(), _xlfn.POISSON.DIST({0,1,2,3,4,5,6,7,8,9},$O15, TRUE),1), 0) -> 1 | AH15: =_xlfn.IFNA(MATCH(RAND(), _xlfn.POISSON.DIST({0,1,2,3,4,5,6,7,8,9},$O15, TRUE),1), 0) -> 1 | AI15: =_xlfn.IFNA(MATCH(RAND(), _xlfn.POISSON.DIST({0,1,2,3,4,5,6,7,8,9},$O15, TRUE),1), 0) -> 3 | AJ15: =_xlfn.IFNA(MATCH(RAND(), _xlfn.POISSON.DIST({0,1,2,3,4,5,6,7,8,9},$O15, TRUE),1), 0) -> 2 | AK15: =_xlfn.IFNA(MATCH(RAND(), _xlfn.POISSON.DIST({0,1,2,3,4,5,6,7,8,9},$O15, TRUE),1), 0) -> 0 | AL15: =_xlfn.IFNA(MATCH(RAND(), _xlfn.POISSON.DIST({0,1,2,3,4,5,6,7,8,9},$O15, TRUE),1), 0) -> 0 | AM15: =_xlfn.IFNA(MATCH(RAND(), _xlfn.POISSON.DIST({0,1,2,3,4,5,6,7,8,9},$O15, TRUE),1), 0) -> 0 | AN15: =_xlfn.IFNA(MATCH(RAND(), _xlfn.POISSON.DIST({0,1,2,3,4,5,6,7,8,9},$O15, TRUE),1), 0) -> 1 | AO15: =_xlfn.IFNA(MATCH(RAND(), _xlfn.POISSON.DIST({0,1,2,3,4,5,6,7,8,9},$O15, TRUE),1), 0) -> 1 | AP15: =_xlfn.IFNA(MATCH(RAND(), _xlfn.POISSON.DIST({0,1,2,3,4,5,6,7,8,9},$O15, TRUE),1), 0) -> 1 | AQ15: =_xlfn.IFNA(MATCH(RAND(), _xlfn.POISSON.DIST({0,1,2,3,4,5,6,7,8,9},$O15, TRUE),1), 0) -> 2 | AR15: =_xlfn.IFNA(MATCH(RAND(), _xlfn.POISSON.DIST({0,1,2,3,4,5,6,7,8,9},$O15, TRUE),1), 0) -> 1 | AS15: =_xlfn.IFNA(MATCH(RAND(), _xlfn.POISSON.DIST({0,1,2,3,4,5,6,7,8,9},$O15, TRUE),1), 0) -> 2 | AT15: =_xlfn.IFNA(MATCH(RAND(), _xlfn.POISSON.DIST({0,1,2,3,4,5,6,7,8,9},$O15, TRUE),1), 0) -> 2 | AU15: =_xlfn.IFNA(MATCH(RAND(), _xlfn.POISSON.DIST({0,1,2,3,4,5,6,7,8,9},$O15, TRUE),1), 0) -> 5 | AV15: =_xlfn.IFNA(MATCH(RAND(), _xlfn.POISSON.DIST({0,1,2,3,4,5,6,7,8,9},$O15, TRUE),1), 0) -> 0 | AW15: =_xlfn.IFNA(MATCH(RAND(), _xlfn.POISSON.DIST({0,1,2,3,4,5,6,7,8,9},$O15, TRUE),1), 0) -> 0 | AX15: =_xlfn.IFNA(MATCH(RAND(), _xlfn.POISSON.DIST({0,1,2,3,4,5,6,7,8,9},$O15, TRUE),1), 0) -> 1 | AY15: =_xlfn.IFNA(MATCH(RAND(), _xlfn.POISSON.DIST({0,1,2,3,4,5,6,7,8,9},$O15, TRUE),1), 0) -> 2 | AZ15: =_xlfn.IFNA(MATCH(RAND(), _xlfn.POISSON.DIST({0,1,2,3,4,5,6,7,8,9},$O15, TRUE),1), 0) -> 0 | BA15: =_xlfn.IFNA(MATCH(RAND(), _xlfn.POISSON.DIST({0,1,2,3,4,5,6,7,8,9},$O15, TRUE),1), 0) -> 1 | BB15: =_xlfn.IFNA(MATCH(RAND(), _xlfn.POISSON.DIST({0,1,2,3,4,5,6,7,8,9},$O15, TRUE),1), 0) -> 1 | BC15: =_xlfn.IFNA(MATCH(RAND(), _xlfn.POISSON.DIST({0,1,2,3,4,5,6,7,8,9},$O15, TRUE),1), 0) -> 2 | BD15: =_xlfn.IFNA(MATCH(RAND(), _xlfn.POISSON.DIST({0,1,2,3,4,5,6,7,8,9},$O15, TRUE),1), 0) -> 0 | BE15: =_xlfn.IFNA(MATCH(RAND(), _xlfn.POISSON.DIST({0,1,2,3,4,5,6,7,8,9},$O15, TRUE),1), 0) -> 6 | BF15: =_xlfn.IFNA(MATCH(RAND(), _xlfn.POISSON.DIST({0,1,2,3,4,5,6,7,8,9},$O15, TRUE),1), 0) -> 1 | BG15: =_xlfn.IFNA(MATCH(RAND(), _xlfn.POISSON.DIST({0,1,2,3,4,5,6,7,8,9},$O15, TRUE),1), 0) -> 2 | BH15: =_xlfn.IFNA(MATCH(RAND(), _xlfn.POISSON.DIST({0,1,2,3,4,5,6,7,8,9},$O15, TRUE),1), 0) -> 0 | BI15: =_xlfn.IFNA(MATCH(RAND(), _xlfn.POISSON.DIST({0,1,2,3,4,5,6,7,8,9},$O15, TRUE),1), 0) -> 2 | BJ15: =_xlfn.IFNA(MATCH(RAND(), _xlfn.POISSON.DIST({0,1,2,3,4,5,6,7,8,9},$O15, TRUE),1), 0) -> 0 | BK15: =_xlfn.IFNA(MATCH(RAND(), _xlfn.POISSON.DIST({0,1,2,3,4,5,6,7,8,9},$O15, TRUE),1), 0) -> 2 | BL15: =_xlfn.IFNA(MATCH(RAND(), _xlfn.POISSON.DIST({0,1,2,3,4,5,6,7,8,9},$O15, TRUE),1), 0) -> 3 | BM15: =_xlfn.IFNA(MATCH(RAND(), _xlfn.POISSON.DIST({0,1,2,3,4,5,6,7,8,9},$O15, TRUE),1), 0) -> 1 | BN15: =_xlfn.IFNA(MATCH(RAND(), _xlfn.POISSON.DIST({0,1,2,3,4,5,6,7,8,9},$O15, TRUE),1), 0) -> 1 | BP15: =_xlfn.IFNA(MATCH(RAND(), _xlfn.POISSON.DIST({0,1,2,3,4,5,6,7,8,9},$P15, TRUE),1), 0) -> 1 | BQ15: =_xlfn.IFNA(MATCH(RAND(), _xlfn.POISSON.DIST({0,1,2,3,4,5,6,7,8,9},$P15, TRUE),1), 0) -> 3 | BR15: =_xlfn.IFNA(MATCH(RAND(), _xlfn.POISSON.DIST({0,1,2,3,4,5,6,7,8,9},$P15, TRUE),1), 0) -> 0 | BS15: =_xlfn.IFNA(MATCH(RAND(), _xlfn.POISSON.DIST({0,1,2,3,4,5,6,7,8,9},$P15, TRUE),1), 0) -> 2 | BT15: =_xlfn.IFNA(MATCH(RAND(), _xlfn.POISSON.DIST({0,1,2,3,4,5,6,7,8,9},$P15, TRUE),1), 0) -> 1 | BU15: =_xlfn.IFNA(MATCH(RAND(), _xlfn.POISSON.DIST({0,1,2,3,4,5,6,7,8,9},$P15, TRUE),1), 0) -> 3 | BV15: =_xlfn.IFNA(MATCH(RAND(), _xlfn.POISSON.DIST({0,1,2,3,4,5,6,7,8,9},$P15, TRUE),1), 0) -> 1 | BW15: =_xlfn.IFNA(MATCH(RAND(), _xlfn.POISSON.DIST({0,1,2,3,4,5,6,7,8,9},$P15, TRUE),1), 0) -> 0 | BX15: =_xlfn.IFNA(MATCH(RAND(), _xlfn.POISSON.DIST({0,1,2,3,4,5,6,7,8,9},$P15, TRUE),1), 0) -> 0 | BY15: =_xlfn.IFNA(MATCH(RAND(), _xlfn.POISSON.DIST({0,1,2,3,4,5,6,7,8,9},$P15, TRUE),1), 0) -> 1 | BZ15: =_xlfn.IFNA(MATCH(RAND(), _xlfn.POISSON.DIST({0,1,2,3,4,5,6,7,8,9},$P15, TRUE),1), 0) -> 1 | CA15: =_xlfn.IFNA(MATCH(RAND(), _xlfn.POISSON.DIST({0,1,2,3,4,5,6,7,8,9},$P15, TRUE),1), 0) -> 2 | CB15: =_xlfn.IFNA(MATCH(RAND(), _xlfn.POISSON.DIST({0,1,2,3,4,5,6,7,8,9},$P15, TRUE),1), 0) -> 1 | CC15: =_xlfn.IFNA(MATCH(RAND(), _xlfn.POISSON.DIST({0,1,2,3,4,5,6,7,8,9},$P15, TRUE),1), 0) -> 2 | CD15: =_xlfn.IFNA(MATCH(RAND(), _xlfn.POISSON.DIST({0,1,2,3,4,5,6,7,8,9},$P15, TRUE),1), 0) -> 1 | CE15: =_xlfn.IFNA(MATCH(RAND(), _xlfn.POISSON.DIST({0,1,2,3,4,5,6,7,8,9},$P15, TRUE),1), 0) -> 1 | CF15: =_xlfn.IFNA(MATCH(RAND(), _xlfn.POISSON.DIST({0,1,2,3,4,5,6,7,8,9},$P15, TRUE),1), 0) -> 2 | CG15: =_xlfn.IFNA(MATCH(RAND(), _xlfn.POISSON.DIST({0,1,2,3,4,5,6,7,8,9},$P15, TRUE),1), 0) -> 3 | CH15: =_xlfn.IFNA(MATCH(RAND(), _xlfn.POISSON.DIST({0,1,2,3,4,5,6,7,8,9},$P15, TRUE),1), 0) -> 0 | CI15: =_xlfn.IFNA(MATCH(RAND(), _xlfn.POISSON.DIST({0,1,2,3,4,5,6,7,8,9},$P15, TRUE),1), 0) -> 1 | CJ15: =_xlfn.IFNA(MATCH(RAND(), _xlfn.POISSON.DIST({0,1,2,3,4,5,6,7,8,9},$P15, TRUE),1), 0) -> 1 | CK15: =_xlfn.IFNA(MATCH(RAND(), _xlfn.POISSON.DIST({0,1,2,3,4,5,6,7,8,9},$P15, TRUE),1), 0) -> 2 | CL15: =_xlfn.IFNA(MATCH(RAND(), _xlfn.POISSON.DIST({0,1,2,3,4,5,6,7,8,9},$P15, TRUE),1), 0) -> 2 | CM15: =_xlfn.IFNA(MATCH(RAND(), _xlfn.POISSON.DIST({0,1,2,3,4,5,6,7,8,9},$P15, TRUE),1), 0) -> 2 | CN15: =_xlfn.IFNA(MATCH(RAND(), _xlfn.POISSON.DIST({0,1,2,3,4,5,6,7,8,9},$P15, TRUE),1), 0) -> 0 | CO15: =_xlfn.IFNA(MATCH(RAND(), _xlfn.POISSON.DIST({0,1,2,3,4,5,6,7,8,9},$P15, TRUE),1), 0) -> 3 | CP15: =_xlfn.IFNA(MATCH(RAND(), _xlfn.POISSON.DIST({0,1,2,3,4,5,6,7,8,9},$P15, TRUE),1), 0) -> 0 | CQ15: =_xlfn.IFNA(MATCH(RAND(), _xlfn.POISSON.DIST({0,1,2,3,4,5,6,7,8,9},$P15, TRUE),1), 0) -> 0 | CR15: =_xlfn.IFNA(MATCH(RAND(), _xlfn.POISSON.DIST({0,1,2,3,4,5,6,7,8,9},$P15, TRUE),1), 0) -> 2 | CS15: =_xlfn.IFNA(MATCH(RAND(), _xlfn.POISSON.DIST({0,1,2,3,4,5,6,7,8,9},$P15, TRUE),1), 0) -> 0 | CT15: =_xlfn.IFNA(MATCH(RAND(), _xlfn.POISSON.DIST({0,1,2,3,4,5,6,7,8,9},$P15, TRUE),1), 0) -> 0 | CU15: =_xlfn.IFNA(MATCH(RAND(), _xlfn.POISSON.DIST({0,1,2,3,4,5,6,7,8,9},$P15, TRUE),1), 0) -> 0 | CV15: =_xlfn.IFNA(MATCH(RAND(), _xlfn.POISSON.DIST({0,1,2,3,4,5,6,7,8,9},$P15, TRUE),1), 0) -> 0 | CW15: =_xlfn.IFNA(MATCH(RAND(), _xlfn.POISSON.DIST({0,1,2,3,4,5,6,7,8,9},$P15, TRUE),1), 0) -> 3 | CX15: =_xlfn.IFNA(MATCH(RAND(), _xlfn.POISSON.DIST({0,1,2,3,4,5,6,7,8,9},$P15, TRUE),1), 0) -> 1 | CY15: =_xlfn.IFNA(MATCH(RAND(), _xlfn.POISSON.DIST({0,1,2,3,4,5,6,7,8,9},$P15, TRUE),1), 0) -> 2 | CZ15: =_xlfn.IFNA(MATCH(RAND(), _xlfn.POISSON.DIST({0,1,2,3,4,5,6,7,8,9},$P15, TRUE),1), 0) -> 1 | DA15: =_xlfn.IFNA(MATCH(RAND(), _xlfn.POISSON.DIST({0,1,2,3,4,5,6,7,8,9},$P15, TRUE),1), 0) -> 0 | DB15: =_xlfn.IFNA(MATCH(RAND(), _xlfn.POISSON.DIST({0,1,2,3,4,5,6,7,8,9},$P15, TRUE),1), 0) -> 0 | DC15: =_xlfn.IFNA(MATCH(RAND(), _xlfn.POISSON.DIST({0,1,2,3,4,5,6,7,8,9},$P15, TRUE),1), 0) -> 4 | DD15: =_xlfn.IFNA(MATCH(RAND(), _xlfn.POISSON.DIST({0,1,2,3,4,5,6,7,8,9},$P15, TRUE),1), 0) -> 3 | DE15: =_xlfn.IFNA(MATCH(RAND(), _xlfn.POISSON.DIST({0,1,2,3,4,5,6,7,8,9},$P15, TRUE),1), 0) -> 0 | DF15: =_xlfn.IFNA(MATCH(RAND(), _xlfn.POISSON.DIST({0,1,2,3,4,5,6,7,8,9},$P15, TRUE),1), 0) -> 1 | DG15: =_xlfn.IFNA(MATCH(RAND(), _xlfn.POISSON.DIST({0,1,2,3,4,5,6,7,8,9},$P15, TRUE),1), 0) -> 1 | DH15: =_xlfn.IFNA(MATCH(RAND(), _xlfn.POISSON.DIST({0,1,2,3,4,5,6,7,8,9},$P15, TRUE),1), 0) -> 0 | DI15: =_xlfn.IFNA(MATCH(RAND(), _xlfn.POISSON.DIST({0,1,2,3,4,5,6,7,8,9},$P15, TRUE),1), 0) -> 2 | DJ15: =_xlfn.IFNA(MATCH(RAND(), _xlfn.POISSON.DIST({0,1,2,3,4,5,6,7,8,9},$P15, TRUE),1), 0) -> 1 | DK15: =_xlfn.IFNA(MATCH(RAND(), _xlfn.POISSON.DIST({0,1,2,3,4,5,6,7,8,9},$P15, TRUE),1), 0) -> 3 | DL15: =_xlfn.IFNA(MATCH(RAND(), _xlfn.POISSON.DIST({0,1,2,3,4,5,6,7,8,9},$P15, TRUE),1), 0) -> 3 | DM15: =_xlfn.IFNA(MATCH(RAND(), _xlfn.POISSON.DIST({0,1,2,3,4,5,6,7,8,9},$P15, TRUE),1), 0) -> 3
C16: 2019-06-11 | D16: F | E16: チリ | F16: =(AVERAGE(Q16:BN16))*(1+INDEX('グループ ステージの予想'!$C$4:$O$28, MATCH(今年の試合!E16,'グループ ステージの予想'!$D$4:$D$28,0),3)) -> 0.38 | G16: スウェーデン | H16: =(AVERAGE(BP16:DM16))*(1+INDEX('グループ ステージの予想'!$C$4:$O$28, MATCH(今年の試合!G16,'グループ ステージの予想'!$D$4:$D$28,0),3)) -> 2.80 | I16: スウェーデン | L16: 0.38 | M16: 2.8 | N16: スウェーデン | O16: =(OFFSET('付録 3 - グループごとのゴール'!$C$13,(INDEX('付録 1 - チーム データ'!$C$13:$F$112,MATCH(G16,'付録 1 - チーム データ'!$C$13:$C$112,0),4)/10),(INDEX('付録 1 - チーム データ'!$C$13:$F$112,MATCH(E16,'付録 1 - チーム データ'!$C$13:$C$112,0),4)/10))) -> 0.38 | P16: =OFFSET('付録 3 - グループごとのゴール'!$C$13,(INDEX('付録 1 - チーム データ'!$C$13:$F$112, MATCH(E16,'付録 1 - チーム データ'!$C$13:$C$112,0),4)/10), (INDEX('付録 1 - チーム データ'!$C$13:$F$112, MATCH(G16, '付録 1 - チーム データ'!$C$13:$C$112,0),4)/10)) -> 2.94 | Q16: =_xlfn.IFNA(MATCH(RAND(), _xlfn.POISSON.DIST({0,1,2,3,4,5,6,7,8,9},$O16, TRUE),1), 0) -> 0 | R16: =_xlfn.IFNA(MATCH(RAND(), _xlfn.POISSON.DIST({0,1,2,3,4,5,6,7,8,9},$O16, TRUE),1), 0) -> 0 | S16: =_xlfn.IFNA(MATCH(RAND(), _xlfn.POISSON.DIST({0,1,2,3,4,5,6,7,8,9},$O16, TRUE),1), 0) -> 0 | T16: =_xlfn.IFNA(MATCH(RAND(), _xlfn.POISSON.DIST({0,1,2,3,4,5,6,7,8,9},$O16, TRUE),1), 0) -> 0 | U16: =_xlfn.IFNA(MATCH(RAND(), _xlfn.POISSON.DIST({0,1,2,3,4,5,6,7,8,9},$O16, TRUE),1), 0) -> 0 | V16: =_xlfn.IFNA(MATCH(RAND(), _xlfn.POISSON.DIST({0,1,2,3,4,5,6,7,8,9},$O16, TRUE),1), 0) -> 0 | W16: =_xlfn.IFNA(MATCH(RAND(), _xlfn.POISSON.DIST({0,1,2,3,4,5,6,7,8,9},$O16, TRUE),1), 0) -> 0 | X16: =_xlfn.IFNA(MATCH(RAND(), _xlfn.POISSON.DIST({0,1,2,3,4,5,6,7,8,9},$O16, TRUE),1), 0) -> 0 | Y16: =_xlfn.IFNA(MATCH(RAND(), _xlfn.POISSON.DIST({0,1,2,3,4,5,6,7,8,9},$O16, TRUE),1), 0) -> 2 | Z16: =_xlfn.IFNA(MATCH(RAND(), _xlfn.POISSON.DIST({0,1,2,3,4,5,6,7,8,9},$O16, TRUE),1), 0) -> 0 | AA16: =_xlfn.IFNA(MATCH(RAND(), _xlfn.POISSON.DIST({0,1,2,3,4,5,6,7,8,9},$O16, TRUE),1), 0) -> 0 | AB16: =_xlfn.IFNA(MATCH(RAND(), _xlfn.POISSON.DIST({0,1,2,3,4,5,6,7,8,9},$O16, TRUE),1), 0) -> 2 | AC16: =_xlfn.IFNA(MATCH(RAND(), _xlfn.POISSON.DIST({0,1,2,3,4,5,6,7,8,9},$O16, TRUE),1), 0) -> 1 | AD16: =_xlfn.IFNA(MATCH(RAND(), _xlfn.POISSON.DIST({0,1,2,3,4,5,6,7,8,9},$O16, TRUE),1), 0) -> 0 | AE16: =_xlfn.IFNA(MATCH(RAND(), _xlfn.POISSON.DIST({0,1,2,3,4,5,6,7,8,9},$O16, TRUE),1), 0) -> 1 | AF16: =_xlfn.IFNA(MATCH(RAND(), _xlfn.POISSON.DIST({0,1,2,3,4,5,6,7,8,9},$O16, TRUE),1), 0) -> 0 | AG16: =_xlfn.IFNA(MATCH(RAND(), _xlfn.POISSON.DIST({0,1,2,3,4,5,6,7,8,9},$O16, TRUE),1), 0) -> 0 | AH16: =_xlfn.IFNA(MATCH(RAND(), _xlfn.POISSON.DIST({0,1,2,3,4,5,6,7,8,9},$O16, TRUE),1), 0) -> 0 | AI16: =_xlfn.IFNA(MATCH(RAND(), _xlfn.POISSON.DIST({0,1,2,3,4,5,6,7,8,9},$O16, TRUE),1), 0) -> 0 | AJ16: =_xlfn.IFNA(MATCH(RAND(), _xlfn.POISSON.DIST({0,1,2,3,4,5,6,7,8,9},$O16, TRUE),1), 0) -> 0 | AK16: =_xlfn.IFNA(MATCH(RAND(), _xlfn.POISSON.DIST({0,1,2,3,4,5,6,7,8,9},$O16, TRUE),1), 0) -> 0 | AL16: =_xlfn.IFNA(MATCH(RAND(), _xlfn.POISSON.DIST({0,1,2,3,4,5,6,7,8,9},$O16, TRUE),1), 0) -> 0 | AM16: =_xlfn.IFNA(MATCH(RAND(), _xlfn.POISSON.DIST({0,1,2,3,4,5,6,7,8,9},$O16, TRUE),1), 0) -> 1 | AN16: =_xlfn.IFNA(MATCH(RAND(), _xlfn.POISSON.DIST({0,1,2,3,4,5,6,7,8,9},$O16, TRUE),1), 0) -> 0 | AO16: =_xlfn.IFNA(MATCH(RAND(), _xlfn.POISSON.DIST({0,1,2,3,4,5,6,7,8,9},$O16, TRUE),1), 0) -> 1 | AP16: =_xlfn.IFNA(MATCH(RAND(), _xlfn.POISSON.DIST({0,1,2,3,4,5,6,7,8,9},$O16, TRUE),1), 0) -> 0 | AQ16: =_xlfn.IFNA(MATCH(RAND(), _xlfn.POISSON.DIST({0,1,2,3,4,5,6,7,8,9},$O16, TRUE),1), 0) -> 1 | AR16: =_xlfn.IFNA(MATCH(RAND(), _xlfn.POISSON.DIST({0,1,2,3,4,5,6,7,8,9},$O16, TRUE),1), 0) -> 0 | AS16: =_xlfn.IFNA(MATCH(RAND(), _xlfn.POISSON.DIST({0,1,2,3,4,5,6,7,8,9},$O16, TRUE),1), 0) -> 0 | AT16: =_xlfn.IFNA(MATCH(RAND(), _xlfn.POISSON.DIST({0,1,2,3,4,5,6,7,8,9},$O16, TRUE),1), 0) -> 2 | AU16: =_xlfn.IFNA(MATCH(RAND(), _xlfn.POISSON.DIST({0,1,2,3,4,5,6,7,8,9},$O16, TRUE),1), 0) -> 0 | AV16: =_xlfn.IFNA(MATCH(RAND(), _xlfn.POISSON.DIST({0,1,2,3,4,5,6,7,8,9},$O16, TRUE),1), 0) -> 0 | AW16: =_xlfn.IFNA(MATCH(RAND(), _xlfn.POISSON.DIST({0,1,2,3,4,5,6,7,8,9},$O16, TRUE),1), 0) -> 0 | AX16: =_xlfn.IFNA(MATCH(RAND(), _xlfn.POISSON.DIST({0,1,2,3,4,5,6,7,8,9},$O16, TRUE),1), 0) -> 1 | AY16: =_xlfn.IFNA(MATCH(RAND(), _xlfn.POISSON.DIST({0,1,2,3,4,5,6,7,8,9},$O16, TRUE),1), 0) -> 0 | AZ16: =_xlfn.IFNA(MATCH(RAND(), _xlfn.POISSON.DIST({0,1,2,3,4,5,6,7,8,9},$O16, TRUE),1), 0) -> 0 | BA16: =_xlfn.IFNA(MATCH(RAND(), _xlfn.POISSON.DIST({0,1,2,3,4,5,6,7,8,9},$O16, TRUE),1), 0) -> 1 | BB16: =_xlfn.IFNA(MATCH(RAND(), _xlfn.POISSON.DIST({0,1,2,3,4,5,6,7,8,9},$O16, TRUE),1), 0) -> 0 | BC16: =_xlfn.IFNA(MATCH(RAND(), _xlfn.POISSON.DIST({0,1,2,3,4,5,6,7,8,9},$O16, TRUE),1), 0) -> 0 | BD16: =_xlfn.IFNA(MATCH(RAND(), _xlfn.POISSON.DIST({0,1,2,3,4,5,6,7,8,9},$O16, TRUE),1), 0) -> 2 | BE16: =_xlfn.IFNA(MATCH(RAND(), _xlfn.POISSON.DIST({0,1,2,3,4,5,6,7,8,9},$O16, TRUE),1), 0) -> 0 | BF16: =_xlfn.IFNA(MATCH(RAND(), _xlfn.POISSON.DIST({0,1,2,3,4,5,6,7,8,9},$O16, TRUE),1), 0) -> 0 | BG16: =_xlfn.IFNA(MATCH(RAND(), _xlfn.POISSON.DIST({0,1,2,3,4,5,6,7,8,9},$O16, TRUE),1), 0) -> 0 | BH16: =_xlfn.IFNA(MATCH(RAND(), _xlfn.POISSON.DIST({0,1,2,3,4,5,6,7,8,9},$O16, TRUE),1), 0) -> 1 | BI16: =_xlfn.IFNA(MATCH(RAND(), _xlfn.POISSON.DIST({0,1,2,3,4,5,6,7,8,9},$O16, TRUE),1), 0) -> 1 | BJ16: =_xlfn.IFNA(MATCH(RAND(), _xlfn.POISSON.DIST({0,1,2,3,4,5,6,7,8,9},$O16, TRUE),1), 0) -> 0 | BK16: =_xlfn.IFNA(MATCH(RAND(), _xlfn.POISSON.DIST({0,1,2,3,4,5,6,7,8,9},$O16, TRUE),1), 0) -> 1 | BL16: =_xlfn.IFNA(MATCH(RAND(), _xlfn.POISSON.DIST({0,1,2,3,4,5,6,7,8,9},$O16, TRUE),1), 0) -> 0 | BM16: =_xlfn.IFNA(MATCH(RAND(), _xlfn.POISSON.DIST({0,1,2,3,4,5,6,7,8,9},$O16, TRUE),1), 0) -> 0 | BN16: =_xlfn.IFNA(MATCH(RAND(), _xlfn.POISSON.DIST({0,1,2,3,4,5,6,7,8,9},$O16, TRUE),1), 0) -> 1 | BP16: =_xlfn.IFNA(MATCH(RAND(), _xlfn.POISSON.DIST({0,1,2,3,4,5,6,7,8,9},$P16, TRUE),1), 0) -> 2 | BQ16: =_xlfn.IFNA(MATCH(RAND(), _xlfn.POISSON.DIST({0,1,2,3,4,5,6,7,8,9},$P16, TRUE),1), 0) -> 3 | BR16: =_xlfn.IFNA(MATCH(RAND(), _xlfn.POISSON.DIST({0,1,2,3,4,5,6,7,8,9},$P16, TRUE),1), 0) -> 3 | BS16: =_xlfn.IFNA(MATCH(RAND(), _xlfn.POISSON.DIST({0,1,2,3,4,5,6,7,8,9},$P16, TRUE),1), 0) -> 4 | BT16: =_xlfn.IFNA(MATCH(RAND(), _xlfn.POISSON.DIST({0,1,2,3,4,5,6,7,8,9},$P16, TRUE),1), 0) -> 4 | BU16: =_xlfn.IFNA(MATCH(RAND(), _xlfn.POISSON.DIST({0,1,2,3,4,5,6,7,8,9},$P16, TRUE),1), 0) -> 5 | BV16: =_xlfn.IFNA(MATCH(RAND(), _xlfn.POISSON.DIST({0,1,2,3,4,5,6,7,8,9},$P16, TRUE),1), 0) -> 0 | BW16: =_xlfn.IFNA(MATCH(RAND(), _xlfn.POISSON.DIST({0,1,2,3,4,5,6,7,8,9},$P16, TRUE),1), 0) -> 0 | BX16: =_xlfn.IFNA(MATCH(RAND(), _xlfn.POISSON.DIST({0,1,2,3,4,5,6,7,8,9},$P16, TRUE),1), 0) -> 2 | BY16: =_xlfn.IFNA(MATCH(RAND(), _xlfn.POISSON.DIST({0,1,2,3,4,5,6,7,8,9},$P16, TRUE),1), 0) -> 1 | BZ16: =_xlfn.IFNA(MATCH(RAND(), _xlfn.POISSON.DIST({0,1,2,3,4,5,6,7,8,9},$P16, TRUE),1), 0) -> 5 | CA16: =_xlfn.IFNA(MATCH(RAND(), _xlfn.POISSON.DIST({0,1,2,3,4,5,6,7,8,9},$P16, TRUE),1), 0) -> 3 | CB16: =_xlfn.IFNA(MATCH(RAND(), _xlfn.POISSON.DIST({0,1,2,3,4,5,6,7,8,9},$P16, TRUE),1), 0) -> 1 | CC16: =_xlfn.IFNA(MATCH(RAND(), _xlfn.POISSON.DIST({0,1,2,3,4,5,6,7,8,9},$P16, TRUE),1), 0) -> 4 | CD16: =_xlfn.IFNA(MATCH(RAND(), _xlfn.POISSON.DIST({0,1,2,3,4,5,6,7,8,9},$P16, TRUE),1), 0) -> 4 | CE16: =_xlfn.IFNA(MATCH(RAND(), _xlfn.POISSON.DIST({0,1,2,3,4,5,6,7,8,9},$P16, TRUE),1), 0) -> 3 | CF16: =_xlfn.IFNA(MATCH(RAND(), _xlfn.POISSON.DIST({0,1,2,3,4,5,6,7,8,9},$P16, TRUE),1), 0) -> 6 | CG16: =_xlfn.IFNA(MATCH(RAND(), _xlfn.POISSON.DIST({0,1,2,3,4,5,6,7,8,9},$P16, TRUE),1), 0) -> 4 | CH16: =_xlfn.IFNA(MATCH(RAND(), _xlfn.POISSON.DIST({0,1,2,3,4,5,6,7,8,9},$P16, TRUE),1), 0) -> 2 | CI16: =_xlfn.IFNA(MATCH(RAND(), _xlfn.POISSON.DIST({0,1,2,3,4,5,6,7,8,9},$P16, TRUE),1), 0) -> 2 | CJ16: =_xlfn.IFNA(MATCH(RAND(), _xlfn.POISSON.DIST({0,1,2,3,4,5,6,7,8,9},$P16, TRUE),1), 0) -> 3 | CK16: =_xlfn.IFNA(MATCH(RAND(), _xlfn.POISSON.DIST({0,1,2,3,4,5,6,7,8,9},$P16, TRUE),1), 0) -> 3 | CL16: =_xlfn.IFNA(MATCH(RAND(), _xlfn.POISSON.DIST({0,1,2,3,4,5,6,7,8,9},$P16, TRUE),1), 0) -> 1 | CM16: =_xlfn.IFNA(MATCH(RAND(), _xlfn.POISSON.DIST({0,1,2,3,4,5,6,7,8,9},$P16, TRUE),1), 0) -> 4 | CN16: =_xlfn.IFNA(MATCH(RAND(), _xlfn.POISSON.DIST({0,1,2,3,4,5,6,7,8,9},$P16, TRUE),1), 0) -> 4 | CO16: =_xlfn.IFNA(MATCH(RAND(), _xlfn.POISSON.DIST({0,1,2,3,4,5,6,7,8,9},$P16, TRUE),1), 0) -> 3 | CP16: =_xlfn.IFNA(MATCH(RAND(), _xlfn.POISSON.DIST({0,1,2,3,4,5,6,7,8,9},$P16, TRUE),1), 0) -> 2 | CQ16: =_xlfn.IFNA(MATCH(RAND(), _xlfn.POISSON.DIST({0,1,2,3,4,5,6,7,8,9},$P16, TRUE),1), 0) -> 4 | CR16: =_xlfn.IFNA(MATCH(RAND(), _xlfn.POISSON.DIST({0,1,2,3,4,5,6,7,8,9},$P16, TRUE),1), 0) -> 5 | CS16: =_xlfn.IFNA(MATCH(RAND(), _xlfn.POISSON.DIST({0,1,2,3,4,5,6,7,8,9},$P16, TRUE),1), 0) -> 0 | CT16: =_xlfn.IFNA(MATCH(RAND(), _xlfn.POISSON.DIST({0,1,2,3,4,5,6,7,8,9},$P16, TRUE),1), 0) -> 3 | CU16: =_xlfn.IFNA(MATCH(RAND(), _xlfn.POISSON.DIST({0,1,2,3,4,5,6,7,8,9},$P16, TRUE),1), 0) -> 3 | CV16: =_xlfn.IFNA(MATCH(RAND(), _xlfn.POISSON.DIST({0,1,2,3,4,5,6,7,8,9},$P16, TRUE),1), 0) -> 1 | CW16: =_xlfn.IFNA(MATCH(RAND(), _xlfn.POISSON.DIST({0,1,2,3,4,5,6,7,8,9},$P16, TRUE),1), 0) -> 4 | CX16: =_xlfn.IFNA(MATCH(RAND(), _xlfn.POISSON.DIST({0,1,2,3,4,5,6,7,8,9},$P16, TRUE),1), 0) -> 2 | CY16: =_xlfn.IFNA(MATCH(RAND(), _xlfn.POISSON.DIST({0,1,2,3,4,5,6,7,8,9},$P16, TRUE),1), 0) -> 2 | CZ16: =_xlfn.IFNA(MATCH(RAND(), _xlfn.POISSON.DIST({0,1,2,3,4,5,6,7,8,9},$P16, TRUE),1), 0) -> 5 | DA16: =_xlfn.IFNA(MATCH(RAND(), _xlfn.POISSON.DIST({0,1,2,3,4,5,6,7,8,9},$P16, TRUE),1), 0) -> 5 | DB16: =_xlfn.IFNA(MATCH(RAND(), _xlfn.POISSON.DIST({0,1,2,3,4,5,6,7,8,9},$P16, TRUE),1), 0) -> 2 | DC16: =_xlfn.IFNA(MATCH(RAND(), _xlfn.POISSON.DIST({0,1,2,3,4,5,6,7,8,9},$P16, TRUE),1), 0) -> 1 | DD16: =_xlfn.IFNA(MATCH(RAND(), _xlfn.POISSON.DIST({0,1,2,3,4,5,6,7,8,9},$P16, TRUE),1), 0) -> 2 | DE16: =_xlfn.IFNA(MATCH(RAND(), _xlfn.POISSON.DIST({0,1,2,3,4,5,6,7,8,9},$P16, TRUE),1), 0) -> 4 | DF16: =_xlfn.IFNA(MATCH(RAND(), _xlfn.POISSON.DIST({0,1,2,3,4,5,6,7,8,9},$P16, TRUE),1), 0) -> 2 | DG16: =_xlfn.IFNA(MATCH(RAND(), _xlfn.POISSON.DIST({0,1,2,3,4,5,6,7,8,9},$P16, TRUE),1), 0) -> 4 | DH16: =_xlfn.IFNA(MATCH(RAND(), _xlfn.POISSON.DIST({0,1,2,3,4,5,6,7,8,9},$P16, TRUE),1), 0) -> 1 | DI16: =_xlfn.IFNA(MATCH(RAND(), _xlfn.POISSON.DIST({0,1,2,3,4,5,6,7,8,9},$P16, TRUE),1), 0) -> 3 | DJ16: =_xlfn.IFNA(MATCH(RAND(), _xlfn.POISSON.DIST({0,1,2,3,4,5,6,7,8,9},$P16, TRUE),1), 0) -> 2 | DK16: =_xlfn.IFNA(MATCH(RAND(), _xlfn.POISSON.DIST({0,1,2,3,4,5,6,7,8,9},$P16, TRUE),1), 0) -> 0 | DL16: =_xlfn.IFNA(MATCH(RAND(), _xlfn.POISSON.DIST({0,1,2,3,4,5,6,7,8,9},$P16, TRUE),1), 0) -> 5 | DM16: =_xlfn.IFNA(MATCH(RAND(), _xlfn.POISSON.DIST({0,1,2,3,4,5,6,7,8,9},$P16, TRUE),1), 0) -> 2
C17: 2019-06-11 | D17: F | E17: 米国 | F17: =(AVERAGE(Q17:BN17))*(1+INDEX('グループ ステージの予想'!$C$4:$O$28, MATCH(今年の試合!E17,'グループ ステージの予想'!$D$4:$D$28,0),3)) -> 3.04 | G17: タイ | H17: =(AVERAGE(BP17:DM17))*(1+INDEX('グループ ステージの予想'!$C$4:$O$28, MATCH(今年の試合!G17,'グループ ステージの予想'!$D$4:$D$28,0),3)) -> 0.32 | I17: 米国 | L17: 3.04 | M17: 0.32 | N17: 米国 | O17: =(OFFSET('付録 3 - グループごとのゴール'!$C$13,(INDEX('付録 1 - チーム データ'!$C$13:$F$112,MATCH(G17,'付録 1 - チーム データ'!$C$13:$C$112,0),4)/10),(INDEX('付録 1 - チーム データ'!$C$13:$F$112,MATCH(E17,'付録 1 - チーム データ'!$C$13:$C$112,0),4)/10))) -> 2.94 | P17: =OFFSET('付録 3 - グループごとのゴール'!$C$13,(INDEX('付録 1 - チーム データ'!$C$13:$F$112, MATCH(E17,'付録 1 - チーム データ'!$C$13:$C$112,0),4)/10), (INDEX('付録 1 - チーム データ'!$C$13:$F$112, MATCH(G17, '付録 1 - チーム データ'!$C$13:$C$112,0),4)/10)) -> 0.38 | Q17: =_xlfn.IFNA(MATCH(RAND(), _xlfn.POISSON.DIST({0,1,2,3,4,5,6,7,8,9},$O17, TRUE),1), 0) -> 3 | R17: =_xlfn.IFNA(MATCH(RAND(), _xlfn.POISSON.DIST({0,1,2,3,4,5,6,7,8,9},$O17, TRUE),1), 0) -> 1 | S17: =_xlfn.IFNA(MATCH(RAND(), _xlfn.POISSON.DIST({0,1,2,3,4,5,6,7,8,9},$O17, TRUE),1), 0) -> 6 | T17: =_xlfn.IFNA(MATCH(RAND(), _xlfn.POISSON.DIST({0,1,2,3,4,5,6,7,8,9},$O17, TRUE),1), 0) -> 0 | U17: =_xlfn.IFNA(MATCH(RAND(), _xlfn.POISSON.DIST({0,1,2,3,4,5,6,7,8,9},$O17, TRUE),1), 0) -> 5 | V17: =_xlfn.IFNA(MATCH(RAND(), _xlfn.POISSON.DIST({0,1,2,3,4,5,6,7,8,9},$O17, TRUE),1), 0) -> 4 | W17: =_xlfn.IFNA(MATCH(RAND(), _xlfn.POISSON.DIST({0,1,2,3,4,5,6,7,8,9},$O17, TRUE),1), 0) -> 4 | X17: =_xlfn.IFNA(MATCH(RAND(), _xlfn.POISSON.DIST({0,1,2,3,4,5,6,7,8,9},$O17, TRUE),1), 0) -> 1 | Y17: =_xlfn.IFNA(MATCH(RAND(), _xlfn.POISSON.DIST({0,1,2,3,4,5,6,7,8,9},$O17, TRUE),1), 0) -> 3 | Z17: =_xlfn.IFNA(MATCH(RAND(), _xlfn.POISSON.DIST({0,1,2,3,4,5,6,7,8,9},$O17, TRUE),1), 0) -> 4 | AA17: =_xlfn.IFNA(MATCH(RAND(), _xlfn.POISSON.DIST({0,1,2,3,4,5,6,7,8,9},$O17, TRUE),1), 0) -> 3 | AB17: =_xlfn.IFNA(MATCH(RAND(), _xlfn.POISSON.DIST({0,1,2,3,4,5,6,7,8,9},$O17, TRUE),1), 0) -> 2 | AC17: =_xlfn.IFNA(MATCH(RAND(), _xlfn.POISSON.DIST({0,1,2,3,4,5,6,7,8,9},$O17, TRUE),1), 0) -> 2 | AD17: =_xlfn.IFNA(MATCH(RAND(), _xlfn.POISSON.DIST({0,1,2,3,4,5,6,7,8,9},$O17, TRUE),1), 0) -> 5 | AE17: =_xlfn.IFNA(MATCH(RAND(), _xlfn.POISSON.DIST({0,1,2,3,4,5,6,7,8,9},$O17, TRUE),1), 0) -> 0 | AF17: =_xlfn.IFNA(MATCH(RAND(), _xlfn.POISSON.DIST({0,1,2,3,4,5,6,7,8,9},$O17, TRUE),1), 0) -> 3 | AG17: =_xlfn.IFNA(MATCH(RAND(), _xlfn.POISSON.DIST({0,1,2,3,4,5,6,7,8,9},$O17, TRUE),1), 0) -> 4 | AH17: =_xlfn.IFNA(MATCH(RAND(), _xlfn.POISSON.DIST({0,1,2,3,4,5,6,7,8,9},$O17, TRUE),1), 0) -> 2 | AI17: =_xlfn.IFNA(MATCH(RAND(), _xlfn.POISSON.DIST({0,1,2,3,4,5,6,7,8,9},$O17, TRUE),1), 0) -> 4 | AJ17: =_xlfn.IFNA(MATCH(RAND(), _xlfn.POISSON.DIST({0,1,2,3,4,5,6,7,8,9},$O17, TRUE),1), 0) -> 2 | AK17: =_xlfn.IFNA(MATCH(RAND(), _xlfn.POISSON.DIST({0,1,2,3,4,5,6,7,8,9},$O17, TRUE),1), 0) -> 3 | AL17: =_xlfn.IFNA(MATCH(RAND(), _xlfn.POISSON.DIST({0,1,2,3,4,5,6,7,8,9},$O17, TRUE),1), 0) -> 2 | AM17: =_xlfn.IFNA(MATCH(RAND(), _xlfn.POISSON.DIST({0,1,2,3,4,5,6,7,8,9},$O17, TRUE),1), 0) -> 2 | AN17: =_xlfn.IFNA(MATCH(RAND(), _xlfn.POISSON.DIST({0,1,2,3,4,5,6,7,8,9},$O17, TRUE),1), 0) -> 6 | AO17: =_xlfn.IFNA(MATCH(RAND(), _xlfn.POISSON.DIST({0,1,2,3,4,5,6,7,8,9},$O17, TRUE),1), 0) -> 2 | AP17: =_xlfn.IFNA(MATCH(RAND(), _xlfn.POISSON.DIST({0,1,2,3,4,5,6,7,8,9},$O17, TRUE),1), 0) -> 3 | AQ17: =_xlfn.IFNA(MATCH(RAND(), _xlfn.POISSON.DIST({0,1,2,3,4,5,6,7,8,9},$O17, TRUE),1), 0) -> 4 | AR17: =_xlfn.IFNA(MATCH(RAND(), _xlfn.POISSON.DIST({0,1,2,3,4,5,6,7,8,9},$O17, TRUE),1), 0) -> 2 | AS17: =_xlfn.IFNA(MATCH(RAND(), _xlfn.POISSON.DIST({0,1,2,3,4,5,6,7,8,9},$O17, TRUE),1), 0) -> 1 | AT17: =_xlfn.IFNA(MATCH(RAND(), _xlfn.POISSON.DIST({0,1,2,3,4,5,6,7,8,9},$O17, TRUE),1), 0) -> 3 | AU17: =_xlfn.IFNA(MATCH(RAND(), _xlfn.POISSON.DIST({0,1,2,3,4,5,6,7,8,9},$O17, TRUE),1), 0) -> 5 | AV17: =_xlfn.IFNA(MATCH(RAND(), _xlfn.POISSON.DIST({0,1,2,3,4,5,6,7,8,9},$O17, TRUE),1), 0) -> 4 | AW17: =_xlfn.IFNA(MATCH(RAND(), _xlfn.POISSON.DIST({0,1,2,3,4,5,6,7,8,9},$O17, TRUE),1), 0) -> 3 | AX17: =_xlfn.IFNA(MATCH(RAND(), _xlfn.POISSON.DIST({0,1,2,3,4,5,6,7,8,9},$O17, TRUE),1), 0) -> 7 | AY17: =_xlfn.IFNA(MATCH(RAND(), _xlfn.POISSON.DIST({0,1,2,3,4,5,6,7,8,9},$O17, TRUE),1), 0) -> 5 | AZ17: =_xlfn.IFNA(MATCH(RAND(), _xlfn.POISSON.DIST({0,1,2,3,4,5,6,7,8,9},$O17, TRUE),1), 0) -> 2 | BA17: =_xlfn.IFNA(MATCH(RAND(), _xlfn.POISSON.DIST({0,1,2,3,4,5,6,7,8,9},$O17, TRUE),1), 0) -> 2 | BB17: =_xlfn.IFNA(MATCH(RAND(), _xlfn.POISSON.DIST({0,1,2,3,4,5,6,7,8,9},$O17, TRUE),1), 0) -> 3 | BC17: =_xlfn.IFNA(MATCH(RAND(), _xlfn.POISSON.DIST({0,1,2,3,4,5,6,7,8,9},$O17, TRUE),1), 0) -> 1 | BD17: =_xlfn.IFNA(MATCH(RAND(), _xlfn.POISSON.DIST({0,1,2,3,4,5,6,7,8,9},$O17, TRUE),1), 0) -> 4 | BE17: =_xlfn.IFNA(MATCH(RAND(), _xlfn.POISSON.DIST({0,1,2,3,4,5,6,7,8,9},$O17, TRUE),1), 0) -> 4 | BF17: =_xlfn.IFNA(MATCH(RAND(), _xlfn.POISSON.DIST({0,1,2,3,4,5,6,7,8,9},$O17, TRUE),1), 0) -> 2 | BG17: =_xlfn.IFNA(MATCH(RAND(), _xlfn.POISSON.DIST({0,1,2,3,4,5,6,7,8,9},$O17, TRUE),1), 0) -> 1 | BH17: =_xlfn.IFNA(MATCH(RAND(), _xlfn.POISSON.DIST({0,1,2,3,4,5,6,7,8,9},$O17, TRUE),1), 0) -> 4 | BI17: =_xlfn.IFNA(MATCH(RAND(), _xlfn.POISSON.DIST({0,1,2,3,4,5,6,7,8,9},$O17, TRUE),1), 0) -> 2 | BJ17: =_xlfn.IFNA(MATCH(RAND(), _xlfn.POISSON.DIST({0,1,2,3,4,5,6,7,8,9},$O17, TRUE),1), 0) -> 4 | BK17: =_xlfn.IFNA(MATCH(RAND(), _xlfn.POISSON.DIST({0,1,2,3,4,5,6,7,8,9},$O17, TRUE),1), 0) -> 0 | BL17: =_xlfn.IFNA(MATCH(RAND(), _xlfn.POISSON.DIST({0,1,2,3,4,5,6,7,8,9},$O17, TRUE),1), 0) -> 7 | BM17: =_xlfn.IFNA(MATCH(RAND(), _xlfn.POISSON.DIST({0,1,2,3,4,5,6,7,8,9},$O17, TRUE),1), 0) -> 4 | BN17: =_xlfn.IFNA(MATCH(RAND(), _xlfn.POISSON.DIST({0,1,2,3,4,5,6,7,8,9},$O17, TRUE),1), 0) -> 2 | BP17: =_xlfn.IFNA(MATCH(RAND(), _xlfn.POISSON.DIST({0,1,2,3,4,5,6,7,8,9},$P17, TRUE),1), 0) -> 0 | BQ17: =_xlfn.IFNA(MATCH(RAND(), _xlfn.POISSON.DIST({0,1,2,3,4,5,6,7,8,9},$P17, TRUE),1), 0) -> 0 | BR17: =_xlfn.IFNA(MATCH(RAND(), _xlfn.POISSON.DIST({0,1,2,3,4,5,6,7,8,9},$P17, TRUE),1), 0) -> 0 | BS17: =_xlfn.IFNA(MATCH(RAND(), _xlfn.POISSON.DIST({0,1,2,3,4,5,6,7,8,9},$P17, TRUE),1), 0) -> 0 | BT17: =_xlfn.IFNA(MATCH(RAND(), _xlfn.POISSON.DIST({0,1,2,3,4,5,6,7,8,9},$P17, TRUE),1), 0) -> 0 | BU17: =_xlfn.IFNA(MATCH(RAND(), _xlfn.POISSON.DIST({0,1,2,3,4,5,6,7,8,9},$P17, TRUE),1), 0) -> 0 | BV17: =_xlfn.IFNA(MATCH(RAND(), _xlfn.POISSON.DIST({0,1,2,3,4,5,6,7,8,9},$P17, TRUE),1), 0) -> 2 | BW17: =_xlfn.IFNA(MATCH(RAND(), _xlfn.POISSON.DIST({0,1,2,3,4,5,6,7,8,9},$P17, TRUE),1), 0) -> 0 | BX17: =_xlfn.IFNA(MATCH(RAND(), _xlfn.POISSON.DIST({0,1,2,3,4,5,6,7,8,9},$P17, TRUE),1), 0) -> 0 | BY17: =_xlfn.IFNA(MATCH(RAND(), _xlfn.POISSON.DIST({0,1,2,3,4,5,6,7,8,9},$P17, TRUE),1), 0) -> 1 | BZ17: =_xlfn.IFNA(MATCH(RAND(), _xlfn.POISSON.DIST({0,1,2,3,4,5,6,7,8,9},$P17, TRUE),1), 0) -> 0 | CA17: =_xlfn.IFNA(MATCH(RAND(), _xlfn.POISSON.DIST({0,1,2,3,4,5,6,7,8,9},$P17, TRUE),1), 0) -> 0 | CB17: =_xlfn.IFNA(MATCH(RAND(), _xlfn.POISSON.DIST({0,1,2,3,4,5,6,7,8,9},$P17, TRUE),1), 0) -> 0 | CC17: =_xlfn.IFNA(MATCH(RAND(), _xlfn.POISSON.DIST({0,1,2,3,4,5,6,7,8,9},$P17, TRUE),1), 0) -> 0 | CD17: =_xlfn.IFNA(MATCH(RAND(), _xlfn.POISSON.DIST({0,1,2,3,4,5,6,7,8,9},$P17, TRUE),1), 0) -> 0 | CE17: =_xlfn.IFNA(MATCH(RAND(), _xlfn.POISSON.DIST({0,1,2,3,4,5,6,7,8,9},$P17, TRUE),1), 0) -> 0 | CF17: =_xlfn.IFNA(MATCH(RAND(), _xlfn.POISSON.DIST({0,1,2,3,4,5,6,7,8,9},$P17, TRUE),1), 0) -> 0 | CG17: =_xlfn.IFNA(MATCH(RAND(), _xlfn.POISSON.DIST({0,1,2,3,4,5,6,7,8,9},$P17, TRUE),1), 0) -> 0 | CH17: =_xlfn.IFNA(MATCH(RAND(), _xlfn.POISSON.DIST({0,1,2,3,4,5,6,7,8,9},$P17, TRUE),1), 0) -> 0 | CI17: =_xlfn.IFNA(MATCH(RAND(), _xlfn.POISSON.DIST({0,1,2,3,4,5,6,7,8,9},$P17, TRUE),1), 0) -> 2 | CJ17: =_xlfn.IFNA(MATCH(RAND(), _xlfn.POISSON.DIST({0,1,2,3,4,5,6,7,8,9},$P17, TRUE),1), 0) -> 0 | CK17: =_xlfn.IFNA(MATCH(RAND(), _xlfn.POISSON.DIST({0,1,2,3,4,5,6,7,8,9},$P17, TRUE),1), 0) -> 0 | CL17: =_xlfn.IFNA(MATCH(RAND(), _xlfn.POISSON.DIST({0,1,2,3,4,5,6,7,8,9},$P17, TRUE),1), 0) -> 0 | CM17: =_xlfn.IFNA(MATCH(RAND(), _xlfn.POISSON.DIST({0,1,2,3,4,5,6,7,8,9},$P17, TRUE),1), 0) -> 1 | CN17: =_xlfn.IFNA(MATCH(RAND(), _xlfn.POISSON.DIST({0,1,2,3,4,5,6,7,8,9},$P17, TRUE),1), 0) -> 2 | CO17: =_xlfn.IFNA(MATCH(RAND(), _xlfn.POISSON.DIST({0,1,2,3,4,5,6,7,8,9},$P17, TRUE),1), 0) -> 1 | CP17: =_xlfn.IFNA(MATCH(RAND(), _xlfn.POISSON.DIST({0,1,2,3,4,5,6,7,8,9},$P17, TRUE),1), 0) -> 0 | CQ17: =_xlfn.IFNA(MATCH(RAND(), _xlfn.POISSON.DIST({0,1,2,3,4,5,6,7,8,9},$P17, TRUE),1), 0) -> 0 | CR17: =_xlfn.IFNA(MATCH(RAND(), _xlfn.POISSON.DIST({0,1,2,3,4,5,6,7,8,9},$P17, TRUE),1), 0) -> 0 | CS17: =_xlfn.IFNA(MATCH(RAND(), _xlfn.POISSON.DIST({0,1,2,3,4,5,6,7,8,9},$P17, TRUE),1), 0) -> 1 | CT17: =_xlfn.IFNA(MATCH(RAND(), _xlfn.POISSON.DIST({0,1,2,3,4,5,6,7,8,9},$P17, TRUE),1), 0) -> 1 | CU17: =_xlfn.IFNA(MATCH(RAND(), _xlfn.POISSON.DIST({0,1,2,3,4,5,6,7,8,9},$P17, TRUE),1), 0) -> 0 | CV17: =_xlfn.IFNA(MATCH(RAND(), _xlfn.POISSON.DIST({0,1,2,3,4,5,6,7,8,9},$P17, TRUE),1), 0) -> 0 | CW17: =_xlfn.IFNA(MATCH(RAND(), _xlfn.POISSON.DIST({0,1,2,3,4,5,6,7,8,9},$P17, TRUE),1), 0) -> 0 | CX17: =_xlfn.IFNA(MATCH(RAND(), _xlfn.POISSON.DIST({0,1,2,3,4,5,6,7,8,9},$P17, TRUE),1), 0) -> 0 | CY17: =_xlfn.IFNA(MATCH(RAND(), _xlfn.POISSON.DIST({0,1,2,3,4,5,6,7,8,9},$P17, TRUE),1), 0) -> 2 | CZ17: =_xlfn.IFNA(MATCH(RAND(), _xlfn.POISSON.DIST({0,1,2,3,4,5,6,7,8,9},$P17, TRUE),1), 0) -> 1 | DA17: =_xlfn.IFNA(MATCH(RAND(), _xlfn.POISSON.DIST({0,1,2,3,4,5,6,7,8,9},$P17, TRUE),1), 0) -> 0 | DB17: =_xlfn.IFNA(MATCH(RAND(), _xlfn.POISSON.DIST({0,1,2,3,4,5,6,7,8,9},$P17, TRUE),1), 0) -> 1 | DC17: =_xlfn.IFNA(MATCH(RAND(), _xlfn.POISSON.DIST({0,1,2,3,4,5,6,7,8,9},$P17, TRUE),1), 0) -> 0 | DD17: =_xlfn.IFNA(MATCH(RAND(), _xlfn.POISSON.DIST({0,1,2,3,4,5,6,7,8,9},$P17, TRUE),1), 0) -> 0 | DE17: =_xlfn.IFNA(MATCH(RAND(), _xlfn.POISSON.DIST({0,1,2,3,4,5,6,7,8,9},$P17, TRUE),1), 0) -> 0 | DF17: =_xlfn.IFNA(MATCH(RAND(), _xlfn.POISSON.DIST({0,1,2,3,4,5,6,7,8,9},$P17, TRUE),1), 0) -> 0 | DG17: =_xlfn.IFNA(MATCH(RAND(), _xlfn.POISSON.DIST({0,1,2,3,4,5,6,7,8,9},$P17, TRUE),1), 0) -> 1 | DH17: =_xlfn.IFNA(MATCH(RAND(), _xlfn.POISSON.DIST({0,1,2,3,4,5,6,7,8,9},$P17, TRUE),1), 0) -> 0 | DI17: =_xlfn.IFNA(MATCH(RAND(), _xlfn.POISSON.DIST({0,1,2,3,4,5,6,7,8,9},$P17, TRUE),1), 0) -> 0 | DJ17: =_xlfn.IFNA(MATCH(RAND(), _xlfn.POISSON.DIST({0,1,2,3,4,5,6,7,8,9},$P17, TRUE),1), 0) -> 0 | DK17: =_xlfn.IFNA(MATCH(RAND(), _xlfn.POISSON.DIST({0,1,2,3,4,5,6,7,8,9},$P17, TRUE),1), 0) -> 0 | DL17: =_xlfn.IFNA(MATCH(RAND(), _xlfn.POISSON.DIST({0,1,2,3,4,5,6,7,8,9},$P17, TRUE),1), 0) -> 0 | DM17: =_xlfn.IFNA(MATCH(RAND(), _xlfn.POISSON.DIST({0,1,2,3,4,5,6,7,8,9},$P17, TRUE),1), 0) -> 0
C18: 2019-06-12 | D18: A | E18: ナイジェリア | F18: =(AVERAGE(Q18:BN18))*(1+INDEX('グループ ステージの予想'!$C$4:$O$28, MATCH(今年の試合!E18,'グループ ステージの予想'!$D$4:$D$28,0),3)) -> 1.54 | G18: 大韓民国 | H18: =(AVERAGE(BP18:DM18))*(1+INDEX('グループ ステージの予想'!$C$4:$O$28, MATCH(今年の試合!G18,'グループ ステージの予想'!$D$4:$D$28,0),3)) -> 1.52 | I18: ナイジェリア | L18: 1.54 | M18: 1.52 | N18: ナイジェリア | O18: =(OFFSET('付録 3 - グループごとのゴール'!$C$13,(INDEX('付録 1 - チーム データ'!$C$13:$F$112,MATCH(G18,'付録 1 - チーム データ'!$C$13:$C$112,0),4)/10),(INDEX('付録 1 - チーム データ'!$C$13:$F$112,MATCH(E18,'付録 1 - チーム データ'!$C$13:$C$112,0),4)/10))) -> 1.50 | P18: =OFFSET('付録 3 - グループごとのゴール'!$C$13,(INDEX('付録 1 - チーム データ'!$C$13:$F$112, MATCH(E18,'付録 1 - チーム データ'!$C$13:$C$112,0),4)/10), (INDEX('付録 1 - チーム データ'!$C$13:$F$112, MATCH(G18, '付録 1 - チーム データ'!$C$13:$C$112,0),4)/10)) -> 1.50 | Q18: =_xlfn.IFNA(MATCH(RAND(), _xlfn.POISSON.DIST({0,1,2,3,4,5,6,7,8,9},$O18, TRUE),1), 0) -> 0 | R18: =_xlfn.IFNA(MATCH(RAND(), _xlfn.POISSON.DIST({0,1,2,3,4,5,6,7,8,9},$O18, TRUE),1), 0) -> 1 | S18: =_xlfn.IFNA(MATCH(RAND(), _xlfn.POISSON.DIST({0,1,2,3,4,5,6,7,8,9},$O18, TRUE),1), 0) -> 1 | T18: =_xlfn.IFNA(MATCH(RAND(), _xlfn.POISSON.DIST({0,1,2,3,4,5,6,7,8,9},$O18, TRUE),1), 0) -> 1 | U18: =_xlfn.IFNA(MATCH(RAND(), _xlfn.POISSON.DIST({0,1,2,3,4,5,6,7,8,9},$O18, TRUE),1), 0) -> 0 | V18: =_xlfn.IFNA(MATCH(RAND(), _xlfn.POISSON.DIST({0,1,2,3,4,5,6,7,8,9},$O18, TRUE),1), 0) -> 3 | W18: =_xlfn.IFNA(MATCH(RAND(), _xlfn.POISSON.DIST({0,1,2,3,4,5,6,7,8,9},$O18, TRUE),1), 0) -> 1 | X18: =_xlfn.IFNA(MATCH(RAND(), _xlfn.POISSON.DIST({0,1,2,3,4,5,6,7,8,9},$O18, TRUE),1), 0) -> 1 | Y18: =_xlfn.IFNA(MATCH(RAND(), _xlfn.POISSON.DIST({0,1,2,3,4,5,6,7,8,9},$O18, TRUE),1), 0) -> 1 | Z18: =_xlfn.IFNA(MATCH(RAND(), _xlfn.POISSON.DIST({0,1,2,3,4,5,6,7,8,9},$O18, TRUE),1), 0) -> 0 | AA18: =_xlfn.IFNA(MATCH(RAND(), _xlfn.POISSON.DIST({0,1,2,3,4,5,6,7,8,9},$O18, TRUE),1), 0) -> 1 | AB18: =_xlfn.IFNA(MATCH(RAND(), _xlfn.POISSON.DIST({0,1,2,3,4,5,6,7,8,9},$O18, TRUE),1), 0) -> 1 | AC18: =_xlfn.IFNA(MATCH(RAND(), _xlfn.POISSON.DIST({0,1,2,3,4,5,6,7,8,9},$O18, TRUE),1), 0) -> 2 | AD18: =_xlfn.IFNA(MATCH(RAND(), _xlfn.POISSON.DIST({0,1,2,3,4,5,6,7,8,9},$O18, TRUE),1), 0) -> 0 | AE18: =_xlfn.IFNA(MATCH(RAND(), _xlfn.POISSON.DIST({0,1,2,3,4,5,6,7,8,9},$O18, TRUE),1), 0) -> 4 | AF18: =_xlfn.IFNA(MATCH(RAND(), _xlfn.POISSON.DIST({0,1,2,3,4,5,6,7,8,9},$O18, TRUE),1), 0) -> 2 | AG18: =_xlfn.IFNA(MATCH(RAND(), _xlfn.POISSON.DIST({0,1,2,3,4,5,6,7,8,9},$O18, TRUE),1), 0) -> 1 | AH18: =_xlfn.IFNA(MATCH(RAND(), _xlfn.POISSON.DIST({0,1,2,3,4,5,6,7,8,9},$O18, TRUE),1), 0) -> 1 | AI18: =_xlfn.IFNA(MATCH(RAND(), _xlfn.POISSON.DIST({0,1,2,3,4,5,6,7,8,9},$O18, TRUE),1), 0) -> 2 | AJ18: =_xlfn.IFNA(MATCH(RAND(), _xlfn.POISSON.DIST({0,1,2,3,4,5,6,7,8,9},$O18, TRUE),1), 0) -> 2 | AK18: =_xlfn.IFNA(MATCH(RAND(), _xlfn.POISSON.DIST({0,1,2,3,4,5,6,7,8,9},$O18, TRUE),1), 0) -> 2 | AL18: =_xlfn.IFNA(MATCH(RAND(), _xlfn.POISSON.DIST({0,1,2,3,4,5,6,7,8,9},$O18, TRUE),1), 0) -> 2 | AM18: =_xlfn.IFNA(MATCH(RAND(), _xlfn.POISSON.DIST({0,1,2,3,4,5,6,7,8,9},$O18, TRUE),1), 0) -> 2 | AN18: =_xlfn.IFNA(MATCH(RAND(), _xlfn.POISSON.DIST({0,1,2,3,4,5,6,7,8,9},$O18, TRUE),1), 0) -> 1 | AO18: =_xlfn.IFNA(MATCH(RAND(), _xlfn.POISSON.DIST({0,1,2,3,4,5,6,7,8,9},$O18, TRUE),1), 0) -> 1 | AP18: =_xlfn.IFNA(MATCH(RAND(), _xlfn.POISSON.DIST({0,1,2,3,4,5,6,7,8,9},$O18, TRUE),1), 0) -> 3 | AQ18: =_xlfn.IFNA(MATCH(RAND(), _xlfn.POISSON.DIST({0,1,2,3,4,5,6,7,8,9},$O18, TRUE),1), 0) -> 2 | AR18: =_xlfn.IFNA(MATCH(RAND(), _xlfn.POISSON.DIST({0,1,2,3,4,5,6,7,8,9},$O18, TRUE),1), 0) -> 4 | AS18: =_xlfn.IFNA(MATCH(RAND(), _xlfn.POISSON.DIST({0,1,2,3,4,5,6,7,8,9},$O18, TRUE),1), 0) -> 1 | AT18: =_xlfn.IFNA(MATCH(RAND(), _xlfn.POISSON.DIST({0,1,2,3,4,5,6,7,8,9},$O18, TRUE),1), 0) -> 3 | AU18: =_xlfn.IFNA(MATCH(RAND(), _xlfn.POISSON.DIST({0,1,2,3,4,5,6,7,8,9},$O18, TRUE),1), 0) -> 4 | AV18: =_xlfn.IFNA(MATCH(RAND(), _xlfn.POISSON.DIST({0,1,2,3,4,5,6,7,8,9},$O18, TRUE),1), 0) -> 2 | AW18: =_xlfn.IFNA(MATCH(RAND(), _xlfn.POISSON.DIST({0,1,2,3,4,5,6,7,8,9},$O18, TRUE),1), 0) -> 0 | AX18: =_xlfn.IFNA(MATCH(RAND(), _xlfn.POISSON.DIST({0,1,2,3,4,5,6,7,8,9},$O18, TRUE),1), 0) -> 1 | AY18: =_xlfn.IFNA(MATCH(RAND(), _xlfn.POISSON.DIST({0,1,2,3,4,5,6,7,8,9},$O18, TRUE),1), 0) -> 1 | AZ18: =_xlfn.IFNA(MATCH(RAND(), _xlfn.POISSON.DIST({0,1,2,3,4,5,6,7,8,9},$O18, TRUE),1), 0) -> 1 | BA18: =_xlfn.IFNA(MATCH(RAND(), _xlfn.POISSON.DIST({0,1,2,3,4,5,6,7,8,9},$O18, TRUE),1), 0) -> 3 | BB18: =_xlfn.IFNA(MATCH(RAND(), _xlfn.POISSON.DIST({0,1,2,3,4,5,6,7,8,9},$O18, TRUE),1), 0) -> 0 | BC18: =_xlfn.IFNA(MATCH(RAND(), _xlfn.POISSON.DIST({0,1,2,3,4,5,6,7,8,9},$O18, TRUE),1), 0) -> 2 | BD18: =_xlfn.IFNA(MATCH(RAND(), _xlfn.POISSON.DIST({0,1,2,3,4,5,6,7,8,9},$O18, TRUE),1), 0) -> 1 | BE18: =_xlfn.IFNA(MATCH(RAND(), _xlfn.POISSON.DIST({0,1,2,3,4,5,6,7,8,9},$O18, TRUE),1), 0) -> 0 | BF18: =_xlfn.IFNA(MATCH(RAND(), _xlfn.POISSON.DIST({0,1,2,3,4,5,6,7,8,9},$O18, TRUE),1), 0) -> 0 | BG18: =_xlfn.IFNA(MATCH(RAND(), _xlfn.POISSON.DIST({0,1,2,3,4,5,6,7,8,9},$O18, TRUE),1), 0) -> 3 | BH18: =_xlfn.IFNA(MATCH(RAND(), _xlfn.POISSON.DIST({0,1,2,3,4,5,6,7,8,9},$O18, TRUE),1), 0) -> 2 | BI18: =_xlfn.IFNA(MATCH(RAND(), _xlfn.POISSON.DIST({0,1,2,3,4,5,6,7,8,9},$O18, TRUE),1), 0) -> 1 | BJ18: =_xlfn.IFNA(MATCH(RAND(), _xlfn.POISSON.DIST({0,1,2,3,4,5,6,7,8,9},$O18, TRUE),1), 0) -> 4 | BK18: =_xlfn.IFNA(MATCH(RAND(), _xlfn.POISSON.DIST({0,1,2,3,4,5,6,7,8,9},$O18, TRUE),1), 0) -> 3 | BL18: =_xlfn.IFNA(MATCH(RAND(), _xlfn.POISSON.DIST({0,1,2,3,4,5,6,7,8,9},$O18, TRUE),1), 0) -> 1 | BM18: =_xlfn.IFNA(MATCH(RAND(), _xlfn.POISSON.DIST({0,1,2,3,4,5,6,7,8,9},$O18, TRUE),1), 0) -> 2 | BN18: =_xlfn.IFNA(MATCH(RAND(), _xlfn.POISSON.DIST({0,1,2,3,4,5,6,7,8,9},$O18, TRUE),1), 0) -> 0 | BP18: =_xlfn.IFNA(MATCH(RAND(), _xlfn.POISSON.DIST({0,1,2,3,4,5,6,7,8,9},$P18, TRUE),1), 0) -> 0 | BQ18: =_xlfn.IFNA(MATCH(RAND(), _xlfn.POISSON.DIST({0,1,2,3,4,5,6,7,8,9},$P18, TRUE),1), 0) -> 2 | BR18: =_xlfn.IFNA(MATCH(RAND(), _xlfn.POISSON.DIST({0,1,2,3,4,5,6,7,8,9},$P18, TRUE),1), 0) -> 2 | BS18: =_xlfn.IFNA(MATCH(RAND(), _xlfn.POISSON.DIST({0,1,2,3,4,5,6,7,8,9},$P18, TRUE),1), 0) -> 1 | BT18: =_xlfn.IFNA(MATCH(RAND(), _xlfn.POISSON.DIST({0,1,2,3,4,5,6,7,8,9},$P18, TRUE),1), 0) -> 1 | BU18: =_xlfn.IFNA(MATCH(RAND(), _xlfn.POISSON.DIST({0,1,2,3,4,5,6,7,8,9},$P18, TRUE),1), 0) -> 0 | BV18: =_xlfn.IFNA(MATCH(RAND(), _xlfn.POISSON.DIST({0,1,2,3,4,5,6,7,8,9},$P18, TRUE),1), 0) -> 2 | BW18: =_xlfn.IFNA(MATCH(RAND(), _xlfn.POISSON.DIST({0,1,2,3,4,5,6,7,8,9},$P18, TRUE),1), 0) -> 4 | BX18: =_xlfn.IFNA(MATCH(RAND(), _xlfn.POISSON.DIST({0,1,2,3,4,5,6,7,8,9},$P18, TRUE),1), 0) -> 1 | BY18: =_xlfn.IFNA(MATCH(RAND(), _xlfn.POISSON.DIST({0,1,2,3,4,5,6,7,8,9},$P18, TRUE),1), 0) -> 0 | BZ18: =_xlfn.IFNA(MATCH(RAND(), _xlfn.POISSON.DIST({0,1,2,3,4,5,6,7,8,9},$P18, TRUE),1), 0) -> 3 | CA18: =_xlfn.IFNA(MATCH(RAND(), _xlfn.POISSON.DIST({0,1,2,3,4,5,6,7,8,9},$P18, TRUE),1), 0) -> 4 | CB18: =_xlfn.IFNA(MATCH(RAND(), _xlfn.POISSON.DIST({0,1,2,3,4,5,6,7,8,9},$P18, TRUE),1), 0) -> 1 | CC18: =_xlfn.IFNA(MATCH(RAND(), _xlfn.POISSON.DIST({0,1,2,3,4,5,6,7,8,9},$P18, TRUE),1), 0) -> 1 | CD18: =_xlfn.IFNA(MATCH(RAND(), _xlfn.POISSON.DIST({0,1,2,3,4,5,6,7,8,9},$P18, TRUE),1), 0) -> 3 | CE18: =_xlfn.IFNA(MATCH(RAND(), _xlfn.POISSON.DIST({0,1,2,3,4,5,6,7,8,9},$P18, TRUE),1), 0) -> 3 | CF18: =_xlfn.IFNA(MATCH(RAND(), _xlfn.POISSON.DIST({0,1,2,3,4,5,6,7,8,9},$P18, TRUE),1), 0) -> 0 | CG18: =_xlfn.IFNA(MATCH(RAND(), _xlfn.POISSON.DIST({0,1,2,3,4,5,6,7,8,9},$P18, TRUE),1), 0) -> 1 | CH18: =_xlfn.IFNA(MATCH(RAND(), _xlfn.POISSON.DIST({0,1,2,3,4,5,6,7,8,9},$P18, TRUE),1), 0) -> 4 | CI18: =_xlfn.IFNA(MATCH(RAND(), _xlfn.POISSON.DIST({0,1,2,3,4,5,6,7,8,9},$P18, TRUE),1), 0) -> 1 | CJ18: =_xlfn.IFNA(MATCH(RAND(), _xlfn.POISSON.DIST({0,1,2,3,4,5,6,7,8,9},$P18, TRUE),1), 0) -> 1 | CK18: =_xlfn.IFNA(MATCH(RAND(), _xlfn.POISSON.DIST({0,1,2,3,4,5,6,7,8,9},$P18, TRUE),1), 0) -> 1 | CL18: =_xlfn.IFNA(MATCH(RAND(), _xlfn.POISSON.DIST({0,1,2,3,4,5,6,7,8,9},$P18, TRUE),1), 0) -> 2 | CM18: =_xlfn.IFNA(MATCH(RAND(), _xlfn.POISSON.DIST({0,1,2,3,4,5,6,7,8,9},$P18, TRUE),1), 0) -> 1 | CN18: =_xlfn.IFNA(MATCH(RAND(), _xlfn.POISSON.DIST({0,1,2,3,4,5,6,7,8,9},$P18, TRUE),1), 0) -> 3 | CO18: =_xlfn.IFNA(MATCH(RAND(), _xlfn.POISSON.DIST({0,1,2,3,4,5,6,7,8,9},$P18, TRUE),1), 0) -> 0 | CP18: =_xlfn.IFNA(MATCH(RAND(), _xlfn.POISSON.DIST({0,1,2,3,4,5,6,7,8,9},$P18, TRUE),1), 0) -> 3 | CQ18: =_xlfn.IFNA(MATCH(RAND(), _xlfn.POISSON.DIST({0,1,2,3,4,5,6,7,8,9},$P18, TRUE),1), 0) -> 5 | CR18: =_xlfn.IFNA(MATCH(RAND(), _xlfn.POISSON.DIST({0,1,2,3,4,5,6,7,8,9},$P18, TRUE),1), 0) -> 0 | CS18: =_xlfn.IFNA(MATCH(RAND(), _xlfn.POISSON.DIST({0,1,2,3,4,5,6,7,8,9},$P18, TRUE),1), 0) -> 1 | CT18: =_xlfn.IFNA(MATCH(RAND(), _xlfn.POISSON.DIST({0,1,2,3,4,5,6,7,8,9},$P18, TRUE),1), 0) -> 1 | CU18: =_xlfn.IFNA(MATCH(RAND(), _xlfn.POISSON.DIST({0,1,2,3,4,5,6,7,8,9},$P18, TRUE),1), 0) -> 0 | CV18: =_xlfn.IFNA(MATCH(RAND(), _xlfn.POISSON.DIST({0,1,2,3,4,5,6,7,8,9},$P18, TRUE),1), 0) -> 1 | CW18: =_xlfn.IFNA(MATCH(RAND(), _xlfn.POISSON.DIST({0,1,2,3,4,5,6,7,8,9},$P18, TRUE),1), 0) -> 2 | CX18: =_xlfn.IFNA(MATCH(RAND(), _xlfn.POISSON.DIST({0,1,2,3,4,5,6,7,8,9},$P18, TRUE),1), 0) -> 0 | CY18: =_xlfn.IFNA(MATCH(RAND(), _xlfn.POISSON.DIST({0,1,2,3,4,5,6,7,8,9},$P18, TRUE),1), 0) -> 2 | CZ18: =_xlfn.IFNA(MATCH(RAND(), _xlfn.POISSON.DIST({0,1,2,3,4,5,6,7,8,9},$P18, TRUE),1), 0) -> 2 | DA18: =_xlfn.IFNA(MATCH(RAND(), _xlfn.POISSON.DIST({0,1,2,3,4,5,6,7,8,9},$P18, TRUE),1), 0) -> 4 | DB18: =_xlfn.IFNA(MATCH(RAND(), _xlfn.POISSON.DIST({0,1,2,3,4,5,6,7,8,9},$P18, TRUE),1), 0) -> 0 | DC18: =_xlfn.IFNA(MATCH(RAND(), _xlfn.POISSON.DIST({0,1,2,3,4,5,6,7,8,9},$P18, TRUE),1), 0) -> 0 | DD18: =_xlfn.IFNA(MATCH(RAND(), _xlfn.POISSON.DIST({0,1,2,3,4,5,6,7,8,9},$P18, TRUE),1), 0) -> 0 | DE18: =_xlfn.IFNA(MATCH(RAND(), _xlfn.POISSON.DIST({0,1,2,3,4,5,6,7,8,9},$P18, TRUE),1), 0) -> 2 | DF18: =_xlfn.IFNA(MATCH(RAND(), _xlfn.POISSON.DIST({0,1,2,3,4,5,6,7,8,9},$P18, TRUE),1), 0) -> 1 | DG18: =_xlfn.IFNA(MATCH(RAND(), _xlfn.POISSON.DIST({0,1,2,3,4,5,6,7,8,9},$P18, TRUE),1), 0) -> 0 | DH18: =_xlfn.IFNA(MATCH(RAND(), _xlfn.POISSON.DIST({0,1,2,3,4,5,6,7,8,9},$P18, TRUE),1), 0) -> 3 | DI18: =_xlfn.IFNA(MATCH(RAND(), _xlfn.POISSON.DIST({0,1,2,3,4,5,6,7,8,9},$P18, TRUE),1), 0) -> 1 | DJ18: =_xlfn.IFNA(MATCH(RAND(), _xlfn.POISSON.DIST({0,1,2,3,4,5,6,7,8,9},$P18, TRUE),1), 0) -> 3 | DK18: =_xlfn.IFNA(MATCH(RAND(), _xlfn.POISSON.DIST({0,1,2,3,4,5,6,7,8,9},$P18, TRUE),1), 0) -> 1 | DL18: =_xlfn.IFNA(MATCH(RAND(), _xlfn.POISSON.DIST({0,1,2,3,4,5,6,7,8,9},$P18, TRUE),1), 0) -> 1 | DM18: =_xlfn.IFNA(MATCH(RAND(), _xlfn.POISSON.DIST({0,1,2,3,4,5,6,7,8,9},$P18, TRUE),1), 0) -> 1
C19: 2019-06-12 | D19: B | E19: ドイツ | F19: =(AVERAGE(Q19:BN19))*(1+INDEX('グループ ステージの予想'!$C$4:$O$28, MATCH(今年の試合!E19,'グループ ステージの予想'!$D$4:$D$28,0),3)) -> 1.48 | G19: スペイン | H19: =(AVERAGE(BP19:DM19))*(1+INDEX('グループ ステージの予想'!$C$4:$O$28, MATCH(今年の試合!G19,'グループ ステージの予想'!$D$4:$D$28,0),3)) -> 1.48 | I19: 組み合わせ | L19: 1.48 | M19: 1.48 | N19: 引き分け | O19: =(OFFSET('付録 3 - グループごとのゴール'!$C$13,(INDEX('付録 1 - チーム データ'!$C$13:$F$112,MATCH(G19,'付録 1 - チーム データ'!$C$13:$C$112,0),4)/10),(INDEX('付録 1 - チーム データ'!$C$13:$F$112,MATCH(E19,'付録 1 - チーム データ'!$C$13:$C$112,0),4)/10))) -> 1.50 | P19: =OFFSET('付録 3 - グループごとのゴール'!$C$13,(INDEX('付録 1 - チーム データ'!$C$13:$F$112, MATCH(E19,'付録 1 - チーム データ'!$C$13:$C$112,0),4)/10), (INDEX('付録 1 - チーム データ'!$C$13:$F$112, MATCH(G19, '付録 1 - チーム データ'!$C$13:$C$112,0),4)/10)) -> 1.50 | Q19: =_xlfn.IFNA(MATCH(RAND(), _xlfn.POISSON.DIST({0,1,2,3,4,5,6,7,8,9},$O19, TRUE),1), 0) -> 5 | R19: =_xlfn.IFNA(MATCH(RAND(), _xlfn.POISSON.DIST({0,1,2,3,4,5,6,7,8,9},$O19, TRUE),1), 0) -> 5 | S19: =_xlfn.IFNA(MATCH(RAND(), _xlfn.POISSON.DIST({0,1,2,3,4,5,6,7,8,9},$O19, TRUE),1), 0) -> 0 | T19: =_xlfn.IFNA(MATCH(RAND(), _xlfn.POISSON.DIST({0,1,2,3,4,5,6,7,8,9},$O19, TRUE),1), 0) -> 1 | U19: =_xlfn.IFNA(MATCH(RAND(), _xlfn.POISSON.DIST({0,1,2,3,4,5,6,7,8,9},$O19, TRUE),1), 0) -> 1 | V19: =_xlfn.IFNA(MATCH(RAND(), _xlfn.POISSON.DIST({0,1,2,3,4,5,6,7,8,9},$O19, TRUE),1), 0) -> 0 | W19: =_xlfn.IFNA(MATCH(RAND(), _xlfn.POISSON.DIST({0,1,2,3,4,5,6,7,8,9},$O19, TRUE),1), 0) -> 1 | X19: =_xlfn.IFNA(MATCH(RAND(), _xlfn.POISSON.DIST({0,1,2,3,4,5,6,7,8,9},$O19, TRUE),1), 0) -> 1 | Y19: =_xlfn.IFNA(MATCH(RAND(), _xlfn.POISSON.DIST({0,1,2,3,4,5,6,7,8,9},$O19, TRUE),1), 0) -> 1 | Z19: =_xlfn.IFNA(MATCH(RAND(), _xlfn.POISSON.DIST({0,1,2,3,4,5,6,7,8,9},$O19, TRUE),1), 0) -> 3 | AA19: =_xlfn.IFNA(MATCH(RAND(), _xlfn.POISSON.DIST({0,1,2,3,4,5,6,7,8,9},$O19, TRUE),1), 0) -> 0 | AB19: =_xlfn.IFNA(MATCH(RAND(), _xlfn.POISSON.DIST({0,1,2,3,4,5,6,7,8,9},$O19, TRUE),1), 0) -> 0 | AC19: =_xlfn.IFNA(MATCH(RAND(), _xlfn.POISSON.DIST({0,1,2,3,4,5,6,7,8,9},$O19, TRUE),1), 0) -> 3 | AD19: =_xlfn.IFNA(MATCH(RAND(), _xlfn.POISSON.DIST({0,1,2,3,4,5,6,7,8,9},$O19, TRUE),1), 0) -> 2 | AE19: =_xlfn.IFNA(MATCH(RAND(), _xlfn.POISSON.DIST({0,1,2,3,4,5,6,7,8,9},$O19, TRUE),1), 0) -> 0 | AF19: =_xlfn.IFNA(MATCH(RAND(), _xlfn.POISSON.DIST({0,1,2,3,4,5,6,7,8,9},$O19, TRUE),1), 0) -> 0 | AG19: =_xlfn.IFNA(MATCH(RAND(), _xlfn.POISSON.DIST({0,1,2,3,4,5,6,7,8,9},$O19, TRUE),1), 0) -> 2 | AH19: =_xlfn.IFNA(MATCH(RAND(), _xlfn.POISSON.DIST({0,1,2,3,4,5,6,7,8,9},$O19, TRUE),1), 0) -> 3 | AI19: =_xlfn.IFNA(MATCH(RAND(), _xlfn.POISSON.DIST({0,1,2,3,4,5,6,7,8,9},$O19, TRUE),1), 0) -> 2 | AJ19: =_xlfn.IFNA(MATCH(RAND(), _xlfn.POISSON.DIST({0,1,2,3,4,5,6,7,8,9},$O19, TRUE),1), 0) -> 2 | AK19: =_xlfn.IFNA(MATCH(RAND(), _xlfn.POISSON.DIST({0,1,2,3,4,5,6,7,8,9},$O19, TRUE),1), 0) -> 1 | AL19: =_xlfn.IFNA(MATCH(RAND(), _xlfn.POISSON.DIST({0,1,2,3,4,5,6,7,8,9},$O19, TRUE),1), 0) -> 0 | AM19: =_xlfn.IFNA(MATCH(RAND(), _xlfn.POISSON.DIST({0,1,2,3,4,5,6,7,8,9},$O19, TRUE),1), 0) -> 3 | AN19: =_xlfn.IFNA(MATCH(RAND(), _xlfn.POISSON.DIST({0,1,2,3,4,5,6,7,8,9},$O19, TRUE),1), 0) -> 1 | AO19: =_xlfn.IFNA(MATCH(RAND(), _xlfn.POISSON.DIST({0,1,2,3,4,5,6,7,8,9},$O19, TRUE),1), 0) -> 0 | AP19: =_xlfn.IFNA(MATCH(RAND(), _xlfn.POISSON.DIST({0,1,2,3,4,5,6,7,8,9},$O19, TRUE),1), 0) -> 1 | AQ19: =_xlfn.IFNA(MATCH(RAND(), _xlfn.POISSON.DIST({0,1,2,3,4,5,6,7,8,9},$O19, TRUE),1), 0) -> 1 | AR19: =_xlfn.IFNA(MATCH(RAND(), _xlfn.POISSON.DIST({0,1,2,3,4,5,6,7,8,9},$O19, TRUE),1), 0) -> 0 | AS19: =_xlfn.IFNA(MATCH(RAND(), _xlfn.POISSON.DIST({0,1,2,3,4,5,6,7,8,9},$O19, TRUE),1), 0) -> 3 | AT19: =_xlfn.IFNA(MATCH(RAND(), _xlfn.POISSON.DIST({0,1,2,3,4,5,6,7,8,9},$O19, TRUE),1), 0) -> 0 | AU19: =_xlfn.IFNA(MATCH(RAND(), _xlfn.POISSON.DIST({0,1,2,3,4,5,6,7,8,9},$O19, TRUE),1), 0) -> 4 | AV19: =_xlfn.IFNA(MATCH(RAND(), _xlfn.POISSON.DIST({0,1,2,3,4,5,6,7,8,9},$O19, TRUE),1), 0) -> 2 | AW19: =_xlfn.IFNA(MATCH(RAND(), _xlfn.POISSON.DIST({0,1,2,3,4,5,6,7,8,9},$O19, TRUE),1), 0) -> 1 | AX19: =_xlfn.IFNA(MATCH(RAND(), _xlfn.POISSON.DIST({0,1,2,3,4,5,6,7,8,9},$O19, TRUE),1), 0) -> 1 | AY19: =_xlfn.IFNA(MATCH(RAND(), _xlfn.POISSON.DIST({0,1,2,3,4,5,6,7,8,9},$O19, TRUE),1), 0) -> 3 | AZ19: =_xlfn.IFNA(MATCH(RAND(), _xlfn.POISSON.DIST({0,1,2,3,4,5,6,7,8,9},$O19, TRUE),1), 0) -> 3 | BA19: =_xlfn.IFNA(MATCH(RAND(), _xlfn.POISSON.DIST({0,1,2,3,4,5,6,7,8,9},$O19, TRUE),1), 0) -> 1 | BB19: =_xlfn.IFNA(MATCH(RAND(), _xlfn.POISSON.DIST({0,1,2,3,4,5,6,7,8,9},$O19, TRUE),1), 0) -> 1 | BC19: =_xlfn.IFNA(MATCH(RAND(), _xlfn.POISSON.DIST({0,1,2,3,4,5,6,7,8,9},$O19, TRUE),1), 0) -> 0 | BD19: =_xlfn.IFNA(MATCH(RAND(), _xlfn.POISSON.DIST({0,1,2,3,4,5,6,7,8,9},$O19, TRUE),1), 0) -> 2 | BE19: =_xlfn.IFNA(MATCH(RAND(), _xlfn.POISSON.DIST({0,1,2,3,4,5,6,7,8,9},$O19, TRUE),1), 0) -> 2 | BF19: =_xlfn.IFNA(MATCH(RAND(), _xlfn.POISSON.DIST({0,1,2,3,4,5,6,7,8,9},$O19, TRUE),1), 0) -> 2 | BG19: =_xlfn.IFNA(MATCH(RAND(), _xlfn.POISSON.DIST({0,1,2,3,4,5,6,7,8,9},$O19, TRUE),1), 0) -> 1 | BH19: =_xlfn.IFNA(MATCH(RAND(), _xlfn.POISSON.DIST({0,1,2,3,4,5,6,7,8,9},$O19, TRUE),1), 0) -> 2 | BI19: =_xlfn.IFNA(MATCH(RAND(), _xlfn.POISSON.DIST({0,1,2,3,4,5,6,7,8,9},$O19, TRUE),1), 0) -> 0 | BJ19: =_xlfn.IFNA(MATCH(RAND(), _xlfn.POISSON.DIST({0,1,2,3,4,5,6,7,8,9},$O19, TRUE),1), 0) -> 1 | BK19: =_xlfn.IFNA(MATCH(RAND(), _xlfn.POISSON.DIST({0,1,2,3,4,5,6,7,8,9},$O19, TRUE),1), 0) -> 1 | BL19: =_xlfn.IFNA(MATCH(RAND(), _xlfn.POISSON.DIST({0,1,2,3,4,5,6,7,8,9},$O19, TRUE),1), 0) -> 2 | BM19: =_xlfn.IFNA(MATCH(RAND(), _xlfn.POISSON.DIST({0,1,2,3,4,5,6,7,8,9},$O19, TRUE),1), 0) -> 0 | BN19: =_xlfn.IFNA(MATCH(RAND(), _xlfn.POISSON.DIST({0,1,2,3,4,5,6,7,8,9},$O19, TRUE),1), 0) -> 3 | BP19: =_xlfn.IFNA(MATCH(RAND(), _xlfn.POISSON.DIST({0,1,2,3,4,5,6,7,8,9},$P19, TRUE),1), 0) -> 2 | BQ19: =_xlfn.IFNA(MATCH(RAND(), _xlfn.POISSON.DIST({0,1,2,3,4,5,6,7,8,9},$P19, TRUE),1), 0) -> 3 | BR19: =_xlfn.IFNA(MATCH(RAND(), _xlfn.POISSON.DIST({0,1,2,3,4,5,6,7,8,9},$P19, TRUE),1), 0) -> 2 | BS19: =_xlfn.IFNA(MATCH(RAND(), _xlfn.POISSON.DIST({0,1,2,3,4,5,6,7,8,9},$P19, TRUE),1), 0) -> 0 | BT19: =_xlfn.IFNA(MATCH(RAND(), _xlfn.POISSON.DIST({0,1,2,3,4,5,6,7,8,9},$P19, TRUE),1), 0) -> 2 | BU19: =_xlfn.IFNA(MATCH(RAND(), _xlfn.POISSON.DIST({0,1,2,3,4,5,6,7,8,9},$P19, TRUE),1), 0) -> 3 | BV19: =_xlfn.IFNA(MATCH(RAND(), _xlfn.POISSON.DIST({0,1,2,3,4,5,6,7,8,9},$P19, TRUE),1), 0) -> 2 | BW19: =_xlfn.IFNA(MATCH(RAND(), _xlfn.POISSON.DIST({0,1,2,3,4,5,6,7,8,9},$P19, TRUE),1), 0) -> 0 | BX19: =_xlfn.IFNA(MATCH(RAND(), _xlfn.POISSON.DIST({0,1,2,3,4,5,6,7,8,9},$P19, TRUE),1), 0) -> 2 | BY19: =_xlfn.IFNA(MATCH(RAND(), _xlfn.POISSON.DIST({0,1,2,3,4,5,6,7,8,9},$P19, TRUE),1), 0) -> 0 | BZ19: =_xlfn.IFNA(MATCH(RAND(), _xlfn.POISSON.DIST({0,1,2,3,4,5,6,7,8,9},$P19, TRUE),1), 0) -> 1 | CA19: =_xlfn.IFNA(MATCH(RAND(), _xlfn.POISSON.DIST({0,1,2,3,4,5,6,7,8,9},$P19, TRUE),1), 0) -> 1 | CB19: =_xlfn.IFNA(MATCH(RAND(), _xlfn.POISSON.DIST({0,1,2,3,4,5,6,7,8,9},$P19, TRUE),1), 0) -> 1 | CC19: =_xlfn.IFNA(MATCH(RAND(), _xlfn.POISSON.DIST({0,1,2,3,4,5,6,7,8,9},$P19, TRUE),1), 0) -> 2 | CD19: =_xlfn.IFNA(MATCH(RAND(), _xlfn.POISSON.DIST({0,1,2,3,4,5,6,7,8,9},$P19, TRUE),1), 0) -> 1 | CE19: =_xlfn.IFNA(MATCH(RAND(), _xlfn.POISSON.DIST({0,1,2,3,4,5,6,7,8,9},$P19, TRUE),1), 0) -> 0 | CF19: =_xlfn.IFNA(MATCH(RAND(), _xlfn.POISSON.DIST({0,1,2,3,4,5,6,7,8,9},$P19, TRUE),1), 0) -> 1 | CG19: =_xlfn.IFNA(MATCH(RAND(), _xlfn.POISSON.DIST({0,1,2,3,4,5,6,7,8,9},$P19, TRUE),1), 0) -> 1 | CH19: =_xlfn.IFNA(MATCH(RAND(), _xlfn.POISSON.DIST({0,1,2,3,4,5,6,7,8,9},$P19, TRUE),1), 0) -> 0 | CI19: =_xlfn.IFNA(MATCH(RAND(), _xlfn.POISSON.DIST({0,1,2,3,4,5,6,7,8,9},$P19, TRUE),1), 0) -> 0 | CJ19: =_xlfn.IFNA(MATCH(RAND(), _xlfn.POISSON.DIST({0,1,2,3,4,5,6,7,8,9},$P19, TRUE),1), 0) -> 1 | CK19: =_xlfn.IFNA(MATCH(RAND(), _xlfn.POISSON.DIST({0,1,2,3,4,5,6,7,8,9},$P19, TRUE),1), 0) -> 1 | CL19: =_xlfn.IFNA(MATCH(RAND(), _xlfn.POISSON.DIST({0,1,2,3,4,5,6,7,8,9},$P19, TRUE),1), 0) -> 2 | CM19: =_xlfn.IFNA(MATCH(RAND(), _xlfn.POISSON.DIST({0,1,2,3,4,5,6,7,8,9},$P19, TRUE),1), 0) -> 0 | CN19: =_xlfn.IFNA(MATCH(RAND(), _xlfn.POISSON.DIST({0,1,2,3,4,5,6,7,8,9},$P19, TRUE),1), 0) -> 0 | CO19: =_xlfn.IFNA(MATCH(RAND(), _xlfn.POISSON.DIST({0,1,2,3,4,5,6,7,8,9},$P19, TRUE),1), 0) -> 3 | CP19: =_xlfn.IFNA(MATCH(RAND(), _xlfn.POISSON.DIST({0,1,2,3,4,5,6,7,8,9},$P19, TRUE),1), 0) -> 3 | CQ19: =_xlfn.IFNA(MATCH(RAND(), _xlfn.POISSON.DIST({0,1,2,3,4,5,6,7,8,9},$P19, TRUE),1), 0) -> 1 | CR19: =_xlfn.IFNA(MATCH(RAND(), _xlfn.POISSON.DIST({0,1,2,3,4,5,6,7,8,9},$P19, TRUE),1), 0) -> 1 | CS19: =_xlfn.IFNA(MATCH(RAND(), _xlfn.POISSON.DIST({0,1,2,3,4,5,6,7,8,9},$P19, TRUE),1), 0) -> 1 | CT19: =_xlfn.IFNA(MATCH(RAND(), _xlfn.POISSON.DIST({0,1,2,3,4,5,6,7,8,9},$P19, TRUE),1), 0) -> 0 | CU19: =_xlfn.IFNA(MATCH(RAND(), _xlfn.POISSON.DIST({0,1,2,3,4,5,6,7,8,9},$P19, TRUE),1), 0) -> 4 | CV19: =_xlfn.IFNA(MATCH(RAND(), _xlfn.POISSON.DIST({0,1,2,3,4,5,6,7,8,9},$P19, TRUE),1), 0) -> 0 | CW19: =_xlfn.IFNA(MATCH(RAND(), _xlfn.POISSON.DIST({0,1,2,3,4,5,6,7,8,9},$P19, TRUE),1), 0) -> 4 | CX19: =_xlfn.IFNA(MATCH(RAND(), _xlfn.POISSON.DIST({0,1,2,3,4,5,6,7,8,9},$P19, TRUE),1), 0) -> 2 | CY19: =_xlfn.IFNA(MATCH(RAND(), _xlfn.POISSON.DIST({0,1,2,3,4,5,6,7,8,9},$P19, TRUE),1), 0) -> 1 | CZ19: =_xlfn.IFNA(MATCH(RAND(), _xlfn.POISSON.DIST({0,1,2,3,4,5,6,7,8,9},$P19, TRUE),1), 0) -> 3 | DA19: =_xlfn.IFNA(MATCH(RAND(), _xlfn.POISSON.DIST({0,1,2,3,4,5,6,7,8,9},$P19, TRUE),1), 0) -> 4 | DB19: =_xlfn.IFNA(MATCH(RAND(), _xlfn.POISSON.DIST({0,1,2,3,4,5,6,7,8,9},$P19, TRUE),1), 0) -> 2 | DC19: =_xlfn.IFNA(MATCH(RAND(), _xlfn.POISSON.DIST({0,1,2,3,4,5,6,7,8,9},$P19, TRUE),1), 0) -> 1 | DD19: =_xlfn.IFNA(MATCH(RAND(), _xlfn.POISSON.DIST({0,1,2,3,4,5,6,7,8,9},$P19, TRUE),1), 0) -> 1 | DE19: =_xlfn.IFNA(MATCH(RAND(), _xlfn.POISSON.DIST({0,1,2,3,4,5,6,7,8,9},$P19, TRUE),1), 0) -> 3 | DF19: =_xlfn.IFNA(MATCH(RAND(), _xlfn.POISSON.DIST({0,1,2,3,4,5,6,7,8,9},$P19, TRUE),1), 0) -> 2 | DG19: =_xlfn.IFNA(MATCH(RAND(), _xlfn.POISSON.DIST({0,1,2,3,4,5,6,7,8,9},$P19, TRUE),1), 0) -> 3 | DH19: =_xlfn.IFNA(MATCH(RAND(), _xlfn.POISSON.DIST({0,1,2,3,4,5,6,7,8,9},$P19, TRUE),1), 0) -> 2 | DI19: =_xlfn.IFNA(MATCH(RAND(), _xlfn.POISSON.DIST({0,1,2,3,4,5,6,7,8,9},$P19, TRUE),1), 0) -> 0 | DJ19: =_xlfn.IFNA(MATCH(RAND(), _xlfn.POISSON.DIST({0,1,2,3,4,5,6,7,8,9},$P19, TRUE),1), 0) -> 3 | DK19: =_xlfn.IFNA(MATCH(RAND(), _xlfn.POISSON.DIST({0,1,2,3,4,5,6,7,8,9},$P19, TRUE),1), 0) -> 0 | DL19: =_xlfn.IFNA(MATCH(RAND(), _xlfn.POISSON.DIST({0,1,2,3,4,5,6,7,8,9},$P19, TRUE),1), 0) -> 1 | DM19: =_xlfn.IFNA(MATCH(RAND(), _xlfn.POISSON.DIST({0,1,2,3,4,5,6,7,8,9},$P19, TRUE),1), 0) -> 1
C20: 2019-06-12 | D20: A | E20: フランス | F20: =(AVERAGE(Q20:BN20))*(1+INDEX('グループ ステージの予想'!$C$4:$O$28, MATCH(今年の試合!E20,'グループ ステージの予想'!$D$4:$D$28,0),3)) -> 1.82 | G20: ノルウェー | H20: =(AVERAGE(BP20:DM20))*(1+INDEX('グループ ステージの予想'!$C$4:$O$28, MATCH(今年の試合!G20,'グループ ステージの予想'!$D$4:$D$28,0),3)) -> 1.40 | I20: フランス | L20: 1.82 | M20: 1.4 | N20: フランス | O20: =(OFFSET('付録 3 - グループごとのゴール'!$C$13,(INDEX('付録 1 - チーム データ'!$C$13:$F$112,MATCH(G20,'付録 1 - チーム データ'!$C$13:$C$112,0),4)/10),(INDEX('付録 1 - チーム データ'!$C$13:$F$112,MATCH(E20,'付録 1 - チーム データ'!$C$13:$C$112,0),4)/10))) -> 1.50 | P20: =OFFSET('付録 3 - グループごとのゴール'!$C$13,(INDEX('付録 1 - チーム データ'!$C$13:$F$112, MATCH(E20,'付録 1 - チーム データ'!$C$13:$C$112,0),4)/10), (INDEX('付録 1 - チーム データ'!$C$13:$F$112, MATCH(G20, '付録 1 - チーム データ'!$C$13:$C$112,0),4)/10)) -> 1.50 | Q20: =_xlfn.IFNA(MATCH(RAND(), _xlfn.POISSON.DIST({0,1,2,3,4,5,6,7,8,9},$O20, TRUE),1), 0) -> 3 | R20: =_xlfn.IFNA(MATCH(RAND(), _xlfn.POISSON.DIST({0,1,2,3,4,5,6,7,8,9},$O20, TRUE),1), 0) -> 3 | S20: =_xlfn.IFNA(MATCH(RAND(), _xlfn.POISSON.DIST({0,1,2,3,4,5,6,7,8,9},$O20, TRUE),1), 0) -> 1 | T20: =_xlfn.IFNA(MATCH(RAND(), _xlfn.POISSON.DIST({0,1,2,3,4,5,6,7,8,9},$O20, TRUE),1), 0) -> 2 | U20: =_xlfn.IFNA(MATCH(RAND(), _xlfn.POISSON.DIST({0,1,2,3,4,5,6,7,8,9},$O20, TRUE),1), 0) -> 2 | V20: =_xlfn.IFNA(MATCH(RAND(), _xlfn.POISSON.DIST({0,1,2,3,4,5,6,7,8,9},$O20, TRUE),1), 0) -> 3 | W20: =_xlfn.IFNA(MATCH(RAND(), _xlfn.POISSON.DIST({0,1,2,3,4,5,6,7,8,9},$O20, TRUE),1), 0) -> 5 | X20: =_xlfn.IFNA(MATCH(RAND(), _xlfn.POISSON.DIST({0,1,2,3,4,5,6,7,8,9},$O20, TRUE),1), 0) -> 2 | Y20: =_xlfn.IFNA(MATCH(RAND(), _xlfn.POISSON.DIST({0,1,2,3,4,5,6,7,8,9},$O20, TRUE),1), 0) -> 1 | Z20: =_xlfn.IFNA(MATCH(RAND(), _xlfn.POISSON.DIST({0,1,2,3,4,5,6,7,8,9},$O20, TRUE),1), 0) -> 1 | AA20: =_xlfn.IFNA(MATCH(RAND(), _xlfn.POISSON.DIST({0,1,2,3,4,5,6,7,8,9},$O20, TRUE),1), 0) -> 1 | AB20: =_xlfn.IFNA(MATCH(RAND(), _xlfn.POISSON.DIST({0,1,2,3,4,5,6,7,8,9},$O20, TRUE),1), 0) -> 0 | AC20: =_xlfn.IFNA(MATCH(RAND(), _xlfn.POISSON.DIST({0,1,2,3,4,5,6,7,8,9},$O20, TRUE),1), 0) -> 2 | AD20: =_xlfn.IFNA(MATCH(RAND(), _xlfn.POISSON.DIST({0,1,2,3,4,5,6,7,8,9},$O20, TRUE),1), 0) -> 3 | AE20: =_xlfn.IFNA(MATCH(RAND(), _xlfn.POISSON.DIST({0,1,2,3,4,5,6,7,8,9},$O20, TRUE),1), 0) -> 1 | AF20: =_xlfn.IFNA(MATCH(RAND(), _xlfn.POISSON.DIST({0,1,2,3,4,5,6,7,8,9},$O20, TRUE),1), 0) -> 0 | AG20: =_xlfn.IFNA(MATCH(RAND(), _xlfn.POISSON.DIST({0,1,2,3,4,5,6,7,8,9},$O20, TRUE),1), 0) -> 2 | AH20: =_xlfn.IFNA(MATCH(RAND(), _xlfn.POISSON.DIST({0,1,2,3,4,5,6,7,8,9},$O20, TRUE),1), 0) -> 3 | AI20: =_xlfn.IFNA(MATCH(RAND(), _xlfn.POISSON.DIST({0,1,2,3,4,5,6,7,8,9},$O20, TRUE),1), 0) -> 1 | AJ20: =_xlfn.IFNA(MATCH(RAND(), _xlfn.POISSON.DIST({0,1,2,3,4,5,6,7,8,9},$O20, TRUE),1), 0) -> 4 | AK20: =_xlfn.IFNA(MATCH(RAND(), _xlfn.POISSON.DIST({0,1,2,3,4,5,6,7,8,9},$O20, TRUE),1), 0) -> 1 | AL20: =_xlfn.IFNA(MATCH(RAND(), _xlfn.POISSON.DIST({0,1,2,3,4,5,6,7,8,9},$O20, TRUE),1), 0) -> 4 | AM20: =_xlfn.IFNA(MATCH(RAND(), _xlfn.POISSON.DIST({0,1,2,3,4,5,6,7,8,9},$O20, TRUE),1), 0) -> 3 | AN20: =_xlfn.IFNA(MATCH(RAND(), _xlfn.POISSON.DIST({0,1,2,3,4,5,6,7,8,9},$O20, TRUE),1), 0) -> 1 | AO20: =_xlfn.IFNA(MATCH(RAND(), _xlfn.POISSON.DIST({0,1,2,3,4,5,6,7,8,9},$O20, TRUE),1), 0) -> 1 | AP20: =_xlfn.IFNA(MATCH(RAND(), _xlfn.POISSON.DIST({0,1,2,3,4,5,6,7,8,9},$O20, TRUE),1), 0) -> 5 | AQ20: =_xlfn.IFNA(MATCH(RAND(), _xlfn.POISSON.DIST({0,1,2,3,4,5,6,7,8,9},$O20, TRUE),1), 0) -> 1 | AR20: =_xlfn.IFNA(MATCH(RAND(), _xlfn.POISSON.DIST({0,1,2,3,4,5,6,7,8,9},$O20, TRUE),1), 0) -> 2 | AS20: =_xlfn.IFNA(MATCH(RAND(), _xlfn.POISSON.DIST({0,1,2,3,4,5,6,7,8,9},$O20, TRUE),1), 0) -> 1 | AT20: =_xlfn.IFNA(MATCH(RAND(), _xlfn.POISSON.DIST({0,1,2,3,4,5,6,7,8,9},$O20, TRUE),1), 0) -> 4 | AU20: =_xlfn.IFNA(MATCH(RAND(), _xlfn.POISSON.DIST({0,1,2,3,4,5,6,7,8,9},$O20, TRUE),1), 0) -> 0 | AV20: =_xlfn.IFNA(MATCH(RAND(), _xlfn.POISSON.DIST({0,1,2,3,4,5,6,7,8,9},$O20, TRUE),1), 0) -> 4 | AW20: =_xlfn.IFNA(MATCH(RAND(), _xlfn.POISSON.DIST({0,1,2,3,4,5,6,7,8,9},$O20, TRUE),1), 0) -> 0 | AX20: =_xlfn.IFNA(MATCH(RAND(), _xlfn.POISSON.DIST({0,1,2,3,4,5,6,7,8,9},$O20, TRUE),1), 0) -> 2 | AY20: =_xlfn.IFNA(MATCH(RAND(), _xlfn.POISSON.DIST({0,1,2,3,4,5,6,7,8,9},$O20, TRUE),1), 0) -> 2 | AZ20: =_xlfn.IFNA(MATCH(RAND(), _xlfn.POISSON.DIST({0,1,2,3,4,5,6,7,8,9},$O20, TRUE),1), 0) -> 0 | BA20: =_xlfn.IFNA(MATCH(RAND(), _xlfn.POISSON.DIST({0,1,2,3,4,5,6,7,8,9},$O20, TRUE),1), 0) -> 1 | BB20: =_xlfn.IFNA(MATCH(RAND(), _xlfn.POISSON.DIST({0,1,2,3,4,5,6,7,8,9},$O20, TRUE),1), 0) -> 2 | BC20: =_xlfn.IFNA(MATCH(RAND(), _xlfn.POISSON.DIST({0,1,2,3,4,5,6,7,8,9},$O20, TRUE),1), 0) -> 1 | BD20: =_xlfn.IFNA(MATCH(RAND(), _xlfn.POISSON.DIST({0,1,2,3,4,5,6,7,8,9},$O20, TRUE),1), 0) -> 2 | BE20: =_xlfn.IFNA(MATCH(RAND(), _xlfn.POISSON.DIST({0,1,2,3,4,5,6,7,8,9},$O20, TRUE),1), 0) -> 1 | BF20: =_xlfn.IFNA(MATCH(RAND(), _xlfn.POISSON.DIST({0,1,2,3,4,5,6,7,8,9},$O20, TRUE),1), 0) -> 2 | BG20: =_xlfn.IFNA(MATCH(RAND(), _xlfn.POISSON.DIST({0,1,2,3,4,5,6,7,8,9},$O20, TRUE),1), 0) -> 0 | BH20: =_xlfn.IFNA(MATCH(RAND(), _xlfn.POISSON.DIST({0,1,2,3,4,5,6,7,8,9},$O20, TRUE),1), 0) -> 2 | BI20: =_xlfn.IFNA(MATCH(RAND(), _xlfn.POISSON.DIST({0,1,2,3,4,5,6,7,8,9},$O20, TRUE),1), 0) -> 0 | BJ20: =_xlfn.IFNA(MATCH(RAND(), _xlfn.POISSON.DIST({0,1,2,3,4,5,6,7,8,9},$O20, TRUE),1), 0) -> 2 | BK20: =_xlfn.IFNA(MATCH(RAND(), _xlfn.POISSON.DIST({0,1,2,3,4,5,6,7,8,9},$O20, TRUE),1), 0) -> 1 | BL20: =_xlfn.IFNA(MATCH(RAND(), _xlfn.POISSON.DIST({0,1,2,3,4,5,6,7,8,9},$O20, TRUE),1), 0) -> 2 | BM20: =_xlfn.IFNA(MATCH(RAND(), _xlfn.POISSON.DIST({0,1,2,3,4,5,6,7,8,9},$O20, TRUE),1), 0) -> 0 | BN20: =_xlfn.IFNA(MATCH(RAND(), _xlfn.POISSON.DIST({0,1,2,3,4,5,6,7,8,9},$O20, TRUE),1), 0) -> 4 | BP20: =_xlfn.IFNA(MATCH(RAND(), _xlfn.POISSON.DIST({0,1,2,3,4,5,6,7,8,9},$P20, TRUE),1), 0) -> 1 | BQ20: =_xlfn.IFNA(MATCH(RAND(), _xlfn.POISSON.DIST({0,1,2,3,4,5,6,7,8,9},$P20, TRUE),1), 0) -> 3 | BR20: =_xlfn.IFNA(MATCH(RAND(), _xlfn.POISSON.DIST({0,1,2,3,4,5,6,7,8,9},$P20, TRUE),1), 0) -> 5 | BS20: =_xlfn.IFNA(MATCH(RAND(), _xlfn.POISSON.DIST({0,1,2,3,4,5,6,7,8,9},$P20, TRUE),1), 0) -> 1 | BT20: =_xlfn.IFNA(MATCH(RAND(), _xlfn.POISSON.DIST({0,1,2,3,4,5,6,7,8,9},$P20, TRUE),1), 0) -> 1 | BU20: =_xlfn.IFNA(MATCH(RAND(), _xlfn.POISSON.DIST({0,1,2,3,4,5,6,7,8,9},$P20, TRUE),1), 0) -> 3 | BV20: =_xlfn.IFNA(MATCH(RAND(), _xlfn.POISSON.DIST({0,1,2,3,4,5,6,7,8,9},$P20, TRUE),1), 0) -> 0 | BW20: =_xlfn.IFNA(MATCH(RAND(), _xlfn.POISSON.DIST({0,1,2,3,4,5,6,7,8,9},$P20, TRUE),1), 0) -> 1 | BX20: =_xlfn.IFNA(MATCH(RAND(), _xlfn.POISSON.DIST({0,1,2,3,4,5,6,7,8,9},$P20, TRUE),1), 0) -> 2 | BY20: =_xlfn.IFNA(MATCH(RAND(), _xlfn.POISSON.DIST({0,1,2,3,4,5,6,7,8,9},$P20, TRUE),1), 0) -> 3 | BZ20: =_xlfn.IFNA(MATCH(RAND(), _xlfn.POISSON.DIST({0,1,2,3,4,5,6,7,8,9},$P20, TRUE),1), 0) -> 2 | CA20: =_xlfn.IFNA(MATCH(RAND(), _xlfn.POISSON.DIST({0,1,2,3,4,5,6,7,8,9},$P20, TRUE),1), 0) -> 1 | CB20: =_xlfn.IFNA(MATCH(RAND(), _xlfn.POISSON.DIST({0,1,2,3,4,5,6,7,8,9},$P20, TRUE),1), 0) -> 2 | CC20: =_xlfn.IFNA(MATCH(RAND(), _xlfn.POISSON.DIST({0,1,2,3,4,5,6,7,8,9},$P20, TRUE),1), 0) -> 1 | CD20: =_xlfn.IFNA(MATCH(RAND(), _xlfn.POISSON.DIST({0,1,2,3,4,5,6,7,8,9},$P20, TRUE),1), 0) -> 2 | CE20: =_xlfn.IFNA(MATCH(RAND(), _xlfn.POISSON.DIST({0,1,2,3,4,5,6,7,8,9},$P20, TRUE),1), 0) -> 0 | CF20: =_xlfn.IFNA(MATCH(RAND(), _xlfn.POISSON.DIST({0,1,2,3,4,5,6,7,8,9},$P20, TRUE),1), 0) -> 1 | CG20: =_xlfn.IFNA(MATCH(RAND(), _xlfn.POISSON.DIST({0,1,2,3,4,5,6,7,8,9},$P20, TRUE),1), 0) -> 1 | CH20: =_xlfn.IFNA(MATCH(RAND(), _xlfn.POISSON.DIST({0,1,2,3,4,5,6,7,8,9},$P20, TRUE),1), 0) -> 0 | CI20: =_xlfn.IFNA(MATCH(RAND(), _xlfn.POISSON.DIST({0,1,2,3,4,5,6,7,8,9},$P20, TRUE),1), 0) -> 2 | CJ20: =_xlfn.IFNA(MATCH(RAND(), _xlfn.POISSON.DIST({0,1,2,3,4,5,6,7,8,9},$P20, TRUE),1), 0) -> 0 | CK20: =_xlfn.IFNA(MATCH(RAND(), _xlfn.POISSON.DIST({0,1,2,3,4,5,6,7,8,9},$P20, TRUE),1), 0) -> 0 | CL20: =_xlfn.IFNA(MATCH(RAND(), _xlfn.POISSON.DIST({0,1,2,3,4,5,6,7,8,9},$P20, TRUE),1), 0) -> 1 | CM20: =_xlfn.IFNA(MATCH(RAND(), _xlfn.POISSON.DIST({0,1,2,3,4,5,6,7,8,9},$P20, TRUE),1), 0) -> 1 | CN20: =_xlfn.IFNA(MATCH(RAND(), _xlfn.POISSON.DIST({0,1,2,3,4,5,6,7,8,9},$P20, TRUE),1), 0) -> 2 | CO20: =_xlfn.IFNA(MATCH(RAND(), _xlfn.POISSON.DIST({0,1,2,3,4,5,6,7,8,9},$P20, TRUE),1), 0) -> 1 | CP20: =_xlfn.IFNA(MATCH(RAND(), _xlfn.POISSON.DIST({0,1,2,3,4,5,6,7,8,9},$P20, TRUE),1), 0) -> 0 | CQ20: =_xlfn.IFNA(MATCH(RAND(), _xlfn.POISSON.DIST({0,1,2,3,4,5,6,7,8,9},$P20, TRUE),1), 0) -> 1 | CR20: =_xlfn.IFNA(MATCH(RAND(), _xlfn.POISSON.DIST({0,1,2,3,4,5,6,7,8,9},$P20, TRUE),1), 0) -> 1 | CS20: =_xlfn.IFNA(MATCH(RAND(), _xlfn.POISSON.DIST({0,1,2,3,4,5,6,7,8,9},$P20, TRUE),1), 0) -> 0 | CT20: =_xlfn.IFNA(MATCH(RAND(), _xlfn.POISSON.DIST({0,1,2,3,4,5,6,7,8,9},$P20, TRUE),1), 0) -> 2 | CU20: =_xlfn.IFNA(MATCH(RAND(), _xlfn.POISSON.DIST({0,1,2,3,4,5,6,7,8,9},$P20, TRUE),1), 0) -> 3 | CV20: =_xlfn.IFNA(MATCH(RAND(), _xlfn.POISSON.DIST({0,1,2,3,4,5,6,7,8,9},$P20, TRUE),1), 0) -> 2 | CW20: =_xlfn.IFNA(MATCH(RAND(), _xlfn.POISSON.DIST({0,1,2,3,4,5,6,7,8,9},$P20, TRUE),1), 0) -> 0 | CX20: =_xlfn.IFNA(MATCH(RAND(), _xlfn.POISSON.DIST({0,1,2,3,4,5,6,7,8,9},$P20, TRUE),1), 0) -> 1 | CY20: =_xlfn.IFNA(MATCH(RAND(), _xlfn.POISSON.DIST({0,1,2,3,4,5,6,7,8,9},$P20, TRUE),1), 0) -> 3 | CZ20: =_xlfn.IFNA(MATCH(RAND(), _xlfn.POISSON.DIST({0,1,2,3,4,5,6,7,8,9},$P20, TRUE),1), 0) -> 0 | DA20: =_xlfn.IFNA(MATCH(RAND(), _xlfn.POISSON.DIST({0,1,2,3,4,5,6,7,8,9},$P20, TRUE),1), 0) -> 1 | DB20: =_xlfn.IFNA(MATCH(RAND(), _xlfn.POISSON.DIST({0,1,2,3,4,5,6,7,8,9},$P20, TRUE),1), 0) -> 1 | DC20: =_xlfn.IFNA(MATCH(RAND(), _xlfn.POISSON.DIST({0,1,2,3,4,5,6,7,8,9},$P20, TRUE),1), 0) -> 2 | DD20: =_xlfn.IFNA(MATCH(RAND(), _xlfn.POISSON.DIST({0,1,2,3,4,5,6,7,8,9},$P20, TRUE),1), 0) -> 3 | DE20: =_xlfn.IFNA(MATCH(RAND(), _xlfn.POISSON.DIST({0,1,2,3,4,5,6,7,8,9},$P20, TRUE),1), 0) -> 1 | DF20: =_xlfn.IFNA(MATCH(RAND(), _xlfn.POISSON.DIST({0,1,2,3,4,5,6,7,8,9},$P20, TRUE),1), 0) -> 3 | DG20: =_xlfn.IFNA(MATCH(RAND(), _xlfn.POISSON.DIST({0,1,2,3,4,5,6,7,8,9},$P20, TRUE),1), 0) -> 1 | DH20: =_xlfn.IFNA(MATCH(RAND(), _xlfn.POISSON.DIST({0,1,2,3,4,5,6,7,8,9},$P20, TRUE),1), 0) -> 1 | DI20: =_xlfn.IFNA(MATCH(RAND(), _xlfn.POISSON.DIST({0,1,2,3,4,5,6,7,8,9},$P20, TRUE),1), 0) -> 1 | DJ20: =_xlfn.IFNA(MATCH(RAND(), _xlfn.POISSON.DIST({0,1,2,3,4,5,6,7,8,9},$P20, TRUE),1), 0) -> 0 | DK20: =_xlfn.IFNA(MATCH(RAND(), _xlfn.POISSON.DIST({0,1,2,3,4,5,6,7,8,9},$P20, TRUE),1), 0) -> 3 | DL20: =_xlfn.IFNA(MATCH(RAND(), _xlfn.POISSON.DIST({0,1,2,3,4,5,6,7,8,9},$P20, TRUE),1), 0) -> 0 | DM20: =_xlfn.IFNA(MATCH(RAND(), _xlfn.POISSON.DIST({0,1,2,3,4,5,6,7,8,9},$P20, TRUE),1), 0) -> 3
C21: 2019-06-13 | D21: C | E21: オーストラリア | F21: =(AVERAGE(Q21:BN21))*(1+INDEX('グループ ステージの予想'!$C$4:$O$28, MATCH(今年の試合!E21,'グループ ステージの予想'!$D$4:$D$28,0),3)) -> 1.20 | G21: ブラジル | H21: =(AVERAGE(BP21:DM21))*(1+INDEX('グループ ステージの予想'!$C$4:$O$28, MATCH(今年の試合!G21,'グループ ステージの予想'!$D$4:$D$28,0),3)) -> 1.34 | I21: ブラジル | L21: 1.2 | M21: 1.34 | N21: ブラジル | O21: =(OFFSET('付録 3 - グループごとのゴール'!$C$13,(INDEX('付録 1 - チーム データ'!$C$13:$F$112,MATCH(G21,'付録 1 - チーム データ'!$C$13:$C$112,0),4)/10),(INDEX('付録 1 - チーム データ'!$C$13:$F$112,MATCH(E21,'付録 1 - チーム データ'!$C$13:$C$112,0),4)/10))) -> 1.37 | P21: =OFFSET('付録 3 - グループごとのゴール'!$C$13,(INDEX('付録 1 - チーム データ'!$C$13:$F$112, MATCH(E21,'付録 1 - チーム データ'!$C$13:$C$112,0),4)/10), (INDEX('付録 1 - チーム データ'!$C$13:$F$112, MATCH(G21, '付録 1 - チーム データ'!$C$13:$C$112,0),4)/10)) -> 1.37 | Q21: =_xlfn.IFNA(MATCH(RAND(), _xlfn.POISSON.DIST({0,1,2,3,4,5,6,7,8,9},$O21, TRUE),1), 0) -> 1 | R21: =_xlfn.IFNA(MATCH(RAND(), _xlfn.POISSON.DIST({0,1,2,3,4,5,6,7,8,9},$O21, TRUE),1), 0) -> 2 | S21: =_xlfn.IFNA(MATCH(RAND(), _xlfn.POISSON.DIST({0,1,2,3,4,5,6,7,8,9},$O21, TRUE),1), 0) -> 4 | T21: =_xlfn.IFNA(MATCH(RAND(), _xlfn.POISSON.DIST({0,1,2,3,4,5,6,7,8,9},$O21, TRUE),1), 0) -> 0 | U21: =_xlfn.IFNA(MATCH(RAND(), _xlfn.POISSON.DIST({0,1,2,3,4,5,6,7,8,9},$O21, TRUE),1), 0) -> 2 | V21: =_xlfn.IFNA(MATCH(RAND(), _xlfn.POISSON.DIST({0,1,2,3,4,5,6,7,8,9},$O21, TRUE),1), 0) -> 0 | W21: =_xlfn.IFNA(MATCH(RAND(), _xlfn.POISSON.DIST({0,1,2,3,4,5,6,7,8,9},$O21, TRUE),1), 0) -> 3 | X21: =_xlfn.IFNA(MATCH(RAND(), _xlfn.POISSON.DIST({0,1,2,3,4,5,6,7,8,9},$O21, TRUE),1), 0) -> 3 | Y21: =_xlfn.IFNA(MATCH(RAND(), _xlfn.POISSON.DIST({0,1,2,3,4,5,6,7,8,9},$O21, TRUE),1), 0) -> 0 | Z21: =_xlfn.IFNA(MATCH(RAND(), _xlfn.POISSON.DIST({0,1,2,3,4,5,6,7,8,9},$O21, TRUE),1), 0) -> 0 | AA21: =_xlfn.IFNA(MATCH(RAND(), _xlfn.POISSON.DIST({0,1,2,3,4,5,6,7,8,9},$O21, TRUE),1), 0) -> 1 | AB21: =_xlfn.IFNA(MATCH(RAND(), _xlfn.POISSON.DIST({0,1,2,3,4,5,6,7,8,9},$O21, TRUE),1), 0) -> 1 | AC21: =_xlfn.IFNA(MATCH(RAND(), _xlfn.POISSON.DIST({0,1,2,3,4,5,6,7,8,9},$O21, TRUE),1), 0) -> 2 | AD21: =_xlfn.IFNA(MATCH(RAND(), _xlfn.POISSON.DIST({0,1,2,3,4,5,6,7,8,9},$O21, TRUE),1), 0) -> 0 | AE21: =_xlfn.IFNA(MATCH(RAND(), _xlfn.POISSON.DIST({0,1,2,3,4,5,6,7,8,9},$O21, TRUE),1), 0) -> 0 | AF21: =_xlfn.IFNA(MATCH(RAND(), _xlfn.POISSON.DIST({0,1,2,3,4,5,6,7,8,9},$O21, TRUE),1), 0) -> 0 | AG21: =_xlfn.IFNA(MATCH(RAND(), _xlfn.POISSON.DIST({0,1,2,3,4,5,6,7,8,9},$O21, TRUE),1), 0) -> 1 | AH21: =_xlfn.IFNA(MATCH(RAND(), _xlfn.POISSON.DIST({0,1,2,3,4,5,6,7,8,9},$O21, TRUE),1), 0) -> 0 | AI21: =_xlfn.IFNA(MATCH(RAND(), _xlfn.POISSON.DIST({0,1,2,3,4,5,6,7,8,9},$O21, TRUE),1), 0) -> 2 | AJ21: =_xlfn.IFNA(MATCH(RAND(), _xlfn.POISSON.DIST({0,1,2,3,4,5,6,7,8,9},$O21, TRUE),1), 0) -> 3 | AK21: =_xlfn.IFNA(MATCH(RAND(), _xlfn.POISSON.DIST({0,1,2,3,4,5,6,7,8,9},$O21, TRUE),1), 0) -> 1 | AL21: =_xlfn.IFNA(MATCH(RAND(), _xlfn.POISSON.DIST({0,1,2,3,4,5,6,7,8,9},$O21, TRUE),1), 0) -> 1 | AM21: =_xlfn.IFNA(MATCH(RAND(), _xlfn.POISSON.DIST({0,1,2,3,4,5,6,7,8,9},$O21, TRUE),1), 0) -> 1 | AN21: =_xlfn.IFNA(MATCH(RAND(), _xlfn.POISSON.DIST({0,1,2,3,4,5,6,7,8,9},$O21, TRUE),1), 0) -> 4 | AO21: =_xlfn.IFNA(MATCH(RAND(), _xlfn.POISSON.DIST({0,1,2,3,4,5,6,7,8,9},$O21, TRUE),1), 0) -> 1 | AP21: =_xlfn.IFNA(MATCH(RAND(), _xlfn.POISSON.DIST({0,1,2,3,4,5,6,7,8,9},$O21, TRUE),1), 0) -> 0 | AQ21: =_xlfn.IFNA(MATCH(RAND(), _xlfn.POISSON.DIST({0,1,2,3,4,5,6,7,8,9},$O21, TRUE),1), 0) -> 1 | AR21: =_xlfn.IFNA(MATCH(RAND(), _xlfn.POISSON.DIST({0,1,2,3,4,5,6,7,8,9},$O21, TRUE),1), 0) -> 0 | AS21: =_xlfn.IFNA(MATCH(RAND(), _xlfn.POISSON.DIST({0,1,2,3,4,5,6,7,8,9},$O21, TRUE),1), 0) -> 0 | AT21: =_xlfn.IFNA(MATCH(RAND(), _xlfn.POISSON.DIST({0,1,2,3,4,5,6,7,8,9},$O21, TRUE),1), 0) -> 2 | AU21: =_xlfn.IFNA(MATCH(RAND(), _xlfn.POISSON.DIST({0,1,2,3,4,5,6,7,8,9},$O21, TRUE),1), 0) -> 2 | AV21: =_xlfn.IFNA(MATCH(RAND(), _xlfn.POISSON.DIST({0,1,2,3,4,5,6,7,8,9},$O21, TRUE),1), 0) -> 2 | AW21: =_xlfn.IFNA(MATCH(RAND(), _xlfn.POISSON.DIST({0,1,2,3,4,5,6,7,8,9},$O21, TRUE),1), 0) -> 0 | AX21: =_xlfn.IFNA(MATCH(RAND(), _xlfn.POISSON.DIST({0,1,2,3,4,5,6,7,8,9},$O21, TRUE),1), 0) -> 0 | AY21: =_xlfn.IFNA(MATCH(RAND(), _xlfn.POISSON.DIST({0,1,2,3,4,5,6,7,8,9},$O21, TRUE),1), 0) -> 0 | AZ21: =_xlfn.IFNA(MATCH(RAND(), _xlfn.POISSON.DIST({0,1,2,3,4,5,6,7,8,9},$O21, TRUE),1), 0) -> 1 | BA21: =_xlfn.IFNA(MATCH(RAND(), _xlfn.POISSON.DIST({0,1,2,3,4,5,6,7,8,9},$O21, TRUE),1), 0) -> 0 | BB21: =_xlfn.IFNA(MATCH(RAND(), _xlfn.POISSON.DIST({0,1,2,3,4,5,6,7,8,9},$O21, TRUE),1), 0) -> 1 | BC21: =_xlfn.IFNA(MATCH(RAND(), _xlfn.POISSON.DIST({0,1,2,3,4,5,6,7,8,9},$O21, TRUE),1), 0) -> 3 | BD21: =_xlfn.IFNA(MATCH(RAND(), _xlfn.POISSON.DIST({0,1,2,3,4,5,6,7,8,9},$O21, TRUE),1), 0) -> 0 | BE21: =_xlfn.IFNA(MATCH(RAND(), _xlfn.POISSON.DIST({0,1,2,3,4,5,6,7,8,9},$O21, TRUE),1), 0) -> 2 | BF21: =_xlfn.IFNA(MATCH(RAND(), _xlfn.POISSON.DIST({0,1,2,3,4,5,6,7,8,9},$O21, TRUE),1), 0) -> 0 | BG21: =_xlfn.IFNA(MATCH(RAND(), _xlfn.POISSON.DIST({0,1,2,3,4,5,6,7,8,9},$O21, TRUE),1), 0) -> 2 | BH21: =_xlfn.IFNA(MATCH(RAND(), _xlfn.POISSON.DIST({0,1,2,3,4,5,6,7,8,9},$O21, TRUE),1), 0) -> 2 | BI21: =_xlfn.IFNA(MATCH(RAND(), _xlfn.POISSON.DIST({0,1,2,3,4,5,6,7,8,9},$O21, TRUE),1), 0) -> 3 | BJ21: =_xlfn.IFNA(MATCH(RAND(), _xlfn.POISSON.DIST({0,1,2,3,4,5,6,7,8,9},$O21, TRUE),1), 0) -> 2 | BK21: =_xlfn.IFNA(MATCH(RAND(), _xlfn.POISSON.DIST({0,1,2,3,4,5,6,7,8,9},$O21, TRUE),1), 0) -> 3 | BL21: =_xlfn.IFNA(MATCH(RAND(), _xlfn.POISSON.DIST({0,1,2,3,4,5,6,7,8,9},$O21, TRUE),1), 0) -> 0 | BM21: =_xlfn.IFNA(MATCH(RAND(), _xlfn.POISSON.DIST({0,1,2,3,4,5,6,7,8,9},$O21, TRUE),1), 0) -> 1 | BN21: =_xlfn.IFNA(MATCH(RAND(), _xlfn.POISSON.DIST({0,1,2,3,4,5,6,7,8,9},$O21, TRUE),1), 0) -> 0 | BP21: =_xlfn.IFNA(MATCH(RAND(), _xlfn.POISSON.DIST({0,1,2,3,4,5,6,7,8,9},$P21, TRUE),1), 0) -> 1 | BQ21: =_xlfn.IFNA(MATCH(RAND(), _xlfn.POISSON.DIST({0,1,2,3,4,5,6,7,8,9},$P21, TRUE),1), 0) -> 0 | BR21: =_xlfn.IFNA(MATCH(RAND(), _xlfn.POISSON.DIST({0,1,2,3,4,5,6,7,8,9},$P21, TRUE),1), 0) -> 1 | BS21: =_xlfn.IFNA(MATCH(RAND(), _xlfn.POISSON.DIST({0,1,2,3,4,5,6,7,8,9},$P21, TRUE),1), 0) -> 1 | BT21: =_xlfn.IFNA(MATCH(RAND(), _xlfn.POISSON.DIST({0,1,2,3,4,5,6,7,8,9},$P21, TRUE),1), 0) -> 1 | BU21: =_xlfn.IFNA(MATCH(RAND(), _xlfn.POISSON.DIST({0,1,2,3,4,5,6,7,8,9},$P21, TRUE),1), 0) -> 0 | BV21: =_xlfn.IFNA(MATCH(RAND(), _xlfn.POISSON.DIST({0,1,2,3,4,5,6,7,8,9},$P21, TRUE),1), 0) -> 1 | BW21: =_xlfn.IFNA(MATCH(RAND(), _xlfn.POISSON.DIST({0,1,2,3,4,5,6,7,8,9},$P21, TRUE),1), 0) -> 1 | BX21: =_xlfn.IFNA(MATCH(RAND(), _xlfn.POISSON.DIST({0,1,2,3,4,5,6,7,8,9},$P21, TRUE),1), 0) -> 1 | BY21: =_xlfn.IFNA(MATCH(RAND(), _xlfn.POISSON.DIST({0,1,2,3,4,5,6,7,8,9},$P21, TRUE),1), 0) -> 1 | BZ21: =_xlfn.IFNA(MATCH(RAND(), _xlfn.POISSON.DIST({0,1,2,3,4,5,6,7,8,9},$P21, TRUE),1), 0) -> 2 | CA21: =_xlfn.IFNA(MATCH(RAND(), _xlfn.POISSON.DIST({0,1,2,3,4,5,6,7,8,9},$P21, TRUE),1), 0) -> 0 | CB21: =_xlfn.IFNA(MATCH(RAND(), _xlfn.POISSON.DIST({0,1,2,3,4,5,6,7,8,9},$P21, TRUE),1), 0) -> 4 | CC21: =_xlfn.IFNA(MATCH(RAND(), _xlfn.POISSON.DIST({0,1,2,3,4,5,6,7,8,9},$P21, TRUE),1), 0) -> 0 | CD21: =_xlfn.IFNA(MATCH(RAND(), _xlfn.POISSON.DIST({0,1,2,3,4,5,6,7,8,9},$P21, TRUE),1), 0) -> 1 | CE21: =_xlfn.IFNA(MATCH(RAND(), _xlfn.POISSON.DIST({0,1,2,3,4,5,6,7,8,9},$P21, TRUE),1), 0) -> 0 | CF21: =_xlfn.IFNA(MATCH(RAND(), _xlfn.POISSON.DIST({0,1,2,3,4,5,6,7,8,9},$P21, TRUE),1), 0) -> 2 | CG21: =_xlfn.IFNA(MATCH(RAND(), _xlfn.POISSON.DIST({0,1,2,3,4,5,6,7,8,9},$P21, TRUE),1), 0) -> 1 | CH21: =_xlfn.IFNA(MATCH(RAND(), _xlfn.POISSON.DIST({0,1,2,3,4,5,6,7,8,9},$P21, TRUE),1), 0) -> 2 | CI21: =_xlfn.IFNA(MATCH(RAND(), _xlfn.POISSON.DIST({0,1,2,3,4,5,6,7,8,9},$P21, TRUE),1), 0) -> 1 | CJ21: =_xlfn.IFNA(MATCH(RAND(), _xlfn.POISSON.DIST({0,1,2,3,4,5,6,7,8,9},$P21, TRUE),1), 0) -> 3 | CK21: =_xlfn.IFNA(MATCH(RAND(), _xlfn.POISSON.DIST({0,1,2,3,4,5,6,7,8,9},$P21, TRUE),1), 0) -> 2 | CL21: =_xlfn.IFNA(MATCH(RAND(), _xlfn.POISSON.DIST({0,1,2,3,4,5,6,7,8,9},$P21, TRUE),1), 0) -> 0 | CM21: =_xlfn.IFNA(MATCH(RAND(), _xlfn.POISSON.DIST({0,1,2,3,4,5,6,7,8,9},$P21, TRUE),1), 0) -> 2 | CN21: =_xlfn.IFNA(MATCH(RAND(), _xlfn.POISSON.DIST({0,1,2,3,4,5,6,7,8,9},$P21, TRUE),1), 0) -> 0 | CO21: =_xlfn.IFNA(MATCH(RAND(), _xlfn.POISSON.DIST({0,1,2,3,4,5,6,7,8,9},$P21, TRUE),1), 0) -> 2 | CP21: =_xlfn.IFNA(MATCH(RAND(), _xlfn.POISSON.DIST({0,1,2,3,4,5,6,7,8,9},$P21, TRUE),1), 0) -> 0 | CQ21: =_xlfn.IFNA(MATCH(RAND(), _xlfn.POISSON.DIST({0,1,2,3,4,5,6,7,8,9},$P21, TRUE),1), 0) -> 0 | CR21: =_xlfn.IFNA(MATCH(RAND(), _xlfn.POISSON.DIST({0,1,2,3,4,5,6,7,8,9},$P21, TRUE),1), 0) -> 0 | CS21: =_xlfn.IFNA(MATCH(RAND(), _xlfn.POISSON.DIST({0,1,2,3,4,5,6,7,8,9},$P21, TRUE),1), 0) -> 1 | CT21: =_xlfn.IFNA(MATCH(RAND(), _xlfn.POISSON.DIST({0,1,2,3,4,5,6,7,8,9},$P21, TRUE),1), 0) -> 2 | CU21: =_xlfn.IFNA(MATCH(RAND(), _xlfn.POISSON.DIST({0,1,2,3,4,5,6,7,8,9},$P21, TRUE),1), 0) -> 3 | CV21: =_xlfn.IFNA(MATCH(RAND(), _xlfn.POISSON.DIST({0,1,2,3,4,5,6,7,8,9},$P21, TRUE),1), 0) -> 1 | CW21: =_xlfn.IFNA(MATCH(RAND(), _xlfn.POISSON.DIST({0,1,2,3,4,5,6,7,8,9},$P21, TRUE),1), 0) -> 2 | CX21: =_xlfn.IFNA(MATCH(RAND(), _xlfn.POISSON.DIST({0,1,2,3,4,5,6,7,8,9},$P21, TRUE),1), 0) -> 0 | CY21: =_xlfn.IFNA(MATCH(RAND(), _xlfn.POISSON.DIST({0,1,2,3,4,5,6,7,8,9},$P21, TRUE),1), 0) -> 0 | CZ21: =_xlfn.IFNA(MATCH(RAND(), _xlfn.POISSON.DIST({0,1,2,3,4,5,6,7,8,9},$P21, TRUE),1), 0) -> 1 | DA21: =_xlfn.IFNA(MATCH(RAND(), _xlfn.POISSON.DIST({0,1,2,3,4,5,6,7,8,9},$P21, TRUE),1), 0) -> 3 | DB21: =_xlfn.IFNA(MATCH(RAND(), _xlfn.POISSON.DIST({0,1,2,3,4,5,6,7,8,9},$P21, TRUE),1), 0) -> 5 | DC21: =_xlfn.IFNA(MATCH(RAND(), _xlfn.POISSON.DIST({0,1,2,3,4,5,6,7,8,9},$P21, TRUE),1), 0) -> 1 | DD21: =_xlfn.IFNA(MATCH(RAND(), _xlfn.POISSON.DIST({0,1,2,3,4,5,6,7,8,9},$P21, TRUE),1), 0) -> 0 | DE21: =_xlfn.IFNA(MATCH(RAND(), _xlfn.POISSON.DIST({0,1,2,3,4,5,6,7,8,9},$P21, TRUE),1), 0) -> 0 | DF21: =_xlfn.IFNA(MATCH(RAND(), _xlfn.POISSON.DIST({0,1,2,3,4,5,6,7,8,9},$P21, TRUE),1), 0) -> 2 | DG21: =_xlfn.IFNA(MATCH(RAND(), _xlfn.POISSON.DIST({0,1,2,3,4,5,6,7,8,9},$P21, TRUE),1), 0) -> 3 | DH21: =_xlfn.IFNA(MATCH(RAND(), _xlfn.POISSON.DIST({0,1,2,3,4,5,6,7,8,9},$P21, TRUE),1), 0) -> 2 | DI21: =_xlfn.IFNA(MATCH(RAND(), _xlfn.POISSON.DIST({0,1,2,3,4,5,6,7,8,9},$P21, TRUE),1), 0) -> 3 | DJ21: =_xlfn.IFNA(MATCH(RAND(), _xlfn.POISSON.DIST({0,1,2,3,4,5,6,7,8,9},$P21, TRUE),1), 0) -> 1 | DK21: =_xlfn.IFNA(MATCH(RAND(), _xlfn.POISSON.DIST({0,1,2,3,4,5,6,7,8,9},$P21, TRUE),1), 0) -> 3 | DL21: =_xlfn.IFNA(MATCH(RAND(), _xlfn.POISSON.DIST({0,1,2,3,4,5,6,7,8,9},$P21, TRUE),1), 0) -> 1 | DM21: =_xlfn.IFNA(MATCH(RAND(), _xlfn.POISSON.DIST({0,1,2,3,4,5,6,7,8,9},$P21, TRUE),1), 0) -> 3
C22: 2019-06-13 | D22: B | E22: 南アフリカ | F22: =(AVERAGE(Q22:BN22))*(1+INDEX('グループ ステージの予想'!$C$4:$O$28, MATCH(今年の試合!E22,'グループ ステージの予想'!$D$4:$D$28,0),3)) -> 1.42 | G22: 中国PR | H22: =(AVERAGE(BP22:DM22))*(1+INDEX('グループ ステージの予想'!$C$4:$O$28, MATCH(今年の試合!G22,'グループ ステージの予想'!$D$4:$D$28,0),3)) -> 1.42 | I22: 組み合わせ | L22: 1.42 | M22: 1.42 | N22: 引き分け | O22: =(OFFSET('付録 3 - グループごとのゴール'!$C$13,(INDEX('付録 1 - チーム データ'!$C$13:$F$112,MATCH(G22,'付録 1 - チーム データ'!$C$13:$C$112,0),4)/10),(INDEX('付録 1 - チーム データ'!$C$13:$F$112,MATCH(E22,'付録 1 - チーム データ'!$C$13:$C$112,0),4)/10))) -> 1.50 | P22: =OFFSET('付録 3 - グループごとのゴール'!$C$13,(INDEX('付録 1 - チーム データ'!$C$13:$F$112, MATCH(E22,'付録 1 - チーム データ'!$C$13:$C$112,0),4)/10), (INDEX('付録 1 - チーム データ'!$C$13:$F$112, MATCH(G22, '付録 1 - チーム データ'!$C$13:$C$112,0),4)/10)) -> 1.50 | Q22: =_xlfn.IFNA(MATCH(RAND(), _xlfn.POISSON.DIST({0,1,2,3,4,5,6,7,8,9},$O22, TRUE),1), 0) -> 1 | R22: =_xlfn.IFNA(MATCH(RAND(), _xlfn.POISSON.DIST({0,1,2,3,4,5,6,7,8,9},$O22, TRUE),1), 0) -> 1 | S22: =_xlfn.IFNA(MATCH(RAND(), _xlfn.POISSON.DIST({0,1,2,3,4,5,6,7,8,9},$O22, TRUE),1), 0) -> 0 | T22: =_xlfn.IFNA(MATCH(RAND(), _xlfn.POISSON.DIST({0,1,2,3,4,5,6,7,8,9},$O22, TRUE),1), 0) -> 1 | U22: =_xlfn.IFNA(MATCH(RAND(), _xlfn.POISSON.DIST({0,1,2,3,4,5,6,7,8,9},$O22, TRUE),1), 0) -> 3 | V22: =_xlfn.IFNA(MATCH(RAND(), _xlfn.POISSON.DIST({0,1,2,3,4,5,6,7,8,9},$O22, TRUE),1), 0) -> 6 | W22: =_xlfn.IFNA(MATCH(RAND(), _xlfn.POISSON.DIST({0,1,2,3,4,5,6,7,8,9},$O22, TRUE),1), 0) -> 1 | X22: =_xlfn.IFNA(MATCH(RAND(), _xlfn.POISSON.DIST({0,1,2,3,4,5,6,7,8,9},$O22, TRUE),1), 0) -> 3 | Y22: =_xlfn.IFNA(MATCH(RAND(), _xlfn.POISSON.DIST({0,1,2,3,4,5,6,7,8,9},$O22, TRUE),1), 0) -> 0 | Z22: =_xlfn.IFNA(MATCH(RAND(), _xlfn.POISSON.DIST({0,1,2,3,4,5,6,7,8,9},$O22, TRUE),1), 0) -> 2 | AA22: =_xlfn.IFNA(MATCH(RAND(), _xlfn.POISSON.DIST({0,1,2,3,4,5,6,7,8,9},$O22, TRUE),1), 0) -> 2 | AB22: =_xlfn.IFNA(MATCH(RAND(), _xlfn.POISSON.DIST({0,1,2,3,4,5,6,7,8,9},$O22, TRUE),1), 0) -> 1 | AC22: =_xlfn.IFNA(MATCH(RAND(), _xlfn.POISSON.DIST({0,1,2,3,4,5,6,7,8,9},$O22, TRUE),1), 0) -> 0 | AD22: =_xlfn.IFNA(MATCH(RAND(), _xlfn.POISSON.DIST({0,1,2,3,4,5,6,7,8,9},$O22, TRUE),1), 0) -> 2 | AE22: =_xlfn.IFNA(MATCH(RAND(), _xlfn.POISSON.DIST({0,1,2,3,4,5,6,7,8,9},$O22, TRUE),1), 0) -> 3 | AF22: =_xlfn.IFNA(MATCH(RAND(), _xlfn.POISSON.DIST({0,1,2,3,4,5,6,7,8,9},$O22, TRUE),1), 0) -> 0 | AG22: =_xlfn.IFNA(MATCH(RAND(), _xlfn.POISSON.DIST({0,1,2,3,4,5,6,7,8,9},$O22, TRUE),1), 0) -> 3 | AH22: =_xlfn.IFNA(MATCH(RAND(), _xlfn.POISSON.DIST({0,1,2,3,4,5,6,7,8,9},$O22, TRUE),1), 0) -> 1 | AI22: =_xlfn.IFNA(MATCH(RAND(), _xlfn.POISSON.DIST({0,1,2,3,4,5,6,7,8,9},$O22, TRUE),1), 0) -> 1 | AJ22: =_xlfn.IFNA(MATCH(RAND(), _xlfn.POISSON.DIST({0,1,2,3,4,5,6,7,8,9},$O22, TRUE),1), 0) -> 3 | AK22: =_xlfn.IFNA(MATCH(RAND(), _xlfn.POISSON.DIST({0,1,2,3,4,5,6,7,8,9},$O22, TRUE),1), 0) -> 2 | AL22: =_xlfn.IFNA(MATCH(RAND(), _xlfn.POISSON.DIST({0,1,2,3,4,5,6,7,8,9},$O22, TRUE),1), 0) -> 1 | AM22: =_xlfn.IFNA(MATCH(RAND(), _xlfn.POISSON.DIST({0,1,2,3,4,5,6,7,8,9},$O22, TRUE),1), 0) -> 3 | AN22: =_xlfn.IFNA(MATCH(RAND(), _xlfn.POISSON.DIST({0,1,2,3,4,5,6,7,8,9},$O22, TRUE),1), 0) -> 2 | AO22: =_xlfn.IFNA(MATCH(RAND(), _xlfn.POISSON.DIST({0,1,2,3,4,5,6,7,8,9},$O22, TRUE),1), 0) -> 0 | AP22: =_xlfn.IFNA(MATCH(RAND(), _xlfn.POISSON.DIST({0,1,2,3,4,5,6,7,8,9},$O22, TRUE),1), 0) -> 1 | AQ22: =_xlfn.IFNA(MATCH(RAND(), _xlfn.POISSON.DIST({0,1,2,3,4,5,6,7,8,9},$O22, TRUE),1), 0) -> 3 | AR22: =_xlfn.IFNA(MATCH(RAND(), _xlfn.POISSON.DIST({0,1,2,3,4,5,6,7,8,9},$O22, TRUE),1), 0) -> 1 | AS22: =_xlfn.IFNA(MATCH(RAND(), _xlfn.POISSON.DIST({0,1,2,3,4,5,6,7,8,9},$O22, TRUE),1), 0) -> 0 | AT22: =_xlfn.IFNA(MATCH(RAND(), _xlfn.POISSON.DIST({0,1,2,3,4,5,6,7,8,9},$O22, TRUE),1), 0) -> 2 | AU22: =_xlfn.IFNA(MATCH(RAND(), _xlfn.POISSON.DIST({0,1,2,3,4,5,6,7,8,9},$O22, TRUE),1), 0) -> 0 | AV22: =_xlfn.IFNA(MATCH(RAND(), _xlfn.POISSON.DIST({0,1,2,3,4,5,6,7,8,9},$O22, TRUE),1), 0) -> 3 | AW22: =_xlfn.IFNA(MATCH(RAND(), _xlfn.POISSON.DIST({0,1,2,3,4,5,6,7,8,9},$O22, TRUE),1), 0) -> 1 | AX22: =_xlfn.IFNA(MATCH(RAND(), _xlfn.POISSON.DIST({0,1,2,3,4,5,6,7,8,9},$O22, TRUE),1), 0) -> 1 | AY22: =_xlfn.IFNA(MATCH(RAND(), _xlfn.POISSON.DIST({0,1,2,3,4,5,6,7,8,9},$O22, TRUE),1), 0) -> 1 | AZ22: =_xlfn.IFNA(MATCH(RAND(), _xlfn.POISSON.DIST({0,1,2,3,4,5,6,7,8,9},$O22, TRUE),1), 0) -> 0 | BA22: =_xlfn.IFNA(MATCH(RAND(), _xlfn.POISSON.DIST({0,1,2,3,4,5,6,7,8,9},$O22, TRUE),1), 0) -> 2 | BB22: =_xlfn.IFNA(MATCH(RAND(), _xlfn.POISSON.DIST({0,1,2,3,4,5,6,7,8,9},$O22, TRUE),1), 0) -> 0 | BC22: =_xlfn.IFNA(MATCH(RAND(), _xlfn.POISSON.DIST({0,1,2,3,4,5,6,7,8,9},$O22, TRUE),1), 0) -> 3 | BD22: =_xlfn.IFNA(MATCH(RAND(), _xlfn.POISSON.DIST({0,1,2,3,4,5,6,7,8,9},$O22, TRUE),1), 0) -> 2 | BE22: =_xlfn.IFNA(MATCH(RAND(), _xlfn.POISSON.DIST({0,1,2,3,4,5,6,7,8,9},$O22, TRUE),1), 0) -> 2 | BF22: =_xlfn.IFNA(MATCH(RAND(), _xlfn.POISSON.DIST({0,1,2,3,4,5,6,7,8,9},$O22, TRUE),1), 0) -> 0 | BG22: =_xlfn.IFNA(MATCH(RAND(), _xlfn.POISSON.DIST({0,1,2,3,4,5,6,7,8,9},$O22, TRUE),1), 0) -> 0 | BH22: =_xlfn.IFNA(MATCH(RAND(), _xlfn.POISSON.DIST({0,1,2,3,4,5,6,7,8,9},$O22, TRUE),1), 0) -> 0 | BI22: =_xlfn.IFNA(MATCH(RAND(), _xlfn.POISSON.DIST({0,1,2,3,4,5,6,7,8,9},$O22, TRUE),1), 0) -> 3 | BJ22: =_xlfn.IFNA(MATCH(RAND(), _xlfn.POISSON.DIST({0,1,2,3,4,5,6,7,8,9},$O22, TRUE),1), 0) -> 2 | BK22: =_xlfn.IFNA(MATCH(RAND(), _xlfn.POISSON.DIST({0,1,2,3,4,5,6,7,8,9},$O22, TRUE),1), 0) -> 1 | BL22: =_xlfn.IFNA(MATCH(RAND(), _xlfn.POISSON.DIST({0,1,2,3,4,5,6,7,8,9},$O22, TRUE),1), 0) -> 0 | BM22: =_xlfn.IFNA(MATCH(RAND(), _xlfn.POISSON.DIST({0,1,2,3,4,5,6,7,8,9},$O22, TRUE),1), 0) -> 0 | BN22: =_xlfn.IFNA(MATCH(RAND(), _xlfn.POISSON.DIST({0,1,2,3,4,5,6,7,8,9},$O22, TRUE),1), 0) -> 1 | BP22: =_xlfn.IFNA(MATCH(RAND(), _xlfn.POISSON.DIST({0,1,2,3,4,5,6,7,8,9},$P22, TRUE),1), 0) -> 0 | BQ22: =_xlfn.IFNA(MATCH(RAND(), _xlfn.POISSON.DIST({0,1,2,3,4,5,6,7,8,9},$P22, TRUE),1), 0) -> 0 | BR22: =_xlfn.IFNA(MATCH(RAND(), _xlfn.POISSON.DIST({0,1,2,3,4,5,6,7,8,9},$P22, TRUE),1), 0) -> 1 | BS22: =_xlfn.IFNA(MATCH(RAND(), _xlfn.POISSON.DIST({0,1,2,3,4,5,6,7,8,9},$P22, TRUE),1), 0) -> 3 | BT22: =_xlfn.IFNA(MATCH(RAND(), _xlfn.POISSON.DIST({0,1,2,3,4,5,6,7,8,9},$P22, TRUE),1), 0) -> 0 | BU22: =_xlfn.IFNA(MATCH(RAND(), _xlfn.POISSON.DIST({0,1,2,3,4,5,6,7,8,9},$P22, TRUE),1), 0) -> 1 | BV22: =_xlfn.IFNA(MATCH(RAND(), _xlfn.POISSON.DIST({0,1,2,3,4,5,6,7,8,9},$P22, TRUE),1), 0) -> 0 | BW22: =_xlfn.IFNA(MATCH(RAND(), _xlfn.POISSON.DIST({0,1,2,3,4,5,6,7,8,9},$P22, TRUE),1), 0) -> 0 | BX22: =_xlfn.IFNA(MATCH(RAND(), _xlfn.POISSON.DIST({0,1,2,3,4,5,6,7,8,9},$P22, TRUE),1), 0) -> 2 | BY22: =_xlfn.IFNA(MATCH(RAND(), _xlfn.POISSON.DIST({0,1,2,3,4,5,6,7,8,9},$P22, TRUE),1), 0) -> 3 | BZ22: =_xlfn.IFNA(MATCH(RAND(), _xlfn.POISSON.DIST({0,1,2,3,4,5,6,7,8,9},$P22, TRUE),1), 0) -> 4 | CA22: =_xlfn.IFNA(MATCH(RAND(), _xlfn.POISSON.DIST({0,1,2,3,4,5,6,7,8,9},$P22, TRUE),1), 0) -> 3 | CB22: =_xlfn.IFNA(MATCH(RAND(), _xlfn.POISSON.DIST({0,1,2,3,4,5,6,7,8,9},$P22, TRUE),1), 0) -> 4 | CC22: =_xlfn.IFNA(MATCH(RAND(), _xlfn.POISSON.DIST({0,1,2,3,4,5,6,7,8,9},$P22, TRUE),1), 0) -> 2 | CD22: =_xlfn.IFNA(MATCH(RAND(), _xlfn.POISSON.DIST({0,1,2,3,4,5,6,7,8,9},$P22, TRUE),1), 0) -> 2 | CE22: =_xlfn.IFNA(MATCH(RAND(), _xlfn.POISSON.DIST({0,1,2,3,4,5,6,7,8,9},$P22, TRUE),1), 0) -> 0 | CF22: =_xlfn.IFNA(MATCH(RAND(), _xlfn.POISSON.DIST({0,1,2,3,4,5,6,7,8,9},$P22, TRUE),1), 0) -> 0 | CG22: =_xlfn.IFNA(MATCH(RAND(), _xlfn.POISSON.DIST({0,1,2,3,4,5,6,7,8,9},$P22, TRUE),1), 0) -> 1 | CH22: =_xlfn.IFNA(MATCH(RAND(), _xlfn.POISSON.DIST({0,1,2,3,4,5,6,7,8,9},$P22, TRUE),1), 0) -> 1 | CI22: =_xlfn.IFNA(MATCH(RAND(), _xlfn.POISSON.DIST({0,1,2,3,4,5,6,7,8,9},$P22, TRUE),1), 0) -> 4 | CJ22: =_xlfn.IFNA(MATCH(RAND(), _xlfn.POISSON.DIST({0,1,2,3,4,5,6,7,8,9},$P22, TRUE),1), 0) -> 1 | CK22: =_xlfn.IFNA(MATCH(RAND(), _xlfn.POISSON.DIST({0,1,2,3,4,5,6,7,8,9},$P22, TRUE),1), 0) -> 0 | CL22: =_xlfn.IFNA(MATCH(RAND(), _xlfn.POISSON.DIST({0,1,2,3,4,5,6,7,8,9},$P22, TRUE),1), 0) -> 2 | CM22: =_xlfn.IFNA(MATCH(RAND(), _xlfn.POISSON.DIST({0,1,2,3,4,5,6,7,8,9},$P22, TRUE),1), 0) -> 2 | CN22: =_xlfn.IFNA(MATCH(RAND(), _xlfn.POISSON.DIST({0,1,2,3,4,5,6,7,8,9},$P22, TRUE),1), 0) -> 2 | CO22: =_xlfn.IFNA(MATCH(RAND(), _xlfn.POISSON.DIST({0,1,2,3,4,5,6,7,8,9},$P22, TRUE),1), 0) -> 2 | CP22: =_xlfn.IFNA(MATCH(RAND(), _xlfn.POISSON.DIST({0,1,2,3,4,5,6,7,8,9},$P22, TRUE),1), 0) -> 1 | CQ22: =_xlfn.IFNA(MATCH(RAND(), _xlfn.POISSON.DIST({0,1,2,3,4,5,6,7,8,9},$P22, TRUE),1), 0) -> 2 | CR22: =_xlfn.IFNA(MATCH(RAND(), _xlfn.POISSON.DIST({0,1,2,3,4,5,6,7,8,9},$P22, TRUE),1), 0) -> 2 | CS22: =_xlfn.IFNA(MATCH(RAND(), _xlfn.POISSON.DIST({0,1,2,3,4,5,6,7,8,9},$P22, TRUE),1), 0) -> 0 | CT22: =_xlfn.IFNA(MATCH(RAND(), _xlfn.POISSON.DIST({0,1,2,3,4,5,6,7,8,9},$P22, TRUE),1), 0) -> 1 | CU22: =_xlfn.IFNA(MATCH(RAND(), _xlfn.POISSON.DIST({0,1,2,3,4,5,6,7,8,9},$P22, TRUE),1), 0) -> 1 | CV22: =_xlfn.IFNA(MATCH(RAND(), _xlfn.POISSON.DIST({0,1,2,3,4,5,6,7,8,9},$P22, TRUE),1), 0) -> 1 | CW22: =_xlfn.IFNA(MATCH(RAND(), _xlfn.POISSON.DIST({0,1,2,3,4,5,6,7,8,9},$P22, TRUE),1), 0) -> 2 | CX22: =_xlfn.IFNA(MATCH(RAND(), _xlfn.POISSON.DIST({0,1,2,3,4,5,6,7,8,9},$P22, TRUE),1), 0) -> 0 | CY22: =_xlfn.IFNA(MATCH(RAND(), _xlfn.POISSON.DIST({0,1,2,3,4,5,6,7,8,9},$P22, TRUE),1), 0) -> 1 | CZ22: =_xlfn.IFNA(MATCH(RAND(), _xlfn.POISSON.DIST({0,1,2,3,4,5,6,7,8,9},$P22, TRUE),1), 0) -> 1 | DA22: =_xlfn.IFNA(MATCH(RAND(), _xlfn.POISSON.DIST({0,1,2,3,4,5,6,7,8,9},$P22, TRUE),1), 0) -> 2 | DB22: =_xlfn.IFNA(MATCH(RAND(), _xlfn.POISSON.DIST({0,1,2,3,4,5,6,7,8,9},$P22, TRUE),1), 0) -> 1 | DC22: =_xlfn.IFNA(MATCH(RAND(), _xlfn.POISSON.DIST({0,1,2,3,4,5,6,7,8,9},$P22, TRUE),1), 0) -> 2 | DD22: =_xlfn.IFNA(MATCH(RAND(), _xlfn.POISSON.DIST({0,1,2,3,4,5,6,7,8,9},$P22, TRUE),1), 0) -> 1 | DE22: =_xlfn.IFNA(MATCH(RAND(), _xlfn.POISSON.DIST({0,1,2,3,4,5,6,7,8,9},$P22, TRUE),1), 0) -> 2 | DF22: =_xlfn.IFNA(MATCH(RAND(), _xlfn.POISSON.DIST({0,1,2,3,4,5,6,7,8,9},$P22, TRUE),1), 0) -> 0 | DG22: =_xlfn.IFNA(MATCH(RAND(), _xlfn.POISSON.DIST({0,1,2,3,4,5,6,7,8,9},$P22, TRUE),1), 0) -> 3 | DH22: =_xlfn.IFNA(MATCH(RAND(), _xlfn.POISSON.DIST({0,1,2,3,4,5,6,7,8,9},$P22, TRUE),1), 0) -> 1 | DI22: =_xlfn.IFNA(MATCH(RAND(), _xlfn.POISSON.DIST({0,1,2,3,4,5,6,7,8,9},$P22, TRUE),1), 0) -> 1 | DJ22: =_xlfn.IFNA(MATCH(RAND(), _xlfn.POISSON.DIST({0,1,2,3,4,5,6,7,8,9},$P22, TRUE),1), 0) -> 2 | DK22: =_xlfn.IFNA(MATCH(RAND(), _xlfn.POISSON.DIST({0,1,2,3,4,5,6,7,8,9},$P22, TRUE),1), 0) -> 2 | DL22: =_xlfn.IFNA(MATCH(RAND(), _xlfn.POISSON.DIST({0,1,2,3,4,5,6,7,8,9},$P22, TRUE),1), 0) -> 0 | DM22: =_xlfn.IFNA(MATCH(RAND(), _xlfn.POISSON.DIST({0,1,2,3,4,5,6,7,8,9},$P22, TRUE),1), 0) -> 2
C23: 2019-06-14 | D23: D | E23: 日本 | F23: =(AVERAGE(Q23:BN23))*(1+INDEX('グループ ステージの予想'!$C$4:$O$28, MATCH(今年の試合!E23,'グループ ステージの予想'!$D$4:$D$28,0),3)) -> 1.28 | G23: スコットランド | H23: =(AVERAGE(BP23:DM23))*(1+INDEX('グループ ステージの予想'!$C$4:$O$28, MATCH(今年の試合!G23,'グループ ステージの予想'!$D$4:$D$28,0),3)) -> 1.48 | I23: スコットランド | L23: 1.28 | M23: 1.48 | N23: スコットランド | O23: =(OFFSET('付録 3 - グループごとのゴール'!$C$13,(INDEX('付録 1 - チーム データ'!$C$13:$F$112,MATCH(G23,'付録 1 - チーム データ'!$C$13:$C$112,0),4)/10),(INDEX('付録 1 - チーム データ'!$C$13:$F$112,MATCH(E23,'付録 1 - チーム データ'!$C$13:$C$112,0),4)/10))) -> 1.50 | P23: =OFFSET('付録 3 - グループごとのゴール'!$C$13,(INDEX('付録 1 - チーム データ'!$C$13:$F$112, MATCH(E23,'付録 1 - チーム データ'!$C$13:$C$112,0),4)/10), (INDEX('付録 1 - チーム データ'!$C$13:$F$112, MATCH(G23, '付録 1 - チーム データ'!$C$13:$C$112,0),4)/10)) -> 1.50 | Q23: =_xlfn.IFNA(MATCH(RAND(), _xlfn.POISSON.DIST({0,1,2,3,4,5,6,7,8,9},$O23, TRUE),1), 0) -> 2 | R23: =_xlfn.IFNA(MATCH(RAND(), _xlfn.POISSON.DIST({0,1,2,3,4,5,6,7,8,9},$O23, TRUE),1), 0) -> 1 | S23: =_xlfn.IFNA(MATCH(RAND(), _xlfn.POISSON.DIST({0,1,2,3,4,5,6,7,8,9},$O23, TRUE),1), 0) -> 1 | T23: =_xlfn.IFNA(MATCH(RAND(), _xlfn.POISSON.DIST({0,1,2,3,4,5,6,7,8,9},$O23, TRUE),1), 0) -> 3 | U23: =_xlfn.IFNA(MATCH(RAND(), _xlfn.POISSON.DIST({0,1,2,3,4,5,6,7,8,9},$O23, TRUE),1), 0) -> 1 | V23: =_xlfn.IFNA(MATCH(RAND(), _xlfn.POISSON.DIST({0,1,2,3,4,5,6,7,8,9},$O23, TRUE),1), 0) -> 0 | W23: =_xlfn.IFNA(MATCH(RAND(), _xlfn.POISSON.DIST({0,1,2,3,4,5,6,7,8,9},$O23, TRUE),1), 0) -> 4 | X23: =_xlfn.IFNA(MATCH(RAND(), _xlfn.POISSON.DIST({0,1,2,3,4,5,6,7,8,9},$O23, TRUE),1), 0) -> 1 | Y23: =_xlfn.IFNA(MATCH(RAND(), _xlfn.POISSON.DIST({0,1,2,3,4,5,6,7,8,9},$O23, TRUE),1), 0) -> 2 | Z23: =_xlfn.IFNA(MATCH(RAND(), _xlfn.POISSON.DIST({0,1,2,3,4,5,6,7,8,9},$O23, TRUE),1), 0) -> 1 | AA23: =_xlfn.IFNA(MATCH(RAND(), _xlfn.POISSON.DIST({0,1,2,3,4,5,6,7,8,9},$O23, TRUE),1), 0) -> 1 | AB23: =_xlfn.IFNA(MATCH(RAND(), _xlfn.POISSON.DIST({0,1,2,3,4,5,6,7,8,9},$O23, TRUE),1), 0) -> 1 | AC23: =_xlfn.IFNA(MATCH(RAND(), _xlfn.POISSON.DIST({0,1,2,3,4,5,6,7,8,9},$O23, TRUE),1), 0) -> 1 | AD23: =_xlfn.IFNA(MATCH(RAND(), _xlfn.POISSON.DIST({0,1,2,3,4,5,6,7,8,9},$O23, TRUE),1), 0) -> 1 | AE23: =_xlfn.IFNA(MATCH(RAND(), _xlfn.POISSON.DIST({0,1,2,3,4,5,6,7,8,9},$O23, TRUE),1), 0) -> 1 | AF23: =_xlfn.IFNA(MATCH(RAND(), _xlfn.POISSON.DIST({0,1,2,3,4,5,6,7,8,9},$O23, TRUE),1), 0) -> 3 | AG23: =_xlfn.IFNA(MATCH(RAND(), _xlfn.POISSON.DIST({0,1,2,3,4,5,6,7,8,9},$O23, TRUE),1), 0) -> 1 | AH23: =_xlfn.IFNA(MATCH(RAND(), _xlfn.POISSON.DIST({0,1,2,3,4,5,6,7,8,9},$O23, TRUE),1), 0) -> 0 | AI23: =_xlfn.IFNA(MATCH(RAND(), _xlfn.POISSON.DIST({0,1,2,3,4,5,6,7,8,9},$O23, TRUE),1), 0) -> 1 | AJ23: =_xlfn.IFNA(MATCH(RAND(), _xlfn.POISSON.DIST({0,1,2,3,4,5,6,7,8,9},$O23, TRUE),1), 0) -> 1 | AK23: =_xlfn.IFNA(MATCH(RAND(), _xlfn.POISSON.DIST({0,1,2,3,4,5,6,7,8,9},$O23, TRUE),1), 0) -> 2 | AL23: =_xlfn.IFNA(MATCH(RAND(), _xlfn.POISSON.DIST({0,1,2,3,4,5,6,7,8,9},$O23, TRUE),1), 0) -> 1 | AM23: =_xlfn.IFNA(MATCH(RAND(), _xlfn.POISSON.DIST({0,1,2,3,4,5,6,7,8,9},$O23, TRUE),1), 0) -> 0 | AN23: =_xlfn.IFNA(MATCH(RAND(), _xlfn.POISSON.DIST({0,1,2,3,4,5,6,7,8,9},$O23, TRUE),1), 0) -> 1 | AO23: =_xlfn.IFNA(MATCH(RAND(), _xlfn.POISSON.DIST({0,1,2,3,4,5,6,7,8,9},$O23, TRUE),1), 0) -> 2 | AP23: =_xlfn.IFNA(MATCH(RAND(), _xlfn.POISSON.DIST({0,1,2,3,4,5,6,7,8,9},$O23, TRUE),1), 0) -> 0 | AQ23: =_xlfn.IFNA(MATCH(RAND(), _xlfn.POISSON.DIST({0,1,2,3,4,5,6,7,8,9},$O23, TRUE),1), 0) -> 2 | AR23: =_xlfn.IFNA(MATCH(RAND(), _xlfn.POISSON.DIST({0,1,2,3,4,5,6,7,8,9},$O23, TRUE),1), 0) -> 0 | AS23: =_xlfn.IFNA(MATCH(RAND(), _xlfn.POISSON.DIST({0,1,2,3,4,5,6,7,8,9},$O23, TRUE),1), 0) -> 2 | AT23: =_xlfn.IFNA(MATCH(RAND(), _xlfn.POISSON.DIST({0,1,2,3,4,5,6,7,8,9},$O23, TRUE),1), 0) -> 1 | AU23: =_xlfn.IFNA(MATCH(RAND(), _xlfn.POISSON.DIST({0,1,2,3,4,5,6,7,8,9},$O23, TRUE),1), 0) -> 2 | AV23: =_xlfn.IFNA(MATCH(RAND(), _xlfn.POISSON.DIST({0,1,2,3,4,5,6,7,8,9},$O23, TRUE),1), 0) -> 1 | AW23: =_xlfn.IFNA(MATCH(RAND(), _xlfn.POISSON.DIST({0,1,2,3,4,5,6,7,8,9},$O23, TRUE),1), 0) -> 1 | AX23: =_xlfn.IFNA(MATCH(RAND(), _xlfn.POISSON.DIST({0,1,2,3,4,5,6,7,8,9},$O23, TRUE),1), 0) -> 0 | AY23: =_xlfn.IFNA(MATCH(RAND(), _xlfn.POISSON.DIST({0,1,2,3,4,5,6,7,8,9},$O23, TRUE),1), 0) -> 1 | AZ23: =_xlfn.IFNA(MATCH(RAND(), _xlfn.POISSON.DIST({0,1,2,3,4,5,6,7,8,9},$O23, TRUE),1), 0) -> 1 | BA23: =_xlfn.IFNA(MATCH(RAND(), _xlfn.POISSON.DIST({0,1,2,3,4,5,6,7,8,9},$O23, TRUE),1), 0) -> 2 | BB23: =_xlfn.IFNA(MATCH(RAND(), _xlfn.POISSON.DIST({0,1,2,3,4,5,6,7,8,9},$O23, TRUE),1), 0) -> 0 | BC23: =_xlfn.IFNA(MATCH(RAND(), _xlfn.POISSON.DIST({0,1,2,3,4,5,6,7,8,9},$O23, TRUE),1), 0) -> 1 | BD23: =_xlfn.IFNA(MATCH(RAND(), _xlfn.POISSON.DIST({0,1,2,3,4,5,6,7,8,9},$O23, TRUE),1), 0) -> 1 | BE23: =_xlfn.IFNA(MATCH(RAND(), _xlfn.POISSON.DIST({0,1,2,3,4,5,6,7,8,9},$O23, TRUE),1), 0) -> 1 | BF23: =_xlfn.IFNA(MATCH(RAND(), _xlfn.POISSON.DIST({0,1,2,3,4,5,6,7,8,9},$O23, TRUE),1), 0) -> 1 | BG23: =_xlfn.IFNA(MATCH(RAND(), _xlfn.POISSON.DIST({0,1,2,3,4,5,6,7,8,9},$O23, TRUE),1), 0) -> 5 | BH23: =_xlfn.IFNA(MATCH(RAND(), _xlfn.POISSON.DIST({0,1,2,3,4,5,6,7,8,9},$O23, TRUE),1), 0) -> 3 | BI23: =_xlfn.IFNA(MATCH(RAND(), _xlfn.POISSON.DIST({0,1,2,3,4,5,6,7,8,9},$O23, TRUE),1), 0) -> 1 | BJ23: =_xlfn.IFNA(MATCH(RAND(), _xlfn.POISSON.DIST({0,1,2,3,4,5,6,7,8,9},$O23, TRUE),1), 0) -> 0 | BK23: =_xlfn.IFNA(MATCH(RAND(), _xlfn.POISSON.DIST({0,1,2,3,4,5,6,7,8,9},$O23, TRUE),1), 0) -> 1 | BL23: =_xlfn.IFNA(MATCH(RAND(), _xlfn.POISSON.DIST({0,1,2,3,4,5,6,7,8,9},$O23, TRUE),1), 0) -> 1 | BM23: =_xlfn.IFNA(MATCH(RAND(), _xlfn.POISSON.DIST({0,1,2,3,4,5,6,7,8,9},$O23, TRUE),1), 0) -> 0 | BN23: =_xlfn.IFNA(MATCH(RAND(), _xlfn.POISSON.DIST({0,1,2,3,4,5,6,7,8,9},$O23, TRUE),1), 0) -> 3 | BP23: =_xlfn.IFNA(MATCH(RAND(), _xlfn.POISSON.DIST({0,1,2,3,4,5,6,7,8,9},$P23, TRUE),1), 0) -> 1 | BQ23: =_xlfn.IFNA(MATCH(RAND(), _xlfn.POISSON.DIST({0,1,2,3,4,5,6,7,8,9},$P23, TRUE),1), 0) -> 0 | BR23: =_xlfn.IFNA(MATCH(RAND(), _xlfn.POISSON.DIST({0,1,2,3,4,5,6,7,8,9},$P23, TRUE),1), 0) -> 2 | BS23: =_xlfn.IFNA(MATCH(RAND(), _xlfn.POISSON.DIST({0,1,2,3,4,5,6,7,8,9},$P23, TRUE),1), 0) -> 1 | BT23: =_xlfn.IFNA(MATCH(RAND(), _xlfn.POISSON.DIST({0,1,2,3,4,5,6,7,8,9},$P23, TRUE),1), 0) -> 4 | BU23: =_xlfn.IFNA(MATCH(RAND(), _xlfn.POISSON.DIST({0,1,2,3,4,5,6,7,8,9},$P23, TRUE),1), 0) -> 3 | BV23: =_xlfn.IFNA(MATCH(RAND(), _xlfn.POISSON.DIST({0,1,2,3,4,5,6,7,8,9},$P23, TRUE),1), 0) -> 0 | BW23: =_xlfn.IFNA(MATCH(RAND(), _xlfn.POISSON.DIST({0,1,2,3,4,5,6,7,8,9},$P23, TRUE),1), 0) -> 1 | BX23: =_xlfn.IFNA(MATCH(RAND(), _xlfn.POISSON.DIST({0,1,2,3,4,5,6,7,8,9},$P23, TRUE),1), 0) -> 1 | BY23: =_xlfn.IFNA(MATCH(RAND(), _xlfn.POISSON.DIST({0,1,2,3,4,5,6,7,8,9},$P23, TRUE),1), 0) -> 2 | BZ23: =_xlfn.IFNA(MATCH(RAND(), _xlfn.POISSON.DIST({0,1,2,3,4,5,6,7,8,9},$P23, TRUE),1), 0) -> 2 | CA23: =_xlfn.IFNA(MATCH(RAND(), _xlfn.POISSON.DIST({0,1,2,3,4,5,6,7,8,9},$P23, TRUE),1), 0) -> 1 | CB23: =_xlfn.IFNA(MATCH(RAND(), _xlfn.POISSON.DIST({0,1,2,3,4,5,6,7,8,9},$P23, TRUE),1), 0) -> 0 | CC23: =_xlfn.IFNA(MATCH(RAND(), _xlfn.POISSON.DIST({0,1,2,3,4,5,6,7,8,9},$P23, TRUE),1), 0) -> 2 | CD23: =_xlfn.IFNA(MATCH(RAND(), _xlfn.POISSON.DIST({0,1,2,3,4,5,6,7,8,9},$P23, TRUE),1), 0) -> 1 | CE23: =_xlfn.IFNA(MATCH(RAND(), _xlfn.POISSON.DIST({0,1,2,3,4,5,6,7,8,9},$P23, TRUE),1), 0) -> 3 | CF23: =_xlfn.IFNA(MATCH(RAND(), _xlfn.POISSON.DIST({0,1,2,3,4,5,6,7,8,9},$P23, TRUE),1), 0) -> 0 | CG23: =_xlfn.IFNA(MATCH(RAND(), _xlfn.POISSON.DIST({0,1,2,3,4,5,6,7,8,9},$P23, TRUE),1), 0) -> 2 | CH23: =_xlfn.IFNA(MATCH(RAND(), _xlfn.POISSON.DIST({0,1,2,3,4,5,6,7,8,9},$P23, TRUE),1), 0) -> 1 | CI23: =_xlfn.IFNA(MATCH(RAND(), _xlfn.POISSON.DIST({0,1,2,3,4,5,6,7,8,9},$P23, TRUE),1), 0) -> 0 | CJ23: =_xlfn.IFNA(MATCH(RAND(), _xlfn.POISSON.DIST({0,1,2,3,4,5,6,7,8,9},$P23, TRUE),1), 0) -> 0 | CK23: =_xlfn.IFNA(MATCH(RAND(), _xlfn.POISSON.DIST({0,1,2,3,4,5,6,7,8,9},$P23, TRUE),1), 0) -> 1 | CL23: =_xlfn.IFNA(MATCH(RAND(), _xlfn.POISSON.DIST({0,1,2,3,4,5,6,7,8,9},$P23, TRUE),1), 0) -> 1 | CM23: =_xlfn.IFNA(MATCH(RAND(), _xlfn.POISSON.DIST({0,1,2,3,4,5,6,7,8,9},$P23, TRUE),1), 0) -> 4 | CN23: =_xlfn.IFNA(MATCH(RAND(), _xlfn.POISSON.DIST({0,1,2,3,4,5,6,7,8,9},$P23, TRUE),1), 0) -> 1 | CO23: =_xlfn.IFNA(MATCH(RAND(), _xlfn.POISSON.DIST({0,1,2,3,4,5,6,7,8,9},$P23, TRUE),1), 0) -> 3 | CP23: =_xlfn.IFNA(MATCH(RAND(), _xlfn.POISSON.DIST({0,1,2,3,4,5,6,7,8,9},$P23, TRUE),1), 0) -> 1 | CQ23: =_xlfn.IFNA(MATCH(RAND(), _xlfn.POISSON.DIST({0,1,2,3,4,5,6,7,8,9},$P23, TRUE),1), 0) -> 0 | CR23: =_xlfn.IFNA(MATCH(RAND(), _xlfn.POISSON.DIST({0,1,2,3,4,5,6,7,8,9},$P23, TRUE),1), 0) -> 1 | CS23: =_xlfn.IFNA(MATCH(RAND(), _xlfn.POISSON.DIST({0,1,2,3,4,5,6,7,8,9},$P23, TRUE),1), 0) -> 3 | CT23: =_xlfn.IFNA(MATCH(RAND(), _xlfn.POISSON.DIST({0,1,2,3,4,5,6,7,8,9},$P23, TRUE),1), 0) -> 1 | CU23: =_xlfn.IFNA(MATCH(RAND(), _xlfn.POISSON.DIST({0,1,2,3,4,5,6,7,8,9},$P23, TRUE),1), 0) -> 3 | CV23: =_xlfn.IFNA(MATCH(RAND(), _xlfn.POISSON.DIST({0,1,2,3,4,5,6,7,8,9},$P23, TRUE),1), 0) -> 1 | CW23: =_xlfn.IFNA(MATCH(RAND(), _xlfn.POISSON.DIST({0,1,2,3,4,5,6,7,8,9},$P23, TRUE),1), 0) -> 0 | CX23: =_xlfn.IFNA(MATCH(RAND(), _xlfn.POISSON.DIST({0,1,2,3,4,5,6,7,8,9},$P23, TRUE),1), 0) -> 0 | CY23: =_xlfn.IFNA(MATCH(RAND(), _xlfn.POISSON.DIST({0,1,2,3,4,5,6,7,8,9},$P23, TRUE),1), 0) -> 2 | CZ23: =_xlfn.IFNA(MATCH(RAND(), _xlfn.POISSON.DIST({0,1,2,3,4,5,6,7,8,9},$P23, TRUE),1), 0) -> 1 | DA23: =_xlfn.IFNA(MATCH(RAND(), _xlfn.POISSON.DIST({0,1,2,3,4,5,6,7,8,9},$P23, TRUE),1), 0) -> 3 | DB23: =_xlfn.IFNA(MATCH(RAND(), _xlfn.POISSON.DIST({0,1,2,3,4,5,6,7,8,9},$P23, TRUE),1), 0) -> 4 | DC23: =_xlfn.IFNA(MATCH(RAND(), _xlfn.POISSON.DIST({0,1,2,3,4,5,6,7,8,9},$P23, TRUE),1), 0) -> 0 | DD23: =_xlfn.IFNA(MATCH(RAND(), _xlfn.POISSON.DIST({0,1,2,3,4,5,6,7,8,9},$P23, TRUE),1), 0) -> 1 | DE23: =_xlfn.IFNA(MATCH(RAND(), _xlfn.POISSON.DIST({0,1,2,3,4,5,6,7,8,9},$P23, TRUE),1), 0) -> 2 | DF23: =_xlfn.IFNA(MATCH(RAND(), _xlfn.POISSON.DIST({0,1,2,3,4,5,6,7,8,9},$P23, TRUE),1), 0) -> 0 | DG23: =_xlfn.IFNA(MATCH(RAND(), _xlfn.POISSON.DIST({0,1,2,3,4,5,6,7,8,9},$P23, TRUE),1), 0) -> 3 | DH23: =_xlfn.IFNA(MATCH(RAND(), _xlfn.POISSON.DIST({0,1,2,3,4,5,6,7,8,9},$P23, TRUE),1), 0) -> 1 | DI23: =_xlfn.IFNA(MATCH(RAND(), _xlfn.POISSON.DIST({0,1,2,3,4,5,6,7,8,9},$P23, TRUE),1), 0) -> 2 | DJ23: =_xlfn.IFNA(MATCH(RAND(), _xlfn.POISSON.DIST({0,1,2,3,4,5,6,7,8,9},$P23, TRUE),1), 0) -> 2 | DK23: =_xlfn.IFNA(MATCH(RAND(), _xlfn.POISSON.DIST({0,1,2,3,4,5,6,7,8,9},$P23, TRUE),1), 0) -> 2 | DL23: =_xlfn.IFNA(MATCH(RAND(), _xlfn.POISSON.DIST({0,1,2,3,4,5,6,7,8,9},$P23, TRUE),1), 0) -> 2 | DM23: =_xlfn.IFNA(MATCH(RAND(), _xlfn.POISSON.DIST({0,1,2,3,4,5,6,7,8,9},$P23, TRUE),1), 0) -> 2
C24: 2019-06-14 | D24: C | E24: ジャマイカ | F24: =(AVERAGE(Q24:BN24))*(1+INDEX('グループ ステージの予想'!$C$4:$O$28, MATCH(今年の試合!E24,'グループ ステージの予想'!$D$4:$D$28,0),3)) -> 1.44 | G24: イタリア | H24: =(AVERAGE(BP24:DM24))*(1+INDEX('グループ ステージの予想'!$C$4:$O$28, MATCH(今年の試合!G24,'グループ ステージの予想'!$D$4:$D$28,0),3)) -> 1.50 | I24: イタリア | L24: 1.44 | M24: 1.5 | N24: イタリア | O24: =(OFFSET('付録 3 - グループごとのゴール'!$C$13,(INDEX('付録 1 - チーム データ'!$C$13:$F$112,MATCH(G24,'付録 1 - チーム データ'!$C$13:$C$112,0),4)/10),(INDEX('付録 1 - チーム データ'!$C$13:$F$112,MATCH(E24,'付録 1 - チーム データ'!$C$13:$C$112,0),4)/10))) -> 1.50 | P24: =OFFSET('付録 3 - グループごとのゴール'!$C$13,(INDEX('付録 1 - チーム データ'!$C$13:$F$112, MATCH(E24,'付録 1 - チーム データ'!$C$13:$C$112,0),4)/10), (INDEX('付録 1 - チーム データ'!$C$13:$F$112, MATCH(G24, '付録 1 - チーム データ'!$C$13:$C$112,0),4)/10)) -> 1.50 | Q24: =_xlfn.IFNA(MATCH(RAND(), _xlfn.POISSON.DIST({0,1,2,3,4,5,6,7,8,9},$O24, TRUE),1), 0) -> 4 | R24: =_xlfn.IFNA(MATCH(RAND(), _xlfn.POISSON.DIST({0,1,2,3,4,5,6,7,8,9},$O24, TRUE),1), 0) -> 2 | S24: =_xlfn.IFNA(MATCH(RAND(), _xlfn.POISSON.DIST({0,1,2,3,4,5,6,7,8,9},$O24, TRUE),1), 0) -> 1 | T24: =_xlfn.IFNA(MATCH(RAND(), _xlfn.POISSON.DIST({0,1,2,3,4,5,6,7,8,9},$O24, TRUE),1), 0) -> 2 | U24: =_xlfn.IFNA(MATCH(RAND(), _xlfn.POISSON.DIST({0,1,2,3,4,5,6,7,8,9},$O24, TRUE),1), 0) -> 2 | V24: =_xlfn.IFNA(MATCH(RAND(), _xlfn.POISSON.DIST({0,1,2,3,4,5,6,7,8,9},$O24, TRUE),1), 0) -> 0 | W24: =_xlfn.IFNA(MATCH(RAND(), _xlfn.POISSON.DIST({0,1,2,3,4,5,6,7,8,9},$O24, TRUE),1), 0) -> 2 | X24: =_xlfn.IFNA(MATCH(RAND(), _xlfn.POISSON.DIST({0,1,2,3,4,5,6,7,8,9},$O24, TRUE),1), 0) -> 2 | Y24: =_xlfn.IFNA(MATCH(RAND(), _xlfn.POISSON.DIST({0,1,2,3,4,5,6,7,8,9},$O24, TRUE),1), 0) -> 0 | Z24: =_xlfn.IFNA(MATCH(RAND(), _xlfn.POISSON.DIST({0,1,2,3,4,5,6,7,8,9},$O24, TRUE),1), 0) -> 0 | AA24: =_xlfn.IFNA(MATCH(RAND(), _xlfn.POISSON.DIST({0,1,2,3,4,5,6,7,8,9},$O24, TRUE),1), 0) -> 2 | AB24: =_xlfn.IFNA(MATCH(RAND(), _xlfn.POISSON.DIST({0,1,2,3,4,5,6,7,8,9},$O24, TRUE),1), 0) -> 2 | AC24: =_xlfn.IFNA(MATCH(RAND(), _xlfn.POISSON.DIST({0,1,2,3,4,5,6,7,8,9},$O24, TRUE),1), 0) -> 1 | AD24: =_xlfn.IFNA(MATCH(RAND(), _xlfn.POISSON.DIST({0,1,2,3,4,5,6,7,8,9},$O24, TRUE),1), 0) -> 1 | AE24: =_xlfn.IFNA(MATCH(RAND(), _xlfn.POISSON.DIST({0,1,2,3,4,5,6,7,8,9},$O24, TRUE),1), 0) -> 1 | AF24: =_xlfn.IFNA(MATCH(RAND(), _xlfn.POISSON.DIST({0,1,2,3,4,5,6,7,8,9},$O24, TRUE),1), 0) -> 1 | AG24: =_xlfn.IFNA(MATCH(RAND(), _xlfn.POISSON.DIST({0,1,2,3,4,5,6,7,8,9},$O24, TRUE),1), 0) -> 3 | AH24: =_xlfn.IFNA(MATCH(RAND(), _xlfn.POISSON.DIST({0,1,2,3,4,5,6,7,8,9},$O24, TRUE),1), 0) -> 2 | AI24: =_xlfn.IFNA(MATCH(RAND(), _xlfn.POISSON.DIST({0,1,2,3,4,5,6,7,8,9},$O24, TRUE),1), 0) -> 2 | AJ24: =_xlfn.IFNA(MATCH(RAND(), _xlfn.POISSON.DIST({0,1,2,3,4,5,6,7,8,9},$O24, TRUE),1), 0) -> 0 | AK24: =_xlfn.IFNA(MATCH(RAND(), _xlfn.POISSON.DIST({0,1,2,3,4,5,6,7,8,9},$O24, TRUE),1), 0) -> 0 | AL24: =_xlfn.IFNA(MATCH(RAND(), _xlfn.POISSON.DIST({0,1,2,3,4,5,6,7,8,9},$O24, TRUE),1), 0) -> 0 | AM24: =_xlfn.IFNA(MATCH(RAND(), _xlfn.POISSON.DIST({0,1,2,3,4,5,6,7,8,9},$O24, TRUE),1), 0) -> 1 | AN24: =_xlfn.IFNA(MATCH(RAND(), _xlfn.POISSON.DIST({0,1,2,3,4,5,6,7,8,9},$O24, TRUE),1), 0) -> 1 | AO24: =_xlfn.IFNA(MATCH(RAND(), _xlfn.POISSON.DIST({0,1,2,3,4,5,6,7,8,9},$O24, TRUE),1), 0) -> 0 | AP24: =_xlfn.IFNA(MATCH(RAND(), _xlfn.POISSON.DIST({0,1,2,3,4,5,6,7,8,9},$O24, TRUE),1), 0) -> 1 | AQ24: =_xlfn.IFNA(MATCH(RAND(), _xlfn.POISSON.DIST({0,1,2,3,4,5,6,7,8,9},$O24, TRUE),1), 0) -> 1 | AR24: =_xlfn.IFNA(MATCH(RAND(), _xlfn.POISSON.DIST({0,1,2,3,4,5,6,7,8,9},$O24, TRUE),1), 0) -> 2 | AS24: =_xlfn.IFNA(MATCH(RAND(), _xlfn.POISSON.DIST({0,1,2,3,4,5,6,7,8,9},$O24, TRUE),1), 0) -> 1 | AT24: =_xlfn.IFNA(MATCH(RAND(), _xlfn.POISSON.DIST({0,1,2,3,4,5,6,7,8,9},$O24, TRUE),1), 0) -> 2 | AU24: =_xlfn.IFNA(MATCH(RAND(), _xlfn.POISSON.DIST({0,1,2,3,4,5,6,7,8,9},$O24, TRUE),1), 0) -> 2 | AV24: =_xlfn.IFNA(MATCH(RAND(), _xlfn.POISSON.DIST({0,1,2,3,4,5,6,7,8,9},$O24, TRUE),1), 0) -> 0 | AW24: =_xlfn.IFNA(MATCH(RAND(), _xlfn.POISSON.DIST({0,1,2,3,4,5,6,7,8,9},$O24, TRUE),1), 0) -> 1 | AX24: =_xlfn.IFNA(MATCH(RAND(), _xlfn.POISSON.DIST({0,1,2,3,4,5,6,7,8,9},$O24, TRUE),1), 0) -> 0 | AY24: =_xlfn.IFNA(MATCH(RAND(), _xlfn.POISSON.DIST({0,1,2,3,4,5,6,7,8,9},$O24, TRUE),1), 0) -> 1 | AZ24: =_xlfn.IFNA(MATCH(RAND(), _xlfn.POISSON.DIST({0,1,2,3,4,5,6,7,8,9},$O24, TRUE),1), 0) -> 3 | BA24: =_xlfn.IFNA(MATCH(RAND(), _xlfn.POISSON.DIST({0,1,2,3,4,5,6,7,8,9},$O24, TRUE),1), 0) -> 2 | BB24: =_xlfn.IFNA(MATCH(RAND(), _xlfn.POISSON.DIST({0,1,2,3,4,5,6,7,8,9},$O24, TRUE),1), 0) -> 2 | BC24: =_xlfn.IFNA(MATCH(RAND(), _xlfn.POISSON.DIST({0,1,2,3,4,5,6,7,8,9},$O24, TRUE),1), 0) -> 1 | BD24: =_xlfn.IFNA(MATCH(RAND(), _xlfn.POISSON.DIST({0,1,2,3,4,5,6,7,8,9},$O24, TRUE),1), 0) -> 2 | BE24: =_xlfn.IFNA(MATCH(RAND(), _xlfn.POISSON.DIST({0,1,2,3,4,5,6,7,8,9},$O24, TRUE),1), 0) -> 3 | BF24: =_xlfn.IFNA(MATCH(RAND(), _xlfn.POISSON.DIST({0,1,2,3,4,5,6,7,8,9},$O24, TRUE),1), 0) -> 2 | BG24: =_xlfn.IFNA(MATCH(RAND(), _xlfn.POISSON.DIST({0,1,2,3,4,5,6,7,8,9},$O24, TRUE),1), 0) -> 1 | BH24: =_xlfn.IFNA(MATCH(RAND(), _xlfn.POISSON.DIST({0,1,2,3,4,5,6,7,8,9},$O24, TRUE),1), 0) -> 2 | BI24: =_xlfn.IFNA(MATCH(RAND(), _xlfn.POISSON.DIST({0,1,2,3,4,5,6,7,8,9},$O24, TRUE),1), 0) -> 7 | BJ24: =_xlfn.IFNA(MATCH(RAND(), _xlfn.POISSON.DIST({0,1,2,3,4,5,6,7,8,9},$O24, TRUE),1), 0) -> 1 | BK24: =_xlfn.IFNA(MATCH(RAND(), _xlfn.POISSON.DIST({0,1,2,3,4,5,6,7,8,9},$O24, TRUE),1), 0) -> 1 | BL24: =_xlfn.IFNA(MATCH(RAND(), _xlfn.POISSON.DIST({0,1,2,3,4,5,6,7,8,9},$O24, TRUE),1), 0) -> 0 | BM24: =_xlfn.IFNA(MATCH(RAND(), _xlfn.POISSON.DIST({0,1,2,3,4,5,6,7,8,9},$O24, TRUE),1), 0) -> 1 | BN24: =_xlfn.IFNA(MATCH(RAND(), _xlfn.POISSON.DIST({0,1,2,3,4,5,6,7,8,9},$O24, TRUE),1), 0) -> 1 | BP24: =_xlfn.IFNA(MATCH(RAND(), _xlfn.POISSON.DIST({0,1,2,3,4,5,6,7,8,9},$P24, TRUE),1), 0) -> 2 | BQ24: =_xlfn.IFNA(MATCH(RAND(), _xlfn.POISSON.DIST({0,1,2,3,4,5,6,7,8,9},$P24, TRUE),1), 0) -> 1 | BR24: =_xlfn.IFNA(MATCH(RAND(), _xlfn.POISSON.DIST({0,1,2,3,4,5,6,7,8,9},$P24, TRUE),1), 0) -> 4 | BS24: =_xlfn.IFNA(MATCH(RAND(), _xlfn.POISSON.DIST({0,1,2,3,4,5,6,7,8,9},$P24, TRUE),1), 0) -> 0 | BT24: =_xlfn.IFNA(MATCH(RAND(), _xlfn.POISSON.DIST({0,1,2,3,4,5,6,7,8,9},$P24, TRUE),1), 0) -> 0 | BU24: =_xlfn.IFNA(MATCH(RAND(), _xlfn.POISSON.DIST({0,1,2,3,4,5,6,7,8,9},$P24, TRUE),1), 0) -> 0 | BV24: =_xlfn.IFNA(MATCH(RAND(), _xlfn.POISSON.DIST({0,1,2,3,4,5,6,7,8,9},$P24, TRUE),1), 0) -> 1 | BW24: =_xlfn.IFNA(MATCH(RAND(), _xlfn.POISSON.DIST({0,1,2,3,4,5,6,7,8,9},$P24, TRUE),1), 0) -> 1 | BX24: =_xlfn.IFNA(MATCH(RAND(), _xlfn.POISSON.DIST({0,1,2,3,4,5,6,7,8,9},$P24, TRUE),1), 0) -> 5 | BY24: =_xlfn.IFNA(MATCH(RAND(), _xlfn.POISSON.DIST({0,1,2,3,4,5,6,7,8,9},$P24, TRUE),1), 0) -> 2 | BZ24: =_xlfn.IFNA(MATCH(RAND(), _xlfn.POISSON.DIST({0,1,2,3,4,5,6,7,8,9},$P24, TRUE),1), 0) -> 2 | CA24: =_xlfn.IFNA(MATCH(RAND(), _xlfn.POISSON.DIST({0,1,2,3,4,5,6,7,8,9},$P24, TRUE),1), 0) -> 3 | CB24: =_xlfn.IFNA(MATCH(RAND(), _xlfn.POISSON.DIST({0,1,2,3,4,5,6,7,8,9},$P24, TRUE),1), 0) -> 2 | CC24: =_xlfn.IFNA(MATCH(RAND(), _xlfn.POISSON.DIST({0,1,2,3,4,5,6,7,8,9},$P24, TRUE),1), 0) -> 2 | CD24: =_xlfn.IFNA(MATCH(RAND(), _xlfn.POISSON.DIST({0,1,2,3,4,5,6,7,8,9},$P24, TRUE),1), 0) -> 3 | CE24: =_xlfn.IFNA(MATCH(RAND(), _xlfn.POISSON.DIST({0,1,2,3,4,5,6,7,8,9},$P24, TRUE),1), 0) -> 1 | CF24: =_xlfn.IFNA(MATCH(RAND(), _xlfn.POISSON.DIST({0,1,2,3,4,5,6,7,8,9},$P24, TRUE),1), 0) -> 2 | CG24: =_xlfn.IFNA(MATCH(RAND(), _xlfn.POISSON.DIST({0,1,2,3,4,5,6,7,8,9},$P24, TRUE),1), 0) -> 0 | CH24: =_xlfn.IFNA(MATCH(RAND(), _xlfn.POISSON.DIST({0,1,2,3,4,5,6,7,8,9},$P24, TRUE),1), 0) -> 0 | CI24: =_xlfn.IFNA(MATCH(RAND(), _xlfn.POISSON.DIST({0,1,2,3,4,5,6,7,8,9},$P24, TRUE),1), 0) -> 0 | CJ24: =_xlfn.IFNA(MATCH(RAND(), _xlfn.POISSON.DIST({0,1,2,3,4,5,6,7,8,9},$P24, TRUE),1), 0) -> 3 | CK24: =_xlfn.IFNA(MATCH(RAND(), _xlfn.POISSON.DIST({0,1,2,3,4,5,6,7,8,9},$P24, TRUE),1), 0) -> 1 | CL24: =_xlfn.IFNA(MATCH(RAND(), _xlfn.POISSON.DIST({0,1,2,3,4,5,6,7,8,9},$P24, TRUE),1), 0) -> 3 | CM24: =_xlfn.IFNA(MATCH(RAND(), _xlfn.POISSON.DIST({0,1,2,3,4,5,6,7,8,9},$P24, TRUE),1), 0) -> 1 | CN24: =_xlfn.IFNA(MATCH(RAND(), _xlfn.POISSON.DIST({0,1,2,3,4,5,6,7,8,9},$P24, TRUE),1), 0) -> 2 | CO24: =_xlfn.IFNA(MATCH(RAND(), _xlfn.POISSON.DIST({0,1,2,3,4,5,6,7,8,9},$P24, TRUE),1), 0) -> 0 | CP24: =_xlfn.IFNA(MATCH(RAND(), _xlfn.POISSON.DIST({0,1,2,3,4,5,6,7,8,9},$P24, TRUE),1), 0) -> 0 | CQ24: =_xlfn.IFNA(MATCH(RAND(), _xlfn.POISSON.DIST({0,1,2,3,4,5,6,7,8,9},$P24, TRUE),1), 0) -> 3 | CR24: =_xlfn.IFNA(MATCH(RAND(), _xlfn.POISSON.DIST({0,1,2,3,4,5,6,7,8,9},$P24, TRUE),1), 0) -> 0 | CS24: =_xlfn.IFNA(MATCH(RAND(), _xlfn.POISSON.DIST({0,1,2,3,4,5,6,7,8,9},$P24, TRUE),1), 0) -> 0 | CT24: =_xlfn.IFNA(MATCH(RAND(), _xlfn.POISSON.DIST({0,1,2,3,4,5,6,7,8,9},$P24, TRUE),1), 0) -> 1 | CU24: =_xlfn.IFNA(MATCH(RAND(), _xlfn.POISSON.DIST({0,1,2,3,4,5,6,7,8,9},$P24, TRUE),1), 0) -> 1 | CV24: =_xlfn.IFNA(MATCH(RAND(), _xlfn.POISSON.DIST({0,1,2,3,4,5,6,7,8,9},$P24, TRUE),1), 0) -> 2 | CW24: =_xlfn.IFNA(MATCH(RAND(), _xlfn.POISSON.DIST({0,1,2,3,4,5,6,7,8,9},$P24, TRUE),1), 0) -> 1 | CX24: =_xlfn.IFNA(MATCH(RAND(), _xlfn.POISSON.DIST({0,1,2,3,4,5,6,7,8,9},$P24, TRUE),1), 0) -> 2 | CY24: =_xlfn.IFNA(MATCH(RAND(), _xlfn.POISSON.DIST({0,1,2,3,4,5,6,7,8,9},$P24, TRUE),1), 0) -> 0 | CZ24: =_xlfn.IFNA(MATCH(RAND(), _xlfn.POISSON.DIST({0,1,2,3,4,5,6,7,8,9},$P24, TRUE),1), 0) -> 3 | DA24: =_xlfn.IFNA(MATCH(RAND(), _xlfn.POISSON.DIST({0,1,2,3,4,5,6,7,8,9},$P24, TRUE),1), 0) -> 1 | DB24: =_xlfn.IFNA(MATCH(RAND(), _xlfn.POISSON.DIST({0,1,2,3,4,5,6,7,8,9},$P24, TRUE),1), 0) -> 3 | DC24: =_xlfn.IFNA(MATCH(RAND(), _xlfn.POISSON.DIST({0,1,2,3,4,5,6,7,8,9},$P24, TRUE),1), 0) -> 2 | DD24: =_xlfn.IFNA(MATCH(RAND(), _xlfn.POISSON.DIST({0,1,2,3,4,5,6,7,8,9},$P24, TRUE),1), 0) -> 1 | DE24: =_xlfn.IFNA(MATCH(RAND(), _xlfn.POISSON.DIST({0,1,2,3,4,5,6,7,8,9},$P24, TRUE),1), 0) -> 2 | DF24: =_xlfn.IFNA(MATCH(RAND(), _xlfn.POISSON.DIST({0,1,2,3,4,5,6,7,8,9},$P24, TRUE),1), 0) -> 1 | DG24: =_xlfn.IFNA(MATCH(RAND(), _xlfn.POISSON.DIST({0,1,2,3,4,5,6,7,8,9},$P24, TRUE),1), 0) -> 3 | DH24: =_xlfn.IFNA(MATCH(RAND(), _xlfn.POISSON.DIST({0,1,2,3,4,5,6,7,8,9},$P24, TRUE),1), 0) -> 1 | DI24: =_xlfn.IFNA(MATCH(RAND(), _xlfn.POISSON.DIST({0,1,2,3,4,5,6,7,8,9},$P24, TRUE),1), 0) -> 1 | DJ24: =_xlfn.IFNA(MATCH(RAND(), _xlfn.POISSON.DIST({0,1,2,3,4,5,6,7,8,9},$P24, TRUE),1), 0) -> 2 | DK24: =_xlfn.IFNA(MATCH(RAND(), _xlfn.POISSON.DIST({0,1,2,3,4,5,6,7,8,9},$P24, TRUE),1), 0) -> 2 | DL24: =_xlfn.IFNA(MATCH(RAND(), _xlfn.POISSON.DIST({0,1,2,3,4,5,6,7,8,9},$P24, TRUE),1), 0) -> 2 | DM24: =_xlfn.IFNA(MATCH(RAND(), _xlfn.POISSON.DIST({0,1,2,3,4,5,6,7,8,9},$P24, TRUE),1), 0) -> 0
C25: 2019-06-14 | D25: D | E25: イングランド | F25: =(AVERAGE(Q25:BN25))*(1+INDEX('グループ ステージの予想'!$C$4:$O$28, MATCH(今年の試合!E25,'グループ ステージの予想'!$D$4:$D$28,0),3)) -> 3.00 | G25: アルゼンチン | H25: =(AVERAGE(BP25:DM25))*(1+INDEX('グループ ステージの予想'!$C$4:$O$28, MATCH(今年の試合!G25,'グループ ステージの予想'!$D$4:$D$28,0),3)) -> 0.28 | I25: イングランド | L25: 3 | M25: 0.28 | N25: イングランド | O25: =(OFFSET('付録 3 - グループごとのゴール'!$C$13,(INDEX('付録 1 - チーム データ'!$C$13:$F$112,MATCH(G25,'付録 1 - チーム データ'!$C$13:$C$112,0),4)/10),(INDEX('付録 1 - チーム データ'!$C$13:$F$112,MATCH(E25,'付録 1 - チーム データ'!$C$13:$C$112,0),4)/10))) -> 2.94 | P25: =OFFSET('付録 3 - グループごとのゴール'!$C$13,(INDEX('付録 1 - チーム データ'!$C$13:$F$112, MATCH(E25,'付録 1 - チーム データ'!$C$13:$C$112,0),4)/10), (INDEX('付録 1 - チーム データ'!$C$13:$F$112, MATCH(G25, '付録 1 - チーム データ'!$C$13:$C$112,0),4)/10)) -> 0.38 | Q25: =_xlfn.IFNA(MATCH(RAND(), _xlfn.POISSON.DIST({0,1,2,3,4,5,6,7,8,9},$O25, TRUE),1), 0) -> 3 | R25: =_xlfn.IFNA(MATCH(RAND(), _xlfn.POISSON.DIST({0,1,2,3,4,5,6,7,8,9},$O25, TRUE),1), 0) -> 4 | S25: =_xlfn.IFNA(MATCH(RAND(), _xlfn.POISSON.DIST({0,1,2,3,4,5,6,7,8,9},$O25, TRUE),1), 0) -> 5 | T25: =_xlfn.IFNA(MATCH(RAND(), _xlfn.POISSON.DIST({0,1,2,3,4,5,6,7,8,9},$O25, TRUE),1), 0) -> 5 | U25: =_xlfn.IFNA(MATCH(RAND(), _xlfn.POISSON.DIST({0,1,2,3,4,5,6,7,8,9},$O25, TRUE),1), 0) -> 2 | V25: =_xlfn.IFNA(MATCH(RAND(), _xlfn.POISSON.DIST({0,1,2,3,4,5,6,7,8,9},$O25, TRUE),1), 0) -> 6 | W25: =_xlfn.IFNA(MATCH(RAND(), _xlfn.POISSON.DIST({0,1,2,3,4,5,6,7,8,9},$O25, TRUE),1), 0) -> 3 | X25: =_xlfn.IFNA(MATCH(RAND(), _xlfn.POISSON.DIST({0,1,2,3,4,5,6,7,8,9},$O25, TRUE),1), 0) -> 2 | Y25: =_xlfn.IFNA(MATCH(RAND(), _xlfn.POISSON.DIST({0,1,2,3,4,5,6,7,8,9},$O25, TRUE),1), 0) -> 2 | Z25: =_xlfn.IFNA(MATCH(RAND(), _xlfn.POISSON.DIST({0,1,2,3,4,5,6,7,8,9},$O25, TRUE),1), 0) -> 5 | AA25: =_xlfn.IFNA(MATCH(RAND(), _xlfn.POISSON.DIST({0,1,2,3,4,5,6,7,8,9},$O25, TRUE),1), 0) -> 2 | AB25: =_xlfn.IFNA(MATCH(RAND(), _xlfn.POISSON.DIST({0,1,2,3,4,5,6,7,8,9},$O25, TRUE),1), 0) -> 1 | AC25: =_xlfn.IFNA(MATCH(RAND(), _xlfn.POISSON.DIST({0,1,2,3,4,5,6,7,8,9},$O25, TRUE),1), 0) -> 4 | AD25: =_xlfn.IFNA(MATCH(RAND(), _xlfn.POISSON.DIST({0,1,2,3,4,5,6,7,8,9},$O25, TRUE),1), 0) -> 5 | AE25: =_xlfn.IFNA(MATCH(RAND(), _xlfn.POISSON.DIST({0,1,2,3,4,5,6,7,8,9},$O25, TRUE),1), 0) -> 2 | AF25: =_xlfn.IFNA(MATCH(RAND(), _xlfn.POISSON.DIST({0,1,2,3,4,5,6,7,8,9},$O25, TRUE),1), 0) -> 2 | AG25: =_xlfn.IFNA(MATCH(RAND(), _xlfn.POISSON.DIST({0,1,2,3,4,5,6,7,8,9},$O25, TRUE),1), 0) -> 5 | AH25: =_xlfn.IFNA(MATCH(RAND(), _xlfn.POISSON.DIST({0,1,2,3,4,5,6,7,8,9},$O25, TRUE),1), 0) -> 2 | AI25: =_xlfn.IFNA(MATCH(RAND(), _xlfn.POISSON.DIST({0,1,2,3,4,5,6,7,8,9},$O25, TRUE),1), 0) -> 2 | AJ25: =_xlfn.IFNA(MATCH(RAND(), _xlfn.POISSON.DIST({0,1,2,3,4,5,6,7,8,9},$O25, TRUE),1), 0) -> 1 | AK25: =_xlfn.IFNA(MATCH(RAND(), _xlfn.POISSON.DIST({0,1,2,3,4,5,6,7,8,9},$O25, TRUE),1), 0) -> 2 | AL25: =_xlfn.IFNA(MATCH(RAND(), _xlfn.POISSON.DIST({0,1,2,3,4,5,6,7,8,9},$O25, TRUE),1), 0) -> 2 | AM25: =_xlfn.IFNA(MATCH(RAND(), _xlfn.POISSON.DIST({0,1,2,3,4,5,6,7,8,9},$O25, TRUE),1), 0) -> 5 | AN25: =_xlfn.IFNA(MATCH(RAND(), _xlfn.POISSON.DIST({0,1,2,3,4,5,6,7,8,9},$O25, TRUE),1), 0) -> 3 | AO25: =_xlfn.IFNA(MATCH(RAND(), _xlfn.POISSON.DIST({0,1,2,3,4,5,6,7,8,9},$O25, TRUE),1), 0) -> 4 | AP25: =_xlfn.IFNA(MATCH(RAND(), _xlfn.POISSON.DIST({0,1,2,3,4,5,6,7,8,9},$O25, TRUE),1), 0) -> 6 | AQ25: =_xlfn.IFNA(MATCH(RAND(), _xlfn.POISSON.DIST({0,1,2,3,4,5,6,7,8,9},$O25, TRUE),1), 0) -> 2 | AR25: =_xlfn.IFNA(MATCH(RAND(), _xlfn.POISSON.DIST({0,1,2,3,4,5,6,7,8,9},$O25, TRUE),1), 0) -> 2 | AS25: =_xlfn.IFNA(MATCH(RAND(), _xlfn.POISSON.DIST({0,1,2,3,4,5,6,7,8,9},$O25, TRUE),1), 0) -> 1 | AT25: =_xlfn.IFNA(MATCH(RAND(), _xlfn.POISSON.DIST({0,1,2,3,4,5,6,7,8,9},$O25, TRUE),1), 0) -> 4 | AU25: =_xlfn.IFNA(MATCH(RAND(), _xlfn.POISSON.DIST({0,1,2,3,4,5,6,7,8,9},$O25, TRUE),1), 0) -> 2 | AV25: =_xlfn.IFNA(MATCH(RAND(), _xlfn.POISSON.DIST({0,1,2,3,4,5,6,7,8,9},$O25, TRUE),1), 0) -> 6 | AW25: =_xlfn.IFNA(MATCH(RAND(), _xlfn.POISSON.DIST({0,1,2,3,4,5,6,7,8,9},$O25, TRUE),1), 0) -> 2 | AX25: =_xlfn.IFNA(MATCH(RAND(), _xlfn.POISSON.DIST({0,1,2,3,4,5,6,7,8,9},$O25, TRUE),1), 0) -> 2 | AY25: =_xlfn.IFNA(MATCH(RAND(), _xlfn.POISSON.DIST({0,1,2,3,4,5,6,7,8,9},$O25, TRUE),1), 0) -> 3 | AZ25: =_xlfn.IFNA(MATCH(RAND(), _xlfn.POISSON.DIST({0,1,2,3,4,5,6,7,8,9},$O25, TRUE),1), 0) -> 3 | BA25: =_xlfn.IFNA(MATCH(RAND(), _xlfn.POISSON.DIST({0,1,2,3,4,5,6,7,8,9},$O25, TRUE),1), 0) -> 2 | BB25: =_xlfn.IFNA(MATCH(RAND(), _xlfn.POISSON.DIST({0,1,2,3,4,5,6,7,8,9},$O25, TRUE),1), 0) -> 2 | BC25: =_xlfn.IFNA(MATCH(RAND(), _xlfn.POISSON.DIST({0,1,2,3,4,5,6,7,8,9},$O25, TRUE),1), 0) -> 6 | BD25: =_xlfn.IFNA(MATCH(RAND(), _xlfn.POISSON.DIST({0,1,2,3,4,5,6,7,8,9},$O25, TRUE),1), 0) -> 2 | BE25: =_xlfn.IFNA(MATCH(RAND(), _xlfn.POISSON.DIST({0,1,2,3,4,5,6,7,8,9},$O25, TRUE),1), 0) -> 2 | BF25: =_xlfn.IFNA(MATCH(RAND(), _xlfn.POISSON.DIST({0,1,2,3,4,5,6,7,8,9},$O25, TRUE),1), 0) -> 3 | BG25: =_xlfn.IFNA(MATCH(RAND(), _xlfn.POISSON.DIST({0,1,2,3,4,5,6,7,8,9},$O25, TRUE),1), 0) -> 3 | BH25: =_xlfn.IFNA(MATCH(RAND(), _xlfn.POISSON.DIST({0,1,2,3,4,5,6,7,8,9},$O25, TRUE),1), 0) -> 0 | BI25: =_xlfn.IFNA(MATCH(RAND(), _xlfn.POISSON.DIST({0,1,2,3,4,5,6,7,8,9},$O25, TRUE),1), 0) -> 3 | BJ25: =_xlfn.IFNA(MATCH(RAND(), _xlfn.POISSON.DIST({0,1,2,3,4,5,6,7,8,9},$O25, TRUE),1), 0) -> 1 | BK25: =_xlfn.IFNA(MATCH(RAND(), _xlfn.POISSON.DIST({0,1,2,3,4,5,6,7,8,9},$O25, TRUE),1), 0) -> 2 | BL25: =_xlfn.IFNA(MATCH(RAND(), _xlfn.POISSON.DIST({0,1,2,3,4,5,6,7,8,9},$O25, TRUE),1), 0) -> 3 | BM25: =_xlfn.IFNA(MATCH(RAND(), _xlfn.POISSON.DIST({0,1,2,3,4,5,6,7,8,9},$O25, TRUE),1), 0) -> 7 | BN25: =_xlfn.IFNA(MATCH(RAND(), _xlfn.POISSON.DIST({0,1,2,3,4,5,6,7,8,9},$O25, TRUE),1), 0) -> 2 | BP25: =_xlfn.IFNA(MATCH(RAND(), _xlfn.POISSON.DIST({0,1,2,3,4,5,6,7,8,9},$P25, TRUE),1), 0) -> 0 | BQ25: =_xlfn.IFNA(MATCH(RAND(), _xlfn.POISSON.DIST({0,1,2,3,4,5,6,7,8,9},$P25, TRUE),1), 0) -> 1 | BR25: =_xlfn.IFNA(MATCH(RAND(), _xlfn.POISSON.DIST({0,1,2,3,4,5,6,7,8,9},$P25, TRUE),1), 0) -> 1 | BS25: =_xlfn.IFNA(MATCH(RAND(), _xlfn.POISSON.DIST({0,1,2,3,4,5,6,7,8,9},$P25, TRUE),1), 0) -> 0 | BT25: =_xlfn.IFNA(MATCH(RAND(), _xlfn.POISSON.DIST({0,1,2,3,4,5,6,7,8,9},$P25, TRUE),1), 0) -> 0 | BU25: =_xlfn.IFNA(MATCH(RAND(), _xlfn.POISSON.DIST({0,1,2,3,4,5,6,7,8,9},$P25, TRUE),1), 0) -> 0 | BV25: =_xlfn.IFNA(MATCH(RAND(), _xlfn.POISSON.DIST({0,1,2,3,4,5,6,7,8,9},$P25, TRUE),1), 0) -> 0 | BW25: =_xlfn.IFNA(MATCH(RAND(), _xlfn.POISSON.DIST({0,1,2,3,4,5,6,7,8,9},$P25, TRUE),1), 0) -> 0 | BX25: =_xlfn.IFNA(MATCH(RAND(), _xlfn.POISSON.DIST({0,1,2,3,4,5,6,7,8,9},$P25, TRUE),1), 0) -> 0 | BY25: =_xlfn.IFNA(MATCH(RAND(), _xlfn.POISSON.DIST({0,1,2,3,4,5,6,7,8,9},$P25, TRUE),1), 0) -> 0 | BZ25: =_xlfn.IFNA(MATCH(RAND(), _xlfn.POISSON.DIST({0,1,2,3,4,5,6,7,8,9},$P25, TRUE),1), 0) -> 2 | CA25: =_xlfn.IFNA(MATCH(RAND(), _xlfn.POISSON.DIST({0,1,2,3,4,5,6,7,8,9},$P25, TRUE),1), 0) -> 0 | CB25: =_xlfn.IFNA(MATCH(RAND(), _xlfn.POISSON.DIST({0,1,2,3,4,5,6,7,8,9},$P25, TRUE),1), 0) -> 0 | CC25: =_xlfn.IFNA(MATCH(RAND(), _xlfn.POISSON.DIST({0,1,2,3,4,5,6,7,8,9},$P25, TRUE),1), 0) -> 0 | CD25: =_xlfn.IFNA(MATCH(RAND(), _xlfn.POISSON.DIST({0,1,2,3,4,5,6,7,8,9},$P25, TRUE),1), 0) -> 0 | CE25: =_xlfn.IFNA(MATCH(RAND(), _xlfn.POISSON.DIST({0,1,2,3,4,5,6,7,8,9},$P25, TRUE),1), 0) -> 0 | CF25: =_xlfn.IFNA(MATCH(RAND(), _xlfn.POISSON.DIST({0,1,2,3,4,5,6,7,8,9},$P25, TRUE),1), 0) -> 0 | CG25: =_xlfn.IFNA(MATCH(RAND(), _xlfn.POISSON.DIST({0,1,2,3,4,5,6,7,8,9},$P25, TRUE),1), 0) -> 0 | CH25: =_xlfn.IFNA(MATCH(RAND(), _xlfn.POISSON.DIST({0,1,2,3,4,5,6,7,8,9},$P25, TRUE),1), 0) -> 1 | CI25: =_xlfn.IFNA(MATCH(RAND(), _xlfn.POISSON.DIST({0,1,2,3,4,5,6,7,8,9},$P25, TRUE),1), 0) -> 0 | CJ25: =_xlfn.IFNA(MATCH(RAND(), _xlfn.POISSON.DIST({0,1,2,3,4,5,6,7,8,9},$P25, TRUE),1), 0) -> 1 | CK25: =_xlfn.IFNA(MATCH(RAND(), _xlfn.POISSON.DIST({0,1,2,3,4,5,6,7,8,9},$P25, TRUE),1), 0) -> 0 | CL25: =_xlfn.IFNA(MATCH(RAND(), _xlfn.POISSON.DIST({0,1,2,3,4,5,6,7,8,9},$P25, TRUE),1), 0) -> 0 | CM25: =_xlfn.IFNA(MATCH(RAND(), _xlfn.POISSON.DIST({0,1,2,3,4,5,6,7,8,9},$P25, TRUE),1), 0) -> 0 | CN25: =_xlfn.IFNA(MATCH(RAND(), _xlfn.POISSON.DIST({0,1,2,3,4,5,6,7,8,9},$P25, TRUE),1), 0) -> 0 | CO25: =_xlfn.IFNA(MATCH(RAND(), _xlfn.POISSON.DIST({0,1,2,3,4,5,6,7,8,9},$P25, TRUE),1), 0) -> 0 | CP25: =_xlfn.IFNA(MATCH(RAND(), _xlfn.POISSON.DIST({0,1,2,3,4,5,6,7,8,9},$P25, TRUE),1), 0) -> 1 | CQ25: =_xlfn.IFNA(MATCH(RAND(), _xlfn.POISSON.DIST({0,1,2,3,4,5,6,7,8,9},$P25, TRUE),1), 0) -> 2 | CR25: =_xlfn.IFNA(MATCH(RAND(), _xlfn.POISSON.DIST({0,1,2,3,4,5,6,7,8,9},$P25, TRUE),1), 0) -> 0 | CS25: =_xlfn.IFNA(MATCH(RAND(), _xlfn.POISSON.DIST({0,1,2,3,4,5,6,7,8,9},$P25, TRUE),1), 0) -> 1 | CT25: =_xlfn.IFNA(MATCH(RAND(), _xlfn.POISSON.DIST({0,1,2,3,4,5,6,7,8,9},$P25, TRUE),1), 0) -> 0 | CU25: =_xlfn.IFNA(MATCH(RAND(), _xlfn.POISSON.DIST({0,1,2,3,4,5,6,7,8,9},$P25, TRUE),1), 0) -> 0 | CV25: =_xlfn.IFNA(MATCH(RAND(), _xlfn.POISSON.DIST({0,1,2,3,4,5,6,7,8,9},$P25, TRUE),1), 0) -> 0 | CW25: =_xlfn.IFNA(MATCH(RAND(), _xlfn.POISSON.DIST({0,1,2,3,4,5,6,7,8,9},$P25, TRUE),1), 0) -> 1 | CX25: =_xlfn.IFNA(MATCH(RAND(), _xlfn.POISSON.DIST({0,1,2,3,4,5,6,7,8,9},$P25, TRUE),1), 0) -> 0 | CY25: =_xlfn.IFNA(MATCH(RAND(), _xlfn.POISSON.DIST({0,1,2,3,4,5,6,7,8,9},$P25, TRUE),1), 0) -> 0 | CZ25: =_xlfn.IFNA(MATCH(RAND(), _xlfn.POISSON.DIST({0,1,2,3,4,5,6,7,8,9},$P25, TRUE),1), 0) -> 0 | DA25: =_xlfn.IFNA(MATCH(RAND(), _xlfn.POISSON.DIST({0,1,2,3,4,5,6,7,8,9},$P25, TRUE),1), 0) -> 0 | DB25: =_xlfn.IFNA(MATCH(RAND(), _xlfn.POISSON.DIST({0,1,2,3,4,5,6,7,8,9},$P25, TRUE),1), 0) -> 1 | DC25: =_xlfn.IFNA(MATCH(RAND(), _xlfn.POISSON.DIST({0,1,2,3,4,5,6,7,8,9},$P25, TRUE),1), 0) -> 0 | DD25: =_xlfn.IFNA(MATCH(RAND(), _xlfn.POISSON.DIST({0,1,2,3,4,5,6,7,8,9},$P25, TRUE),1), 0) -> 0 | DE25: =_xlfn.IFNA(MATCH(RAND(), _xlfn.POISSON.DIST({0,1,2,3,4,5,6,7,8,9},$P25, TRUE),1), 0) -> 0 | DF25: =_xlfn.IFNA(MATCH(RAND(), _xlfn.POISSON.DIST({0,1,2,3,4,5,6,7,8,9},$P25, TRUE),1), 0) -> 0 | DG25: =_xlfn.IFNA(MATCH(RAND(), _xlfn.POISSON.DIST({0,1,2,3,4,5,6,7,8,9},$P25, TRUE),1), 0) -> 0 | DH25: =_xlfn.IFNA(MATCH(RAND(), _xlfn.POISSON.DIST({0,1,2,3,4,5,6,7,8,9},$P25, TRUE),1), 0) -> 1 | DI25: =_xlfn.IFNA(MATCH(RAND(), _xlfn.POISSON.DIST({0,1,2,3,4,5,6,7,8,9},$P25, TRUE),1), 0) -> 0 | DJ25: =_xlfn.IFNA(MATCH(RAND(), _xlfn.POISSON.DIST({0,1,2,3,4,5,6,7,8,9},$P25, TRUE),1), 0) -> 0 | DK25: =_xlfn.IFNA(MATCH(RAND(), _xlfn.POISSON.DIST({0,1,2,3,4,5,6,7,8,9},$P25, TRUE),1), 0) -> 0 | DL25: =_xlfn.IFNA(MATCH(RAND(), _xlfn.POISSON.DIST({0,1,2,3,4,5,6,7,8,9},$P25, TRUE),1), 0) -> 0 | DM25: =_xlfn.IFNA(MATCH(RAND(), _xlfn.POISSON.DIST({0,1,2,3,4,5,6,7,8,9},$P25, TRUE),1), 0) -> 1
C26: 2019-06-15 | D26: E | E26: オランダ | F26: =(AVERAGE(Q26:BN26))*(1+INDEX('グループ ステージの予想'!$C$4:$O$28, MATCH(今年の試合!E26,'グループ ステージの予想'!$D$4:$D$28,0),3)) -> 1.50 | G26: カメルーン | H26: =(AVERAGE(BP26:DM26))*(1+INDEX('グループ ステージの予想'!$C$4:$O$28, MATCH(今年の試合!G26,'グループ ステージの予想'!$D$4:$D$28,0),3)) -> 1.80 | I26: カメルーン | L26: 1.5 | M26: 1.8 | N26: カメルーン | O26: =(OFFSET('付録 3 - グループごとのゴール'!$C$13,(INDEX('付録 1 - チーム データ'!$C$13:$F$112,MATCH(G26,'付録 1 - チーム データ'!$C$13:$C$112,0),4)/10),(INDEX('付録 1 - チーム データ'!$C$13:$F$112,MATCH(E26,'付録 1 - チーム データ'!$C$13:$C$112,0),4)/10))) -> 1.50 | P26: =OFFSET('付録 3 - グループごとのゴール'!$C$13,(INDEX('付録 1 - チーム データ'!$C$13:$F$112, MATCH(E26,'付録 1 - チーム データ'!$C$13:$C$112,0),4)/10), (INDEX('付録 1 - チーム データ'!$C$13:$F$112, MATCH(G26, '付録 1 - チーム データ'!$C$13:$C$112,0),4)/10)) -> 1.50 | Q26: =_xlfn.IFNA(MATCH(RAND(), _xlfn.POISSON.DIST({0,1,2,3,4,5,6,7,8,9},$O26, TRUE),1), 0) -> 2 | R26: =_xlfn.IFNA(MATCH(RAND(), _xlfn.POISSON.DIST({0,1,2,3,4,5,6,7,8,9},$O26, TRUE),1), 0) -> 1 | S26: =_xlfn.IFNA(MATCH(RAND(), _xlfn.POISSON.DIST({0,1,2,3,4,5,6,7,8,9},$O26, TRUE),1), 0) -> 2 | T26: =_xlfn.IFNA(MATCH(RAND(), _xlfn.POISSON.DIST({0,1,2,3,4,5,6,7,8,9},$O26, TRUE),1), 0) -> 1 | U26: =_xlfn.IFNA(MATCH(RAND(), _xlfn.POISSON.DIST({0,1,2,3,4,5,6,7,8,9},$O26, TRUE),1), 0) -> 1 | V26: =_xlfn.IFNA(MATCH(RAND(), _xlfn.POISSON.DIST({0,1,2,3,4,5,6,7,8,9},$O26, TRUE),1), 0) -> 2 | W26: =_xlfn.IFNA(MATCH(RAND(), _xlfn.POISSON.DIST({0,1,2,3,4,5,6,7,8,9},$O26, TRUE),1), 0) -> 1 | X26: =_xlfn.IFNA(MATCH(RAND(), _xlfn.POISSON.DIST({0,1,2,3,4,5,6,7,8,9},$O26, TRUE),1), 0) -> 0 | Y26: =_xlfn.IFNA(MATCH(RAND(), _xlfn.POISSON.DIST({0,1,2,3,4,5,6,7,8,9},$O26, TRUE),1), 0) -> 1 | Z26: =_xlfn.IFNA(MATCH(RAND(), _xlfn.POISSON.DIST({0,1,2,3,4,5,6,7,8,9},$O26, TRUE),1), 0) -> 1 | AA26: =_xlfn.IFNA(MATCH(RAND(), _xlfn.POISSON.DIST({0,1,2,3,4,5,6,7,8,9},$O26, TRUE),1), 0) -> 3 | AB26: =_xlfn.IFNA(MATCH(RAND(), _xlfn.POISSON.DIST({0,1,2,3,4,5,6,7,8,9},$O26, TRUE),1), 0) -> 0 | AC26: =_xlfn.IFNA(MATCH(RAND(), _xlfn.POISSON.DIST({0,1,2,3,4,5,6,7,8,9},$O26, TRUE),1), 0) -> 1 | AD26: =_xlfn.IFNA(MATCH(RAND(), _xlfn.POISSON.DIST({0,1,2,3,4,5,6,7,8,9},$O26, TRUE),1), 0) -> 1 | AE26: =_xlfn.IFNA(MATCH(RAND(), _xlfn.POISSON.DIST({0,1,2,3,4,5,6,7,8,9},$O26, TRUE),1), 0) -> 0 | AF26: =_xlfn.IFNA(MATCH(RAND(), _xlfn.POISSON.DIST({0,1,2,3,4,5,6,7,8,9},$O26, TRUE),1), 0) -> 1 | AG26: =_xlfn.IFNA(MATCH(RAND(), _xlfn.POISSON.DIST({0,1,2,3,4,5,6,7,8,9},$O26, TRUE),1), 0) -> 1 | AH26: =_xlfn.IFNA(MATCH(RAND(), _xlfn.POISSON.DIST({0,1,2,3,4,5,6,7,8,9},$O26, TRUE),1), 0) -> 3 | AI26: =_xlfn.IFNA(MATCH(RAND(), _xlfn.POISSON.DIST({0,1,2,3,4,5,6,7,8,9},$O26, TRUE),1), 0) -> 2 | AJ26: =_xlfn.IFNA(MATCH(RAND(), _xlfn.POISSON.DIST({0,1,2,3,4,5,6,7,8,9},$O26, TRUE),1), 0) -> 1 | AK26: =_xlfn.IFNA(MATCH(RAND(), _xlfn.POISSON.DIST({0,1,2,3,4,5,6,7,8,9},$O26, TRUE),1), 0) -> 3 | AL26: =_xlfn.IFNA(MATCH(RAND(), _xlfn.POISSON.DIST({0,1,2,3,4,5,6,7,8,9},$O26, TRUE),1), 0) -> 0 | AM26: =_xlfn.IFNA(MATCH(RAND(), _xlfn.POISSON.DIST({0,1,2,3,4,5,6,7,8,9},$O26, TRUE),1), 0) -> 2 | AN26: =_xlfn.IFNA(MATCH(RAND(), _xlfn.POISSON.DIST({0,1,2,3,4,5,6,7,8,9},$O26, TRUE),1), 0) -> 2 | AO26: =_xlfn.IFNA(MATCH(RAND(), _xlfn.POISSON.DIST({0,1,2,3,4,5,6,7,8,9},$O26, TRUE),1), 0) -> 2 | AP26: =_xlfn.IFNA(MATCH(RAND(), _xlfn.POISSON.DIST({0,1,2,3,4,5,6,7,8,9},$O26, TRUE),1), 0) -> 2 | AQ26: =_xlfn.IFNA(MATCH(RAND(), _xlfn.POISSON.DIST({0,1,2,3,4,5,6,7,8,9},$O26, TRUE),1), 0) -> 3 | AR26: =_xlfn.IFNA(MATCH(RAND(), _xlfn.POISSON.DIST({0,1,2,3,4,5,6,7,8,9},$O26, TRUE),1), 0) -> 4 | AS26: =_xlfn.IFNA(MATCH(RAND(), _xlfn.POISSON.DIST({0,1,2,3,4,5,6,7,8,9},$O26, TRUE),1), 0) -> 3 | AT26: =_xlfn.IFNA(MATCH(RAND(), _xlfn.POISSON.DIST({0,1,2,3,4,5,6,7,8,9},$O26, TRUE),1), 0) -> 0 | AU26: =_xlfn.IFNA(MATCH(RAND(), _xlfn.POISSON.DIST({0,1,2,3,4,5,6,7,8,9},$O26, TRUE),1), 0) -> 1 | AV26: =_xlfn.IFNA(MATCH(RAND(), _xlfn.POISSON.DIST({0,1,2,3,4,5,6,7,8,9},$O26, TRUE),1), 0) -> 2 | AW26: =_xlfn.IFNA(MATCH(RAND(), _xlfn.POISSON.DIST({0,1,2,3,4,5,6,7,8,9},$O26, TRUE),1), 0) -> 1 | AX26: =_xlfn.IFNA(MATCH(RAND(), _xlfn.POISSON.DIST({0,1,2,3,4,5,6,7,8,9},$O26, TRUE),1), 0) -> 2 | AY26: =_xlfn.IFNA(MATCH(RAND(), _xlfn.POISSON.DIST({0,1,2,3,4,5,6,7,8,9},$O26, TRUE),1), 0) -> 3 | AZ26: =_xlfn.IFNA(MATCH(RAND(), _xlfn.POISSON.DIST({0,1,2,3,4,5,6,7,8,9},$O26, TRUE),1), 0) -> 0 | BA26: =_xlfn.IFNA(MATCH(RAND(), _xlfn.POISSON.DIST({0,1,2,3,4,5,6,7,8,9},$O26, TRUE),1), 0) -> 0 | BB26: =_xlfn.IFNA(MATCH(RAND(), _xlfn.POISSON.DIST({0,1,2,3,4,5,6,7,8,9},$O26, TRUE),1), 0) -> 0 | BC26: =_xlfn.IFNA(MATCH(RAND(), _xlfn.POISSON.DIST({0,1,2,3,4,5,6,7,8,9},$O26, TRUE),1), 0) -> 1 | BD26: =_xlfn.IFNA(MATCH(RAND(), _xlfn.POISSON.DIST({0,1,2,3,4,5,6,7,8,9},$O26, TRUE),1), 0) -> 1 | BE26: =_xlfn.IFNA(MATCH(RAND(), _xlfn.POISSON.DIST({0,1,2,3,4,5,6,7,8,9},$O26, TRUE),1), 0) -> 1 | BF26: =_xlfn.IFNA(MATCH(RAND(), _xlfn.POISSON.DIST({0,1,2,3,4,5,6,7,8,9},$O26, TRUE),1), 0) -> 3 | BG26: =_xlfn.IFNA(MATCH(RAND(), _xlfn.POISSON.DIST({0,1,2,3,4,5,6,7,8,9},$O26, TRUE),1), 0) -> 2 | BH26: =_xlfn.IFNA(MATCH(RAND(), _xlfn.POISSON.DIST({0,1,2,3,4,5,6,7,8,9},$O26, TRUE),1), 0) -> 2 | BI26: =_xlfn.IFNA(MATCH(RAND(), _xlfn.POISSON.DIST({0,1,2,3,4,5,6,7,8,9},$O26, TRUE),1), 0) -> 1 | BJ26: =_xlfn.IFNA(MATCH(RAND(), _xlfn.POISSON.DIST({0,1,2,3,4,5,6,7,8,9},$O26, TRUE),1), 0) -> 1 | BK26: =_xlfn.IFNA(MATCH(RAND(), _xlfn.POISSON.DIST({0,1,2,3,4,5,6,7,8,9},$O26, TRUE),1), 0) -> 3 | BL26: =_xlfn.IFNA(MATCH(RAND(), _xlfn.POISSON.DIST({0,1,2,3,4,5,6,7,8,9},$O26, TRUE),1), 0) -> 2 | BM26: =_xlfn.IFNA(MATCH(RAND(), _xlfn.POISSON.DIST({0,1,2,3,4,5,6,7,8,9},$O26, TRUE),1), 0) -> 1 | BN26: =_xlfn.IFNA(MATCH(RAND(), _xlfn.POISSON.DIST({0,1,2,3,4,5,6,7,8,9},$O26, TRUE),1), 0) -> 2 | BP26: =_xlfn.IFNA(MATCH(RAND(), _xlfn.POISSON.DIST({0,1,2,3,4,5,6,7,8,9},$P26, TRUE),1), 0) -> 1 | BQ26: =_xlfn.IFNA(MATCH(RAND(), _xlfn.POISSON.DIST({0,1,2,3,4,5,6,7,8,9},$P26, TRUE),1), 0) -> 0 | BR26: =_xlfn.IFNA(MATCH(RAND(), _xlfn.POISSON.DIST({0,1,2,3,4,5,6,7,8,9},$P26, TRUE),1), 0) -> 3 | BS26: =_xlfn.IFNA(MATCH(RAND(), _xlfn.POISSON.DIST({0,1,2,3,4,5,6,7,8,9},$P26, TRUE),1), 0) -> 2 | BT26: =_xlfn.IFNA(MATCH(RAND(), _xlfn.POISSON.DIST({0,1,2,3,4,5,6,7,8,9},$P26, TRUE),1), 0) -> 2 | BU26: =_xlfn.IFNA(MATCH(RAND(), _xlfn.POISSON.DIST({0,1,2,3,4,5,6,7,8,9},$P26, TRUE),1), 0) -> 1 | BV26: =_xlfn.IFNA(MATCH(RAND(), _xlfn.POISSON.DIST({0,1,2,3,4,5,6,7,8,9},$P26, TRUE),1), 0) -> 1 | BW26: =_xlfn.IFNA(MATCH(RAND(), _xlfn.POISSON.DIST({0,1,2,3,4,5,6,7,8,9},$P26, TRUE),1), 0) -> 5 | BX26: =_xlfn.IFNA(MATCH(RAND(), _xlfn.POISSON.DIST({0,1,2,3,4,5,6,7,8,9},$P26, TRUE),1), 0) -> 2 | BY26: =_xlfn.IFNA(MATCH(RAND(), _xlfn.POISSON.DIST({0,1,2,3,4,5,6,7,8,9},$P26, TRUE),1), 0) -> 2 | BZ26: =_xlfn.IFNA(MATCH(RAND(), _xlfn.POISSON.DIST({0,1,2,3,4,5,6,7,8,9},$P26, TRUE),1), 0) -> 1 | CA26: =_xlfn.IFNA(MATCH(RAND(), _xlfn.POISSON.DIST({0,1,2,3,4,5,6,7,8,9},$P26, TRUE),1), 0) -> 2 | CB26: =_xlfn.IFNA(MATCH(RAND(), _xlfn.POISSON.DIST({0,1,2,3,4,5,6,7,8,9},$P26, TRUE),1), 0) -> 0 | CC26: =_xlfn.IFNA(MATCH(RAND(), _xlfn.POISSON.DIST({0,1,2,3,4,5,6,7,8,9},$P26, TRUE),1), 0) -> 0 | CD26: =_xlfn.IFNA(MATCH(RAND(), _xlfn.POISSON.DIST({0,1,2,3,4,5,6,7,8,9},$P26, TRUE),1), 0) -> 3 | CE26: =_xlfn.IFNA(MATCH(RAND(), _xlfn.POISSON.DIST({0,1,2,3,4,5,6,7,8,9},$P26, TRUE),1), 0) -> 3 | CF26: =_xlfn.IFNA(MATCH(RAND(), _xlfn.POISSON.DIST({0,1,2,3,4,5,6,7,8,9},$P26, TRUE),1), 0) -> 1 | CG26: =_xlfn.IFNA(MATCH(RAND(), _xlfn.POISSON.DIST({0,1,2,3,4,5,6,7,8,9},$P26, TRUE),1), 0) -> 2 | CH26: =_xlfn.IFNA(MATCH(RAND(), _xlfn.POISSON.DIST({0,1,2,3,4,5,6,7,8,9},$P26, TRUE),1), 0) -> 2 | CI26: =_xlfn.IFNA(MATCH(RAND(), _xlfn.POISSON.DIST({0,1,2,3,4,5,6,7,8,9},$P26, TRUE),1), 0) -> 1 | CJ26: =_xlfn.IFNA(MATCH(RAND(), _xlfn.POISSON.DIST({0,1,2,3,4,5,6,7,8,9},$P26, TRUE),1), 0) -> 2 | CK26: =_xlfn.IFNA(MATCH(RAND(), _xlfn.POISSON.DIST({0,1,2,3,4,5,6,7,8,9},$P26, TRUE),1), 0) -> 2 | CL26: =_xlfn.IFNA(MATCH(RAND(), _xlfn.POISSON.DIST({0,1,2,3,4,5,6,7,8,9},$P26, TRUE),1), 0) -> 3 | CM26: =_xlfn.IFNA(MATCH(RAND(), _xlfn.POISSON.DIST({0,1,2,3,4,5,6,7,8,9},$P26, TRUE),1), 0) -> 1 | CN26: =_xlfn.IFNA(MATCH(RAND(), _xlfn.POISSON.DIST({0,1,2,3,4,5,6,7,8,9},$P26, TRUE),1), 0) -> 1 | CO26: =_xlfn.IFNA(MATCH(RAND(), _xlfn.POISSON.DIST({0,1,2,3,4,5,6,7,8,9},$P26, TRUE),1), 0) -> 2 | CP26: =_xlfn.IFNA(MATCH(RAND(), _xlfn.POISSON.DIST({0,1,2,3,4,5,6,7,8,9},$P26, TRUE),1), 0) -> 3 | CQ26: =_xlfn.IFNA(MATCH(RAND(), _xlfn.POISSON.DIST({0,1,2,3,4,5,6,7,8,9},$P26, TRUE),1), 0) -> 1 | CR26: =_xlfn.IFNA(MATCH(RAND(), _xlfn.POISSON.DIST({0,1,2,3,4,5,6,7,8,9},$P26, TRUE),1), 0) -> 2 | CS26: =_xlfn.IFNA(MATCH(RAND(), _xlfn.POISSON.DIST({0,1,2,3,4,5,6,7,8,9},$P26, TRUE),1), 0) -> 4 | CT26: =_xlfn.IFNA(MATCH(RAND(), _xlfn.POISSON.DIST({0,1,2,3,4,5,6,7,8,9},$P26, TRUE),1), 0) -> 2 | CU26: =_xlfn.IFNA(MATCH(RAND(), _xlfn.POISSON.DIST({0,1,2,3,4,5,6,7,8,9},$P26, TRUE),1), 0) -> 1 | CV26: =_xlfn.IFNA(MATCH(RAND(), _xlfn.POISSON.DIST({0,1,2,3,4,5,6,7,8,9},$P26, TRUE),1), 0) -> 4 | CW26: =_xlfn.IFNA(MATCH(RAND(), _xlfn.POISSON.DIST({0,1,2,3,4,5,6,7,8,9},$P26, TRUE),1), 0) -> 3 | CX26: =_xlfn.IFNA(MATCH(RAND(), _xlfn.POISSON.DIST({0,1,2,3,4,5,6,7,8,9},$P26, TRUE),1), 0) -> 2 | CY26: =_xlfn.IFNA(MATCH(RAND(), _xlfn.POISSON.DIST({0,1,2,3,4,5,6,7,8,9},$P26, TRUE),1), 0) -> 3 | CZ26: =_xlfn.IFNA(MATCH(RAND(), _xlfn.POISSON.DIST({0,1,2,3,4,5,6,7,8,9},$P26, TRUE),1), 0) -> 1 | DA26: =_xlfn.IFNA(MATCH(RAND(), _xlfn.POISSON.DIST({0,1,2,3,4,5,6,7,8,9},$P26, TRUE),1), 0) -> 1 | DB26: =_xlfn.IFNA(MATCH(RAND(), _xlfn.POISSON.DIST({0,1,2,3,4,5,6,7,8,9},$P26, TRUE),1), 0) -> 0 | DC26: =_xlfn.IFNA(MATCH(RAND(), _xlfn.POISSON.DIST({0,1,2,3,4,5,6,7,8,9},$P26, TRUE),1), 0) -> 1 | DD26: =_xlfn.IFNA(MATCH(RAND(), _xlfn.POISSON.DIST({0,1,2,3,4,5,6,7,8,9},$P26, TRUE),1), 0) -> 2 | DE26: =_xlfn.IFNA(MATCH(RAND(), _xlfn.POISSON.DIST({0,1,2,3,4,5,6,7,8,9},$P26, TRUE),1), 0) -> 1 | DF26: =_xlfn.IFNA(MATCH(RAND(), _xlfn.POISSON.DIST({0,1,2,3,4,5,6,7,8,9},$P26, TRUE),1), 0) -> 3 | DG26: =_xlfn.IFNA(MATCH(RAND(), _xlfn.POISSON.DIST({0,1,2,3,4,5,6,7,8,9},$P26, TRUE),1), 0) -> 1 | DH26: =_xlfn.IFNA(MATCH(RAND(), _xlfn.POISSON.DIST({0,1,2,3,4,5,6,7,8,9},$P26, TRUE),1), 0) -> 0 | DI26: =_xlfn.IFNA(MATCH(RAND(), _xlfn.POISSON.DIST({0,1,2,3,4,5,6,7,8,9},$P26, TRUE),1), 0) -> 2 | DJ26: =_xlfn.IFNA(MATCH(RAND(), _xlfn.POISSON.DIST({0,1,2,3,4,5,6,7,8,9},$P26, TRUE),1), 0) -> 1 | DK26: =_xlfn.IFNA(MATCH(RAND(), _xlfn.POISSON.DIST({0,1,2,3,4,5,6,7,8,9},$P26, TRUE),1), 0) -> 3 | DL26: =_xlfn.IFNA(MATCH(RAND(), _xlfn.POISSON.DIST({0,1,2,3,4,5,6,7,8,9},$P26, TRUE),1), 0) -> 2 | DM26: =_xlfn.IFNA(MATCH(RAND(), _xlfn.POISSON.DIST({0,1,2,3,4,5,6,7,8,9},$P26, TRUE),1), 0) -> 2
C27: 2019-06-15 | D27: E | E27: カナダ | F27: =(AVERAGE(Q27:BN27))*(1+INDEX('グループ ステージの予想'!$C$4:$O$28, MATCH(今年の試合!E27,'グループ ステージの予想'!$D$4:$D$28,0),3)) -> 1.46 | G27: ニュージーランド | H27: =(AVERAGE(BP27:DM27))*(1+INDEX('グループ ステージの予想'!$C$4:$O$28, MATCH(今年の試合!G27,'グループ ステージの予想'!$D$4:$D$28,0),3)) -> 1.56 | I27: ニュージーランド | L27: 1.46 | M27: 1.56 | N27: ニュージーランド | O27: =(OFFSET('付録 3 - グループごとのゴール'!$C$13,(INDEX('付録 1 - チーム データ'!$C$13:$F$112,MATCH(G27,'付録 1 - チーム データ'!$C$13:$C$112,0),4)/10),(INDEX('付録 1 - チーム データ'!$C$13:$F$112,MATCH(E27,'付録 1 - チーム データ'!$C$13:$C$112,0),4)/10))) -> 1.50 | P27: =OFFSET('付録 3 - グループごとのゴール'!$C$13,(INDEX('付録 1 - チーム データ'!$C$13:$F$112, MATCH(E27,'付録 1 - チーム データ'!$C$13:$C$112,0),4)/10), (INDEX('付録 1 - チーム データ'!$C$13:$F$112, MATCH(G27, '付録 1 - チーム データ'!$C$13:$C$112,0),4)/10)) -> 1.50 | Q27: =_xlfn.IFNA(MATCH(RAND(), _xlfn.POISSON.DIST({0,1,2,3,4,5,6,7,8,9},$O27, TRUE),1), 0) -> 0 | R27: =_xlfn.IFNA(MATCH(RAND(), _xlfn.POISSON.DIST({0,1,2,3,4,5,6,7,8,9},$O27, TRUE),1), 0) -> 1 | S27: =_xlfn.IFNA(MATCH(RAND(), _xlfn.POISSON.DIST({0,1,2,3,4,5,6,7,8,9},$O27, TRUE),1), 0) -> 1 | T27: =_xlfn.IFNA(MATCH(RAND(), _xlfn.POISSON.DIST({0,1,2,3,4,5,6,7,8,9},$O27, TRUE),1), 0) -> 0 | U27: =_xlfn.IFNA(MATCH(RAND(), _xlfn.POISSON.DIST({0,1,2,3,4,5,6,7,8,9},$O27, TRUE),1), 0) -> 0 | V27: =_xlfn.IFNA(MATCH(RAND(), _xlfn.POISSON.DIST({0,1,2,3,4,5,6,7,8,9},$O27, TRUE),1), 0) -> 6 | W27: =_xlfn.IFNA(MATCH(RAND(), _xlfn.POISSON.DIST({0,1,2,3,4,5,6,7,8,9},$O27, TRUE),1), 0) -> 1 | X27: =_xlfn.IFNA(MATCH(RAND(), _xlfn.POISSON.DIST({0,1,2,3,4,5,6,7,8,9},$O27, TRUE),1), 0) -> 1 | Y27: =_xlfn.IFNA(MATCH(RAND(), _xlfn.POISSON.DIST({0,1,2,3,4,5,6,7,8,9},$O27, TRUE),1), 0) -> 0 | Z27: =_xlfn.IFNA(MATCH(RAND(), _xlfn.POISSON.DIST({0,1,2,3,4,5,6,7,8,9},$O27, TRUE),1), 0) -> 3 | AA27: =_xlfn.IFNA(MATCH(RAND(), _xlfn.POISSON.DIST({0,1,2,3,4,5,6,7,8,9},$O27, TRUE),1), 0) -> 1 | AB27: =_xlfn.IFNA(MATCH(RAND(), _xlfn.POISSON.DIST({0,1,2,3,4,5,6,7,8,9},$O27, TRUE),1), 0) -> 1 | AC27: =_xlfn.IFNA(MATCH(RAND(), _xlfn.POISSON.DIST({0,1,2,3,4,5,6,7,8,9},$O27, TRUE),1), 0) -> 3 | AD27: =_xlfn.IFNA(MATCH(RAND(), _xlfn.POISSON.DIST({0,1,2,3,4,5,6,7,8,9},$O27, TRUE),1), 0) -> 3 | AE27: =_xlfn.IFNA(MATCH(RAND(), _xlfn.POISSON.DIST({0,1,2,3,4,5,6,7,8,9},$O27, TRUE),1), 0) -> 1 | AF27: =_xlfn.IFNA(MATCH(RAND(), _xlfn.POISSON.DIST({0,1,2,3,4,5,6,7,8,9},$O27, TRUE),1), 0) -> 0 | AG27: =_xlfn.IFNA(MATCH(RAND(), _xlfn.POISSON.DIST({0,1,2,3,4,5,6,7,8,9},$O27, TRUE),1), 0) -> 3 | AH27: =_xlfn.IFNA(MATCH(RAND(), _xlfn.POISSON.DIST({0,1,2,3,4,5,6,7,8,9},$O27, TRUE),1), 0) -> 1 | AI27: =_xlfn.IFNA(MATCH(RAND(), _xlfn.POISSON.DIST({0,1,2,3,4,5,6,7,8,9},$O27, TRUE),1), 0) -> 3 | AJ27: =_xlfn.IFNA(MATCH(RAND(), _xlfn.POISSON.DIST({0,1,2,3,4,5,6,7,8,9},$O27, TRUE),1), 0) -> 2 | AK27: =_xlfn.IFNA(MATCH(RAND(), _xlfn.POISSON.DIST({0,1,2,3,4,5,6,7,8,9},$O27, TRUE),1), 0) -> 0 | AL27: =_xlfn.IFNA(MATCH(RAND(), _xlfn.POISSON.DIST({0,1,2,3,4,5,6,7,8,9},$O27, TRUE),1), 0) -> 0 | AM27: =_xlfn.IFNA(MATCH(RAND(), _xlfn.POISSON.DIST({0,1,2,3,4,5,6,7,8,9},$O27, TRUE),1), 0) -> 0 | AN27: =_xlfn.IFNA(MATCH(RAND(), _xlfn.POISSON.DIST({0,1,2,3,4,5,6,7,8,9},$O27, TRUE),1), 0) -> 1 | AO27: =_xlfn.IFNA(MATCH(RAND(), _xlfn.POISSON.DIST({0,1,2,3,4,5,6,7,8,9},$O27, TRUE),1), 0) -> 3 | AP27: =_xlfn.IFNA(MATCH(RAND(), _xlfn.POISSON.DIST({0,1,2,3,4,5,6,7,8,9},$O27, TRUE),1), 0) -> 2 | AQ27: =_xlfn.IFNA(MATCH(RAND(), _xlfn.POISSON.DIST({0,1,2,3,4,5,6,7,8,9},$O27, TRUE),1), 0) -> 2 | AR27: =_xlfn.IFNA(MATCH(RAND(), _xlfn.POISSON.DIST({0,1,2,3,4,5,6,7,8,9},$O27, TRUE),1), 0) -> 0 | AS27: =_xlfn.IFNA(MATCH(RAND(), _xlfn.POISSON.DIST({0,1,2,3,4,5,6,7,8,9},$O27, TRUE),1), 0) -> 2 | AT27: =_xlfn.IFNA(MATCH(RAND(), _xlfn.POISSON.DIST({0,1,2,3,4,5,6,7,8,9},$O27, TRUE),1), 0) -> 2 | AU27: =_xlfn.IFNA(MATCH(RAND(), _xlfn.POISSON.DIST({0,1,2,3,4,5,6,7,8,9},$O27, TRUE),1), 0) -> 2 | AV27: =_xlfn.IFNA(MATCH(RAND(), _xlfn.POISSON.DIST({0,1,2,3,4,5,6,7,8,9},$O27, TRUE),1), 0) -> 0 | AW27: =_xlfn.IFNA(MATCH(RAND(), _xlfn.POISSON.DIST({0,1,2,3,4,5,6,7,8,9},$O27, TRUE),1), 0) -> 1 | AX27: =_xlfn.IFNA(MATCH(RAND(), _xlfn.POISSON.DIST({0,1,2,3,4,5,6,7,8,9},$O27, TRUE),1), 0) -> 1 | AY27: =_xlfn.IFNA(MATCH(RAND(), _xlfn.POISSON.DIST({0,1,2,3,4,5,6,7,8,9},$O27, TRUE),1), 0) -> 3 | AZ27: =_xlfn.IFNA(MATCH(RAND(), _xlfn.POISSON.DIST({0,1,2,3,4,5,6,7,8,9},$O27, TRUE),1), 0) -> 0 | BA27: =_xlfn.IFNA(MATCH(RAND(), _xlfn.POISSON.DIST({0,1,2,3,4,5,6,7,8,9},$O27, TRUE),1), 0) -> 1 | BB27: =_xlfn.IFNA(MATCH(RAND(), _xlfn.POISSON.DIST({0,1,2,3,4,5,6,7,8,9},$O27, TRUE),1), 0) -> 2 | BC27: =_xlfn.IFNA(MATCH(RAND(), _xlfn.POISSON.DIST({0,1,2,3,4,5,6,7,8,9},$O27, TRUE),1), 0) -> 2 | BD27: =_xlfn.IFNA(MATCH(RAND(), _xlfn.POISSON.DIST({0,1,2,3,4,5,6,7,8,9},$O27, TRUE),1), 0) -> 1 | BE27: =_xlfn.IFNA(MATCH(RAND(), _xlfn.POISSON.DIST({0,1,2,3,4,5,6,7,8,9},$O27, TRUE),1), 0) -> 3 | BF27: =_xlfn.IFNA(MATCH(RAND(), _xlfn.POISSON.DIST({0,1,2,3,4,5,6,7,8,9},$O27, TRUE),1), 0) -> 0 | BG27: =_xlfn.IFNA(MATCH(RAND(), _xlfn.POISSON.DIST({0,1,2,3,4,5,6,7,8,9},$O27, TRUE),1), 0) -> 3 | BH27: =_xlfn.IFNA(MATCH(RAND(), _xlfn.POISSON.DIST({0,1,2,3,4,5,6,7,8,9},$O27, TRUE),1), 0) -> 3 | BI27: =_xlfn.IFNA(MATCH(RAND(), _xlfn.POISSON.DIST({0,1,2,3,4,5,6,7,8,9},$O27, TRUE),1), 0) -> 2 | BJ27: =_xlfn.IFNA(MATCH(RAND(), _xlfn.POISSON.DIST({0,1,2,3,4,5,6,7,8,9},$O27, TRUE),1), 0) -> 2 | BK27: =_xlfn.IFNA(MATCH(RAND(), _xlfn.POISSON.DIST({0,1,2,3,4,5,6,7,8,9},$O27, TRUE),1), 0) -> 1 | BL27: =_xlfn.IFNA(MATCH(RAND(), _xlfn.POISSON.DIST({0,1,2,3,4,5,6,7,8,9},$O27, TRUE),1), 0) -> 1 | BM27: =_xlfn.IFNA(MATCH(RAND(), _xlfn.POISSON.DIST({0,1,2,3,4,5,6,7,8,9},$O27, TRUE),1), 0) -> 2 | BN27: =_xlfn.IFNA(MATCH(RAND(), _xlfn.POISSON.DIST({0,1,2,3,4,5,6,7,8,9},$O27, TRUE),1), 0) -> 0 | BP27: =_xlfn.IFNA(MATCH(RAND(), _xlfn.POISSON.DIST({0,1,2,3,4,5,6,7,8,9},$P27, TRUE),1), 0) -> 1 | BQ27: =_xlfn.IFNA(MATCH(RAND(), _xlfn.POISSON.DIST({0,1,2,3,4,5,6,7,8,9},$P27, TRUE),1), 0) -> 3 | BR27: =_xlfn.IFNA(MATCH(RAND(), _xlfn.POISSON.DIST({0,1,2,3,4,5,6,7,8,9},$P27, TRUE),1), 0) -> 4 | BS27: =_xlfn.IFNA(MATCH(RAND(), _xlfn.POISSON.DIST({0,1,2,3,4,5,6,7,8,9},$P27, TRUE),1), 0) -> 0 | BT27: =_xlfn.IFNA(MATCH(RAND(), _xlfn.POISSON.DIST({0,1,2,3,4,5,6,7,8,9},$P27, TRUE),1), 0) -> 4 | BU27: =_xlfn.IFNA(MATCH(RAND(), _xlfn.POISSON.DIST({0,1,2,3,4,5,6,7,8,9},$P27, TRUE),1), 0) -> 0 | BV27: =_xlfn.IFNA(MATCH(RAND(), _xlfn.POISSON.DIST({0,1,2,3,4,5,6,7,8,9},$P27, TRUE),1), 0) -> 0 | BW27: =_xlfn.IFNA(MATCH(RAND(), _xlfn.POISSON.DIST({0,1,2,3,4,5,6,7,8,9},$P27, TRUE),1), 0) -> 0 | BX27: =_xlfn.IFNA(MATCH(RAND(), _xlfn.POISSON.DIST({0,1,2,3,4,5,6,7,8,9},$P27, TRUE),1), 0) -> 1 | BY27: =_xlfn.IFNA(MATCH(RAND(), _xlfn.POISSON.DIST({0,1,2,3,4,5,6,7,8,9},$P27, TRUE),1), 0) -> 1 | BZ27: =_xlfn.IFNA(MATCH(RAND(), _xlfn.POISSON.DIST({0,1,2,3,4,5,6,7,8,9},$P27, TRUE),1), 0) -> 3 | CA27: =_xlfn.IFNA(MATCH(RAND(), _xlfn.POISSON.DIST({0,1,2,3,4,5,6,7,8,9},$P27, TRUE),1), 0) -> 0 | CB27: =_xlfn.IFNA(MATCH(RAND(), _xlfn.POISSON.DIST({0,1,2,3,4,5,6,7,8,9},$P27, TRUE),1), 0) -> 1 | CC27: =_xlfn.IFNA(MATCH(RAND(), _xlfn.POISSON.DIST({0,1,2,3,4,5,6,7,8,9},$P27, TRUE),1), 0) -> 2 | CD27: =_xlfn.IFNA(MATCH(RAND(), _xlfn.POISSON.DIST({0,1,2,3,4,5,6,7,8,9},$P27, TRUE),1), 0) -> 2 | CE27: =_xlfn.IFNA(MATCH(RAND(), _xlfn.POISSON.DIST({0,1,2,3,4,5,6,7,8,9},$P27, TRUE),1), 0) -> 2 | CF27: =_xlfn.IFNA(MATCH(RAND(), _xlfn.POISSON.DIST({0,1,2,3,4,5,6,7,8,9},$P27, TRUE),1), 0) -> 0 | CG27: =_xlfn.IFNA(MATCH(RAND(), _xlfn.POISSON.DIST({0,1,2,3,4,5,6,7,8,9},$P27, TRUE),1), 0) -> 2 | CH27: =_xlfn.IFNA(MATCH(RAND(), _xlfn.POISSON.DIST({0,1,2,3,4,5,6,7,8,9},$P27, TRUE),1), 0) -> 2 | CI27: =_xlfn.IFNA(MATCH(RAND(), _xlfn.POISSON.DIST({0,1,2,3,4,5,6,7,8,9},$P27, TRUE),1), 0) -> 2 | CJ27: =_xlfn.IFNA(MATCH(RAND(), _xlfn.POISSON.DIST({0,1,2,3,4,5,6,7,8,9},$P27, TRUE),1), 0) -> 0 | CK27: =_xlfn.IFNA(MATCH(RAND(), _xlfn.POISSON.DIST({0,1,2,3,4,5,6,7,8,9},$P27, TRUE),1), 0) -> 0 | CL27: =_xlfn.IFNA(MATCH(RAND(), _xlfn.POISSON.DIST({0,1,2,3,4,5,6,7,8,9},$P27, TRUE),1), 0) -> 3 | CM27: =_xlfn.IFNA(MATCH(RAND(), _xlfn.POISSON.DIST({0,1,2,3,4,5,6,7,8,9},$P27, TRUE),1), 0) -> 4 | CN27: =_xlfn.IFNA(MATCH(RAND(), _xlfn.POISSON.DIST({0,1,2,3,4,5,6,7,8,9},$P27, TRUE),1), 0) -> 1 | CO27: =_xlfn.IFNA(MATCH(RAND(), _xlfn.POISSON.DIST({0,1,2,3,4,5,6,7,8,9},$P27, TRUE),1), 0) -> 4 | CP27: =_xlfn.IFNA(MATCH(RAND(), _xlfn.POISSON.DIST({0,1,2,3,4,5,6,7,8,9},$P27, TRUE),1), 0) -> 2 | CQ27: =_xlfn.IFNA(MATCH(RAND(), _xlfn.POISSON.DIST({0,1,2,3,4,5,6,7,8,9},$P27, TRUE),1), 0) -> 1 | CR27: =_xlfn.IFNA(MATCH(RAND(), _xlfn.POISSON.DIST({0,1,2,3,4,5,6,7,8,9},$P27, TRUE),1), 0) -> 3 | CS27: =_xlfn.IFNA(MATCH(RAND(), _xlfn.POISSON.DIST({0,1,2,3,4,5,6,7,8,9},$P27, TRUE),1), 0) -> 2 | CT27: =_xlfn.IFNA(MATCH(RAND(), _xlfn.POISSON.DIST({0,1,2,3,4,5,6,7,8,9},$P27, TRUE),1), 0) -> 3 | CU27: =_xlfn.IFNA(MATCH(RAND(), _xlfn.POISSON.DIST({0,1,2,3,4,5,6,7,8,9},$P27, TRUE),1), 0) -> 2 | CV27: =_xlfn.IFNA(MATCH(RAND(), _xlfn.POISSON.DIST({0,1,2,3,4,5,6,7,8,9},$P27, TRUE),1), 0) -> 1 | CW27: =_xlfn.IFNA(MATCH(RAND(), _xlfn.POISSON.DIST({0,1,2,3,4,5,6,7,8,9},$P27, TRUE),1), 0) -> 1 | CX27: =_xlfn.IFNA(MATCH(RAND(), _xlfn.POISSON.DIST({0,1,2,3,4,5,6,7,8,9},$P27, TRUE),1), 0) -> 3 | CY27: =_xlfn.IFNA(MATCH(RAND(), _xlfn.POISSON.DIST({0,1,2,3,4,5,6,7,8,9},$P27, TRUE),1), 0) -> 0 | CZ27: =_xlfn.IFNA(MATCH(RAND(), _xlfn.POISSON.DIST({0,1,2,3,4,5,6,7,8,9},$P27, TRUE),1), 0) -> 1 | DA27: =_xlfn.IFNA(MATCH(RAND(), _xlfn.POISSON.DIST({0,1,2,3,4,5,6,7,8,9},$P27, TRUE),1), 0) -> 0 | DB27: =_xlfn.IFNA(MATCH(RAND(), _xlfn.POISSON.DIST({0,1,2,3,4,5,6,7,8,9},$P27, TRUE),1), 0) -> 1 | DC27: =_xlfn.IFNA(MATCH(RAND(), _xlfn.POISSON.DIST({0,1,2,3,4,5,6,7,8,9},$P27, TRUE),1), 0) -> 0 | DD27: =_xlfn.IFNA(MATCH(RAND(), _xlfn.POISSON.DIST({0,1,2,3,4,5,6,7,8,9},$P27, TRUE),1), 0) -> 0 | DE27: =_xlfn.IFNA(MATCH(RAND(), _xlfn.POISSON.DIST({0,1,2,3,4,5,6,7,8,9},$P27, TRUE),1), 0) -> 0 | DF27: =_xlfn.IFNA(MATCH(RAND(), _xlfn.POISSON.DIST({0,1,2,3,4,5,6,7,8,9},$P27, TRUE),1), 0) -> 1 | DG27: =_xlfn.IFNA(MATCH(RAND(), _xlfn.POISSON.DIST({0,1,2,3,4,5,6,7,8,9},$P27, TRUE),1), 0) -> 2 | DH27: =_xlfn.IFNA(MATCH(RAND(), _xlfn.POISSON.DIST({0,1,2,3,4,5,6,7,8,9},$P27, TRUE),1), 0) -> 3 | DI27: =_xlfn.IFNA(MATCH(RAND(), _xlfn.POISSON.DIST({0,1,2,3,4,5,6,7,8,9},$P27, TRUE),1), 0) -> 1 | DJ27: =_xlfn.IFNA(MATCH(RAND(), _xlfn.POISSON.DIST({0,1,2,3,4,5,6,7,8,9},$P27, TRUE),1), 0) -> 4 | DK27: =_xlfn.IFNA(MATCH(RAND(), _xlfn.POISSON.DIST({0,1,2,3,4,5,6,7,8,9},$P27, TRUE),1), 0) -> 2 | DL27: =_xlfn.IFNA(MATCH(RAND(), _xlfn.POISSON.DIST({0,1,2,3,4,5,6,7,8,9},$P27, TRUE),1), 0) -> 3 | DM27: =_xlfn.IFNA(MATCH(RAND(), _xlfn.POISSON.DIST({0,1,2,3,4,5,6,7,8,9},$P27, TRUE),1), 0) -> 0
C28: 2019-06-16 | D28: F | E28: スウェーデン | F28: =(AVERAGE(Q28:BN28))*(1+INDEX('グループ ステージの予想'!$C$4:$O$28, MATCH(今年の試合!E28,'グループ ステージの予想'!$D$4:$D$28,0),3)) -> 2.88 | G28: タイ | H28: =(AVERAGE(BP28:DM28))*(1+INDEX('グループ ステージの予想'!$C$4:$O$28, MATCH(今年の試合!G28,'グループ ステージの予想'!$D$4:$D$28,0),3)) -> 0.34 | I28: スウェーデン | L28: 2.88 | M28: 0.34 | N28: スウェーデン | O28: =(OFFSET('付録 3 - グループごとのゴール'!$C$13,(INDEX('付録 1 - チーム データ'!$C$13:$F$112,MATCH(G28,'付録 1 - チーム データ'!$C$13:$C$112,0),4)/10),(INDEX('付録 1 - チーム データ'!$C$13:$F$112,MATCH(E28,'付録 1 - チーム データ'!$C$13:$C$112,0),4)/10))) -> 2.94 | P28: =OFFSET('付録 3 - グループごとのゴール'!$C$13,(INDEX('付録 1 - チーム データ'!$C$13:$F$112, MATCH(E28,'付録 1 - チーム データ'!$C$13:$C$112,0),4)/10), (INDEX('付録 1 - チーム データ'!$C$13:$F$112, MATCH(G28, '付録 1 - チーム データ'!$C$13:$C$112,0),4)/10)) -> 0.38 | Q28: =_xlfn.IFNA(MATCH(RAND(), _xlfn.POISSON.DIST({0,1,2,3,4,5,6,7,8,9},$O28, TRUE),1), 0) -> 3 | R28: =_xlfn.IFNA(MATCH(RAND(), _xlfn.POISSON.DIST({0,1,2,3,4,5,6,7,8,9},$O28, TRUE),1), 0) -> 3 | S28: =_xlfn.IFNA(MATCH(RAND(), _xlfn.POISSON.DIST({0,1,2,3,4,5,6,7,8,9},$O28, TRUE),1), 0) -> 3 | T28: =_xlfn.IFNA(MATCH(RAND(), _xlfn.POISSON.DIST({0,1,2,3,4,5,6,7,8,9},$O28, TRUE),1), 0) -> 7 | U28: =_xlfn.IFNA(MATCH(RAND(), _xlfn.POISSON.DIST({0,1,2,3,4,5,6,7,8,9},$O28, TRUE),1), 0) -> 3 | V28: =_xlfn.IFNA(MATCH(RAND(), _xlfn.POISSON.DIST({0,1,2,3,4,5,6,7,8,9},$O28, TRUE),1), 0) -> 3 | W28: =_xlfn.IFNA(MATCH(RAND(), _xlfn.POISSON.DIST({0,1,2,3,4,5,6,7,8,9},$O28, TRUE),1), 0) -> 3 | X28: =_xlfn.IFNA(MATCH(RAND(), _xlfn.POISSON.DIST({0,1,2,3,4,5,6,7,8,9},$O28, TRUE),1), 0) -> 5 | Y28: =_xlfn.IFNA(MATCH(RAND(), _xlfn.POISSON.DIST({0,1,2,3,4,5,6,7,8,9},$O28, TRUE),1), 0) -> 5 | Z28: =_xlfn.IFNA(MATCH(RAND(), _xlfn.POISSON.DIST({0,1,2,3,4,5,6,7,8,9},$O28, TRUE),1), 0) -> 1 | AA28: =_xlfn.IFNA(MATCH(RAND(), _xlfn.POISSON.DIST({0,1,2,3,4,5,6,7,8,9},$O28, TRUE),1), 0) -> 4 | AB28: =_xlfn.IFNA(MATCH(RAND(), _xlfn.POISSON.DIST({0,1,2,3,4,5,6,7,8,9},$O28, TRUE),1), 0) -> 4 | AC28: =_xlfn.IFNA(MATCH(RAND(), _xlfn.POISSON.DIST({0,1,2,3,4,5,6,7,8,9},$O28, TRUE),1), 0) -> 3 | AD28: =_xlfn.IFNA(MATCH(RAND(), _xlfn.POISSON.DIST({0,1,2,3,4,5,6,7,8,9},$O28, TRUE),1), 0) -> 3 | AE28: =_xlfn.IFNA(MATCH(RAND(), _xlfn.POISSON.DIST({0,1,2,3,4,5,6,7,8,9},$O28, TRUE),1), 0) -> 0 | AF28: =_xlfn.IFNA(MATCH(RAND(), _xlfn.POISSON.DIST({0,1,2,3,4,5,6,7,8,9},$O28, TRUE),1), 0) -> 3 | AG28: =_xlfn.IFNA(MATCH(RAND(), _xlfn.POISSON.DIST({0,1,2,3,4,5,6,7,8,9},$O28, TRUE),1), 0) -> 0 | AH28: =_xlfn.IFNA(MATCH(RAND(), _xlfn.POISSON.DIST({0,1,2,3,4,5,6,7,8,9},$O28, TRUE),1), 0) -> 4 | AI28: =_xlfn.IFNA(MATCH(RAND(), _xlfn.POISSON.DIST({0,1,2,3,4,5,6,7,8,9},$O28, TRUE),1), 0) -> 5 | AJ28: =_xlfn.IFNA(MATCH(RAND(), _xlfn.POISSON.DIST({0,1,2,3,4,5,6,7,8,9},$O28, TRUE),1), 0) -> 3 | AK28: =_xlfn.IFNA(MATCH(RAND(), _xlfn.POISSON.DIST({0,1,2,3,4,5,6,7,8,9},$O28, TRUE),1), 0) -> 3 | AL28: =_xlfn.IFNA(MATCH(RAND(), _xlfn.POISSON.DIST({0,1,2,3,4,5,6,7,8,9},$O28, TRUE),1), 0) -> 3 | AM28: =_xlfn.IFNA(MATCH(RAND(), _xlfn.POISSON.DIST({0,1,2,3,4,5,6,7,8,9},$O28, TRUE),1), 0) -> 1 | AN28: =_xlfn.IFNA(MATCH(RAND(), _xlfn.POISSON.DIST({0,1,2,3,4,5,6,7,8,9},$O28, TRUE),1), 0) -> 3 | AO28: =_xlfn.IFNA(MATCH(RAND(), _xlfn.POISSON.DIST({0,1,2,3,4,5,6,7,8,9},$O28, TRUE),1), 0) -> 5 | AP28: =_xlfn.IFNA(MATCH(RAND(), _xlfn.POISSON.DIST({0,1,2,3,4,5,6,7,8,9},$O28, TRUE),1), 0) -> 1 | AQ28: =_xlfn.IFNA(MATCH(RAND(), _xlfn.POISSON.DIST({0,1,2,3,4,5,6,7,8,9},$O28, TRUE),1), 0) -> 3 | AR28: =_xlfn.IFNA(MATCH(RAND(), _xlfn.POISSON.DIST({0,1,2,3,4,5,6,7,8,9},$O28, TRUE),1), 0) -> 6 | AS28: =_xlfn.IFNA(MATCH(RAND(), _xlfn.POISSON.DIST({0,1,2,3,4,5,6,7,8,9},$O28, TRUE),1), 0) -> 2 | AT28: =_xlfn.IFNA(MATCH(RAND(), _xlfn.POISSON.DIST({0,1,2,3,4,5,6,7,8,9},$O28, TRUE),1), 0) -> 3 | AU28: =_xlfn.IFNA(MATCH(RAND(), _xlfn.POISSON.DIST({0,1,2,3,4,5,6,7,8,9},$O28, TRUE),1), 0) -> 0 | AV28: =_xlfn.IFNA(MATCH(RAND(), _xlfn.POISSON.DIST({0,1,2,3,4,5,6,7,8,9},$O28, TRUE),1), 0) -> 3 | AW28: =_xlfn.IFNA(MATCH(RAND(), _xlfn.POISSON.DIST({0,1,2,3,4,5,6,7,8,9},$O28, TRUE),1), 0) -> 1 | AX28: =_xlfn.IFNA(MATCH(RAND(), _xlfn.POISSON.DIST({0,1,2,3,4,5,6,7,8,9},$O28, TRUE),1), 0) -> 2 | AY28: =_xlfn.IFNA(MATCH(RAND(), _xlfn.POISSON.DIST({0,1,2,3,4,5,6,7,8,9},$O28, TRUE),1), 0) -> 2 | AZ28: =_xlfn.IFNA(MATCH(RAND(), _xlfn.POISSON.DIST({0,1,2,3,4,5,6,7,8,9},$O28, TRUE),1), 0) -> 3 | BA28: =_xlfn.IFNA(MATCH(RAND(), _xlfn.POISSON.DIST({0,1,2,3,4,5,6,7,8,9},$O28, TRUE),1), 0) -> 6 | BB28: =_xlfn.IFNA(MATCH(RAND(), _xlfn.POISSON.DIST({0,1,2,3,4,5,6,7,8,9},$O28, TRUE),1), 0) -> 3 | BC28: =_xlfn.IFNA(MATCH(RAND(), _xlfn.POISSON.DIST({0,1,2,3,4,5,6,7,8,9},$O28, TRUE),1), 0) -> 1 | BD28: =_xlfn.IFNA(MATCH(RAND(), _xlfn.POISSON.DIST({0,1,2,3,4,5,6,7,8,9},$O28, TRUE),1), 0) -> 1 | BE28: =_xlfn.IFNA(MATCH(RAND(), _xlfn.POISSON.DIST({0,1,2,3,4,5,6,7,8,9},$O28, TRUE),1), 0) -> 3 | BF28: =_xlfn.IFNA(MATCH(RAND(), _xlfn.POISSON.DIST({0,1,2,3,4,5,6,7,8,9},$O28, TRUE),1), 0) -> 3 | BG28: =_xlfn.IFNA(MATCH(RAND(), _xlfn.POISSON.DIST({0,1,2,3,4,5,6,7,8,9},$O28, TRUE),1), 0) -> 3 | BH28: =_xlfn.IFNA(MATCH(RAND(), _xlfn.POISSON.DIST({0,1,2,3,4,5,6,7,8,9},$O28, TRUE),1), 0) -> 5 | BI28: =_xlfn.IFNA(MATCH(RAND(), _xlfn.POISSON.DIST({0,1,2,3,4,5,6,7,8,9},$O28, TRUE),1), 0) -> 3 | BJ28: =_xlfn.IFNA(MATCH(RAND(), _xlfn.POISSON.DIST({0,1,2,3,4,5,6,7,8,9},$O28, TRUE),1), 0) -> 1 | BK28: =_xlfn.IFNA(MATCH(RAND(), _xlfn.POISSON.DIST({0,1,2,3,4,5,6,7,8,9},$O28, TRUE),1), 0) -> 2 | BL28: =_xlfn.IFNA(MATCH(RAND(), _xlfn.POISSON.DIST({0,1,2,3,4,5,6,7,8,9},$O28, TRUE),1), 0) -> 4 | BM28: =_xlfn.IFNA(MATCH(RAND(), _xlfn.POISSON.DIST({0,1,2,3,4,5,6,7,8,9},$O28, TRUE),1), 0) -> 2 | BN28: =_xlfn.IFNA(MATCH(RAND(), _xlfn.POISSON.DIST({0,1,2,3,4,5,6,7,8,9},$O28, TRUE),1), 0) -> 1 | BP28: =_xlfn.IFNA(MATCH(RAND(), _xlfn.POISSON.DIST({0,1,2,3,4,5,6,7,8,9},$P28, TRUE),1), 0) -> 1 | BQ28: =_xlfn.IFNA(MATCH(RAND(), _xlfn.POISSON.DIST({0,1,2,3,4,5,6,7,8,9},$P28, TRUE),1), 0) -> 0 | BR28: =_xlfn.IFNA(MATCH(RAND(), _xlfn.POISSON.DIST({0,1,2,3,4,5,6,7,8,9},$P28, TRUE),1), 0) -> 0 | BS28: =_xlfn.IFNA(MATCH(RAND(), _xlfn.POISSON.DIST({0,1,2,3,4,5,6,7,8,9},$P28, TRUE),1), 0) -> 0 | BT28: =_xlfn.IFNA(MATCH(RAND(), _xlfn.POISSON.DIST({0,1,2,3,4,5,6,7,8,9},$P28, TRUE),1), 0) -> 0 | BU28: =_xlfn.IFNA(MATCH(RAND(), _xlfn.POISSON.DIST({0,1,2,3,4,5,6,7,8,9},$P28, TRUE),1), 0) -> 1 | BV28: =_xlfn.IFNA(MATCH(RAND(), _xlfn.POISSON.DIST({0,1,2,3,4,5,6,7,8,9},$P28, TRUE),1), 0) -> 0 | BW28: =_xlfn.IFNA(MATCH(RAND(), _xlfn.POISSON.DIST({0,1,2,3,4,5,6,7,8,9},$P28, TRUE),1), 0) -> 1 | BX28: =_xlfn.IFNA(MATCH(RAND(), _xlfn.POISSON.DIST({0,1,2,3,4,5,6,7,8,9},$P28, TRUE),1), 0) -> 0 | BY28: =_xlfn.IFNA(MATCH(RAND(), _xlfn.POISSON.DIST({0,1,2,3,4,5,6,7,8,9},$P28, TRUE),1), 0) -> 2 | BZ28: =_xlfn.IFNA(MATCH(RAND(), _xlfn.POISSON.DIST({0,1,2,3,4,5,6,7,8,9},$P28, TRUE),1), 0) -> 0 | CA28: =_xlfn.IFNA(MATCH(RAND(), _xlfn.POISSON.DIST({0,1,2,3,4,5,6,7,8,9},$P28, TRUE),1), 0) -> 1 | CB28: =_xlfn.IFNA(MATCH(RAND(), _xlfn.POISSON.DIST({0,1,2,3,4,5,6,7,8,9},$P28, TRUE),1), 0) -> 0 | CC28: =_xlfn.IFNA(MATCH(RAND(), _xlfn.POISSON.DIST({0,1,2,3,4,5,6,7,8,9},$P28, TRUE),1), 0) -> 0 | CD28: =_xlfn.IFNA(MATCH(RAND(), _xlfn.POISSON.DIST({0,1,2,3,4,5,6,7,8,9},$P28, TRUE),1), 0) -> 0 | CE28: =_xlfn.IFNA(MATCH(RAND(), _xlfn.POISSON.DIST({0,1,2,3,4,5,6,7,8,9},$P28, TRUE),1), 0) -> 0 | CF28: =_xlfn.IFNA(MATCH(RAND(), _xlfn.POISSON.DIST({0,1,2,3,4,5,6,7,8,9},$P28, TRUE),1), 0) -> 0 | CG28: =_xlfn.IFNA(MATCH(RAND(), _xlfn.POISSON.DIST({0,1,2,3,4,5,6,7,8,9},$P28, TRUE),1), 0) -> 0 | CH28: =_xlfn.IFNA(MATCH(RAND(), _xlfn.POISSON.DIST({0,1,2,3,4,5,6,7,8,9},$P28, TRUE),1), 0) -> 0 | CI28: =_xlfn.IFNA(MATCH(RAND(), _xlfn.POISSON.DIST({0,1,2,3,4,5,6,7,8,9},$P28, TRUE),1), 0) -> 0 | CJ28: =_xlfn.IFNA(MATCH(RAND(), _xlfn.POISSON.DIST({0,1,2,3,4,5,6,7,8,9},$P28, TRUE),1), 0) -> 1 | CK28: =_xlfn.IFNA(MATCH(RAND(), _xlfn.POISSON.DIST({0,1,2,3,4,5,6,7,8,9},$P28, TRUE),1), 0) -> 1 | CL28: =_xlfn.IFNA(MATCH(RAND(), _xlfn.POISSON.DIST({0,1,2,3,4,5,6,7,8,9},$P28, TRUE),1), 0) -> 1 | CM28: =_xlfn.IFNA(MATCH(RAND(), _xlfn.POISSON.DIST({0,1,2,3,4,5,6,7,8,9},$P28, TRUE),1), 0) -> 0 | CN28: =_xlfn.IFNA(MATCH(RAND(), _xlfn.POISSON.DIST({0,1,2,3,4,5,6,7,8,9},$P28, TRUE),1), 0) -> 0 | CO28: =_xlfn.IFNA(MATCH(RAND(), _xlfn.POISSON.DIST({0,1,2,3,4,5,6,7,8,9},$P28, TRUE),1), 0) -> 0 | CP28: =_xlfn.IFNA(MATCH(RAND(), _xlfn.POISSON.DIST({0,1,2,3,4,5,6,7,8,9},$P28, TRUE),1), 0) -> 0 | CQ28: =_xlfn.IFNA(MATCH(RAND(), _xlfn.POISSON.DIST({0,1,2,3,4,5,6,7,8,9},$P28, TRUE),1), 0) -> 0 | CR28: =_xlfn.IFNA(MATCH(RAND(), _xlfn.POISSON.DIST({0,1,2,3,4,5,6,7,8,9},$P28, TRUE),1), 0) -> 1 | CS28: =_xlfn.IFNA(MATCH(RAND(), _xlfn.POISSON.DIST({0,1,2,3,4,5,6,7,8,9},$P28, TRUE),1), 0) -> 0 | CT28: =_xlfn.IFNA(MATCH(RAND(), _xlfn.POISSON.DIST({0,1,2,3,4,5,6,7,8,9},$P28, TRUE),1), 0) -> 1 | CU28: =_xlfn.IFNA(MATCH(RAND(), _xlfn.POISSON.DIST({0,1,2,3,4,5,6,7,8,9},$P28, TRUE),1), 0) -> 0 | CV28: =_xlfn.IFNA(MATCH(RAND(), _xlfn.POISSON.DIST({0,1,2,3,4,5,6,7,8,9},$P28, TRUE),1), 0) -> 0 | CW28: =_xlfn.IFNA(MATCH(RAND(), _xlfn.POISSON.DIST({0,1,2,3,4,5,6,7,8,9},$P28, TRUE),1), 0) -> 0 | CX28: =_xlfn.IFNA(MATCH(RAND(), _xlfn.POISSON.DIST({0,1,2,3,4,5,6,7,8,9},$P28, TRUE),1), 0) -> 1 | CY28: =_xlfn.IFNA(MATCH(RAND(), _xlfn.POISSON.DIST({0,1,2,3,4,5,6,7,8,9},$P28, TRUE),1), 0) -> 0 | CZ28: =_xlfn.IFNA(MATCH(RAND(), _xlfn.POISSON.DIST({0,1,2,3,4,5,6,7,8,9},$P28, TRUE),1), 0) -> 0 | DA28: =_xlfn.IFNA(MATCH(RAND(), _xlfn.POISSON.DIST({0,1,2,3,4,5,6,7,8,9},$P28, TRUE),1), 0) -> 1 | DB28: =_xlfn.IFNA(MATCH(RAND(), _xlfn.POISSON.DIST({0,1,2,3,4,5,6,7,8,9},$P28, TRUE),1), 0) -> 0 | DC28: =_xlfn.IFNA(MATCH(RAND(), _xlfn.POISSON.DIST({0,1,2,3,4,5,6,7,8,9},$P28, TRUE),1), 0) -> 0 | DD28: =_xlfn.IFNA(MATCH(RAND(), _xlfn.POISSON.DIST({0,1,2,3,4,5,6,7,8,9},$P28, TRUE),1), 0) -> 1 | DE28: =_xlfn.IFNA(MATCH(RAND(), _xlfn.POISSON.DIST({0,1,2,3,4,5,6,7,8,9},$P28, TRUE),1), 0) -> 1 | DF28: =_xlfn.IFNA(MATCH(RAND(), _xlfn.POISSON.DIST({0,1,2,3,4,5,6,7,8,9},$P28, TRUE),1), 0) -> 0 | DG28: =_xlfn.IFNA(MATCH(RAND(), _xlfn.POISSON.DIST({0,1,2,3,4,5,6,7,8,9},$P28, TRUE),1), 0) -> 0 | DH28: =_xlfn.IFNA(MATCH(RAND(), _xlfn.POISSON.DIST({0,1,2,3,4,5,6,7,8,9},$P28, TRUE),1), 0) -> 2 | DI28: =_xlfn.IFNA(MATCH(RAND(), _xlfn.POISSON.DIST({0,1,2,3,4,5,6,7,8,9},$P28, TRUE),1), 0) -> 0 | DJ28: =_xlfn.IFNA(MATCH(RAND(), _xlfn.POISSON.DIST({0,1,2,3,4,5,6,7,8,9},$P28, TRUE),1), 0) -> 0 | DK28: =_xlfn.IFNA(MATCH(RAND(), _xlfn.POISSON.DIST({0,1,2,3,4,5,6,7,8,9},$P28, TRUE),1), 0) -> 0 | DL28: =_xlfn.IFNA(MATCH(RAND(), _xlfn.POISSON.DIST({0,1,2,3,4,5,6,7,8,9},$P28, TRUE),1), 0) -> 0 | DM28: =_xlfn.IFNA(MATCH(RAND(), _xlfn.POISSON.DIST({0,1,2,3,4,5,6,7,8,9},$P28, TRUE),1), 0) -> 0
C29: 2019-06-16 | D29: F | E29: 米国 | F29: =(AVERAGE(Q29:BN29))*(1+INDEX('グループ ステージの予想'!$C$4:$O$28, MATCH(今年の試合!E29,'グループ ステージの予想'!$D$4:$D$28,0),3)) -> 3.68 | G29: チリ | H29: =(AVERAGE(BP29:DM29))*(1+INDEX('グループ ステージの予想'!$C$4:$O$28, MATCH(今年の試合!G29,'グループ ステージの予想'!$D$4:$D$28,0),3)) -> 0.42 | I29: 米国 | L29: 3.68 | M29: 0.42 | N29: 米国 | O29: =(OFFSET('付録 3 - グループごとのゴール'!$C$13,(INDEX('付録 1 - チーム データ'!$C$13:$F$112,MATCH(G29,'付録 1 - チーム データ'!$C$13:$C$112,0),4)/10),(INDEX('付録 1 - チーム データ'!$C$13:$F$112,MATCH(E29,'付録 1 - チーム データ'!$C$13:$C$112,0),4)/10))) -> 2.94 | P29: =OFFSET('付録 3 - グループごとのゴール'!$C$13,(INDEX('付録 1 - チーム データ'!$C$13:$F$112, MATCH(E29,'付録 1 - チーム データ'!$C$13:$C$112,0),4)/10), (INDEX('付録 1 - チーム データ'!$C$13:$F$112, MATCH(G29, '付録 1 - チーム データ'!$C$13:$C$112,0),4)/10)) -> 0.38 | Q29: =_xlfn.IFNA(MATCH(RAND(), _xlfn.POISSON.DIST({0,1,2,3,4,5,6,7,8,9},$O29, TRUE),1), 0) -> 3 | R29: =_xlfn.IFNA(MATCH(RAND(), _xlfn.POISSON.DIST({0,1,2,3,4,5,6,7,8,9},$O29, TRUE),1), 0) -> 6 | S29: =_xlfn.IFNA(MATCH(RAND(), _xlfn.POISSON.DIST({0,1,2,3,4,5,6,7,8,9},$O29, TRUE),1), 0) -> 4 | T29: =_xlfn.IFNA(MATCH(RAND(), _xlfn.POISSON.DIST({0,1,2,3,4,5,6,7,8,9},$O29, TRUE),1), 0) -> 2 | U29: =_xlfn.IFNA(MATCH(RAND(), _xlfn.POISSON.DIST({0,1,2,3,4,5,6,7,8,9},$O29, TRUE),1), 0) -> 2 | V29: =_xlfn.IFNA(MATCH(RAND(), _xlfn.POISSON.DIST({0,1,2,3,4,5,6,7,8,9},$O29, TRUE),1), 0) -> 4 | W29: =_xlfn.IFNA(MATCH(RAND(), _xlfn.POISSON.DIST({0,1,2,3,4,5,6,7,8,9},$O29, TRUE),1), 0) -> 8 | X29: =_xlfn.IFNA(MATCH(RAND(), _xlfn.POISSON.DIST({0,1,2,3,4,5,6,7,8,9},$O29, TRUE),1), 0) -> 4 | Y29: =_xlfn.IFNA(MATCH(RAND(), _xlfn.POISSON.DIST({0,1,2,3,4,5,6,7,8,9},$O29, TRUE),1), 0) -> 1 | Z29: =_xlfn.IFNA(MATCH(RAND(), _xlfn.POISSON.DIST({0,1,2,3,4,5,6,7,8,9},$O29, TRUE),1), 0) -> 2 | AA29: =_xlfn.IFNA(MATCH(RAND(), _xlfn.POISSON.DIST({0,1,2,3,4,5,6,7,8,9},$O29, TRUE),1), 0) -> 3 | AB29: =_xlfn.IFNA(MATCH(RAND(), _xlfn.POISSON.DIST({0,1,2,3,4,5,6,7,8,9},$O29, TRUE),1), 0) -> 6 | AC29: =_xlfn.IFNA(MATCH(RAND(), _xlfn.POISSON.DIST({0,1,2,3,4,5,6,7,8,9},$O29, TRUE),1), 0) -> 6 | AD29: =_xlfn.IFNA(MATCH(RAND(), _xlfn.POISSON.DIST({0,1,2,3,4,5,6,7,8,9},$O29, TRUE),1), 0) -> 3 | AE29: =_xlfn.IFNA(MATCH(RAND(), _xlfn.POISSON.DIST({0,1,2,3,4,5,6,7,8,9},$O29, TRUE),1), 0) -> 0 | AF29: =_xlfn.IFNA(MATCH(RAND(), _xlfn.POISSON.DIST({0,1,2,3,4,5,6,7,8,9},$O29, TRUE),1), 0) -> 4 | AG29: =_xlfn.IFNA(MATCH(RAND(), _xlfn.POISSON.DIST({0,1,2,3,4,5,6,7,8,9},$O29, TRUE),1), 0) -> 6 | AH29: =_xlfn.IFNA(MATCH(RAND(), _xlfn.POISSON.DIST({0,1,2,3,4,5,6,7,8,9},$O29, TRUE),1), 0) -> 2 | AI29: =_xlfn.IFNA(MATCH(RAND(), _xlfn.POISSON.DIST({0,1,2,3,4,5,6,7,8,9},$O29, TRUE),1), 0) -> 3 | AJ29: =_xlfn.IFNA(MATCH(RAND(), _xlfn.POISSON.DIST({0,1,2,3,4,5,6,7,8,9},$O29, TRUE),1), 0) -> 3 | AK29: =_xlfn.IFNA(MATCH(RAND(), _xlfn.POISSON.DIST({0,1,2,3,4,5,6,7,8,9},$O29, TRUE),1), 0) -> 3 | AL29: =_xlfn.IFNA(MATCH(RAND(), _xlfn.POISSON.DIST({0,1,2,3,4,5,6,7,8,9},$O29, TRUE),1), 0) -> 2 | AM29: =_xlfn.IFNA(MATCH(RAND(), _xlfn.POISSON.DIST({0,1,2,3,4,5,6,7,8,9},$O29, TRUE),1), 0) -> 1 | AN29: =_xlfn.IFNA(MATCH(RAND(), _xlfn.POISSON.DIST({0,1,2,3,4,5,6,7,8,9},$O29, TRUE),1), 0) -> 2 | AO29: =_xlfn.IFNA(MATCH(RAND(), _xlfn.POISSON.DIST({0,1,2,3,4,5,6,7,8,9},$O29, TRUE),1), 0) -> 0 | AP29: =_xlfn.IFNA(MATCH(RAND(), _xlfn.POISSON.DIST({0,1,2,3,4,5,6,7,8,9},$O29, TRUE),1), 0) -> 7 | AQ29: =_xlfn.IFNA(MATCH(RAND(), _xlfn.POISSON.DIST({0,1,2,3,4,5,6,7,8,9},$O29, TRUE),1), 0) -> 2 | AR29: =_xlfn.IFNA(MATCH(RAND(), _xlfn.POISSON.DIST({0,1,2,3,4,5,6,7,8,9},$O29, TRUE),1), 0) -> 4 | AS29: =_xlfn.IFNA(MATCH(RAND(), _xlfn.POISSON.DIST({0,1,2,3,4,5,6,7,8,9},$O29, TRUE),1), 0) -> 1 | AT29: =_xlfn.IFNA(MATCH(RAND(), _xlfn.POISSON.DIST({0,1,2,3,4,5,6,7,8,9},$O29, TRUE),1), 0) -> 3 | AU29: =_xlfn.IFNA(MATCH(RAND(), _xlfn.POISSON.DIST({0,1,2,3,4,5,6,7,8,9},$O29, TRUE),1), 0) -> 4 | AV29: =_xlfn.IFNA(MATCH(RAND(), _xlfn.POISSON.DIST({0,1,2,3,4,5,6,7,8,9},$O29, TRUE),1), 0) -> 5 | AW29: =_xlfn.IFNA(MATCH(RAND(), _xlfn.POISSON.DIST({0,1,2,3,4,5,6,7,8,9},$O29, TRUE),1), 0) -> 7 | AX29: =_xlfn.IFNA(MATCH(RAND(), _xlfn.POISSON.DIST({0,1,2,3,4,5,6,7,8,9},$O29, TRUE),1), 0) -> 3 | AY29: =_xlfn.IFNA(MATCH(RAND(), _xlfn.POISSON.DIST({0,1,2,3,4,5,6,7,8,9},$O29, TRUE),1), 0) -> 5 | AZ29: =_xlfn.IFNA(MATCH(RAND(), _xlfn.POISSON.DIST({0,1,2,3,4,5,6,7,8,9},$O29, TRUE),1), 0) -> 3 | BA29: =_xlfn.IFNA(MATCH(RAND(), _xlfn.POISSON.DIST({0,1,2,3,4,5,6,7,8,9},$O29, TRUE),1), 0) -> 4 | BB29: =_xlfn.IFNA(MATCH(RAND(), _xlfn.POISSON.DIST({0,1,2,3,4,5,6,7,8,9},$O29, TRUE),1), 0) -> 6 | BC29: =_xlfn.IFNA(MATCH(RAND(), _xlfn.POISSON.DIST({0,1,2,3,4,5,6,7,8,9},$O29, TRUE),1), 0) -> 7 | BD29: =_xlfn.IFNA(MATCH(RAND(), _xlfn.POISSON.DIST({0,1,2,3,4,5,6,7,8,9},$O29, TRUE),1), 0) -> 2 | BE29: =_xlfn.IFNA(MATCH(RAND(), _xlfn.POISSON.DIST({0,1,2,3,4,5,6,7,8,9},$O29, TRUE),1), 0) -> 5 | BF29: =_xlfn.IFNA(MATCH(RAND(), _xlfn.POISSON.DIST({0,1,2,3,4,5,6,7,8,9},$O29, TRUE),1), 0) -> 5 | BG29: =_xlfn.IFNA(MATCH(RAND(), _xlfn.POISSON.DIST({0,1,2,3,4,5,6,7,8,9},$O29, TRUE),1), 0) -> 1 | BH29: =_xlfn.IFNA(MATCH(RAND(), _xlfn.POISSON.DIST({0,1,2,3,4,5,6,7,8,9},$O29, TRUE),1), 0) -> 1 | BI29: =_xlfn.IFNA(MATCH(RAND(), _xlfn.POISSON.DIST({0,1,2,3,4,5,6,7,8,9},$O29, TRUE),1), 0) -> 10 | BJ29: =_xlfn.IFNA(MATCH(RAND(), _xlfn.POISSON.DIST({0,1,2,3,4,5,6,7,8,9},$O29, TRUE),1), 0) -> 1 | BK29: =_xlfn.IFNA(MATCH(RAND(), _xlfn.POISSON.DIST({0,1,2,3,4,5,6,7,8,9},$O29, TRUE),1), 0) -> 3 | BL29: =_xlfn.IFNA(MATCH(RAND(), _xlfn.POISSON.DIST({0,1,2,3,4,5,6,7,8,9},$O29, TRUE),1), 0) -> 2 | BM29: =_xlfn.IFNA(MATCH(RAND(), _xlfn.POISSON.DIST({0,1,2,3,4,5,6,7,8,9},$O29, TRUE),1), 0) -> 7 | BN29: =_xlfn.IFNA(MATCH(RAND(), _xlfn.POISSON.DIST({0,1,2,3,4,5,6,7,8,9},$O29, TRUE),1), 0) -> 6 | BP29: =_xlfn.IFNA(MATCH(RAND(), _xlfn.POISSON.DIST({0,1,2,3,4,5,6,7,8,9},$P29, TRUE),1), 0) -> 0 | BQ29: =_xlfn.IFNA(MATCH(RAND(), _xlfn.POISSON.DIST({0,1,2,3,4,5,6,7,8,9},$P29, TRUE),1), 0) -> 2 | BR29: =_xlfn.IFNA(MATCH(RAND(), _xlfn.POISSON.DIST({0,1,2,3,4,5,6,7,8,9},$P29, TRUE),1), 0) -> 0 | BS29: =_xlfn.IFNA(MATCH(RAND(), _xlfn.POISSON.DIST({0,1,2,3,4,5,6,7,8,9},$P29, TRUE),1), 0) -> 2 | BT29: =_xlfn.IFNA(MATCH(RAND(), _xlfn.POISSON.DIST({0,1,2,3,4,5,6,7,8,9},$P29, TRUE),1), 0) -> 0 | BU29: =_xlfn.IFNA(MATCH(RAND(), _xlfn.POISSON.DIST({0,1,2,3,4,5,6,7,8,9},$P29, TRUE),1), 0) -> 0 | BV29: =_xlfn.IFNA(MATCH(RAND(), _xlfn.POISSON.DIST({0,1,2,3,4,5,6,7,8,9},$P29, TRUE),1), 0) -> 0 | BW29: =_xlfn.IFNA(MATCH(RAND(), _xlfn.POISSON.DIST({0,1,2,3,4,5,6,7,8,9},$P29, TRUE),1), 0) -> 0 | BX29: =_xlfn.IFNA(MATCH(RAND(), _xlfn.POISSON.DIST({0,1,2,3,4,5,6,7,8,9},$P29, TRUE),1), 0) -> 0 | BY29: =_xlfn.IFNA(MATCH(RAND(), _xlfn.POISSON.DIST({0,1,2,3,4,5,6,7,8,9},$P29, TRUE),1), 0) -> 2 | BZ29: =_xlfn.IFNA(MATCH(RAND(), _xlfn.POISSON.DIST({0,1,2,3,4,5,6,7,8,9},$P29, TRUE),1), 0) -> 1 | CA29: =_xlfn.IFNA(MATCH(RAND(), _xlfn.POISSON.DIST({0,1,2,3,4,5,6,7,8,9},$P29, TRUE),1), 0) -> 0 | CB29: =_xlfn.IFNA(MATCH(RAND(), _xlfn.POISSON.DIST({0,1,2,3,4,5,6,7,8,9},$P29, TRUE),1), 0) -> 1 | CC29: =_xlfn.IFNA(MATCH(RAND(), _xlfn.POISSON.DIST({0,1,2,3,4,5,6,7,8,9},$P29, TRUE),1), 0) -> 0 | CD29: =_xlfn.IFNA(MATCH(RAND(), _xlfn.POISSON.DIST({0,1,2,3,4,5,6,7,8,9},$P29, TRUE),1), 0) -> 0 | CE29: =_xlfn.IFNA(MATCH(RAND(), _xlfn.POISSON.DIST({0,1,2,3,4,5,6,7,8,9},$P29, TRUE),1), 0) -> 1 | CF29: =_xlfn.IFNA(MATCH(RAND(), _xlfn.POISSON.DIST({0,1,2,3,4,5,6,7,8,9},$P29, TRUE),1), 0) -> 0 | CG29: =_xlfn.IFNA(MATCH(RAND(), _xlfn.POISSON.DIST({0,1,2,3,4,5,6,7,8,9},$P29, TRUE),1), 0) -> 0 | CH29: =_xlfn.IFNA(MATCH(RAND(), _xlfn.POISSON.DIST({0,1,2,3,4,5,6,7,8,9},$P29, TRUE),1), 0) -> 0 | CI29: =_xlfn.IFNA(MATCH(RAND(), _xlfn.POISSON.DIST({0,1,2,3,4,5,6,7,8,9},$P29, TRUE),1), 0) -> 0 | CJ29: =_xlfn.IFNA(MATCH(RAND(), _xlfn.POISSON.DIST({0,1,2,3,4,5,6,7,8,9},$P29, TRUE),1), 0) -> 0 | CK29: =_xlfn.IFNA(MATCH(RAND(), _xlfn.POISSON.DIST({0,1,2,3,4,5,6,7,8,9},$P29, TRUE),1), 0) -> 0 | CL29: =_xlfn.IFNA(MATCH(RAND(), _xlfn.POISSON.DIST({0,1,2,3,4,5,6,7,8,9},$P29, TRUE),1), 0) -> 0 | CM29: =_xlfn.IFNA(MATCH(RAND(), _xlfn.POISSON.DIST({0,1,2,3,4,5,6,7,8,9},$P29, TRUE),1), 0) -> 0 | CN29: =_xlfn.IFNA(MATCH(RAND(), _xlfn.POISSON.DIST({0,1,2,3,4,5,6,7,8,9},$P29, TRUE),1), 0) -> 1 | CO29: =_xlfn.IFNA(MATCH(RAND(), _xlfn.POISSON.DIST({0,1,2,3,4,5,6,7,8,9},$P29, TRUE),1), 0) -> 0 | CP29: =_xlfn.IFNA(MATCH(RAND(), _xlfn.POISSON.DIST({0,1,2,3,4,5,6,7,8,9},$P29, TRUE),1), 0) -> 0 | CQ29: =_xlfn.IFNA(MATCH(RAND(), _xlfn.POISSON.DIST({0,1,2,3,4,5,6,7,8,9},$P29, TRUE),1), 0) -> 0 | CR29: =_xlfn.IFNA(MATCH(RAND(), _xlfn.POISSON.DIST({0,1,2,3,4,5,6,7,8,9},$P29, TRUE),1), 0) -> 0 | CS29: =_xlfn.IFNA(MATCH(RAND(), _xlfn.POISSON.DIST({0,1,2,3,4,5,6,7,8,9},$P29, TRUE),1), 0) -> 0 | CT29: =_xlfn.IFNA(MATCH(RAND(), _xlfn.POISSON.DIST({0,1,2,3,4,5,6,7,8,9},$P29, TRUE),1), 0) -> 1 | CU29: =_xlfn.IFNA(MATCH(RAND(), _xlfn.POISSON.DIST({0,1,2,3,4,5,6,7,8,9},$P29, TRUE),1), 0) -> 0 | CV29: =_xlfn.IFNA(MATCH(RAND(), _xlfn.POISSON.DIST({0,1,2,3,4,5,6,7,8,9},$P29, TRUE),1), 0) -> 1 | CW29: =_xlfn.IFNA(MATCH(RAND(), _xlfn.POISSON.DIST({0,1,2,3,4,5,6,7,8,9},$P29, TRUE),1), 0) -> 0 | CX29: =_xlfn.IFNA(MATCH(RAND(), _xlfn.POISSON.DIST({0,1,2,3,4,5,6,7,8,9},$P29, TRUE),1), 0) -> 0 | CY29: =_xlfn.IFNA(MATCH(RAND(), _xlfn.POISSON.DIST({0,1,2,3,4,5,6,7,8,9},$P29, TRUE),1), 0) -> 1 | CZ29: =_xlfn.IFNA(MATCH(RAND(), _xlfn.POISSON.DIST({0,1,2,3,4,5,6,7,8,9},$P29, TRUE),1), 0) -> 1 | DA29: =_xlfn.IFNA(MATCH(RAND(), _xlfn.POISSON.DIST({0,1,2,3,4,5,6,7,8,9},$P29, TRUE),1), 0) -> 0 | DB29: =_xlfn.IFNA(MATCH(RAND(), _xlfn.POISSON.DIST({0,1,2,3,4,5,6,7,8,9},$P29, TRUE),1), 0) -> 1 | DC29: =_xlfn.IFNA(MATCH(RAND(), _xlfn.POISSON.DIST({0,1,2,3,4,5,6,7,8,9},$P29, TRUE),1), 0) -> 0 | DD29: =_xlfn.IFNA(MATCH(RAND(), _xlfn.POISSON.DIST({0,1,2,3,4,5,6,7,8,9},$P29, TRUE),1), 0) -> 1 | DE29: =_xlfn.IFNA(MATCH(RAND(), _xlfn.POISSON.DIST({0,1,2,3,4,5,6,7,8,9},$P29, TRUE),1), 0) -> 2 | DF29: =_xlfn.IFNA(MATCH(RAND(), _xlfn.POISSON.DIST({0,1,2,3,4,5,6,7,8,9},$P29, TRUE),1), 0) -> 0 | DG29: =_xlfn.IFNA(MATCH(RAND(), _xlfn.POISSON.DIST({0,1,2,3,4,5,6,7,8,9},$P29, TRUE),1), 0) -> 0 | DH29: =_xlfn.IFNA(MATCH(RAND(), _xlfn.POISSON.DIST({0,1,2,3,4,5,6,7,8,9},$P29, TRUE),1), 0) -> 0 | DI29: =_xlfn.IFNA(MATCH(RAND(), _xlfn.POISSON.DIST({0,1,2,3,4,5,6,7,8,9},$P29, TRUE),1), 0) -> 1 | DJ29: =_xlfn.IFNA(MATCH(RAND(), _xlfn.POISSON.DIST({0,1,2,3,4,5,6,7,8,9},$P29, TRUE),1), 0) -> 1 | DK29: =_xlfn.IFNA(MATCH(RAND(), _xlfn.POISSON.DIST({0,1,2,3,4,5,6,7,8,9},$P29, TRUE),1), 0) -> 0 | DL29: =_xlfn.IFNA(MATCH(RAND(), _xlfn.POISSON.DIST({0,1,2,3,4,5,6,7,8,9},$P29, TRUE),1), 0) -> 1 | DM29: =_xlfn.IFNA(MATCH(RAND(), _xlfn.POISSON.DIST({0,1,2,3,4,5,6,7,8,9},$P29, TRUE),1), 0) -> 0
C30: 2019-06-17 | D30: B | E30: 中国PR | F30: =(AVERAGE(Q30:BN30))*(1+INDEX('グループ ステージの予想'!$C$4:$O$28, MATCH(今年の試合!E30,'グループ ステージの予想'!$D$4:$D$28,0),3)) -> 1.62 | G30: スペイン | H30: =(AVERAGE(BP30:DM30))*(1+INDEX('グループ ステージの予想'!$C$4:$O$28, MATCH(今年の試合!G30,'グループ ステージの予想'!$D$4:$D$28,0),3)) -> 1.38 | I30: 中国PR | L30: 1.62 | M30: 1.38 | N30: 中国PR | O30: =(OFFSET('付録 3 - グループごとのゴール'!$C$13,(INDEX('付録 1 - チーム データ'!$C$13:$F$112,MATCH(G30,'付録 1 - チーム データ'!$C$13:$C$112,0),4)/10),(INDEX('付録 1 - チーム データ'!$C$13:$F$112,MATCH(E30,'付録 1 - チーム データ'!$C$13:$C$112,0),4)/10))) -> 1.50 | P30: =OFFSET('付録 3 - グループごとのゴール'!$C$13,(INDEX('付録 1 - チーム データ'!$C$13:$F$112, MATCH(E30,'付録 1 - チーム データ'!$C$13:$C$112,0),4)/10), (INDEX('付録 1 - チーム データ'!$C$13:$F$112, MATCH(G30, '付録 1 - チーム データ'!$C$13:$C$112,0),4)/10)) -> 1.50 | Q30: =_xlfn.IFNA(MATCH(RAND(), _xlfn.POISSON.DIST({0,1,2,3,4,5,6,7,8,9},$O30, TRUE),1), 0) -> 1 | R30: =_xlfn.IFNA(MATCH(RAND(), _xlfn.POISSON.DIST({0,1,2,3,4,5,6,7,8,9},$O30, TRUE),1), 0) -> 1 | S30: =_xlfn.IFNA(MATCH(RAND(), _xlfn.POISSON.DIST({0,1,2,3,4,5,6,7,8,9},$O30, TRUE),1), 0) -> 1 | T30: =_xlfn.IFNA(MATCH(RAND(), _xlfn.POISSON.DIST({0,1,2,3,4,5,6,7,8,9},$O30, TRUE),1), 0) -> 3 | U30: =_xlfn.IFNA(MATCH(RAND(), _xlfn.POISSON.DIST({0,1,2,3,4,5,6,7,8,9},$O30, TRUE),1), 0) -> 1 | V30: =_xlfn.IFNA(MATCH(RAND(), _xlfn.POISSON.DIST({0,1,2,3,4,5,6,7,8,9},$O30, TRUE),1), 0) -> 2 | W30: =_xlfn.IFNA(MATCH(RAND(), _xlfn.POISSON.DIST({0,1,2,3,4,5,6,7,8,9},$O30, TRUE),1), 0) -> 1 | X30: =_xlfn.IFNA(MATCH(RAND(), _xlfn.POISSON.DIST({0,1,2,3,4,5,6,7,8,9},$O30, TRUE),1), 0) -> 3 | Y30: =_xlfn.IFNA(MATCH(RAND(), _xlfn.POISSON.DIST({0,1,2,3,4,5,6,7,8,9},$O30, TRUE),1), 0) -> 0 | Z30: =_xlfn.IFNA(MATCH(RAND(), _xlfn.POISSON.DIST({0,1,2,3,4,5,6,7,8,9},$O30, TRUE),1), 0) -> 2 | AA30: =_xlfn.IFNA(MATCH(RAND(), _xlfn.POISSON.DIST({0,1,2,3,4,5,6,7,8,9},$O30, TRUE),1), 0) -> 2 | AB30: =_xlfn.IFNA(MATCH(RAND(), _xlfn.POISSON.DIST({0,1,2,3,4,5,6,7,8,9},$O30, TRUE),1), 0) -> 4 | AC30: =_xlfn.IFNA(MATCH(RAND(), _xlfn.POISSON.DIST({0,1,2,3,4,5,6,7,8,9},$O30, TRUE),1), 0) -> 2 | AD30: =_xlfn.IFNA(MATCH(RAND(), _xlfn.POISSON.DIST({0,1,2,3,4,5,6,7,8,9},$O30, TRUE),1), 0) -> 1 | AE30: =_xlfn.IFNA(MATCH(RAND(), _xlfn.POISSON.DIST({0,1,2,3,4,5,6,7,8,9},$O30, TRUE),1), 0) -> 2 | AF30: =_xlfn.IFNA(MATCH(RAND(), _xlfn.POISSON.DIST({0,1,2,3,4,5,6,7,8,9},$O30, TRUE),1), 0) -> 1 | AG30: =_xlfn.IFNA(MATCH(RAND(), _xlfn.POISSON.DIST({0,1,2,3,4,5,6,7,8,9},$O30, TRUE),1), 0) -> 1 | AH30: =_xlfn.IFNA(MATCH(RAND(), _xlfn.POISSON.DIST({0,1,2,3,4,5,6,7,8,9},$O30, TRUE),1), 0) -> 1 | AI30: =_xlfn.IFNA(MATCH(RAND(), _xlfn.POISSON.DIST({0,1,2,3,4,5,6,7,8,9},$O30, TRUE),1), 0) -> 0 | AJ30: =_xlfn.IFNA(MATCH(RAND(), _xlfn.POISSON.DIST({0,1,2,3,4,5,6,7,8,9},$O30, TRUE),1), 0) -> 2 | AK30: =_xlfn.IFNA(MATCH(RAND(), _xlfn.POISSON.DIST({0,1,2,3,4,5,6,7,8,9},$O30, TRUE),1), 0) -> 6 | AL30: =_xlfn.IFNA(MATCH(RAND(), _xlfn.POISSON.DIST({0,1,2,3,4,5,6,7,8,9},$O30, TRUE),1), 0) -> 2 | AM30: =_xlfn.IFNA(MATCH(RAND(), _xlfn.POISSON.DIST({0,1,2,3,4,5,6,7,8,9},$O30, TRUE),1), 0) -> 1 | AN30: =_xlfn.IFNA(MATCH(RAND(), _xlfn.POISSON.DIST({0,1,2,3,4,5,6,7,8,9},$O30, TRUE),1), 0) -> 1 | AO30: =_xlfn.IFNA(MATCH(RAND(), _xlfn.POISSON.DIST({0,1,2,3,4,5,6,7,8,9},$O30, TRUE),1), 0) -> 2 | AP30: =_xlfn.IFNA(MATCH(RAND(), _xlfn.POISSON.DIST({0,1,2,3,4,5,6,7,8,9},$O30, TRUE),1), 0) -> 1 | AQ30: =_xlfn.IFNA(MATCH(RAND(), _xlfn.POISSON.DIST({0,1,2,3,4,5,6,7,8,9},$O30, TRUE),1), 0) -> 0 | AR30: =_xlfn.IFNA(MATCH(RAND(), _xlfn.POISSON.DIST({0,1,2,3,4,5,6,7,8,9},$O30, TRUE),1), 0) -> 2 | AS30: =_xlfn.IFNA(MATCH(RAND(), _xlfn.POISSON.DIST({0,1,2,3,4,5,6,7,8,9},$O30, TRUE),1), 0) -> 1 | AT30: =_xlfn.IFNA(MATCH(RAND(), _xlfn.POISSON.DIST({0,1,2,3,4,5,6,7,8,9},$O30, TRUE),1), 0) -> 1 | AU30: =_xlfn.IFNA(MATCH(RAND(), _xlfn.POISSON.DIST({0,1,2,3,4,5,6,7,8,9},$O30, TRUE),1), 0) -> 3 | AV30: =_xlfn.IFNA(MATCH(RAND(), _xlfn.POISSON.DIST({0,1,2,3,4,5,6,7,8,9},$O30, TRUE),1), 0) -> 2 | AW30: =_xlfn.IFNA(MATCH(RAND(), _xlfn.POISSON.DIST({0,1,2,3,4,5,6,7,8,9},$O30, TRUE),1), 0) -> 0 | AX30: =_xlfn.IFNA(MATCH(RAND(), _xlfn.POISSON.DIST({0,1,2,3,4,5,6,7,8,9},$O30, TRUE),1), 0) -> 2 | AY30: =_xlfn.IFNA(MATCH(RAND(), _xlfn.POISSON.DIST({0,1,2,3,4,5,6,7,8,9},$O30, TRUE),1), 0) -> 3 | AZ30: =_xlfn.IFNA(MATCH(RAND(), _xlfn.POISSON.DIST({0,1,2,3,4,5,6,7,8,9},$O30, TRUE),1), 0) -> 2 | BA30: =_xlfn.IFNA(MATCH(RAND(), _xlfn.POISSON.DIST({0,1,2,3,4,5,6,7,8,9},$O30, TRUE),1), 0) -> 1 | BB30: =_xlfn.IFNA(MATCH(RAND(), _xlfn.POISSON.DIST({0,1,2,3,4,5,6,7,8,9},$O30, TRUE),1), 0) -> 1 | BC30: =_xlfn.IFNA(MATCH(RAND(), _xlfn.POISSON.DIST({0,1,2,3,4,5,6,7,8,9},$O30, TRUE),1), 0) -> 0 | BD30: =_xlfn.IFNA(MATCH(RAND(), _xlfn.POISSON.DIST({0,1,2,3,4,5,6,7,8,9},$O30, TRUE),1), 0) -> 2 | BE30: =_xlfn.IFNA(MATCH(RAND(), _xlfn.POISSON.DIST({0,1,2,3,4,5,6,7,8,9},$O30, TRUE),1), 0) -> 3 | BF30: =_xlfn.IFNA(MATCH(RAND(), _xlfn.POISSON.DIST({0,1,2,3,4,5,6,7,8,9},$O30, TRUE),1), 0) -> 2 | BG30: =_xlfn.IFNA(MATCH(RAND(), _xlfn.POISSON.DIST({0,1,2,3,4,5,6,7,8,9},$O30, TRUE),1), 0) -> 1 | BH30: =_xlfn.IFNA(MATCH(RAND(), _xlfn.POISSON.DIST({0,1,2,3,4,5,6,7,8,9},$O30, TRUE),1), 0) -> 4 | BI30: =_xlfn.IFNA(MATCH(RAND(), _xlfn.POISSON.DIST({0,1,2,3,4,5,6,7,8,9},$O30, TRUE),1), 0) -> 2 | BJ30: =_xlfn.IFNA(MATCH(RAND(), _xlfn.POISSON.DIST({0,1,2,3,4,5,6,7,8,9},$O30, TRUE),1), 0) -> 2 | BK30: =_xlfn.IFNA(MATCH(RAND(), _xlfn.POISSON.DIST({0,1,2,3,4,5,6,7,8,9},$O30, TRUE),1), 0) -> 1 | BL30: =_xlfn.IFNA(MATCH(RAND(), _xlfn.POISSON.DIST({0,1,2,3,4,5,6,7,8,9},$O30, TRUE),1), 0) -> 1 | BM30: =_xlfn.IFNA(MATCH(RAND(), _xlfn.POISSON.DIST({0,1,2,3,4,5,6,7,8,9},$O30, TRUE),1), 0) -> 1 | BN30: =_xlfn.IFNA(MATCH(RAND(), _xlfn.POISSON.DIST({0,1,2,3,4,5,6,7,8,9},$O30, TRUE),1), 0) -> 0 | BP30: =_xlfn.IFNA(MATCH(RAND(), _xlfn.POISSON.DIST({0,1,2,3,4,5,6,7,8,9},$P30, TRUE),1), 0) -> 4 | BQ30: =_xlfn.IFNA(MATCH(RAND(), _xlfn.POISSON.DIST({0,1,2,3,4,5,6,7,8,9},$P30, TRUE),1), 0) -> 2 | BR30: =_xlfn.IFNA(MATCH(RAND(), _xlfn.POISSON.DIST({0,1,2,3,4,5,6,7,8,9},$P30, TRUE),1), 0) -> 0 | BS30: =_xlfn.IFNA(MATCH(RAND(), _xlfn.POISSON.DIST({0,1,2,3,4,5,6,7,8,9},$P30, TRUE),1), 0) -> 1 | BT30: =_xlfn.IFNA(MATCH(RAND(), _xlfn.POISSON.DIST({0,1,2,3,4,5,6,7,8,9},$P30, TRUE),1), 0) -> 1 | BU30: =_xlfn.IFNA(MATCH(RAND(), _xlfn.POISSON.DIST({0,1,2,3,4,5,6,7,8,9},$P30, TRUE),1), 0) -> 4 | BV30: =_xlfn.IFNA(MATCH(RAND(), _xlfn.POISSON.DIST({0,1,2,3,4,5,6,7,8,9},$P30, TRUE),1), 0) -> 1 | BW30: =_xlfn.IFNA(MATCH(RAND(), _xlfn.POISSON.DIST({0,1,2,3,4,5,6,7,8,9},$P30, TRUE),1), 0) -> 2 | BX30: =_xlfn.IFNA(MATCH(RAND(), _xlfn.POISSON.DIST({0,1,2,3,4,5,6,7,8,9},$P30, TRUE),1), 0) -> 1 | BY30: =_xlfn.IFNA(MATCH(RAND(), _xlfn.POISSON.DIST({0,1,2,3,4,5,6,7,8,9},$P30, TRUE),1), 0) -> 4 | BZ30: =_xlfn.IFNA(MATCH(RAND(), _xlfn.POISSON.DIST({0,1,2,3,4,5,6,7,8,9},$P30, TRUE),1), 0) -> 0 | CA30: =_xlfn.IFNA(MATCH(RAND(), _xlfn.POISSON.DIST({0,1,2,3,4,5,6,7,8,9},$P30, TRUE),1), 0) -> 1 | CB30: =_xlfn.IFNA(MATCH(RAND(), _xlfn.POISSON.DIST({0,1,2,3,4,5,6,7,8,9},$P30, TRUE),1), 0) -> 3 | CC30: =_xlfn.IFNA(MATCH(RAND(), _xlfn.POISSON.DIST({0,1,2,3,4,5,6,7,8,9},$P30, TRUE),1), 0) -> 2 | CD30: =_xlfn.IFNA(MATCH(RAND(), _xlfn.POISSON.DIST({0,1,2,3,4,5,6,7,8,9},$P30, TRUE),1), 0) -> 0 | CE30: =_xlfn.IFNA(MATCH(RAND(), _xlfn.POISSON.DIST({0,1,2,3,4,5,6,7,8,9},$P30, TRUE),1), 0) -> 0 | CF30: =_xlfn.IFNA(MATCH(RAND(), _xlfn.POISSON.DIST({0,1,2,3,4,5,6,7,8,9},$P30, TRUE),1), 0) -> 3 | CG30: =_xlfn.IFNA(MATCH(RAND(), _xlfn.POISSON.DIST({0,1,2,3,4,5,6,7,8,9},$P30, TRUE),1), 0) -> 0 | CH30: =_xlfn.IFNA(MATCH(RAND(), _xlfn.POISSON.DIST({0,1,2,3,4,5,6,7,8,9},$P30, TRUE),1), 0) -> 1 | CI30: =_xlfn.IFNA(MATCH(RAND(), _xlfn.POISSON.DIST({0,1,2,3,4,5,6,7,8,9},$P30, TRUE),1), 0) -> 0 | CJ30: =_xlfn.IFNA(MATCH(RAND(), _xlfn.POISSON.DIST({0,1,2,3,4,5,6,7,8,9},$P30, TRUE),1), 0) -> 4 | CK30: =_xlfn.IFNA(MATCH(RAND(), _xlfn.POISSON.DIST({0,1,2,3,4,5,6,7,8,9},$P30, TRUE),1), 0) -> 1 | CL30: =_xlfn.IFNA(MATCH(RAND(), _xlfn.POISSON.DIST({0,1,2,3,4,5,6,7,8,9},$P30, TRUE),1), 0) -> 1 | CM30: =_xlfn.IFNA(MATCH(RAND(), _xlfn.POISSON.DIST({0,1,2,3,4,5,6,7,8,9},$P30, TRUE),1), 0) -> 1 | CN30: =_xlfn.IFNA(MATCH(RAND(), _xlfn.POISSON.DIST({0,1,2,3,4,5,6,7,8,9},$P30, TRUE),1), 0) -> 4 | CO30: =_xlfn.IFNA(MATCH(RAND(), _xlfn.POISSON.DIST({0,1,2,3,4,5,6,7,8,9},$P30, TRUE),1), 0) -> 0 | CP30: =_xlfn.IFNA(MATCH(RAND(), _xlfn.POISSON.DIST({0,1,2,3,4,5,6,7,8,9},$P30, TRUE),1), 0) -> 0 | CQ30: =_xlfn.IFNA(MATCH(RAND(), _xlfn.POISSON.DIST({0,1,2,3,4,5,6,7,8,9},$P30, TRUE),1), 0) -> 1 | CR30: =_xlfn.IFNA(MATCH(RAND(), _xlfn.POISSON.DIST({0,1,2,3,4,5,6,7,8,9},$P30, TRUE),1), 0) -> 2 | CS30: =_xlfn.IFNA(MATCH(RAND(), _xlfn.POISSON.DIST({0,1,2,3,4,5,6,7,8,9},$P30, TRUE),1), 0) -> 3 | CT30: =_xlfn.IFNA(MATCH(RAND(), _xlfn.POISSON.DIST({0,1,2,3,4,5,6,7,8,9},$P30, TRUE),1), 0) -> 4 | CU30: =_xlfn.IFNA(MATCH(RAND(), _xlfn.POISSON.DIST({0,1,2,3,4,5,6,7,8,9},$P30, TRUE),1), 0) -> 1 | CV30: =_xlfn.IFNA(MATCH(RAND(), _xlfn.POISSON.DIST({0,1,2,3,4,5,6,7,8,9},$P30, TRUE),1), 0) -> 0 | CW30: =_xlfn.IFNA(MATCH(RAND(), _xlfn.POISSON.DIST({0,1,2,3,4,5,6,7,8,9},$P30, TRUE),1), 0) -> 0 | CX30: =_xlfn.IFNA(MATCH(RAND(), _xlfn.POISSON.DIST({0,1,2,3,4,5,6,7,8,9},$P30, TRUE),1), 0) -> 1 | CY30: =_xlfn.IFNA(MATCH(RAND(), _xlfn.POISSON.DIST({0,1,2,3,4,5,6,7,8,9},$P30, TRUE),1), 0) -> 0 | CZ30: =_xlfn.IFNA(MATCH(RAND(), _xlfn.POISSON.DIST({0,1,2,3,4,5,6,7,8,9},$P30, TRUE),1), 0) -> 2 | DA30: =_xlfn.IFNA(MATCH(RAND(), _xlfn.POISSON.DIST({0,1,2,3,4,5,6,7,8,9},$P30, TRUE),1), 0) -> 0 | DB30: =_xlfn.IFNA(MATCH(RAND(), _xlfn.POISSON.DIST({0,1,2,3,4,5,6,7,8,9},$P30, TRUE),1), 0) -> 3 | DC30: =_xlfn.IFNA(MATCH(RAND(), _xlfn.POISSON.DIST({0,1,2,3,4,5,6,7,8,9},$P30, TRUE),1), 0) -> 1 | DD30: =_xlfn.IFNA(MATCH(RAND(), _xlfn.POISSON.DIST({0,1,2,3,4,5,6,7,8,9},$P30, TRUE),1), 0) -> 1 | DE30: =_xlfn.IFNA(MATCH(RAND(), _xlfn.POISSON.DIST({0,1,2,3,4,5,6,7,8,9},$P30, TRUE),1), 0) -> 3 | DF30: =_xlfn.IFNA(MATCH(RAND(), _xlfn.POISSON.DIST({0,1,2,3,4,5,6,7,8,9},$P30, TRUE),1), 0) -> 1 | DG30: =_xlfn.IFNA(MATCH(RAND(), _xlfn.POISSON.DIST({0,1,2,3,4,5,6,7,8,9},$P30, TRUE),1), 0) -> 3 | DH30: =_xlfn.IFNA(MATCH(RAND(), _xlfn.POISSON.DIST({0,1,2,3,4,5,6,7,8,9},$P30, TRUE),1), 0) -> 0 | DI30: =_xlfn.IFNA(MATCH(RAND(), _xlfn.POISSON.DIST({0,1,2,3,4,5,6,7,8,9},$P30, TRUE),1), 0) -> 1 | DJ30: =_xlfn.IFNA(MATCH(RAND(), _xlfn.POISSON.DIST({0,1,2,3,4,5,6,7,8,9},$P30, TRUE),1), 0) -> 1 | DK30: =_xlfn.IFNA(MATCH(RAND(), _xlfn.POISSON.DIST({0,1,2,3,4,5,6,7,8,9},$P30, TRUE),1), 0) -> 0 | DL30: =_xlfn.IFNA(MATCH(RAND(), _xlfn.POISSON.DIST({0,1,2,3,4,5,6,7,8,9},$P30, TRUE),1), 0) -> 0 | DM30: =_xlfn.IFNA(MATCH(RAND(), _xlfn.POISSON.DIST({0,1,2,3,4,5,6,7,8,9},$P30, TRUE),1), 0) -> 0
C31: 2019-06-17 | D31: B | E31: 南アフリカ | F31: =(AVERAGE(Q31:BN31))*(1+INDEX('グループ ステージの予想'!$C$4:$O$28, MATCH(今年の試合!E31,'グループ ステージの予想'!$D$4:$D$28,0),3)) -> 1.80 | G31: ドイツ | H31: =(AVERAGE(BP31:DM31))*(1+INDEX('グループ ステージの予想'!$C$4:$O$28, MATCH(今年の試合!G31,'グループ ステージの予想'!$D$4:$D$28,0),3)) -> 1.60 | I31: 南アフリカ | L31: 1.8 | M31: 1.6 | N31: 南アフリカ | O31: =(OFFSET('付録 3 - グループごとのゴール'!$C$13,(INDEX('付録 1 - チーム データ'!$C$13:$F$112,MATCH(G31,'付録 1 - チーム データ'!$C$13:$C$112,0),4)/10),(INDEX('付録 1 - チーム データ'!$C$13:$F$112,MATCH(E31,'付録 1 - チーム データ'!$C$13:$C$112,0),4)/10))) -> 1.50 | P31: =OFFSET('付録 3 - グループごとのゴール'!$C$13,(INDEX('付録 1 - チーム データ'!$C$13:$F$112, MATCH(E31,'付録 1 - チーム データ'!$C$13:$C$112,0),4)/10), (INDEX('付録 1 - チーム データ'!$C$13:$F$112, MATCH(G31, '付録 1 - チーム データ'!$C$13:$C$112,0),4)/10)) -> 1.50 | Q31: =_xlfn.IFNA(MATCH(RAND(), _xlfn.POISSON.DIST({0,1,2,3,4,5,6,7,8,9},$O31, TRUE),1), 0) -> 5 | R31: =_xlfn.IFNA(MATCH(RAND(), _xlfn.POISSON.DIST({0,1,2,3,4,5,6,7,8,9},$O31, TRUE),1), 0) -> 2 | S31: =_xlfn.IFNA(MATCH(RAND(), _xlfn.POISSON.DIST({0,1,2,3,4,5,6,7,8,9},$O31, TRUE),1), 0) -> 0 | T31: =_xlfn.IFNA(MATCH(RAND(), _xlfn.POISSON.DIST({0,1,2,3,4,5,6,7,8,9},$O31, TRUE),1), 0) -> 5 | U31: =_xlfn.IFNA(MATCH(RAND(), _xlfn.POISSON.DIST({0,1,2,3,4,5,6,7,8,9},$O31, TRUE),1), 0) -> 2 | V31: =_xlfn.IFNA(MATCH(RAND(), _xlfn.POISSON.DIST({0,1,2,3,4,5,6,7,8,9},$O31, TRUE),1), 0) -> 1 | W31: =_xlfn.IFNA(MATCH(RAND(), _xlfn.POISSON.DIST({0,1,2,3,4,5,6,7,8,9},$O31, TRUE),1), 0) -> 0 | X31: =_xlfn.IFNA(MATCH(RAND(), _xlfn.POISSON.DIST({0,1,2,3,4,5,6,7,8,9},$O31, TRUE),1), 0) -> 2 | Y31: =_xlfn.IFNA(MATCH(RAND(), _xlfn.POISSON.DIST({0,1,2,3,4,5,6,7,8,9},$O31, TRUE),1), 0) -> 0 | Z31: =_xlfn.IFNA(MATCH(RAND(), _xlfn.POISSON.DIST({0,1,2,3,4,5,6,7,8,9},$O31, TRUE),1), 0) -> 1 | AA31: =_xlfn.IFNA(MATCH(RAND(), _xlfn.POISSON.DIST({0,1,2,3,4,5,6,7,8,9},$O31, TRUE),1), 0) -> 1 | AB31: =_xlfn.IFNA(MATCH(RAND(), _xlfn.POISSON.DIST({0,1,2,3,4,5,6,7,8,9},$O31, TRUE),1), 0) -> 2 | AC31: =_xlfn.IFNA(MATCH(RAND(), _xlfn.POISSON.DIST({0,1,2,3,4,5,6,7,8,9},$O31, TRUE),1), 0) -> 1 | AD31: =_xlfn.IFNA(MATCH(RAND(), _xlfn.POISSON.DIST({0,1,2,3,4,5,6,7,8,9},$O31, TRUE),1), 0) -> 4 | AE31: =_xlfn.IFNA(MATCH(RAND(), _xlfn.POISSON.DIST({0,1,2,3,4,5,6,7,8,9},$O31, TRUE),1), 0) -> 1 | AF31: =_xlfn.IFNA(MATCH(RAND(), _xlfn.POISSON.DIST({0,1,2,3,4,5,6,7,8,9},$O31, TRUE),1), 0) -> 2 | AG31: =_xlfn.IFNA(MATCH(RAND(), _xlfn.POISSON.DIST({0,1,2,3,4,5,6,7,8,9},$O31, TRUE),1), 0) -> 1 | AH31: =_xlfn.IFNA(MATCH(RAND(), _xlfn.POISSON.DIST({0,1,2,3,4,5,6,7,8,9},$O31, TRUE),1), 0) -> 4 | AI31: =_xlfn.IFNA(MATCH(RAND(), _xlfn.POISSON.DIST({0,1,2,3,4,5,6,7,8,9},$O31, TRUE),1), 0) -> 2 | AJ31: =_xlfn.IFNA(MATCH(RAND(), _xlfn.POISSON.DIST({0,1,2,3,4,5,6,7,8,9},$O31, TRUE),1), 0) -> 0 | AK31: =_xlfn.IFNA(MATCH(RAND(), _xlfn.POISSON.DIST({0,1,2,3,4,5,6,7,8,9},$O31, TRUE),1), 0) -> 0 | AL31: =_xlfn.IFNA(MATCH(RAND(), _xlfn.POISSON.DIST({0,1,2,3,4,5,6,7,8,9},$O31, TRUE),1), 0) -> 1 | AM31: =_xlfn.IFNA(MATCH(RAND(), _xlfn.POISSON.DIST({0,1,2,3,4,5,6,7,8,9},$O31, TRUE),1), 0) -> 3 | AN31: =_xlfn.IFNA(MATCH(RAND(), _xlfn.POISSON.DIST({0,1,2,3,4,5,6,7,8,9},$O31, TRUE),1), 0) -> 1 | AO31: =_xlfn.IFNA(MATCH(RAND(), _xlfn.POISSON.DIST({0,1,2,3,4,5,6,7,8,9},$O31, TRUE),1), 0) -> 3 | AP31: =_xlfn.IFNA(MATCH(RAND(), _xlfn.POISSON.DIST({0,1,2,3,4,5,6,7,8,9},$O31, TRUE),1), 0) -> 1 | AQ31: =_xlfn.IFNA(MATCH(RAND(), _xlfn.POISSON.DIST({0,1,2,3,4,5,6,7,8,9},$O31, TRUE),1), 0) -> 0 | AR31: =_xlfn.IFNA(MATCH(RAND(), _xlfn.POISSON.DIST({0,1,2,3,4,5,6,7,8,9},$O31, TRUE),1), 0) -> 2 | AS31: =_xlfn.IFNA(MATCH(RAND(), _xlfn.POISSON.DIST({0,1,2,3,4,5,6,7,8,9},$O31, TRUE),1), 0) -> 3 | AT31: =_xlfn.IFNA(MATCH(RAND(), _xlfn.POISSON.DIST({0,1,2,3,4,5,6,7,8,9},$O31, TRUE),1), 0) -> 2 | AU31: =_xlfn.IFNA(MATCH(RAND(), _xlfn.POISSON.DIST({0,1,2,3,4,5,6,7,8,9},$O31, TRUE),1), 0) -> 0 | AV31: =_xlfn.IFNA(MATCH(RAND(), _xlfn.POISSON.DIST({0,1,2,3,4,5,6,7,8,9},$O31, TRUE),1), 0) -> 3 | AW31: =_xlfn.IFNA(MATCH(RAND(), _xlfn.POISSON.DIST({0,1,2,3,4,5,6,7,8,9},$O31, TRUE),1), 0) -> 1 | AX31: =_xlfn.IFNA(MATCH(RAND(), _xlfn.POISSON.DIST({0,1,2,3,4,5,6,7,8,9},$O31, TRUE),1), 0) -> 2 | AY31: =_xlfn.IFNA(MATCH(RAND(), _xlfn.POISSON.DIST({0,1,2,3,4,5,6,7,8,9},$O31, TRUE),1), 0) -> 6 | AZ31: =_xlfn.IFNA(MATCH(RAND(), _xlfn.POISSON.DIST({0,1,2,3,4,5,6,7,8,9},$O31, TRUE),1), 0) -> 1 | BA31: =_xlfn.IFNA(MATCH(RAND(), _xlfn.POISSON.DIST({0,1,2,3,4,5,6,7,8,9},$O31, TRUE),1), 0) -> 0 | BB31: =_xlfn.IFNA(MATCH(RAND(), _xlfn.POISSON.DIST({0,1,2,3,4,5,6,7,8,9},$O31, TRUE),1), 0) -> 4 | BC31: =_xlfn.IFNA(MATCH(RAND(), _xlfn.POISSON.DIST({0,1,2,3,4,5,6,7,8,9},$O31, TRUE),1), 0) -> 1 | BD31: =_xlfn.IFNA(MATCH(RAND(), _xlfn.POISSON.DIST({0,1,2,3,4,5,6,7,8,9},$O31, TRUE),1), 0) -> 3 | BE31: =_xlfn.IFNA(MATCH(RAND(), _xlfn.POISSON.DIST({0,1,2,3,4,5,6,7,8,9},$O31, TRUE),1), 0) -> 1 | BF31: =_xlfn.IFNA(MATCH(RAND(), _xlfn.POISSON.DIST({0,1,2,3,4,5,6,7,8,9},$O31, TRUE),1), 0) -> 4 | BG31: =_xlfn.IFNA(MATCH(RAND(), _xlfn.POISSON.DIST({0,1,2,3,4,5,6,7,8,9},$O31, TRUE),1), 0) -> 3 | BH31: =_xlfn.IFNA(MATCH(RAND(), _xlfn.POISSON.DIST({0,1,2,3,4,5,6,7,8,9},$O31, TRUE),1), 0) -> 1 | BI31: =_xlfn.IFNA(MATCH(RAND(), _xlfn.POISSON.DIST({0,1,2,3,4,5,6,7,8,9},$O31, TRUE),1), 0) -> 0 | BJ31: =_xlfn.IFNA(MATCH(RAND(), _xlfn.POISSON.DIST({0,1,2,3,4,5,6,7,8,9},$O31, TRUE),1), 0) -> 1 | BK31: =_xlfn.IFNA(MATCH(RAND(), _xlfn.POISSON.DIST({0,1,2,3,4,5,6,7,8,9},$O31, TRUE),1), 0) -> 2 | BL31: =_xlfn.IFNA(MATCH(RAND(), _xlfn.POISSON.DIST({0,1,2,3,4,5,6,7,8,9},$O31, TRUE),1), 0) -> 3 | BM31: =_xlfn.IFNA(MATCH(RAND(), _xlfn.POISSON.DIST({0,1,2,3,4,5,6,7,8,9},$O31, TRUE),1), 0) -> 1 | BN31: =_xlfn.IFNA(MATCH(RAND(), _xlfn.POISSON.DIST({0,1,2,3,4,5,6,7,8,9},$O31, TRUE),1), 0) -> 1 | BP31: =_xlfn.IFNA(MATCH(RAND(), _xlfn.POISSON.DIST({0,1,2,3,4,5,6,7,8,9},$P31, TRUE),1), 0) -> 3 | BQ31: =_xlfn.IFNA(MATCH(RAND(), _xlfn.POISSON.DIST({0,1,2,3,4,5,6,7,8,9},$P31, TRUE),1), 0) -> 0 | BR31: =_xlfn.IFNA(MATCH(RAND(), _xlfn.POISSON.DIST({0,1,2,3,4,5,6,7,8,9},$P31, TRUE),1), 0) -> 1 | BS31: =_xlfn.IFNA(MATCH(RAND(), _xlfn.POISSON.DIST({0,1,2,3,4,5,6,7,8,9},$P31, TRUE),1), 0) -> 2 | BT31: =_xlfn.IFNA(MATCH(RAND(), _xlfn.POISSON.DIST({0,1,2,3,4,5,6,7,8,9},$P31, TRUE),1), 0) -> 6 | BU31: =_xlfn.IFNA(MATCH(RAND(), _xlfn.POISSON.DIST({0,1,2,3,4,5,6,7,8,9},$P31, TRUE),1), 0) -> 2 | BV31: =_xlfn.IFNA(MATCH(RAND(), _xlfn.POISSON.DIST({0,1,2,3,4,5,6,7,8,9},$P31, TRUE),1), 0) -> 3 | BW31: =_xlfn.IFNA(MATCH(RAND(), _xlfn.POISSON.DIST({0,1,2,3,4,5,6,7,8,9},$P31, TRUE),1), 0) -> 2 | BX31: =_xlfn.IFNA(MATCH(RAND(), _xlfn.POISSON.DIST({0,1,2,3,4,5,6,7,8,9},$P31, TRUE),1), 0) -> 2 | BY31: =_xlfn.IFNA(MATCH(RAND(), _xlfn.POISSON.DIST({0,1,2,3,4,5,6,7,8,9},$P31, TRUE),1), 0) -> 2 | BZ31: =_xlfn.IFNA(MATCH(RAND(), _xlfn.POISSON.DIST({0,1,2,3,4,5,6,7,8,9},$P31, TRUE),1), 0) -> 2 | CA31: =_xlfn.IFNA(MATCH(RAND(), _xlfn.POISSON.DIST({0,1,2,3,4,5,6,7,8,9},$P31, TRUE),1), 0) -> 2 | CB31: =_xlfn.IFNA(MATCH(RAND(), _xlfn.POISSON.DIST({0,1,2,3,4,5,6,7,8,9},$P31, TRUE),1), 0) -> 3 | CC31: =_xlfn.IFNA(MATCH(RAND(), _xlfn.POISSON.DIST({0,1,2,3,4,5,6,7,8,9},$P31, TRUE),1), 0) -> 1 | CD31: =_xlfn.IFNA(MATCH(RAND(), _xlfn.POISSON.DIST({0,1,2,3,4,5,6,7,8,9},$P31, TRUE),1), 0) -> 2 | CE31: =_xlfn.IFNA(MATCH(RAND(), _xlfn.POISSON.DIST({0,1,2,3,4,5,6,7,8,9},$P31, TRUE),1), 0) -> 2 | CF31: =_xlfn.IFNA(MATCH(RAND(), _xlfn.POISSON.DIST({0,1,2,3,4,5,6,7,8,9},$P31, TRUE),1), 0) -> 4 | CG31: =_xlfn.IFNA(MATCH(RAND(), _xlfn.POISSON.DIST({0,1,2,3,4,5,6,7,8,9},$P31, TRUE),1), 0) -> 2 | CH31: =_xlfn.IFNA(MATCH(RAND(), _xlfn.POISSON.DIST({0,1,2,3,4,5,6,7,8,9},$P31, TRUE),1), 0) -> 3 | CI31: =_xlfn.IFNA(MATCH(RAND(), _xlfn.POISSON.DIST({0,1,2,3,4,5,6,7,8,9},$P31, TRUE),1), 0) -> 1 | CJ31: =_xlfn.IFNA(MATCH(RAND(), _xlfn.POISSON.DIST({0,1,2,3,4,5,6,7,8,9},$P31, TRUE),1), 0) -> 0 | CK31: =_xlfn.IFNA(MATCH(RAND(), _xlfn.POISSON.DIST({0,1,2,3,4,5,6,7,8,9},$P31, TRUE),1), 0) -> 2 | CL31: =_xlfn.IFNA(MATCH(RAND(), _xlfn.POISSON.DIST({0,1,2,3,4,5,6,7,8,9},$P31, TRUE),1), 0) -> 2 | CM31: =_xlfn.IFNA(MATCH(RAND(), _xlfn.POISSON.DIST({0,1,2,3,4,5,6,7,8,9},$P31, TRUE),1), 0) -> 2 | CN31: =_xlfn.IFNA(MATCH(RAND(), _xlfn.POISSON.DIST({0,1,2,3,4,5,6,7,8,9},$P31, TRUE),1), 0) -> 1 | CO31: =_xlfn.IFNA(MATCH(RAND(), _xlfn.POISSON.DIST({0,1,2,3,4,5,6,7,8,9},$P31, TRUE),1), 0) -> 1 | CP31: =_xlfn.IFNA(MATCH(RAND(), _xlfn.POISSON.DIST({0,1,2,3,4,5,6,7,8,9},$P31, TRUE),1), 0) -> 1 | CQ31: =_xlfn.IFNA(MATCH(RAND(), _xlfn.POISSON.DIST({0,1,2,3,4,5,6,7,8,9},$P31, TRUE),1), 0) -> 1 | CR31: =_xlfn.IFNA(MATCH(RAND(), _xlfn.POISSON.DIST({0,1,2,3,4,5,6,7,8,9},$P31, TRUE),1), 0) -> 0 | CS31: =_xlfn.IFNA(MATCH(RAND(), _xlfn.POISSON.DIST({0,1,2,3,4,5,6,7,8,9},$P31, TRUE),1), 0) -> 0 | CT31: =_xlfn.IFNA(MATCH(RAND(), _xlfn.POISSON.DIST({0,1,2,3,4,5,6,7,8,9},$P31, TRUE),1), 0) -> 2 | CU31: =_xlfn.IFNA(MATCH(RAND(), _xlfn.POISSON.DIST({0,1,2,3,4,5,6,7,8,9},$P31, TRUE),1), 0) -> 1 | CV31: =_xlfn.IFNA(MATCH(RAND(), _xlfn.POISSON.DIST({0,1,2,3,4,5,6,7,8,9},$P31, TRUE),1), 0) -> 0 | CW31: =_xlfn.IFNA(MATCH(RAND(), _xlfn.POISSON.DIST({0,1,2,3,4,5,6,7,8,9},$P31, TRUE),1), 0) -> 1 | CX31: =_xlfn.IFNA(MATCH(RAND(), _xlfn.POISSON.DIST({0,1,2,3,4,5,6,7,8,9},$P31, TRUE),1), 0) -> 3 | CY31: =_xlfn.IFNA(MATCH(RAND(), _xlfn.POISSON.DIST({0,1,2,3,4,5,6,7,8,9},$P31, TRUE),1), 0) -> 1 | CZ31: =_xlfn.IFNA(MATCH(RAND(), _xlfn.POISSON.DIST({0,1,2,3,4,5,6,7,8,9},$P31, TRUE),1), 0) -> 4 | DA31: =_xlfn.IFNA(MATCH(RAND(), _xlfn.POISSON.DIST({0,1,2,3,4,5,6,7,8,9},$P31, TRUE),1), 0) -> 0 | DB31: =_xlfn.IFNA(MATCH(RAND(), _xlfn.POISSON.DIST({0,1,2,3,4,5,6,7,8,9},$P31, TRUE),1), 0) -> 0 | DC31: =_xlfn.IFNA(MATCH(RAND(), _xlfn.POISSON.DIST({0,1,2,3,4,5,6,7,8,9},$P31, TRUE),1), 0) -> 1 | DD31: =_xlfn.IFNA(MATCH(RAND(), _xlfn.POISSON.DIST({0,1,2,3,4,5,6,7,8,9},$P31, TRUE),1), 0) -> 1 | DE31: =_xlfn.IFNA(MATCH(RAND(), _xlfn.POISSON.DIST({0,1,2,3,4,5,6,7,8,9},$P31, TRUE),1), 0) -> 0 | DF31: =_xlfn.IFNA(MATCH(RAND(), _xlfn.POISSON.DIST({0,1,2,3,4,5,6,7,8,9},$P31, TRUE),1), 0) -> 1 | DG31: =_xlfn.IFNA(MATCH(RAND(), _xlfn.POISSON.DIST({0,1,2,3,4,5,6,7,8,9},$P31, TRUE),1), 0) -> 3 | DH31: =_xlfn.IFNA(MATCH(RAND(), _xlfn.POISSON.DIST({0,1,2,3,4,5,6,7,8,9},$P31, TRUE),1), 0) -> 0 | DI31: =_xlfn.IFNA(MATCH(RAND(), _xlfn.POISSON.DIST({0,1,2,3,4,5,6,7,8,9},$P31, TRUE),1), 0) -> 1 | DJ31: =_xlfn.IFNA(MATCH(RAND(), _xlfn.POISSON.DIST({0,1,2,3,4,5,6,7,8,9},$P31, TRUE),1), 0) -> 2 | DK31: =_xlfn.IFNA(MATCH(RAND(), _xlfn.POISSON.DIST({0,1,2,3,4,5,6,7,8,9},$P31, TRUE),1), 0) -> 2 | DL31: =_xlfn.IFNA(MATCH(RAND(), _xlfn.POISSON.DIST({0,1,2,3,4,5,6,7,8,9},$P31, TRUE),1), 0) -> 2 | DM31: =_xlfn.IFNA(MATCH(RAND(), _xlfn.POISSON.DIST({0,1,2,3,4,5,6,7,8,9},$P31, TRUE),1), 0) -> 0
